Workbook

Sheet 1月
A1: 2022年1月各安全培训机构考生通过率统计表
A2: 培训机构 工种 | B2: 江门市安信职业安全培训有限公司 | E2: 广东四维培训有限公司 | H2: 江门市技师学院 | K2: 江门市江海区共升教育培训中心 | N2: 江门市侨都安全咨询服务有限公司 | Q2: 江门市安全生产管理协会 | T2: 江门市新会技师学院 | W2: 江门市新会机电职业技术学校 | Z2: 鹤山市优创职业培训学校有限公司 | AC2: 台山市安全生产管理协会 | AF2: 鹤山市安全生产管理协会 | AI2: 江门市江海区万众职业培训学校 | AL2: 开平市中邑安安全技术咨询有限公司 | AO2: 江门市江海区安全生产管理协会 | AR2: 江门市天晟安全事务有限公司 | AU2: 全市合计
B3: 实考人数 | C3: 合格人数 | D3: 通过率 | E3: 实考人数 | F3: 合格人数 | G3: 通过率 | H3: 实考人数 | I3: 合格人数 | J3: 通过率 | K3: 实考人数 | L3: 合格人数 | M3: 通过率 | N3: 实考人数 | O3: 合格人数 | P3: 通过率 | Q3: 实考人数 | R3: 合格人数 | S3: 通过率 | T3: 实考人数 | U3: 合格人数 | V3: 通过率 | W3: 实考人数 | X3: 合格人数 | Y3: 通过率 | Z3: 实考人数 | AA3: 合格人数 | AB3: 通过率 | AC3: 实考人数 | AD3: 合格人数 | AE3: 通过率 | AF3: 实考人数 | AG3: 合格人数 | AH3: 通过率 | AI3: 实考人数 | AJ3: 合格人数 | AK3: 通过率 | AL3: 实考人数 | AM3: 合格人数 | AN3: 通过率 | AO3: 实考人数 | AP3: 合格人数 | AQ3: 通过率 | AR3: 实考人数 | AS3: 合格人数 | AT3: 通过率 | AU3: 实考人数 | AV3: 合格人数 | AW3: 通过率
A4: 低压电工初训 | B4: 117 | C4: 102 | D4: =C4/B4 -> 87.2% | E4: 3 | F4: 3 | G4: =F4/E4 -> 100.0% | H4: 20 | I4: 18 | J4: =I4/H4 -> 90.0% | K4: 17 | L4: 16 | M4: =L4/K4 -> 94.1% | N4: 15 | O4: 8 | P4: =O4/N4 -> 53.3% | Q4: 1 | R4: 0 | S4: =R4/Q4 -> 0.0% | T4: 27 | U4: 17 | V4: =U4/T4 -> 63.0% | W4: 24 | X4: 24 | Y4: =X4/W4 -> 100.0% | Z4: 30 | AA4: 25 | AB4: =AA4/Z4 -> 83.3% | AC4: 42 | AD4: 32 | AE4: =AD4/AC4 -> 76.2% | AI4: 115 | AJ4: 94 | AK4: =AJ4/AI4 -> 81.7% | AO4: 15 | AP4: 15 | AQ4: =AP4/AO4 -> 100.0% | AU4: =B4+E4+H4+K4+N4+Q4+T4+W4+Z4+AC4+AF4+AI4+AL4+AO4+AR4 -> 426 | AV4: =C4+F4+I4+L4+O4+R4+U4+X4+AA4+AD4+AG4+AJ4+AM4+AP4+AS4 -> 354 | AW4: =AV4/AU4 -> 83.1%
A5: 高压电工初训 | E5: 1 | F5: 1 | G5: 100.0% | K5: 5 | L5: 5 | M5: =L5/K5 -> 100.0% | N5: 5 | O5: 5 | P5: =O5/N5 -> 100.0% | AL5: 8 | AM5: 8 | AN5: =AM5/AL5 -> 100.0% | AU5: =B5+E5+H5+K5+N5+Q5+T5+W5+Z5+AC5+AF5+AI5+AL5+AO5+AR5 -> 19 | AV5: =C5+F5+I5+L5+O5+R5+U5+X5+AA5+AD5+AG5+AJ5+AM5+AP5+AS5 -> 19 | AW5: 100.0%
A6: 电力电缆初训
A7: 熔化焊接与热切割初训 | H7: 33 | I7: 31 | J7: =I7/H7 -> 93.9% | K7: 4 | L7: 3 | M7: =L7/K7 -> 75.0% | N7: 16 | O7: 7 | P7: =O7/N7 -> 43.8% | Q7: 12 | R7: 10 | S7: =R7/Q7 -> 83.3% | T7: 52 | U7: 45 | V7: =U7/T7 -> 86.5% | Z7: 26 | AA7: 24 | AB7: =AA7/Z7 -> 92.3% | AC7: 22 | AD7: 11 | AE7: =AD7/AC7 -> 50.0% | AI7: 34 | AJ7: 24 | AK7: =AJ7/AI7 -> 70.6% | AO7: 3 | AP7: 3 | AQ7: =AP7/AO7 -> 100.0% | AU7: =B7+E7+H7+K7+N7+Q7+T7+W7+Z7+AC7+AF7+AI7+AL7+AO7+AR7 -> 202 | AV7: 158 | AW7: 78.2%
A8: 高处安装维护拆除初训 | B8: 72 | C8: 63 | D8: 87.5% | K8: 8 | L8: 6 | M8: 75.0% | Q8: 3 | R8: 2 | S8: =R8/Q8 -> 66.7% | AL8: 38 | AM8: 34 | AN8: =AM8/AL8 -> 89.5% | AU8: 121 | AV8: 105 | AW8: 86.8%
A9: 特种作业初训合计 | B9: =SUM(B4:B8) -> 189 | C9: =SUM(C4:C8) -> 165 | D9: 87.3% | E9: =SUM(E4:E8) -> 4 | F9: =SUM(F4:F8) -> 4 | G9: 100.0% | H9: =SUM(H4:H8) -> 53 | I9: =SUM(I4:I8) -> 49 | J9: =I9/H9 -> 92.5% | K9: =SUM(K4:K8) -> 34 | L9: =SUM(L4:L8) -> 30 | M9: 88.2% | N9: =SUM(N4:N8) -> 36 | O9: =SUM(O4:O8) -> 20 | P9: =O9/N9 -> 55.6% | Q9: =SUM(Q4:Q8) -> 16 | R9: =SUM(R4:R8) -> 12 | S9: =R9/Q9 -> 75.0% | T9: =SUM(T4:T8) -> 79 | U9: =SUM(U4:U8) -> 62 | V9: =U9/T9 -> 78.5% | W9: =SUM(W4:W8) -> 24 | X9: =SUM(X4:X8) -> 24 | Y9: =X9/W9 -> 100.0% | Z9: =SUM(Z4:Z8) -> 56 | AA9: =SUM(AA4:AA8) -> 49 | AB9: =AA9/Z9 -> 87.5% | AC9: =SUM(AC4:AC8) -> 64 | AD9: =SUM(AD4:AD8) -> 43 | AE9: =AD9/AC9 -> 67.2% | AI9: =SUM(AI4:AI8) -> 149 | AJ9: =SUM(AJ4:AJ8) -> 118 | AK9: =AJ9/AI9 -> 79.2% | AL9: =SUM(AL4:AL8) -> 46 | AM9: =SUM(AM4:AM8) -> 42 | AN9: =AM9/AL9 -> 91.3% | AO9: =SUM(AO4:AO8) -> 18 | AP9: =SUM(AP4:AP8) -> 18 | AQ9: =AP9/AO9 -> 100.0% | AU9: 768 | AV9: 636 | AW9: 82.8%
A10: 低压电工复训 | B10: 358 | C10: 340 | D10: 95.0% | E10: 57 | F10: 54 | G10: =F10/E10 -> 94.7% | K10: 55 | L10: 53 | M10: 96.4% | N10: 15 | O10: 14 | P10: =O10/N10 -> 93.3% | T10: 24 | U10: 23 | V10: =U10/T10 -> 95.8% | AC10: 76 | AD10: 73 | AE10: =AD10/AC10 -> 96.1% | AF10: 50 | AG10: 50 | AH10: =AG10/AF10 -> 100.0% | AI10: 23 | AJ10: 22 | AK10: =AJ10/AI10 -> 95.7% | AL10: 21 | AM10: 21 | AN10: =AM10/AL10 -> 100.0% | AO10: 1 | AP10: 1 | AQ10: =AP10/AO10 -> 100.0% | AU10: =B10+E10+H10+K10+N10+Q10+T10+W10+Z10+AC10+AF10+AI10+AL10+AO10+AR10 -> 680 | AV10: 651 | AW10: 95.7%
A11: 高压电工复训 | B11: 25 | C11: 20 | D11: =C11/B11 -> 80.0% | E11: 23 | F11: 19 | G11: 82.6% | K11: 14 | L11: 14 | M11: 100.0% | N11: 2 | O11: 2 | P11: =O11/N11 -> 100.0% | AF11: 4 | AG11: 4 | AH11: =AG11/AF11 -> 100.0% | AL11: 2 | AM11: 0 | AN11: =AM11/AL11 -> 0.0% | AU11: 70 | AV11: 59 | AW11: 84.3%
A12: 熔化焊接与热切割复训 | B12: 41 | C12: 37 | D12: 90.2% | E12: 2 | F12: 2 | G12: 100.0% | K12: 5 | L12: 5 | M12: 100.0% | N12: 3 | O12: 1 | P12: =O12/N12 -> 33.3% | T12: 5 | U12: 5 | V12: =U12/T12 -> 100.0% | AC12: 26 | AD12: 22 | AE12: =AD12/AC12 -> 84.6% | AF12: 8 | AG12: 7 | AH12: =AG12/AF12 -> 87.5% | AI12: 7 | AJ12: 7 | AK12: =AJ12/AI12 -> 100.0% | AO12: 1 | AP12: 0 | AQ12: =AP12/AO12 -> 0.0% | AU12: 98 | AV12: 86 | AW12: 87.8%
A13: 钎焊复训
A14: 高处安装维护拆除复训 | B14: 13 | C14: 13 | D14: 100.0% | E14: 15 | F14: 14 | G14: 93.3% | K14: 2 | L14: 2 | M14: =L14/K14 -> 100.0% | AU14: 30 | AV14: 29 | AW14: =AV14/AU14 -> 96.7%
A15: 登高架设复训
A16: 制冷与空调运行操作复训
A17: 制冷与空调安装修理复训
A18: 矿山安检复训
A19: 电力电缆复训 | E19: 11 | F19: 4 | G19: 36.4% | K19: 1 | L19: 1 | M19: =L19/K19 -> 100.0% | AU19: 12 | AV19: 5 | AW19: 41.7%
A20: 电气试验复训 | B20: 1 | C20: 0 | D20: 0.0% | E20: 8 | F20: 8 | G20: 100.0% | AU20: 9 | AV20: 8 | AW20: 88.9%
A21: 继电保护复训 | B21: 2 | C21: 1 | D21: 50.0% | E21: 3 | F21: 2 | G21: 66.7% | AU21: 5 | AV21: 3 | AW21: 60.0%
A22: 特种作业复训合计 | B22: =SUM(B10:B21) -> 440 | C22: =SUM(C10:C21) -> 411 | D22: =C22/B22 -> 93.4% | E22: =SUM(E10:E21) -> 119 | F22: =SUM(F10:F21) -> 103 | G22: 86.6% | K22: =SUM(K10:K21) -> 77 | L22: =SUM(L10:L21) -> 75 | M22: =L22/K22 -> 97.4% | N22: =SUM(N10:N21) -> 20 | O22: =SUM(O10:O21) -> 17 | P22: =O22/N22 -> 85.0% | T22: =SUM(T10:T21) -> 29 | U22: =SUM(U10:U21) -> 28 | V22: =U22/T22 -> 96.6% | AC22: =SUM(AC10:AC21) -> 102 | AD22: =SUM(AD10:AD21) -> 95 | AE22: =AD22/AC22 -> 93.1% | AF22: =SUM(AF10:AF21) -> 62 | AG22: =SUM(AG10:AG21) -> 61 | AH22: =AG22/AF22 -> 98.4% | AI22: =SUM(AI10:AI21) -> 30 | AJ22: =SUM(AJ10:AJ21) -> 29 | AK22: =AJ22/AI22 -> 96.7% | AL22: =SUM(AL10:AL21) -> 23 | AM22: =SUM(AM10:AM21) -> 21 | AN22: =AM22/AL22 -> 91.3% | AO22: =SUM(AO10:AO21) -> 2 | AP22: =SUM(AP10:AP21) -> 1 | AQ22: =AP22/AO22 -> 50.0% | AU22: 904 | AV22: 841 | AW22: 93.0%
A23: 特种作业人员合计 | B23: =B9+B22 -> 629 | C23: =C9+C22 -> 576 | D23: 91.6% | E23: =E9+E22 -> 123 | F23: =F9+F22 -> 107 | G23: 87.0% | H23: =H9+H22 -> 53 | I23: =I9+I22 -> 49 | J23: =I23/H23 -> 92.5% | K23: =K9+K22 -> 111 | L23: =L9+L22 -> 105 | M23: =L23/K23 -> 94.6% | N23: =N9+N22 -> 56 | O23: =O9+O22 -> 37 | P23: =O23/N23 -> 66.1% | Q23: =Q9+Q22 -> 16 | R23: =R9+R22 -> 12 | S23: =R23/Q23 -> 75.0% | T23: =T9+T22 -> 108 | U23: =U9+U22 -> 90 | V23: =U23/T23 -> 83.3% | W23: =W9+W22 -> 24 | X23: =X9+X22 -> 24 | Y23: =X23/W23 -> 100.0% | Z23: =Z9+Z22 -> 56 | AA23: =AA9+AA22 -> 49 | AB23: =AA23/Z23 -> 87.5% | AC23: =AC9+AC22 -> 166 | AD23: =AD9+AD22 -> 138 | AE23: =AD23/AC23 -> 83.1% | AF23: =AF9+AF22 -> 62 | AG23: =AG9+AG22 -> 61 | AH23: =AG23/AF23 -> 98.4% | AI23: =AI9+AI22 -> 179 | AJ23: =AJ9+AJ22 -> 147 | AK23: =AJ23/AI23 -> 82.1% | AL23: =AL9+AL22 -> 69 | AM23: =AM9+AM22 -> 63 | AN23: =AM23/AL23 -> 91.3% | AO23: =AO9+AO22 -> 20 | AP23: =AP9+AP22 -> 19 | AQ23: =AP23/AO23 -> 95.0% | AU23: 1672 | AV23: 1477 | AW23: 88.3%
A24: 烟花爆竹经营负责人初训 | B24: 2 | C24: 1 | D24: 50.0% | AC24: 2 | AD24: 2 | AE24: =AD24/AC24 -> 100.0% | AF24: 1 | AG24: 1 | AH24: =AG24/AF24 -> 100.0% | AU24: 5 | AV24: 4 | AW24: 80.0%
A25: 危化生产负责人初训 | B25: 4 | C25: 3 | D25: 75.0% | AU25: 4 | AV25: 3 | AW25: 75.0%
A26: 危化经营负责人初训 | B26: 14 | C26: 13 | D26: 92.9% | K26: 2 | L26: 2 | M26: =L26/K26 -> 100.0% | AC26: 2 | AD26: 1 | AE26: =AD26/AC26 -> 50.0% | AU26: 18 | AV26: 16 | AW26: 88.9%
A27: 非煤矿山负责人初训
A28: 金属冶炼负责人初训 | Q28: 1 | R28: 1 | S28: =R28/Q28 -> 100.0% | AU28: =B28+E28+H28+K28+N28+Q28+T28+W28+Z28+AC28+AF28+AI28+AL28+AO28+AR28 -> 1 | AV28: =C28+F28+I28+L28+O28+R28+U28+X28+AA28+AD28+AG28+AJ28+AM28+AP28+AS28 -> 1 | AW28: =AV28/AU28 -> 100.0%
A29: 高危行业负责人初训合计 | B29: =SUM(B24:B28) -> 20 | C29: =SUM(C24:C28) -> 17 | D29: 85.0% | K29: =SUM(K24:K28) -> 2 | L29: =SUM(L24:L28) -> 2 | M29: =L29/K29 -> 100.0% | Q29: =SUM(Q24:Q28) -> 1 | R29: =SUM(R24:R28) -> 1 | S29: =R29/Q29 -> 100.0% | AC29: =SUM(AC24:AC28) -> 4 | AD29: =SUM(AD24:AD28) -> 3 | AE29: =AD29/AC29 -> 75.0% | AF29: =SUM(AF24:AF28) -> 1 | AG29: =SUM(AG24:AG28) -> 1 | AH29: =AG29/AF29 -> 100.0% | AU29: 28 | AV29: 24 | AW29: =AV29/AU29 -> 85.7%
A30: 烟花爆竹经营负责人复训 | AF30: 6 | AG30: 6 | AH30: =AG30/AF30 -> 100.0% | AU30: 6 | AV30: 6 | AW30: =AV30/AU30 -> 100.0%
A31: 危化生产负责人复训 | B31: 1 | C31: 1 | D31: 100.0% | K31: 1 | L31: 1 | M31: 100.0% | AU31: 2 | AV31: 2 | AW31: 100.0%
A32: 危化经营负责人复训 | B32: 99 | C32: 99 | D32: 100.0% | K32: 9 | L32: 9 | M32: 100.0% | AC32: 2 | AD32: 1 | AE32: =AD32/AC32 -> 50.0% | AO32: 1 | AP32: 1 | AQ32: =AP32/AO32 -> 100.0% | AU32: 111 | AV32: 110 | AW32: 99.1%
A33: 非煤矿山负责人复训
A34: 金属冶炼负责人复训 | Q34: 5 | R34: 5 | S34: =R34/Q34 -> 100.0% | AU34: =B34+E34+H34+K34+N34+Q34+T34+W34+Z34+AC34+AF34+AI34+AL34+AO34+AR34 -> 5 | AV34: =C34+F34+I34+L34+O34+R34+U34+X34+AA34+AD34+AG34+AJ34+AM34+AP34+AS34 -> 5 | AW34: =AV34/AU34 -> 100.0%
A35: 高危行业负责人复训合计 | B35: =SUM(B30:B34) -> 100 | C35: =SUM(C30:C34) -> 100 | D35: 100.0% | K35: =SUM(K30:K34) -> 10 | L35: =SUM(L30:L34) -> 10 | M35: 100.0% | Q35: =SUM(Q30:Q34) -> 5 | R35: =SUM(R30:R34) -> 5 | S35: =R35/Q35 -> 100.0% | AC35: =SUM(AC30:AC34) -> 2 | AD35: =SUM(AD30:AD34) -> 1 | AE35: =AD35/AC35 -> 50.0% | AF35: =SUM(AF30:AF34) -> 6 | AG35: =SUM(AG30:AG34) -> 6 | AH35: =AG35/AF35 -> 100.0% | AO35: =SUM(AO30:AO34) -> 1 | AP35: =SUM(AP30:AP34) -> 1 | AQ35: =AP35/AO35 -> 100.0% | AU35: 124 | AV35: 123 | AW35: 99.2%
A36: 高危行业主要负责人合计 | B36: =B29+B35 -> 120 | C36: =C29+C35 -> 117 | D36: 97.5% | K36: =K29+K35 -> 12 | L36: =L29+L35 -> 12 | M36: 100.0% | Q36: =Q29+Q35 -> 6 | R36: =R29+R35 -> 6 | S36: =R36/Q36 -> 100.0% | AC36: =AC29+AC35 -> 6 | AD36: =AD29+AD35 -> 4 | AE36: =AD36/AC36 -> 66.7% | AF36: =AF29+AF35 -> 7 | AG36: =AG29+AG35 -> 7 | AH36: =AG36/AF36 -> 100.0% | AO36: =AO29+AO35 -> 1 | AP36: =AP29+AP35 -> 1 | AQ36: =AP36/AO36 -> 100.0% | AU36: 152 | AV36: 147 | AW36: 96.7%
A37: 烟花爆竹经营安管初训 | B37: 1 | C37: 1 | D37: 100.0% | AU37: 1 | AV37: 1 | AW37: 100.0%
A38: 危化生产安管初训 | B38: 2 | C38: 2 | D38: 100.0% | K38: 1 | L38: 1 | M38: 100.0% | AF38: 9 | AG38: 9 | AH38: =AG38/AF38 -> 100.0% | AU38: 12 | AV38: 12 | AW38: 100.0%
A39: 危化经营安管初训 | B39: 20 | C39: 18 | D39: 90.0% | K39: 4 | L39: 3 | M39: 75.0% | AC39: 7 | AD39: 5 | AE39: =AD39/AC39 -> 71.4% | AO39: 2 | AP39: 2 | AQ39: =AP39/AO39 -> 100.0% | AU39: 33 | AV39: 28 | AW39: 84.8%
A40: 非煤矿山安管初训
A41: 金属冶炼安管初训 | Q41: 4 | R41: 4 | S41: =R41/Q41 -> 100.0% | AU41: =B41+E41+H41+K41+N41+Q41+T41+W41+Z41+AC41+AF41+AI41+AL41+AO41+AR41 -> 4 | AV41: =C41+F41+I41+L41+O41+R41+U41+X41+AA41+AD41+AG41+AJ41+AM41+AP41+AS41 -> 4 | AW41: =AV41/AU41 -> 100.0%
A42: 高危行业安管初训合计 | B42: =SUM(B37:B41) -> 23 | C42: =SUM(C37:C41) -> 21 | D42: 91.3% | K42: =SUM(K37:K41) -> 5 | L42: =SUM(L37:L41) -> 4 | M42: 80.0% | Q42: =SUM(Q37:Q41) -> 4 | R42: =SUM(R37:R41) -> 4 | S42: =R42/Q42 -> 100.0% | AC42: =SUM(AC37:AC41) -> 7 | AD42: =SUM(AD37:AD41) -> 5 | AE42: =AD42/AC42 -> 71.4% | AF42: =SUM(AF37:AF41) -> 9 | AG42: =SUM(AG37:AG41) -> 9 | AH42: =AG42/AF42 -> 100.0% | AO42: =SUM(AO37:AO41) -> 2 | AP42: =SUM(AP37:AP41) -> 2 | AQ42: =AP42/AO42 -> 100.0% | AU42: 50 | AV42: 45 | AW42: =AV42/AU42 -> 90.0%
A43: 烟花爆竹经营安管复训 | AF43: 1 | AG43: 1 | AH43: =AG43/AF43 -> 100.0% | AU43: 1 | AV43: 1 | AW43: =AV43/AU43 -> 100.0%
A44: 危化生产安管复训 | B44: 11 | C44: 11 | D44: 100.0% | K44: 2 | L44: 2 | M44: 100.0% | AU44: 13 | AV44: 13 | AW44: 100.0%
A45: 危化经营安管复训 | B45: 99 | C45: 93 | D45: 93.9% | K45: 20 | L45: 19 | M45: 95.0% | AC45: 3 | AD45: 3 | AE45: =AD45/AC45 -> 100.0% | AU45: 122 | AV45: 115 | AW45: 94.3%
A46: 非煤矿山安管复训
A47: 金属冶炼安管复训 | Q47: 11 | R47: 11 | S47: =R47/Q47 -> 100.0% | AU47: =B47+E47+H47+K47+N47+Q47+T47+W47+Z47+AC47+AF47+AI47+AL47+AO47+AR47 -> 11 | AV47: =C47+F47+I47+L47+O47+R47+U47+X47+AA47+AD47+AG47+AJ47+AM47+AP47+AS47 -> 11 | AW47: =AV47/AU47 -> 100.0%
A48: 高危行业安管复训合计 | B48: =SUM(B43:B47) -> 110 | C48: =SUM(C43:C47) -> 104 | D48: 94.5% | K48: =SUM(K43:K47) -> 22 | L48: =SUM(L43:L47) -> 21 | M48: 95.5% | Q48: =SUM(Q43:Q47) -> 11 | R48: =SUM(R43:R47) -> 11 | S48: =R48/Q48 -> 100.0% | AC48: =SUM(AC43:AC47) -> 3 | AD48: =SUM(AD43:AD47) -> 3 | AE48: =AD48/AC48 -> 100.0% | AF48: =SUM(AF43:AF47) -> 1 | AG48: =SUM(AG43:AG47) -> 1 | AH48: =AG48/AF48 -> 100.0% | AU48: 147 | AV48: 140 | AW48: 95.2%
A49: 高危行业安管人员合计 | B49: =B42+B48 -> 133 | C49: =C42+C48 -> 125 | D49: 94.0% | K49: =K42+K48 -> 27 | L49: =L42+L48 -> 25 | M49: 92.6% | Q49: =Q42+Q48 -> 15 | R49: =R42+R48 -> 15 | S49: =R49/Q49 -> 100.0% | AC49: =AC42+AC48 -> 10 | AD49: =AD42+AD48 -> 8 | AE49: =AD49/AC49 -> 80.0% | AF49: =AF42+AF48 -> 10 | AG49: =AG42+AG48 -> 10 | AH49: =AG49/AF49 -> 100.0% | AO49: =AO42+AO48 -> 2 | AP49: =AP42+AP48 -> 2 | AQ49: =AP49/AO49 -> 100.0% | AU49: 197 | AV49: 185 | AW49: 93.9%
A50: 高危行业负责人安管合计 | B50: =B36+B49 -> 253 | C50: =C36+C49 -> 242 | D50: 95.7% | K50: =K36+K49 -> 39 | L50: =L36+L49 -> 37 | M50: 94.9% | Q50: =Q36+Q49 -> 21 | R50: =R36+R49 -> 21 | S50: =R50/Q50 -> 100.0% | AC50: =AC36+AC49 -> 16 | AD50: =AD36+AD49 -> 12 | AE50: =AD50/AC50 -> 75.0% | AF50: =AF36+AF49 -> 17 | AG50: =AG36+AG49 -> 17 | AH50: =AG50/AF50 -> 100.0% | AO50: =AO36+AO49 -> 3 | AP50: =AP36+AP49 -> 3 | AQ50: =AP50/AO50 -> 100.0% | AU50: 349 | AV50: 332 | AW50: 95.1%
A51: 全工种合计 | B51: =B23+B50 -> 882 | C51: =C23+C50 -> 818 | D51: 92.7% | E51: =E23+E50 -> 123 | F51: =F23+F50 -> 107 | G51: =F51/E51 -> 87.0% | H51: =H23+H50 -> 53 | I51: =I23+I50 -> 49 | J51: =I51/H51 -> 92.5% | K51: =K23+K50 -> 150 | L51: =L23+L50 -> 142 | M51: 94.7% | N51: =N23+N50 -> 56 | O51: =O23+O50 -> 37 | P51: =O51/N51 -> 66.1% | Q51: =Q23+Q50 -> 37 | R51: =R23+R50 -> 33 | S51: =R51/Q51 -> 89.2% | T51: 108 | U51: 90 | V51: =U51/T51 -> 83.3% | W51: =W23+W50 -> 24 | X51: =X23+X50 -> 24 | Y51: =X51/W51 -> 100.0% | Z51: =Z23+Z50 -> 56 | AA51: =AA23+AA50 -> 49 | AB51: =AA51/Z51 -> 87.5% | AC51: =AC23+AC50 -> 182 | AD51: =AD23+AD50 -> 150 | AE51: =AD51/AC51 -> 82.4% | AF51: =AF23+AF50 -> 79 | AG51: =AG23+AG50 -> 78 | AH51: =AG51/AF51 -> 98.7% | AI51: =AI23+AI50 -> 179 | AJ51: =AJ23+AJ50 -> 147 | AK51: =AJ51/AI51 -> 82.1% | AL51: =AL23+AL50 -> 69 | AM51: =AM23+AM50 -> 63 | AN51: =AM51/AL51 -> 91.3% | AO51: =AO23+AO50 -> 23 | AP51: =AP23+AP50 -> 22 | AQ51: =AP51/AO51 -> 95.7% | AU51: 2021 | AV51: 1809 | AW51: 89.5%
A52: 备注： 1.培训机构名称以全国安全生产培训考试信息管理系统记录为准，按系统顺序排序； 2.实考人数=报考总人数-正考补考均缺考人数-考试违规被取消成绩人数； 3.仅统计已完成考试者，还有补考机会者不统计。

Sheet 2月
A1: 2022年2月各安全培训机构考生通过率统计表
A2: 培训机构 工种 | B2: 江门市安信职业安全培训有限公司 | E2: 广东四维培训有限公司 | H2: 江门市技师学院 | K2: 江门市江海区共升教育培训中心 | N2: 江门市侨都安全咨询服务有限公司 | Q2: 江门市安全生产管理协会 | T2: 江门市新会技师学院 | W2: 江门市新会机电职业技术学校 | Z2: 鹤山市优创职业培训学校有限公司 | AC2: 台山市安全生产管理协会 | AF2: 鹤山市安全生产管理协会 | AI2: 江门市江海区万众职业培训学校 | AL2: 开平市中邑安安全技术咨询有限公司 | AO2: 江门市江海区安全生产管理协会 | AR2: 江门市天晟安全事务有限公司 | AU2: 全市合计
B3: 实考人数 | C3: 合格人数 | D3: 通过率 | E3: 实考人数 | F3: 合格人数 | G3: 通过率 | H3: 实考人数 | I3: 合格人数 | J3: 通过率 | K3: 实考人数 | L3: 合格人数 | M3: 通过率 | N3: 实考人数 | O3: 合格人数 | P3: 通过率 | Q3: 实考人数 | R3: 合格人数 | S3: 通过率 | T3: 实考人数 | U3: 合格人数 | V3: 通过率 | W3: 实考人数 | X3: 合格人数 | Y3: 通过率 | Z3: 实考人数 | AA3: 合格人数 | AB3: 通过率 | AC3: 实考人数 | AD3: 合格人数 | AE3: 通过率 | AF3: 实考人数 | AG3: 合格人数 | AH3: 通过率 | AI3: 实考人数 | AJ3: 合格人数 | AK3: 通过率 | AL3: 实考人数 | AM3: 合格人数 | AN3: 通过率 | AO3: 实考人数 | AP3: 合格人数 | AQ3: 通过率 | AR3: 实考人数 | AS3: 合格人数 | AT3: 通过率 | AU3: 实考人数 | AV3: 合格人数 | AW3: 通过率
A4: 低压电工初训 | E4: 37 | F4: 33 | G4: =F4/E4 -> 89.2% | K4: 2 | L4: 2 | M4: =L4/K4 -> 100.0% | N4: 13 | O4: 10 | P4: =O4/N4 -> 76.9% | Z4: 2 | AA4: 1 | AB4: =AA4/Z4 -> 50.0% | AF4: 13 | AG4: 12 | AH4: =AG4/AF4 -> 92.3% | AI4: 9 | AJ4: 6 | AK4: =AJ4/AI4 -> 66.7% | AU4: =B4+E4+H4+K4+N4+Q4+T4+W4+Z4+AC4+AF4+AI4+AL4+AO4+AR4 -> 76 | AV4: =C4+F4+I4+L4+O4+R4+U4+X4+AA4+AD4+AG4+AJ4+AM4+AP4+AS4 -> 64 | AW4: =AV4/AU4 -> 84.2%
A5: 高压电工初训 | N5: 3 | O5: 3 | P5: =O5/N5 -> 100.0% | AU5: 3 | AV5: 3 | AW5: 100.0%
A6: 电力电缆初训
A7: 熔化焊接与热切割初训 | B7: 55 | C7: 46 | D7: =C7/B7 -> 83.6% | H7: 1 | I7: 1 | J7: =I7/H7 -> 100.0% | K7: 36 | L7: 29 | M7: 80.6% | N7: 19 | O7: 17 | P7: =O7/N7 -> 89.5% | T7: 29 | U7: 25 | V7: =U7/T7 -> 86.2% | AC7: 1 | AD7: 1 | AE7: =AD7/AC7 -> 100.0% | AF7: 33 | AG7: 28 | AH7: =AG7/AF7 -> 84.8% | AI7: 21 | AJ7: 17 | AK7: 81.0% | AL7: 27 | AM7: 23 | AN7: =AM7/AL7 -> 85.2% | AU7: 222 | AV7: 187 | AW7: 84.2%
A8: 高处安装维护拆除初训 | B8: 26 | C8: 20 | D8: 76.9% | K8: 7 | L8: 3 | M8: 42.9% | AL8: 33 | AM8: 32 | AN8: 97.0% | AU8: 66 | AV8: 55 | AW8: 83.3%
A9: 特种作业初训合计 | B9: =SUM(B4:B8) -> 81 | C9: =SUM(C4:C8) -> 66 | D9: 81.5% | E9: =SUM(E4:E8) -> 37 | F9: =SUM(F4:F8) -> 33 | G9: 89.2% | H9: =SUM(H4:H8) -> 1 | I9: =SUM(I4:I8) -> 1 | J9: =I9/H9 -> 100.0% | K9: =SUM(K4:K8) -> 45 | L9: =SUM(L4:L8) -> 34 | M9: 75.6% | N9: =SUM(N4:N8) -> 35 | O9: =SUM(O4:O8) -> 30 | P9: =O9/N9 -> 85.7% | T9: =SUM(T4:T8) -> 29 | U9: =SUM(U4:U8) -> 25 | V9: =U9/T9 -> 86.2% | Z9: =SUM(Z4:Z8) -> 2 | AA9: =SUM(AA4:AA8) -> 1 | AB9: 50.0% | AC9: =SUM(AC4:AC8) -> 1 | AD9: =SUM(AD4:AD8) -> 1 | AE9: 100.0% | AF9: =SUM(AF4:AF8) -> 46 | AG9: =SUM(AG4:AG8) -> 40 | AH9: =AG9/AF9 -> 87.0% | AI9: =SUM(AI4:AI8) -> 30 | AJ9: =SUM(AJ4:AJ8) -> 23 | AK9: 76.7% | AL9: =SUM(AL4:AL8) -> 60 | AM9: =SUM(AM4:AM8) -> 55 | AN9: 91.7% | AU9: 367 | AV9: 309 | AW9: 84.2%
A10: 低压电工复训 | B10: 140 | C10: 135 | D10: 96.4% | E10: 31 | F10: 31 | G10: 100.0% | K10: 26 | L10: 26 | M10: 100.0% | N10: 10 | O10: 10 | P10: =O10/N10 -> 100.0% | Z10: 1 | AA10: 1 | AB10: 100.0% | AC10: 56 | AD10: 55 | AE10: 98.2% | AF10: 20 | AG10: 17 | AH10: =AG10/AF10 -> 85.0% | AI10: 13 | AJ10: 12 | AK10: 92.3% | AL10: 12 | AM10: 11 | AN10: 91.7% | AU10: 309 | AV10: 298 | AW10: 96.4%
A11: 高压电工复训 | B11: 18 | C11: 16 | D11: 88.9% | E11: 21 | F11: 20 | G11: 95.2% | K11: 9 | L11: 8 | M11: 88.9% | N11: 1 | O11: 1 | P11: =O11/N11 -> 100.0% | AC11: 3 | AD11: 3 | AE11: 100.0% | AF11: 6 | AG11: 5 | AH11: =AG11/AF11 -> 83.3% | AL11: 1 | AM11: 1 | AN11: 100.0% | AU11: 59 | AV11: 54 | AW11: 91.5%
A12: 熔化焊接与热切割复训 | B12: 8 | C12: 8 | D12: 100.0% | E12: 4 | F12: 4 | G12: 100.0% | K12: 7 | L12: 5 | M12: 71.4% | AC12: 4 | AD12: 4 | AE12: 100.0% | AF12: 3 | AG12: 3 | AH12: =AG12/AF12 -> 100.0% | AI12: 3 | AJ12: 3 | AK12: =AJ12/AI12 -> 100.0% | AL12: 1 | AM12: 1 | AN12: 100.0% | AO12: 1 | AP12: 0 | AQ12: =AP12/AO12 -> 0.0% | AU12: 31 | AV12: 28 | AW12: 90.3%
A13: 钎焊复训
A14: 高处安装维护拆除复训 | B14: 7 | C14: 7 | D14: =C14/B14 -> 100.0% | AL14: 1 | AM14: 1 | AN14: =AM14/AL14 -> 100.0% | AU14: =B14+E14+H14+K14+N14+Q14+T14+W14+Z14+AC14+AF14+AI14+AL14+AO14+AR14 -> 8 | AV14: =C14+F14+I14+L14+O14+R14+U14+X14+AA14+AD14+AG14+AJ14+AM14+AP14+AS14 -> 8 | AW14: =AV14/AU14 -> 100.0%
A15: 登高架设复训 | E15: 1 | F15: 1 | G15: =F15/E15 -> 100.0% | AU15: =B15+E15+H15+K15+N15+Q15+T15+W15+Z15+AC15+AF15+AI15+AL15+AO15+AR15 -> 1 | AV15: =C15+F15+I15+L15+O15+R15+U15+X15+AA15+AD15+AG15+AJ15+AM15+AP15+AS15 -> 1 | AW15: =AV15/AU15 -> 100.0%
A16: 制冷与空调运行操作复训
A17: 制冷与空调安装修理复训 | B17: 1 | C17: 1 | D17: =C17/B17 -> 100.0% | AU17: =B17+E17+H17+K17+N17+Q17+T17+W17+Z17+AC17+AF17+AI17+AL17+AO17+AR17 -> 1 | AV17: =C17+F17+I17+L17+O17+R17+U17+X17+AA17+AD17+AG17+AJ17+AM17+AP17+AS17 -> 1 | AW17: =AV17/AU17 -> 100.0%
A18: 矿山安检复训
A19: 电力电缆复训 | E19: 8 | F19: 3 | G19: =F19/E19 -> 37.5% | AU19: =B19+E19+H19+K19+N19+Q19+T19+W19+Z19+AC19+AF19+AI19+AL19+AO19+AR19 -> 8 | AV19: =C19+F19+I19+L19+O19+R19+U19+X19+AA19+AD19+AG19+AJ19+AM19+AP19+AS19 -> 3 | AW19: =AV19/AU19 -> 37.5%
A20: 电气试验复训 | E20: 1 | F20: 1 | G20: =F20/E20 -> 100.0% | K20: 1 | L20: 1 | M20: =L20/K20 -> 100.0% | AU20: 2 | AV20: 2 | AW20: 100.0%
A21: 继电保护复训
A22: 特种作业复训合计 | B22: =SUM(B10:B21) -> 174 | C22: =SUM(C10:C21) -> 167 | D22: =C22/B22 -> 96.0% | E22: =SUM(E10:E21) -> 66 | F22: =SUM(F10:F21) -> 60 | G22: =F22/E22 -> 90.9% | K22: =SUM(K10:K21) -> 43 | L22: =SUM(L10:L21) -> 40 | M22: =L22/K22 -> 93.0% | N22: =SUM(N10:N21) -> 11 | O22: =SUM(O10:O21) -> 11 | P22: =O22/N22 -> 100.0% | Z22: =SUM(Z10:Z21) -> 1 | AA22: =SUM(AA10:AA21) -> 1 | AB22: =AA22/Z22 -> 100.0% | AC22: =SUM(AC10:AC21) -> 63 | AD22: =SUM(AD10:AD21) -> 62 | AE22: =AD22/AC22 -> 98.4% | AF22: =SUM(AF10:AF21) -> 29 | AG22: =SUM(AG10:AG21) -> 25 | AH22: =AG22/AF22 -> 86.2% | AI22: =SUM(AI10:AI21) -> 16 | AJ22: =SUM(AJ10:AJ21) -> 15 | AK22: =AJ22/AI22 -> 93.8% | AL22: =SUM(AL10:AL21) -> 15 | AM22: =SUM(AM10:AM21) -> 14 | AN22: =AM22/AL22 -> 93.3% | AO22: =SUM(AO10:AO21) -> 1 | AP22: =SUM(AP10:AP21) -> 0 | AQ22: =AP22/AO22 -> 0.0% | AU22: 419 | AV22: 395 | AW22: 94.3%
A23: 特种作业人员合计 | B23: =B9+B22 -> 255 | C23: =C9+C22 -> 233 | D23: =C23/B23 -> 91.4% | E23: =E9+E22 -> 103 | F23: =F9+F22 -> 93 | G23: =F23/E23 -> 90.3% | H23: =H9+H22 -> 1 | I23: =I9+I22 -> 1 | J23: =I23/H23 -> 100.0% | K23: =K9+K22 -> 88 | L23: =L9+L22 -> 74 | M23: =L23/K23 -> 84.1% | N23: =N9+N22 -> 46 | O23: =O9+O22 -> 41 | P23: =O23/N23 -> 89.1% | T23: =T9+T22 -> 29 | U23: =U9+U22 -> 25 | V23: =U23/T23 -> 86.2% | Z23: =Z9+Z22 -> 3 | AA23: =AA9+AA22 -> 2 | AB23: =AA23/Z23 -> 66.7% | AC23: =AC9+AC22 -> 64 | AD23: =AD9+AD22 -> 63 | AE23: =AD23/AC23 -> 98.4% | AF23: =AF9+AF22 -> 75 | AG23: =AG9+AG22 -> 65 | AH23: =AG23/AF23 -> 86.7% | AI23: =AI9+AI22 -> 46 | AJ23: =AJ9+AJ22 -> 38 | AK23: =AJ23/AI23 -> 82.6% | AL23: =AL9+AL22 -> 75 | AM23: =AM9+AM22 -> 69 | AN23: =AM23/AL23 -> 92.0% | AO23: =AO9+AO22 -> 1 | AP23: =AP9+AP22 -> 0 | AQ23: =AP23/AO23 -> 0.0% | AU23: 786 | AV23: 704 | AW23: 89.6%
A24: 烟花爆竹经营负责人初训
A25: 危化生产负责人初训 | K25: 1 | L25: 1 | M25: =L25/K25 -> 100.0% | AU25: 1 | AV25: 1 | AW25: 100.0%
A26: 危化经营负责人初训 | B26: 9 | C26: 8 | D26: =C26/B26 -> 88.9% | K26: 4 | L26: 3 | M26: =L26/K26 -> 75.0% | AO26: 1 | AP26: 1 | AQ26: =AP26/AO26 -> 100.0% | AR26: 1 | AS26: 1 | AT26: =AS26/AR26 -> 100.0% | AU26: 15 | AV26: 13 | AW26: 86.7%
A27: 非煤矿山负责人初训
A28: 金属冶炼负责人初训
A29: 高危行业负责人初训合计 | B29: =SUM(B24:B28) -> 9 | C29: =SUM(C24:C28) -> 8 | D29: =C29/B29 -> 88.9% | K29: =SUM(K24:K28) -> 5 | L29: =SUM(L24:L28) -> 4 | M29: 80.0% | AO29: =SUM(AO24:AO28) -> 1 | AP29: =SUM(AP24:AP28) -> 1 | AQ29: =AP29/AO29 -> 100.0% | AR29: =SUM(AR24:AR28) -> 1 | AS29: =SUM(AS24:AS28) -> 1 | AT29: =AS29/AR29 -> 100.0% | AU29: =B29+E29+H29+K29+N29+Q29+T29+W29+Z29+AC29+AF29+AI29+AL29+AO29+AR29 -> 16 | AV29: =C29+F29+I29+L29+O29+R29+U29+X29+AA29+AD29+AG29+AJ29+AM29+AP29+AS29 -> 14 | AW29: =AV29/AU29 -> 87.5%
A30: 烟花爆竹经营负责人复训
A31: 危化生产负责人复训 | B31: 1 | C31: 1 | D31: =C31/B31 -> 100.0% | AU31: =B31+E31+H31+K31+N31+Q31+T31+W31+Z31+AC31+AF31+AI31+AL31+AO31+AR31 -> 1 | AV31: =C31+F31+I31+L31+O31+R31+U31+X31+AA31+AD31+AG31+AJ31+AM31+AP31+AS31 -> 1 | AW31: =AV31/AU31 -> 100.0%
A32: 危化经营负责人复训 | B32: 6 | C32: 6 | D32: =C32/B32 -> 100.0% | K32: 5 | L32: 4 | M32: 80.0% | AU32: =B32+E32+H32+K32+N32+Q32+T32+W32+Z32+AC32+AF32+AI32+AL32+AO32+AR32 -> 11 | AV32: =C32+F32+I32+L32+O32+R32+U32+X32+AA32+AD32+AG32+AJ32+AM32+AP32+AS32 -> 10 | AW32: =AV32/AU32 -> 90.9%
A33: 非煤矿山负责人复训
A34: 金属冶炼负责人复训
A35: 高危行业负责人复训合计 | B35: =SUM(B30:B34) -> 7 | C35: =SUM(C30:C34) -> 7 | D35: =C35/B35 -> 100.0% | K35: =SUM(K30:K34) -> 5 | L35: =SUM(L30:L34) -> 4 | M35: =L35/K35 -> 80.0% | AU35: =B35+E35+H35+K35+N35+Q35+T35+W35+Z35+AC35+AF35+AI35+AL35+AO35+AR35 -> 12 | AV35: =C35+F35+I35+L35+O35+R35+U35+X35+AA35+AD35+AG35+AJ35+AM35+AP35+AS35 -> 11 | AW35: =AV35/AU35 -> 91.7%
A36: 高危行业主要负责人合计 | B36: =B29+B35 -> 16 | C36: =C29+C35 -> 15 | D36: =C36/B36 -> 93.8% | K36: =K29+K35 -> 10 | L36: =L29+L35 -> 8 | M36: =L36/K36 -> 80.0% | AO36: =AO29+AO35 -> 1 | AP36: =AP29+AP35 -> 1 | AQ36: =AP36/AO36 -> 100.0% | AR36: =AR29+AR35 -> 1 | AS36: =AS29+AS35 -> 1 | AT36: =AS36/AR36 -> 100.0% | AU36: =B36+E36+H36+K36+N36+Q36+T36+W36+Z36+AC36+AF36+AI36+AL36+AO36+AR36 -> 28 | AV36: =C36+F36+I36+L36+O36+R36+U36+X36+AA36+AD36+AG36+AJ36+AM36+AP36+AS36 -> 25 | AW36: =AV36/AU36 -> 89.3%
A37: 烟花爆竹经营安管初训
A38: 危化生产安管初训 | B38: 2 | C38: 2 | D38: =C38/B38 -> 100.0% | AU38: =B38+E38+H38+K38+N38+Q38+T38+W38+Z38+AC38+AF38+AI38+AL38+AO38+AR38 -> 2 | AV38: =C38+F38+I38+L38+O38+R38+U38+X38+AA38+AD38+AG38+AJ38+AM38+AP38+AS38 -> 2 | AW38: =AV38/AU38 -> 100.0%
A39: 危化经营安管初训 | B39: 15 | C39: 15 | D39: =C39/B39 -> 100.0% | K39: 8 | L39: 6 | M39: =L39/K39 -> 75.0% | AC39: 1 | AD39: 0 | AE39: =AD39/AC39 -> 0.0% | AR39: 2 | AS39: 1 | AT39: =AS39/AR39 -> 50.0% | AU39: =B39+E39+H39+K39+N39+Q39+T39+W39+Z39+AC39+AF39+AI39+AL39+AO39+AR39 -> 26 | AV39: =C39+F39+I39+L39+O39+R39+U39+X39+AA39+AD39+AG39+AJ39+AM39+AP39+AS39 -> 22 | AW39: =AV39/AU39 -> 84.6%
A40: 非煤矿山安管初训
A41: 金属冶炼安管初训
A42: 高危行业安管初训合计 | B42: =SUM(B37:B41) -> 17 | C42: =SUM(C37:C41) -> 17 | D42: =C42/B42 -> 100.0% | K42: =SUM(K37:K41) -> 8 | L42: =SUM(L37:L41) -> 6 | M42: =L42/K42 -> 75.0% | AC42: =SUM(AC37:AC41) -> 1 | AD42: =SUM(AD37:AD41) -> 0 | AE42: =AD42/AC42 -> 0.0% | AR42: =SUM(AR37:AR41) -> 2 | AS42: =SUM(AS37:AS41) -> 1 | AT42: =AS42/AR42 -> 50.0% | AU42: =B42+E42+H42+K42+N42+Q42+T42+W42+Z42+AC42+AF42+AI42+AL42+AO42+AR42 -> 28 | AV42: =C42+F42+I42+L42+O42+R42+U42+X42+AA42+AD42+AG42+AJ42+AM42+AP42+AS42 -> 24 | AW42: =AV42/AU42 -> 85.7%
A43: 烟花爆竹经营安管复训
A44: 危化生产安管复训 | B44: 2 | C44: 2 | D44: =C44/B44 -> 100.0% | AU44: =B44+E44+H44+K44+N44+Q44+T44+W44+Z44+AC44+AF44+AI44+AL44+AO44+AR44 -> 2 | AV44: =C44+F44+I44+L44+O44+R44+U44+X44+AA44+AD44+AG44+AJ44+AM44+AP44+AS44 -> 2 | AW44: =AV44/AU44 -> 100.0%
A45: 危化经营安管复训 | B45: 13 | C45: 13 | D45: =C45/B45 -> 100.0% | K45: 9 | L45: 9 | M45: =L45/K45 -> 100.0% | AU45: =B45+E45+H45+K45+N45+Q45+T45+W45+Z45+AC45+AF45+AI45+AL45+AO45+AR45 -> 22 | AV45: =C45+F45+I45+L45+O45+R45+U45+X45+AA45+AD45+AG45+AJ45+AM45+AP45+AS45 -> 22 | AW45: =AV45/AU45 -> 100.0%
A46: 非煤矿山安管复训
A47: 金属冶炼安管复训
A48: 高危行业安管复训合计 | B48: =SUM(B43:B47) -> 15 | C48: =SUM(C43:C47) -> 15 | D48: =C48/B48 -> 100.0% | K48: =SUM(K43:K47) -> 9 | L48: =SUM(L43:L47) -> 9 | M48: =L48/K48 -> 100.0% | AU48: =B48+E48+H48+K48+N48+Q48+T48+W48+Z48+AC48+AF48+AI48+AL48+AO48+AR48 -> 24 | AV48: 24 | AW48: =AV48/AU48 -> 100.0%
A49: 高危行业安管人员合计 | B49: =B42+B48 -> 32 | C49: =C42+C48 -> 32 | D49: =C49/B49 -> 100.0% | K49: =K42+K48 -> 17 | L49: =L42+L48 -> 15 | M49: =L49/K49 -> 88.2% | AC49: =AC42+AC48 -> 1 | AD49: =AD42+AD48 -> 0 | AE49: =AD49/AC49 -> 0.0% | AR49: =AR42+AR48 -> 2 | AS49: =AS42+AS48 -> 1 | AT49: =AS49/AR49 -> 50.0% | AU49: 52 | AV49: 48 | AW49: =AV49/AU49 -> 92.3%
A50: 高危行业负责人安管合计 | B50: =B36+B49 -> 48 | C50: =C36+C49 -> 47 | D50: =C50/B50 -> 97.9% | K50: =K36+K49 -> 27 | L50: =L36+L49 -> 23 | M50: =L50/K50 -> 85.2% | AC50: =AC36+AC49 -> 1 | AD50: =AD36+AD49 -> 0 | AE50: =AD50/AC50 -> 0.0% | AO50: =AO36+AO49 -> 1 | AP50: =AP36+AP49 -> 1 | AQ50: =AP50/AO50 -> 100.0% | AR50: =AR36+AR49 -> 3 | AS50: =AS36+AS49 -> 2 | AT50: =AS50/AR50 -> 66.7% | AU50: 80 | AV50: 73 | AW50: =AV50/AU50 -> 91.3%
A51: 全工种合计 | B51: =B23+B50 -> 303 | C51: =C23+C50 -> 280 | D51: =C51/B51 -> 92.4% | E51: =E23+E50 -> 103 | F51: =F23+F50 -> 93 | G51: =F51/E51 -> 90.3% | H51: =H23+H50 -> 1 | I51: =I23+I50 -> 1 | J51: =I51/H51 -> 100.0% | K51: =K23+K50 -> 115 | L51: =L23+L50 -> 97 | M51: =L51/K51 -> 84.3% | N51: =N23+N50 -> 46 | O51: =O23+O50 -> 41 | P51: =O51/N51 -> 89.1% | T51: =T23+T50 -> 29 | U51: =U23+U50 -> 25 | V51: =U51/T51 -> 86.2% | Z51: =Z23+Z50 -> 3 | AA51: =AA23+AA50 -> 2 | AB51: =AA51/Z51 -> 66.7% | AC51: =AC23+AC50 -> 65 | AD51: =AD23+AD50 -> 63 | AE51: =AD51/AC51 -> 96.9% | AF51: =AF23+AF50 -> 75 | AG51: =AG23+AG50 -> 65 | AH51: =AG51/AF51 -> 86.7% | AI51: =AI23+AI50 -> 46 | AJ51: =AJ23+AJ50 -> 38 | AK51: =AJ51/AI51 -> 82.6% | AL51: =AL23+AL50 -> 75 | AM51: =AM23+AM50 -> 69 | AN51: =AM51/AL51 -> 92.0% | AO51: =AO23+AO50 -> 2 | AP51: =AP23+AP50 -> 1 | AQ51: =AP51/AO51 -> 50.0% | AR51: =AR23+AR50 -> 3 | AS51: =AS23+AS50 -> 2 | AT51: =AS51/AR51 -> 66.7% | AU51: 866 | AV51: 777 | AW51: =AV51/AU51 -> 89.7%
A52: 备注： 1.培训机构名称以全国安全生产培训考试信息管理系统记录为准，按系统顺序排序； 2.实考人数=报考总人数-正考补考均缺考人数-考试违规被取消成绩人数； 3.仅统计已完成考试者，还有补考机会者不统计。

Sheet 3月
A1: 2022年3月各安全培训机构考生通过率统计表
A2: 培训机构 工种 | B2: 江门市安信职业安全培训有限公司 | E2: 广东四维培训有限公司 | H2: 江门市技师学院 | K2: 江门市江海区共升教育培训中心 | N2: 江门市侨都安全咨询服务有限公司 | Q2: 江门市安全生产管理协会 | T2: 江门市新会技师学院 | W2: 江门市新会机电职业技术学校 | Z2: 鹤山市优创职业培训学校有限公司 | AC2: 台山市安全生产管理协会 | AF2: 鹤山市安全生产管理协会 | AI2: 江门市江海区万众职业培训学校 | AL2: 开平市中邑安安全技术咨询有限公司 | AO2: 江门市江海区安全生产管理协会 | AR2: 江门市天晟安全事务有限公司 | AU2: 全市合计
B3: 实考人数 | C3: 合格人数 | D3: 通过率 | E3: 实考人数 | F3: 合格人数 | G3: 通过率 | H3: 实考人数 | I3: 合格人数 | J3: 通过率 | K3: 实考人数 | L3: 合格人数 | M3: 通过率 | N3: 实考人数 | O3: 合格人数 | P3: 通过率 | Q3: 实考人数 | R3: 合格人数 | S3: 通过率 | T3: 实考人数 | U3: 合格人数 | V3: 通过率 | W3: 实考人数 | X3: 合格人数 | Y3: 通过率 | Z3: 实考人数 | AA3: 合格人数 | AB3: 通过率 | AC3: 实考人数 | AD3: 合格人数 | AE3: 通过率 | AF3: 实考人数 | AG3: 合格人数 | AH3: 通过率 | AI3: 实考人数 | AJ3: 合格人数 | AK3: 通过率 | AL3: 实考人数 | AM3: 合格人数 | AN3: 通过率 | AO3: 实考人数 | AP3: 合格人数 | AQ3: 通过率 | AR3: 实考人数 | AS3: 合格人数 | AT3: 通过率 | AU3: 实考人数 | AV3: 合格人数 | AW3: 通过率
A4: 低压电工初训 | E4: 1 | F4: 0 | G4: =F4/E4 -> 0.0% | AI4: 1 | AJ4: 0 | AK4: =AJ4/AI4 -> 0.0% | AU4: =B4+E4+H4+K4+N4+Q4+T4+W4+Z4+AC4+AF4+AI4+AL4+AO4+AR4 -> 2 | AV4: =C4+F4+I4+L4+O4+R4+U4+X4+AA4+AD4+AG4+AJ4+AM4+AP4+AS4 -> 0 | AW4: =AV4/AU4 -> 0.0%
A5: 高压电工初训 | K5: 6 | L5: 6 | M5: =L5/K5 -> 100.0% | AU5: 6 | AV5: 6 | AW5: 100.0%
A6: 电力电缆初训
A7: 熔化焊接与热切割初训 | B7: 1 | C7: 1 | D7: =C7/B7 -> 100.0% | T7: 1 | U7: 1 | V7: =U7/T7 -> 100.0% | AU7: 2 | AV7: 2 | AW7: 100.0%
A8: 高处安装维护拆除初训 | K8: 2 | L8: 2 | M8: 100.0% | AU8: 2 | AV8: 2 | AW8: 100.0%
A9: 特种作业初训合计 | B9: =SUM(B4:B8) -> 1 | C9: =SUM(C4:C8) -> 1 | D9: =C9/B9 -> 100.0% | E9: =SUM(E4:E8) -> 1 | F9: =SUM(F4:F8) -> 0 | G9: =F9/E9 -> 0.0% | K9: =SUM(K4:K8) -> 8 | L9: =SUM(L4:L8) -> 8 | M9: 100.0% | T9: =SUM(T4:T8) -> 1 | U9: =SUM(U4:U8) -> 1 | V9: =U9/T9 -> 100.0% | AI9: =SUM(AI4:AI8) -> 1 | AJ9: =SUM(AJ4:AJ8) -> 0 | AK9: =AJ9/AI9 -> 0.0% | AU9: 12 | AV9: 10 | AW9: 83.3%
A10: 低压电工复训 | E10: 1 | F10: 1 | G10: =F10/E10 -> 100.0% | Q10: 4 | R10: 4 | S10: =R10/Q10 -> 100.0% | AO10: 3 | AP10: 3 | AQ10: =AP10/AO10 -> 100.0% | AU10: 8 | AV10: 8 | AW10: 100.0%
A11: 高压电工复训 | K11: 1 | L11: 1 | M11: 100.0% | AL11: 4 | AM11: 4 | AN11: =AM11/AL11 -> 100.0% | AU11: 5 | AV11: 5 | AW11: 100.0%
A12: 熔化焊接与热切割复训 | B12: 5 | C12: 5 | D12: =C12/B12 -> 100.0% | Z12: 1 | AA12: 1 | AB12: =AA12/Z12 -> 100.0% | AU12: 6 | AV12: 6 | AW12: 100.0%
A13: 钎焊复训
A14: 高处安装维护拆除复训
A15: 登高架设复训 | Q15: 1 | R15: 1 | S15: =R15/Q15 -> 100.0% | AU15: =B15+E15+H15+K15+N15+Q15+T15+W15+Z15+AC15+AF15+AI15+AL15+AO15+AR15 -> 1 | AV15: =C15+F15+I15+L15+O15+R15+U15+X15+AA15+AD15+AG15+AJ15+AM15+AP15+AS15 -> 1 | AW15: =AV15/AU15 -> 100.0%
A16: 制冷与空调运行操作复训 | B16: 1 | C16: 1 | D16: =C16/B16 -> 100.0%
A17: 制冷与空调安装修理复训
A18: 矿山安检复训
A19: 电力电缆复训
A20: 电气试验复训
A21: 继电保护复训 | E21: 1 | F21: 1 | G21: =F21/E21 -> 100.0% | AU21: =B21+E21+H21+K21+N21+Q21+T21+W21+Z21+AC21+AF21+AI21+AL21+AO21+AR21 -> 1 | AV21: =C21+F21+I21+L21+O21+R21+U21+X21+AA21+AD21+AG21+AJ21+AM21+AP21+AS21 -> 1 | AW21: =AV21/AU21 -> 100.0%
A22: 特种作业复训合计 | B22: =SUM(B10:B21) -> 6 | C22: =SUM(C10:C21) -> 6 | D22: =C22/B22 -> 100.0% | E22: =SUM(E10:E21) -> 2 | F22: =SUM(F10:F21) -> 2 | G22: =F22/E22 -> 100.0% | K22: =SUM(K10:K21) -> 1 | L22: =SUM(L10:L21) -> 1 | M22: =L22/K22 -> 100.0% | Q22: =SUM(Q10:Q21) -> 5 | R22: =SUM(R10:R21) -> 5 | S22: =R22/Q22 -> 100.0% | Z22: =SUM(Z10:Z21) -> 1 | AA22: =SUM(AA10:AA21) -> 1 | AB22: =AA22/Z22 -> 100.0% | AL22: =SUM(AL10:AL21) -> 4 | AM22: =SUM(AM10:AM21) -> 4 | AN22: =AM22/AL22 -> 100.0% | AO22: =SUM(AO10:AO21) -> 3 | AP22: =SUM(AP10:AP21) -> 3 | AQ22: =AP22/AO22 -> 100.0% | AU22: 22 | AV22: 22 | AW22: 100.0%
A23: 特种作业人员合计 | B23: =B9+B22 -> 7 | C23: =C9+C22 -> 7 | D23: =C23/B23 -> 100.0% | E23: =E9+E22 -> 3 | F23: =F9+F22 -> 2 | G23: =F23/E23 -> 66.7% | K23: =K9+K22 -> 9 | L23: =L9+L22 -> 9 | M23: =L23/K23 -> 100.0% | Q23: =Q9+Q22 -> 5 | R23: =R9+R22 -> 5 | S23: =R23/Q23 -> 100.0% | T23: =T9+T22 -> 1 | U23: =U9+U22 -> 1 | V23: =U23/T23 -> 100.0% | Z23: =Z9+Z22 -> 1 | AA23: =AA9+AA22 -> 1 | AB23: =AA23/Z23 -> 100.0% | AI23: =AI9+AI22 -> 1 | AJ23: =AJ9+AJ22 -> 0 | AK23: =AJ23/AI23 -> 0.0% | AL23: =AL9+AL22 -> 4 | AM23: =AM9+AM22 -> 4 | AN23: =AM23/AL23 -> 100.0% | AO23: =AO9+AO22 -> 3 | AP23: =AP9+AP22 -> 3 | AQ23: =AP23/AO23 -> 100.0% | AU23: 34 | AV23: 32 | AW23: 94.1%
A24: 烟花爆竹经营负责人初训
A25: 危化生产负责人初训 | K25: 3 | L25: 3 | M25: =L25/K25 -> 100.0% | AU25: 3 | AV25: 3 | AW25: 100.0%
A26: 危化经营负责人初训 | B26: 7 | C26: 7 | D26: =C26/B26 -> 100.0% | AF26: 1 | AG26: 1 | AH26: =AG26/AF26 -> 100.0% | AU26: 8 | AV26: 8 | AW26: 100.0%
A27: 非煤矿山负责人初训
A28: 金属冶炼负责人初训
A29: 高危行业负责人初训合计 | B29: =SUM(B24:B28) -> 7 | C29: =SUM(C24:C28) -> 7 | D29: =C29/B29 -> 100.0% | K29: =SUM(K24:K28) -> 3 | L29: =SUM(L24:L28) -> 3 | M29: =L29/K29 -> 100.0% | AF29: =SUM(AF24:AF28) -> 1 | AG29: =SUM(AG24:AG28) -> 1 | AH29: =AG29/AF29 -> 100.0% | AU29: =B29+E29+H29+K29+N29+Q29+T29+W29+Z29+AC29+AF29+AI29+AL29+AO29+AR29 -> 11 | AV29: =C29+F29+I29+L29+O29+R29+U29+X29+AA29+AD29+AG29+AJ29+AM29+AP29+AS29 -> 11 | AW29: =AV29/AU29 -> 100.0%
A30: 烟花爆竹经营负责人复训
A31: 危化生产负责人复训
A32: 危化经营负责人复训 | B32: 2 | C32: 2 | D32: =C32/B32 -> 100.0% | K32: 4 | L32: 4 | M32: =L32/K32 -> 100.0% | AF32: 9 | AG32: 9 | AH32: =AG32/AF32 -> 100.0% | AR32: 1 | AS32: 1 | AT32: =AS32/AR32 -> 100.0% | AU32: =B32+E32+H32+K32+N32+Q32+T32+W32+Z32+AC32+AF32+AI32+AL32+AO32+AR32 -> 16 | AV32: =C32+F32+I32+L32+O32+R32+U32+X32+AA32+AD32+AG32+AJ32+AM32+AP32+AS32 -> 16 | AW32: =AV32/AU32 -> 100.0%
A33: 非煤矿山负责人复训
A34: 金属冶炼负责人复训
A35: 高危行业负责人复训合计 | B35: =SUM(B30:B34) -> 2 | C35: =SUM(C30:C34) -> 2 | D35: =C35/B35 -> 100.0% | K35: =SUM(K30:K34) -> 4 | L35: =SUM(L30:L34) -> 4 | M35: =L35/K35 -> 100.0% | AF35: =SUM(AF30:AF34) -> 9 | AG35: =SUM(AG30:AG34) -> 9 | AH35: =AG35/AF35 -> 100.0% | AR35: =SUM(AR30:AR34) -> 1 | AS35: =SUM(AS30:AS34) -> 1 | AT35: =AS35/AR35 -> 100.0% | AU35: =B35+E35+H35+K35+N35+Q35+T35+W35+Z35+AC35+AF35+AI35+AL35+AO35+AR35 -> 16 | AV35: =C35+F35+I35+L35+O35+R35+U35+X35+AA35+AD35+AG35+AJ35+AM35+AP35+AS35 -> 16 | AW35: =AV35/AU35 -> 100.0%
A36: 高危行业主要负责人合计 | B36: =B29+B35 -> 9 | C36: =C29+C35 -> 9 | D36: =C36/B36 -> 100.0% | K36: =K29+K35 -> 7 | L36: =L29+L35 -> 7 | M36: =L36/K36 -> 100.0% | AF36: =AF29+AF35 -> 10 | AG36: =AG29+AG35 -> 10 | AH36: =AG36/AF36 -> 100.0% | AR36: =AR29+AR35 -> 1 | AS36: =AS29+AS35 -> 1 | AT36: =AS36/AR36 -> 100.0% | AU36: =B36+E36+H36+K36+N36+Q36+T36+W36+Z36+AC36+AF36+AI36+AL36+AO36+AR36 -> 27 | AV36: =C36+F36+I36+L36+O36+R36+U36+X36+AA36+AD36+AG36+AJ36+AM36+AP36+AS36 -> 27 | AW36: =AV36/AU36 -> 100.0%
A37: 烟花爆竹经营安管初训
A38: 危化生产安管初训 | AO38: 1 | AP38: 1 | AQ38: =AP38/AO38 -> 100.0% | AU38: =B38+E38+H38+K38+N38+Q38+T38+W38+Z38+AC38+AF38+AI38+AL38+AO38+AR38 -> 1 | AV38: =C38+F38+I38+L38+O38+R38+U38+X38+AA38+AD38+AG38+AJ38+AM38+AP38+AS38 -> 1 | AW38: =AV38/AU38 -> 100.0%
A39: 危化经营安管初训 | B39: 4 | C39: 4 | D39: =C39/B39 -> 100.0% | AF39: 1 | AG39: 1 | AH39: =AG39/AF39 -> 100.0% | AU39: =B39+E39+H39+K39+N39+Q39+T39+W39+Z39+AC39+AF39+AI39+AL39+AO39+AR39 -> 5 | AV39: =C39+F39+I39+L39+O39+R39+U39+X39+AA39+AD39+AG39+AJ39+AM39+AP39+AS39 -> 5 | AW39: =AV39/AU39 -> 100.0%
A40: 非煤矿山安管初训
A41: 金属冶炼安管初训
A42: 高危行业安管初训合计 | B42: =SUM(B37:B41) -> 4 | C42: =SUM(C37:C41) -> 4 | D42: =C42/B42 -> 100.0% | K42: =SUM(K37:K41) -> 0 | L42: =SUM(L37:L41) -> 0 | M42: =L42/K42 ->  | AF42: =SUM(AF37:AF41) -> 1 | AG42: =SUM(AG37:AG41) -> 1 | AH42: =AG42/AF42 -> 100.0% | AO42: =SUM(AO37:AO41) -> 1 | AP42: =SUM(AP37:AP41) -> 1 | AQ42: =AP42/AO42 -> 100.0% | AU42: =B42+E42+H42+K42+N42+Q42+T42+W42+Z42+AC42+AF42+AI42+AL42+AO42+AR42 -> 6 | AV42: =C42+F42+I42+L42+O42+R42+U42+X42+AA42+AD42+AG42+AJ42+AM42+AP42+AS42 -> 6 | AW42: =AV42/AU42 -> 100.0%
A43: 烟花爆竹经营安管复训
A44: 危化生产安管复训 | B44: 1 | C44: 1 | D44: =C44/B44 -> 100.0% | K44: 1 | L44: 1 | M44: =L44/K44 -> 100.0% | AO44: 3 | AP44: 3 | AQ44: =AP44/AO44 -> 100.0% | AU44: =B44+E44+H44+K44+N44+Q44+T44+W44+Z44+AC44+AF44+AI44+AL44+AO44+AR44 -> 5 | AV44: =C44+F44+I44+L44+O44+R44+U44+X44+AA44+AD44+AG44+AJ44+AM44+AP44+AS44 -> 5 | AW44: =AV44/AU44 -> 100.0%
A45: 危化经营安管复训 | B45: 2 | C45: 2 | D45: =C45/B45 -> 100.0% | AR45: 2 | AS45: 2 | AT45: =AS45/AR45 -> 100.0% | AU45: =B45+E45+H45+K45+N45+Q45+T45+W45+Z45+AC45+AF45+AI45+AL45+AO45+AR45 -> 4 | AV45: =C45+F45+I45+L45+O45+R45+U45+X45+AA45+AD45+AG45+AJ45+AM45+AP45+AS45 -> 4 | AW45: =AV45/AU45 -> 100.0%
A46: 非煤矿山安管复训
A47: 金属冶炼安管复训
A48: 高危行业安管复训合计 | B48: =SUM(B43:B47) -> 3 | C48: =SUM(C43:C47) -> 3 | D48: =C48/B48 -> 100.0% | K48: =SUM(K43:K47) -> 1 | L48: =SUM(L43:L47) -> 1 | M48: =L48/K48 -> 100.0% | AO48: =SUM(AO43:AO47) -> 3 | AP48: =SUM(AP43:AP47) -> 3 | AQ48: =AP48/AO48 -> 100.0% | AR48: =SUM(AR43:AR47) -> 2 | AS48: =SUM(AS43:AS47) -> 2 | AT48: =AS48/AR48 -> 100.0% | AU48: =B48+E48+H48+K48+N48+Q48+T48+W48+Z48+AC48+AF48+AI48+AL48+AO48+AR48 -> 9 | AV48: 9 | AW48: =AV48/AU48 -> 100.0%
A49: 高危行业安管人员合计 | B49: =B42+B48 -> 7 | C49: =C42+C48 -> 7 | D49: =C49/B49 -> 100.0% | K49: =K42+K48 -> 1 | L49: =L42+L48 -> 1 | M49: =L49/K49 -> 100.0% | AF49: =AF42+AF48 -> 1 | AG49: =AG42+AG48 -> 1 | AH49: =AG49/AF49 -> 100.0% | AO49: =AO42+AO48 -> 4 | AP49: =AP42+AP48 -> 4 | AQ49: =AP49/AO49 -> 100.0% | AR49: =AR42+AR48 -> 2 | AS49: =AS42+AS48 -> 2 | AT49: =AS49/AR49 -> 100.0% | AU49: 15 | AV49: 15 | AW49: =AV49/AU49 -> 100.0%
A50: 高危行业负责人安管合计 | B50: =B36+B49 -> 16 | C50: =C36+C49 -> 16 | D50: =C50/B50 -> 100.0% | K50: =K36+K49 -> 8 | L50: =L36+L49 -> 8 | M50: =L50/K50 -> 100.0% | AF50: =AF36+AF49 -> 11 | AG50: =AG36+AG49 -> 11 | AH50: =AG50/AF50 -> 100.0% | AO50: =AO36+AO49 -> 4 | AP50: =AP36+AP49 -> 4 | AQ50: =AP50/AO50 -> 100.0% | AR50: =AR36+AR49 -> 3 | AS50: =AS36+AS49 -> 3 | AT50: =AS50/AR50 -> 100.0% | AU50: 42 | AV50: 42 | AW50: =AV50/AU50 -> 100.0%
A51: 全工种合计 | B51: =B23+B50 -> 23 | C51: =C23+C50 -> 23 | D51: =C51/B51 -> 100.0% | E51: =E23+E50 -> 3 | F51: =F23+F50 -> 2 | G51: =F51/E51 -> 66.7% | K51: =K23+K50 -> 17 | L51: =L23+L50 -> 17 | M51: =L51/K51 -> 100.0% | Q51: =Q23+Q50 -> 5 | R51: =R23+R50 -> 5 | S51: =R51/Q51 -> 100.0% | T51: =T23+T50 -> 1 | U51: =U23+U50 -> 1 | V51: =U51/T51 -> 100.0% | Z51: =Z23+Z50 -> 1 | AA51: =AA23+AA50 -> 1 | AB51: =AA51/Z51 -> 100.0% | AF51: =AF23+AF50 -> 11 | AG51: =AG23+AG50 -> 11 | AH51: =AG51/AF51 -> 100.0% | AI51: =AI23+AI50 -> 1 | AJ51: =AJ23+AJ50 -> 0 | AK51: =AJ51/AI51 -> 0.0% | AL51: =AL23+AL50 -> 4 | AM51: =AM23+AM50 -> 4 | AN51: =AM51/AL51 -> 100.0% | AO51: =AO23+AO50 -> 7 | AP51: =AP23+AP50 -> 7 | AQ51: =AP51/AO51 -> 100.0% | AR51: =AR23+AR50 -> 3 | AS51: =AS23+AS50 -> 3 | AT51: =AS51/AR51 -> 100.0% | AU51: 76 | AV51: 74 | AW51: =AV51/AU51 -> 97.4%
A52: 备注： 1.培训机构名称以全国安全生产培训考试信息管理系统记录为准，按系统顺序排序； 2.实考人数=报考总人数-正考补考均缺考人数-考试违规被取消成绩人数； 3.仅统计已完成考试者，还有补考机会者不统计。

Sheet 5月
A1: 2022年5月各安全培训机构考生通过率统计表
A2: 培训机构 工种 | B2: 江门市安信职业安全培训有限公司 | E2: 广东四维培训有限公司 | H2: 江门市技师学院 | K2: 江门市江海区共升教育培训中心 | N2: 江门市侨都安全咨询服务有限公司 | Q2: 江门市安全生产管理协会 | T2: 江门市新会技师学院 | W2: 江门市新会机电职业技术学校 | Z2: 鹤山市优创职业培训学校有限公司 | AC2: 台山市安全生产管理协会 | AF2: 鹤山市安全生产管理协会 | AI2: 江门市江海区万众职业培训学校 | AL2: 开平市中邑安安全技术咨询有限公司 | AO2: 江门市江海区安全生产管理协会 | AR2: 江门市天晟安全事务有限公司 | AU2: 全市合计
B3: 实考人数 | C3: 合格人数 | D3: 通过率 | E3: 实考人数 | F3: 合格人数 | G3: 通过率 | H3: 实考人数 | I3: 合格人数 | J3: 通过率 | K3: 实考人数 | L3: 合格人数 | M3: 通过率 | N3: 实考人数 | O3: 合格人数 | P3: 通过率 | Q3: 实考人数 | R3: 合格人数 | S3: 通过率 | T3: 实考人数 | U3: 合格人数 | V3: 通过率 | W3: 实考人数 | X3: 合格人数 | Y3: 通过率 | Z3: 实考人数 | AA3: 合格人数 | AB3: 通过率 | AC3: 实考人数 | AD3: 合格人数 | AE3: 通过率 | AF3: 实考人数 | AG3: 合格人数 | AH3: 通过率 | AI3: 实考人数 | AJ3: 合格人数 | AK3: 通过率 | AL3: 实考人数 | AM3: 合格人数 | AN3: 通过率 | AO3: 实考人数 | AP3: 合格人数 | AQ3: 通过率 | AR3: 实考人数 | AS3: 合格人数 | AT3: 通过率 | AU3: 实考人数 | AV3: 合格人数 | AW3: 通过率
A4: 低压电工初训 | B4: 32 | C4: 27 | D4: =C4/B4 -> 84.4% | E4: 73 | F4: 62 | G4: =F4/E4 -> 84.9% | K4: 33 | L4: 30 | M4: =L4/K4 -> 90.9% | N4: 45 | O4: 39 | P4: =O4/N4 -> 86.7% | W4: 46 | X4: 42 | Y4: =X4/W4 -> 91.3% | Z4: 57 | AA4: 48 | AB4: =AA4/Z4 -> 84.2% | AC4: 37 | AD4: 28 | AE4: =AD4/AC4 -> 75.7% | AF4: 18 | AG4: 14 | AH4: =AG4/AF4 -> 77.8% | AI4: 110 | AJ4: 62 | AK4: =AJ4/AI4 -> 56.4% | AL4: 47 | AM4: 36 | AN4: =AM4/AL4 -> 76.6% | AO4: 1 | AP4: 1 | AQ4: =AP4/AO4 -> 100.0% | AU4: =B4+E4+H4+K4+N4+Q4+T4+W4+Z4+AC4+AF4+AI4+AL4+AO4+AR4 -> 499 | AV4: =C4+F4+I4+L4+O4+R4+U4+X4+AA4+AD4+AG4+AJ4+AM4+AP4+AS4 -> 389 | AW4: =AV4/AU4 -> 78.0%
A5: 高压电工初训 | B5: 36 | C5: 34 | D5: 94.4% | E5: 30 | F5: 21 | G5: 70.0% | K5: 2 | L5: 2 | M5: 100.0% | N5: 5 | O5: 4 | P5: =O5/N5 -> 80.0% | AL5: 5 | AM5: 4 | AN5: =AM5/AL5 -> 80.0% | AU5: 78 | AV5: 65 | AW5: 83.3%
A6: 电力电缆初训
A7: 熔化焊接与热切割初训 | K7: 2 | L7: 1 | M7: 50.0% | N7: 4 | O7: 4 | P7: =O7/N7 -> 100.0% | Z7: 95 | AA7: 63 | AB7: 66.3% | AF7: 32 | AG7: 31 | AH7: =AG7/AF7 -> 96.9% | AI7: 54 | AJ7: 39 | AK7: 72.2% | AL7: 29 | AM7: 24 | AN7: =AM7/AL7 -> 82.8% | AO7: 11 | AP7: 6 | AQ7: 54.5% | AU7: 227 | AV7: 168 | AW7: 74.0%
A8: 高处安装维护拆除初训 | K8: 101 | L8: 94 | M8: 93.1% | AL8: 53 | AM8: 48 | AN8: 90.6% | AU8: 154 | AV8: 142 | AW8: 92.2%
A9: 特种作业初训合计 | B9: =SUM(B4:B8) -> 68 | C9: =SUM(C4:C8) -> 61 | D9: 89.7% | E9: =SUM(E4:E8) -> 103 | F9: =SUM(F4:F8) -> 83 | G9: 80.6% | K9: =SUM(K4:K8) -> 138 | L9: =SUM(L4:L8) -> 127 | M9: 92.0% | N9: =SUM(N4:N8) -> 54 | O9: =SUM(O4:O8) -> 47 | P9: =O9/N9 -> 87.0% | W9: =SUM(W4:W8) -> 46 | X9: =SUM(X4:X8) -> 42 | Y9: =X9/W9 -> 91.3% | Z9: =SUM(Z4:Z8) -> 152 | AA9: =SUM(AA4:AA8) -> 111 | AB9: 73.0% | AC9: =SUM(AC4:AC8) -> 37 | AD9: =SUM(AD4:AD8) -> 28 | AE9: 75.7% | AF9: =SUM(AF4:AF8) -> 50 | AG9: =SUM(AG4:AG8) -> 45 | AH9: =AG9/AF9 -> 90.0% | AI9: =SUM(AI4:AI8) -> 164 | AJ9: =SUM(AJ4:AJ8) -> 101 | AK9: 61.6% | AL9: =SUM(AL4:AL8) -> 134 | AM9: =SUM(AM4:AM8) -> 112 | AN9: 83.6% | AO9: =SUM(AO4:AO8) -> 12 | AP9: =SUM(AP4:AP8) -> 7 | AQ9: 58.3% | AU9: 958 | AV9: 764 | AW9: 79.7%
A10: 低压电工复训 | B10: 318 | C10: 311 | D10: 97.8% | E10: 27 | F10: 26 | G10: 96.3% | K10: 64 | L10: 63 | M10: 98.4% | N10: 114 | O10: 112 | P10: =O10/N10 -> 98.2% | Q10: 14 | R10: 14 | S10: =R10/Q10 -> 100.0% | T10: 33 | U10: 32 | V10: =U10/T10 -> 97.0% | Z10: 8 | AA10: 8 | AB10: 100.0% | AC10: 150 | AD10: 144 | AE10: 96.0% | AF10: 158 | AG10: 153 | AH10: =AG10/AF10 -> 96.8% | AI10: 34 | AJ10: 31 | AK10: 91.2% | AL10: 66 | AM10: 61 | AN10: 92.4% | AO10: 3 | AP10: 3 | AQ10: 100.0% | AU10: 989 | AV10: 958 | AW10: 96.9%
A11: 高压电工复训 | B11: 74 | C11: 66 | D11: 89.2% | E11: 82 | F11: 74 | G11: 90.2% | K11: 46 | L11: 40 | M11: 87.0% | N11: 7 | O11: 7 | P11: =O11/N11 -> 100.0% | Q11: 4 | R11: 4 | S11: =R11/Q11 -> 100.0% | T11: 3 | U11: 3 | V11: =U11/T11 -> 100.0% | AC11: 14 | AD11: 14 | AE11: 100.0% | AF11: 15 | AG11: 14 | AH11: =AG11/AF11 -> 93.3% | AL11: 4 | AM11: 4 | AN11: 100.0% | AU11: 249 | AV11: 226 | AW11: 90.8%
A12: 熔化焊接与热切割复训 | B12: 83 | C12: 78 | D12: 94.0% | E12: 11 | F12: 9 | G12: 81.8% | K12: 69 | L12: 64 | M12: 92.8% | N12: 24 | O12: 23 | P12: =O12/N12 -> 95.8% | Q12: 4 | R12: 3 | S12: =R12/Q12 -> 75.0% | T12: 18 | U12: 18 | V12: =U12/T12 -> 100.0% | Z12: 2 | AA12: 0 | AB12: =AA12/Z12 -> 0.0% | AC12: 16 | AD12: 16 | AE12: 100.0% | AF12: 40 | AG12: 38 | AH12: =AG12/AF12 -> 95.0% | AI12: 8 | AJ12: 5 | AK12: =AJ12/AI12 -> 62.5% | AL12: 6 | AM12: 6 | AN12: 100.0% | AU12: 281 | AV12: 260 | AW12: 92.5%
A13: 钎焊复训
A14: 高处安装维护拆除复训 | B14: 103 | C14: 100 | D14: =C14/B14 -> 97.1% | E14: 383 | F14: 371 | G14: =F14/E14 -> 96.9% | K14: 14 | L14: 13 | M14: =L14/K14 -> 92.9% | Q14: 5 | R14: 4 | S14: =R14/Q14 -> 80.0% | AL14: 1 | AM14: 1 | AN14: =AM14/AL14 -> 100.0% | AU14: =B14+E14+H14+K14+N14+Q14+T14+W14+Z14+AC14+AF14+AI14+AL14+AO14+AR14 -> 506 | AV14: =C14+F14+I14+L14+O14+R14+U14+X14+AA14+AD14+AG14+AJ14+AM14+AP14+AS14 -> 489 | AW14: =AV14/AU14 -> 96.6%
A15: 登高架设复训 | B15: 2 | C15: 2 | D15: 100.0% | E15: 4 | F15: 3 | G15: =F15/E15 -> 75.0% | AU15: =B15+E15+H15+K15+N15+Q15+T15+W15+Z15+AC15+AF15+AI15+AL15+AO15+AR15 -> 6 | AV15: =C15+F15+I15+L15+O15+R15+U15+X15+AA15+AD15+AG15+AJ15+AM15+AP15+AS15 -> 5 | AW15: =AV15/AU15 -> 83.3%
A16: 制冷与空调运行操作复训
A17: 制冷与空调安装修理复训 | B17: 1 | C17: 1 | D17: 100.0% | AU17: =B17+E17+H17+K17+N17+Q17+T17+W17+Z17+AC17+AF17+AI17+AL17+AO17+AR17 -> 1 | AV17: =C17+F17+I17+L17+O17+R17+U17+X17+AA17+AD17+AG17+AJ17+AM17+AP17+AS17 -> 1 | AW17: =AV17/AU17 -> 100.0%
A18: 矿山安检复训 | B18: 4 | C18: 4 | D18: 100.0% | AU18: =B18+E18+H18+K18+N18+Q18+T18+W18+Z18+AC18+AF18+AI18+AL18+AO18+AR18 -> 4 | AV18: =C18+F18+I18+L18+O18+R18+U18+X18+AA18+AD18+AG18+AJ18+AM18+AP18+AS18 -> 4 | AW18: =AV18/AU18 -> 100.0%
A19: 电力电缆复训 | B19: 4 | C19: 3 | D19: 75.0% | E19: 8 | F19: 4 | G19: =F19/E19 -> 50.0% | AU19: =B19+E19+H19+K19+N19+Q19+T19+W19+Z19+AC19+AF19+AI19+AL19+AO19+AR19 -> 12 | AV19: =C19+F19+I19+L19+O19+R19+U19+X19+AA19+AD19+AG19+AJ19+AM19+AP19+AS19 -> 7 | AW19: =AV19/AU19 -> 58.3%
A20: 电气试验复训 | B20: 3 | C20: 3 | D20: =C20/B20 -> 100.0% | E20: 6 | F20: 5 | G20: =F20/E20 -> 83.3% | K20: 1 | L20: 1 | M20: =L20/K20 -> 100.0% | AU20: 10 | AV20: 9 | AW20: 90.0%
A21: 继电保护复训 | B21: 2 | C21: 2 | D21: 100.0% | E21: 3 | F21: 3 | G21: =F21/E21 -> 100.0% | AU21: 5 | AV21: 5 | AW21: 100.0%
A22: 特种作业复训合计 | B22: =SUM(B10:B21) -> 594 | C22: =SUM(C10:C21) -> 570 | D22: 96.0% | E22: =SUM(E10:E21) -> 524 | F22: =SUM(F10:F21) -> 495 | G22: =F22/E22 -> 94.5% | K22: =SUM(K10:K21) -> 194 | L22: =SUM(L10:L21) -> 181 | M22: =L22/K22 -> 93.3% | N22: =SUM(N10:N21) -> 145 | O22: =SUM(O10:O21) -> 142 | P22: =O22/N22 -> 97.9% | Q22: =SUM(Q10:Q21) -> 27 | R22: =SUM(R10:R21) -> 25 | S22: =R22/Q22 -> 92.6% | T22: =SUM(T10:T21) -> 54 | U22: =SUM(U10:U21) -> 53 | V22: =U22/T22 -> 98.1% | Z22: =SUM(Z10:Z21) -> 10 | AA22: =SUM(AA10:AA21) -> 8 | AB22: =AA22/Z22 -> 80.0% | AC22: =SUM(AC10:AC21) -> 180 | AD22: =SUM(AD10:AD21) -> 174 | AE22: =AD22/AC22 -> 96.7% | AF22: =SUM(AF10:AF21) -> 213 | AG22: =SUM(AG10:AG21) -> 205 | AH22: =AG22/AF22 -> 96.2% | AI22: =SUM(AI10:AI21) -> 42 | AJ22: =SUM(AJ10:AJ21) -> 36 | AK22: =AJ22/AI22 -> 85.7% | AL22: =SUM(AL10:AL21) -> 77 | AM22: =SUM(AM10:AM21) -> 72 | AN22: =AM22/AL22 -> 93.5% | AO22: =SUM(AO10:AO21) -> 3 | AP22: =SUM(AP10:AP21) -> 3 | AQ22: =AP22/AO22 -> 100.0% | AU22: 2063 | AV22: 1964 | AW22: 95.2%
A23: 特种作业人员合计 | B23: =B9+B22 -> 662 | C23: =C9+C22 -> 631 | D23: 95.3% | E23: =E9+E22 -> 627 | F23: =F9+F22 -> 578 | G23: =F23/E23 -> 92.2% | K23: =K9+K22 -> 332 | L23: =L9+L22 -> 308 | M23: =L23/K23 -> 92.8% | N23: =N9+N22 -> 199 | O23: =O9+O22 -> 189 | P23: =O23/N23 -> 95.0% | Q23: =Q9+Q22 -> 27 | R23: =R9+R22 -> 25 | S23: =R23/Q23 -> 92.6% | T23: =T9+T22 -> 54 | U23: =U9+U22 -> 53 | V23: =U23/T23 -> 98.1% | W23: =W9+W22 -> 46 | X23: =X9+X22 -> 42 | Y23: =X23/W23 -> 91.3% | Z23: =Z9+Z22 -> 162 | AA23: =AA9+AA22 -> 119 | AB23: =AA23/Z23 -> 73.5% | AC23: =AC9+AC22 -> 217 | AD23: =AD9+AD22 -> 202 | AE23: =AD23/AC23 -> 93.1% | AF23: =AF9+AF22 -> 263 | AG23: =AG9+AG22 -> 250 | AH23: =AG23/AF23 -> 95.1% | AI23: =AI9+AI22 -> 206 | AJ23: =AJ9+AJ22 -> 137 | AK23: =AJ23/AI23 -> 66.5% | AL23: =AL9+AL22 -> 211 | AM23: =AM9+AM22 -> 184 | AN23: =AM23/AL23 -> 87.2% | AO23: =AO9+AO22 -> 15 | AP23: =AP9+AP22 -> 10 | AQ23: =AP23/AO23 -> 66.7% | AU23: 3021 | AV23: 2728 | AW23: 90.3%
A24: 烟花爆竹经营负责人初训 | B24: 2 | C24: 1 | D24: 50.0% | AC24: 4 | AD24: 3 | AE24: =AD24/AC24 -> 75.0% | AF24: 11 | AG24: 10 | AH24: =AG24/AF24 -> 90.9% | AU24: 17 | AV24: 14 | AW24: 82.4%
A25: 危化生产负责人初训 | B25: 2 | C25: 1 | D25: 50.0% | AF25: 3 | AG25: 3 | AH25: =AG25/AF25 -> 100.0% | AU25: 5 | AV25: 4 | AW25: 80.0%
A26: 危化经营负责人初训 | B26: 28 | C26: 28 | D26: 100.0% | K26: 5 | L26: 5 | M26: =L26/K26 -> 100.0% | AC26: 1 | AD26: 1 | AE26: =AD26/AC26 -> 100.0% | AF26: 9 | AG26: 8 | AH26: =AG26/AF26 -> 88.9% | AR26: 5 | AS26: 5 | AT26: =AS26/AR26 -> 100.0% | AU26: 48 | AV26: 47 | AW26: 97.9%
A27: 非煤矿山负责人初训
A28: 金属冶炼负责人初训
A29: 高危行业负责人初训合计 | B29: =SUM(B24:B28) -> 32 | C29: =SUM(C24:C28) -> 30 | D29: =C29/B29 -> 93.8% | K29: =SUM(K24:K28) -> 5 | L29: =SUM(L24:L28) -> 5 | M29: 100.0% | AC29: =SUM(AC24:AC28) -> 5 | AD29: =SUM(AD24:AD28) -> 4 | AE29: =AD29/AC29 -> 80.0% | AF29: =SUM(AF24:AF28) -> 23 | AG29: =SUM(AG24:AG28) -> 21 | AH29: =AG29/AF29 -> 91.3% | AR29: =SUM(AR24:AR28) -> 5 | AS29: =SUM(AS24:AS28) -> 5 | AT29: =AS29/AR29 -> 100.0% | AU29: =B29+E29+H29+K29+N29+Q29+T29+W29+Z29+AC29+AF29+AI29+AL29+AO29+AR29 -> 70 | AV29: =C29+F29+I29+L29+O29+R29+U29+X29+AA29+AD29+AG29+AJ29+AM29+AP29+AS29 -> 65 | AW29: =AV29/AU29 -> 92.9%
A30: 烟花爆竹经营负责人复训
A31: 危化生产负责人复训 | B31: 7 | C31: 7 | D31: =C31/B31 -> 100.0% | K31: 2 | L31: 2 | M31: 100.0% | AF31: 18 | AG31: 18 | AH31: =AG31/AF31 -> 100.0% | AU31: =B31+E31+H31+K31+N31+Q31+T31+W31+Z31+AC31+AF31+AI31+AL31+AO31+AR31 -> 27 | AV31: =C31+F31+I31+L31+O31+R31+U31+X31+AA31+AD31+AG31+AJ31+AM31+AP31+AS31 -> 27 | AW31: =AV31/AU31 -> 100.0%
A32: 危化经营负责人复训 | B32: 71 | C32: 69 | D32: =C32/B32 -> 97.2% | K32: 3 | L32: 3 | M32: 100.0% | AF32: 33 | AG32: 32 | AH32: =AG32/AF32 -> 97.0% | AO32: 1 | AP32: 1 | AQ32: =AP32/AO32 -> 100.0% | AU32: =B32+E32+H32+K32+N32+Q32+T32+W32+Z32+AC32+AF32+AI32+AL32+AO32+AR32 -> 108 | AV32: =C32+F32+I32+L32+O32+R32+U32+X32+AA32+AD32+AG32+AJ32+AM32+AP32+AS32 -> 105 | AW32: =AV32/AU32 -> 97.2%
A33: 非煤矿山负责人复训
A34: 金属冶炼负责人复训 | Q34: 1 | R34: 0 | S34: =R34/Q34 -> 0.0% | AU34: =B34+E34+H34+K34+N34+Q34+T34+W34+Z34+AC34+AF34+AI34+AL34+AO34+AR34 -> 1 | AV34: =C34+F34+I34+L34+O34+R34+U34+X34+AA34+AD34+AG34+AJ34+AM34+AP34+AS34 -> 0 | AW34: =AV34/AU34 -> 0.0%
A35: 高危行业负责人复训合计 | B35: =SUM(B30:B34) -> 78 | C35: =SUM(C30:C34) -> 76 | D35: =C35/B35 -> 97.4% | K35: =SUM(K30:K34) -> 5 | L35: =SUM(L30:L34) -> 5 | M35: =L35/K35 -> 100.0% | Q35: =SUM(Q30:Q34) -> 1 | R35: =SUM(R30:R34) -> 0 | S35: =R35/Q35 -> 0.0% | AF35: =SUM(AF30:AF34) -> 51 | AG35: =SUM(AG30:AG34) -> 50 | AH35: =AG35/AF35 -> 98.0% | AO35: =SUM(AO30:AO34) -> 1 | AP35: =SUM(AP30:AP34) -> 1 | AQ35: =AP35/AO35 -> 100.0% | AU35: 136 | AV35: 132 | AW35: 97.1%
A36: 高危行业主要负责人合计 | B36: =B29+B35 -> 110 | C36: =C29+C35 -> 106 | D36: =C36/B36 -> 96.4% | K36: =K29+K35 -> 10 | L36: =L29+L35 -> 10 | M36: =L36/K36 -> 100.0% | Q36: =Q29+Q35 -> 1 | R36: =R29+R35 -> 0 | S36: =R36/Q36 -> 0.0% | AC36: =AC29+AC35 -> 5 | AD36: =AD29+AD35 -> 4 | AE36: =AD36/AC36 -> 80.0% | AF36: =AF29+AF35 -> 74 | AG36: =AG29+AG35 -> 71 | AH36: 95.9% | AO36: =AO29+AO35 -> 1 | AP36: =AP29+AP35 -> 1 | AQ36: =AP36/AO36 -> 100.0% | AR36: =AR29+AR35 -> 5 | AS36: =AS29+AS35 -> 5 | AT36: =AS36/AR36 -> 100.0% | AU36: 206 | AV36: 197 | AW36: 95.6%
A37: 烟花爆竹经营安管初训 | AC37: 2 | AD37: 1 | AE37: =AD37/AC37 -> 50.0% | AF37: 12 | AG37: 8 | AH37: 66.7% | AU37: 14 | AV37: 9 | AW37: 64.3%
A38: 危化生产安管初训 | B38: 6 | C38: 5 | D38: =C38/B38 -> 83.3% | K38: 14 | L38: 14 | M38: =L38/K38 -> 100.0% | AF38: 1 | AG38: 1 | AH38: 100.0% | AU38: 21 | AV38: 20 | AW38: 95.2%
A39: 危化经营安管初训 | B39: 12 | C39: 11 | D39: =C39/B39 -> 91.7% | K39: 10 | L39: 10 | M39: =L39/K39 -> 100.0% | AC39: 8 | AD39: 6 | AE39: =AD39/AC39 -> 75.0% | AF39: 37 | AG39: 32 | AH39: 86.5% | AO39: 2 | AP39: 2 | AQ39: =AP39/AO39 -> 100.0% | AR39: 5 | AS39: 5 | AT39: =AS39/AR39 -> 100.0% | AU39: 74 | AV39: 66 | AW39: 89.2%
A40: 非煤矿山安管初训 | AF40: 1 | AG40: 1 | AH40: 100.0% | AU40: 1 | AV40: 1 | AW40: 100.0%
A41: 金属冶炼安管初训
A42: 高危行业安管初训合计 | B42: =SUM(B37:B41) -> 18 | C42: =SUM(C37:C41) -> 16 | D42: =C42/B42 -> 88.9% | K42: =SUM(K37:K41) -> 24 | L42: =SUM(L37:L41) -> 24 | M42: =L42/K42 -> 100.0% | AC42: =SUM(AC37:AC41) -> 10 | AD42: =SUM(AD37:AD41) -> 7 | AE42: =AD42/AC42 -> 70.0% | AF42: =SUM(AF37:AF41) -> 51 | AG42: =SUM(AG37:AG41) -> 42 | AH42: =AG42/AF42 -> 82.4% | AO42: =SUM(AO37:AO41) -> 2 | AP42: =SUM(AP37:AP41) -> 2 | AQ42: 100.0% | AR42: =SUM(AR37:AR41) -> 5 | AS42: =SUM(AS37:AS41) -> 5 | AT42: =AS42/AR42 -> 100.0% | AU42: =B42+E42+H42+K42+N42+Q42+T42+W42+Z42+AC42+AF42+AI42+AL42+AO42+AR42 -> 110 | AV42: =C42+F42+I42+L42+O42+R42+U42+X42+AA42+AD42+AG42+AJ42+AM42+AP42+AS42 -> 96 | AW42: =AV42/AU42 -> 87.3%
A43: 烟花爆竹经营安管复训
A44: 危化生产安管复训 | B44: 13 | C44: 13 | D44: =C44/B44 -> 100.0% | K44: 1 | L44: 1 | M44: =L44/K44 -> 100.0% | AF44: 47 | AG44: 41 | AH44: =AG44/AF44 -> 87.2% | AO44: 1 | AP44: 1 | AQ44: 100.0% | AU44: =B44+E44+H44+K44+N44+Q44+T44+W44+Z44+AC44+AF44+AI44+AL44+AO44+AR44 -> 62 | AV44: =C44+F44+I44+L44+O44+R44+U44+X44+AA44+AD44+AG44+AJ44+AM44+AP44+AS44 -> 56 | AW44: =AV44/AU44 -> 90.3%
A45: 危化经营安管复训 | B45: 123 | C45: 112 | D45: =C45/B45 -> 91.1% | K45: 19 | L45: 18 | M45: =L45/K45 -> 94.7% | AF45: 46 | AG45: 44 | AH45: =AG45/AF45 -> 95.7% | AU45: =B45+E45+H45+K45+N45+Q45+T45+W45+Z45+AC45+AF45+AI45+AL45+AO45+AR45 -> 188 | AV45: =C45+F45+I45+L45+O45+R45+U45+X45+AA45+AD45+AG45+AJ45+AM45+AP45+AS45 -> 174 | AW45: =AV45/AU45 -> 92.6%
A46: 非煤矿山安管复训
A47: 金属冶炼安管复训
A48: 高危行业安管复训合计 | B48: =SUM(B43:B47) -> 136 | C48: =SUM(C43:C47) -> 125 | D48: =C48/B48 -> 91.9% | K48: =SUM(K43:K47) -> 20 | L48: =SUM(L43:L47) -> 19 | M48: =L48/K48 -> 95.0% | AF48: =SUM(AF43:AF47) -> 93 | AG48: =SUM(AG43:AG47) -> 85 | AH48: =AG48/AF48 -> 91.4% | AO48: =SUM(AO43:AO47) -> 1 | AP48: =SUM(AP43:AP47) -> 1 | AQ48: =AP48/AO48 -> 100.0% | AU48: =B48+E48+H48+K48+N48+Q48+T48+W48+Z48+AC48+AF48+AI48+AL48+AO48+AR48 -> 250 | AV48: 230 | AW48: =AV48/AU48 -> 92.0%
A49: 高危行业安管人员合计 | B49: =B42+B48 -> 154 | C49: =C42+C48 -> 141 | D49: =C49/B49 -> 91.6% | K49: =K42+K48 -> 44 | L49: =L42+L48 -> 43 | M49: =L49/K49 -> 97.7% | AC49: =AC42+AC48 -> 10 | AD49: =AD42+AD48 -> 7 | AE49: =AD49/AC49 -> 70.0% | AF49: =AF42+AF48 -> 144 | AG49: =AG42+AG48 -> 127 | AH49: =AG49/AF49 -> 88.2% | AO49: =AO42+AO48 -> 3 | AP49: =AP42+AP48 -> 3 | AQ49: =AP49/AO49 -> 100.0% | AR49: =AR42+AR48 -> 5 | AS49: =AS42+AS48 -> 5 | AT49: =AS49/AR49 -> 100.0% | AU49: 360 | AV49: 326 | AW49: =AV49/AU49 -> 90.6%
A50: 高危行业负责人安管合计 | B50: =B36+B49 -> 264 | C50: =C36+C49 -> 247 | D50: =C50/B50 -> 93.6% | K50: =K36+K49 -> 54 | L50: =L36+L49 -> 53 | M50: =L50/K50 -> 98.1% | Q50: =Q36+Q49 -> 1 | R50: =R36+R49 -> 0 | S50: =R50/Q50 -> 0.0% | AC50: =AC36+AC49 -> 15 | AD50: =AD36+AD49 -> 11 | AE50: =AD50/AC50 -> 73.3% | AF50: =AF36+AF49 -> 218 | AG50: =AG36+AG49 -> 198 | AH50: =AG50/AF50 -> 90.8% | AO50: =AO36+AO49 -> 4 | AP50: =AP36+AP49 -> 4 | AQ50: =AP50/AO50 -> 100.0% | AR50: =AR36+AR49 -> 10 | AS50: =AS36+AS49 -> 10 | AT50: =AS50/AR50 -> 100.0% | AU50: 566 | AV50: 523 | AW50: =AV50/AU50 -> 92.4%
A51: 全工种合计 | B51: =B23+B50 -> 926 | C51: =C23+C50 -> 878 | D51: =C51/B51 -> 94.8% | E51: =E23+E50 -> 627 | F51: =F23+F50 -> 578 | G51: =F51/E51 -> 92.2% | K51: =K23+K50 -> 386 | L51: =L23+L50 -> 361 | M51: =L51/K51 -> 93.5% | N51: =N23+N50 -> 199 | O51: =O23+O50 -> 189 | P51: =O51/N51 -> 95.0% | Q51: =Q23+Q50 -> 28 | R51: =R23+R50 -> 25 | S51: =R51/Q51 -> 89.3% | T51: =T23+T50 -> 54 | U51: =U23+U50 -> 53 | V51: =U51/T51 -> 98.1% | W51: =W23+W50 -> 46 | X51: =X23+X50 -> 42 | Y51: =X51/W51 -> 91.3% | Z51: =Z23+Z50 -> 162 | AA51: =AA23+AA50 -> 119 | AB51: =AA51/Z51 -> 73.5% | AC51: =AC23+AC50 -> 232 | AD51: =AD23+AD50 -> 213 | AE51: =AD51/AC51 -> 91.8% | AF51: =AF23+AF50 -> 481 | AG51: =AG23+AG50 -> 448 | AH51: =AG51/AF51 -> 93.1% | AI51: =AI23+AI50 -> 206 | AJ51: =AJ23+AJ50 -> 137 | AK51: =AJ51/AI51 -> 66.5% | AL51: =AL23+AL50 -> 211 | AM51: =AM23+AM50 -> 184 | AN51: =AM51/AL51 -> 87.2% | AO51: =AO23+AO50 -> 19 | AP51: =AP23+AP50 -> 14 | AQ51: =AP51/AO51 -> 73.7% | AR51: =AR23+AR50 -> 10 | AS51: =AS23+AS50 -> 10 | AT51: =AS51/AR51 -> 100.0% | AU51: 3587 | AV51: 3251 | AW51: =AV51/AU51 -> 90.6%
A52: 备注： 1.培训机构名称以全国安全生产培训考试信息管理系统记录为准，按系统顺序排序； 2.实考人数=报考总人数-正考补考均缺考人数-考试违规被取消成绩人数； 3.仅统计已完成考试者，还有补考机会者不统计。

Sheet 6月
A1: 2022年6月各安全培训机构考生通过率统计表
A2: 培训机构 工种 | B2: 江门市安信职业安全培训有限公司 | E2: 广东四维培训有限公司 | H2: 江门市技师学院 | K2: 江门市江海区共升教育培训中心 | N2: 江门市侨都安全咨询服务有限公司 | Q2: 江门市安全生产管理协会 | T2: 江门市新会技师学院 | W2: 江门市新会机电职业技术学校 | Z2: 鹤山市优创职业培训学校有限公司 | AC2: 台山市安全生产管理协会 | AF2: 鹤山市安全生产管理协会 | AI2: 江门市江海区万众职业培训学校 | AL2: 开平市中邑安安全技术咨询有限公司 | AO2: 江门市江海区安全生产管理协会 | AR2: 江门市天晟安全事务有限公司 | AU2: 全市合计
B3: 实考人数 | C3: 合格人数 | D3: 通过率 | E3: 实考人数 | F3: 合格人数 | G3: 通过率 | H3: 实考人数 | I3: 合格人数 | J3: 通过率 | K3: 实考人数 | L3: 合格人数 | M3: 通过率 | N3: 实考人数 | O3: 合格人数 | P3: 通过率 | Q3: 实考人数 | R3: 合格人数 | S3: 通过率 | T3: 实考人数 | U3: 合格人数 | V3: 通过率 | W3: 实考人数 | X3: 合格人数 | Y3: 通过率 | Z3: 实考人数 | AA3: 合格人数 | AB3: 通过率 | AC3: 实考人数 | AD3: 合格人数 | AE3: 通过率 | AF3: 实考人数 | AG3: 合格人数 | AH3: 通过率 | AI3: 实考人数 | AJ3: 合格人数 | AK3: 通过率 | AL3: 实考人数 | AM3: 合格人数 | AN3: 通过率 | AO3: 实考人数 | AP3: 合格人数 | AQ3: 通过率 | AR3: 实考人数 | AS3: 合格人数 | AT3: 通过率 | AU3: 实考人数 | AV3: 合格人数 | AW3: 通过率
A4: 低压电工初训 | B4: 147 | C4: 133 | D4: =C4/B4 -> 90.5% | E4: 41 | F4: 36 | G4: =F4/E4 -> 87.8% | H4: 178 | I4: 132 | J4: =I4/H4 -> 74.2% | K4: 39 | L4: 33 | M4: =L4/K4 -> 84.6% | N4: 12 | O4: 7 | P4: =O4/N4 -> 58.3% | T4: 53 | U4: 47 | V4: =U4/T4 -> 88.7% | W4: 106 | X4: 87 | Y4: =X4/W4 -> 82.1% | AC4: 30 | AD4: 25 | AE4: =AD4/AC4 -> 83.3% | AI4: 65 | AJ4: 42 | AK4: =AJ4/AI4 -> 64.6% | AU4: =B4+E4+H4+K4+N4+Q4+T4+W4+Z4+AC4+AF4+AI4+AL4+AO4+AR4 -> 671 | AV4: =C4+F4+I4+L4+O4+R4+U4+X4+AA4+AD4+AG4+AJ4+AM4+AP4+AS4 -> 542 | AW4: =AV4/AU4 -> 80.8%
A5: 高压电工初训 | K5: 5 | L5: 5 | M5: 100.0% | N5: 54 | O5: 48 | P5: =O5/N5 -> 88.9% | Q5: 6 | R5: 6 | S5: =R5/Q5 -> 100.0% | T5: 2 | U5: 2 | V5: =U5/T5 -> 100.0% | AU5: 67 | AV5: 61 | AW5: 91.0%
A6: 电力电缆初训
A7: 熔化焊接与热切割初训 | B7: 49 | C7: 47 | D7: =C7/B7 -> 95.9% | K7: 75 | L7: 65 | M7: 86.7% | N7: 62 | O7: 57 | P7: =O7/N7 -> 91.9% | Z7: 46 | AA7: 33 | AB7: =AA7/Z7 -> 71.7% | AF7: 23 | AG7: 21 | AH7: =AG7/AF7 -> 91.3% | AI7: 46 | AJ7: 31 | AK7: 67.4% | AL7: 18 | AM7: 16 | AN7: =AM7/AL7 -> 88.9% | AU7: 319 | AV7: 270 | AW7: 84.6%
A8: 高处安装维护拆除初训 | B8: 33 | C8: 32 | D8: =C8/B8 -> 97.0% | K8: 65 | L8: 64 | M8: 98.5% | Q8: 6 | R8: 6 | S8: =R8/Q8 -> 100.0% | AL8: 69 | AM8: 64 | AN8: 92.8% | AU8: 173 | AV8: 166 | AW8: 96.0%
A9: 特种作业初训合计 | B9: =SUM(B4:B8) -> 229 | C9: =SUM(C4:C8) -> 212 | D9: 92.6% | E9: =SUM(E4:E8) -> 41 | F9: =SUM(F4:F8) -> 36 | G9: 87.8% | H9: =SUM(H4:H8) -> 178 | I9: =SUM(I4:I8) -> 132 | J9: =I9/H9 -> 74.2% | K9: =SUM(K4:K8) -> 184 | L9: =SUM(L4:L8) -> 167 | M9: 90.8% | N9: =SUM(N4:N8) -> 128 | O9: =SUM(O4:O8) -> 112 | P9: =O9/N9 -> 87.5% | Q9: =SUM(Q4:Q8) -> 12 | R9: =SUM(R4:R8) -> 12 | S9: =R9/Q9 -> 100.0% | T9: =SUM(T4:T8) -> 55 | U9: =SUM(U4:U8) -> 49 | V9: =U9/T9 -> 89.1% | W9: =SUM(W4:W8) -> 106 | X9: =SUM(X4:X8) -> 87 | Y9: =X9/W9 -> 82.1% | Z9: =SUM(Z4:Z8) -> 46 | AA9: =SUM(AA4:AA8) -> 33 | AB9: =AA9/Z9 -> 71.7% | AC9: =SUM(AC4:AC8) -> 30 | AD9: =SUM(AD4:AD8) -> 25 | AE9: =AD9/AC9 -> 83.3% | AF9: =SUM(AF4:AF8) -> 23 | AG9: =SUM(AG4:AG8) -> 21 | AH9: 91.3% | AI9: =SUM(AI4:AI8) -> 111 | AJ9: =SUM(AJ4:AJ8) -> 73 | AK9: 65.8% | AL9: =SUM(AL4:AL8) -> 87 | AM9: =SUM(AM4:AM8) -> 80 | AN9: 92.0% | AU9: 1230 | AV9: 1039 | AW9: 84.5%
A10: 低压电工复训 | B10: 175 | C10: 173 | D10: 98.9% | E10: 149 | F10: 147 | G10: 98.7% | K10: 45 | L10: 43 | M10: 95.6% | N10: 75 | O10: 74 | P10: =O10/N10 -> 98.7% | Q10: 13 | R10: 13 | S10: =R10/Q10 -> 100.0% | T10: 3 | U10: 3 | V10: =U10/T10 -> 100.0% | Z10: 15 | AA10: 14 | AB10: =AA10/Z10 -> 93.3% | AC10: 109 | AD10: 108 | AE10: =AD10/AC10 -> 99.1% | AF10: 42 | AG10: 42 | AH10: 100.0% | AI10: 85 | AJ10: 79 | AK10: 92.9% | AL10: 73 | AM10: 72 | AN10: 98.6% | AO10: 3 | AP10: 3 | AQ10: =AP10/AO10 -> 100.0% | AU10: 787 | AV10: 771 | AW10: 98.0%
A11: 高压电工复训 | B11: 61 | C11: 55 | D11: 90.2% | E11: 63 | F11: 53 | G11: 84.1% | K11: 7 | L11: 5 | M11: 71.4% | N11: 8 | O11: 8 | P11: =O11/N11 -> 100.0% | Q11: 29 | R11: 28 | S11: =R11/Q11 -> 96.6% | AC11: 15 | AD11: 15 | AE11: =AD11/AC11 -> 100.0% | AF11: 7 | AG11: 6 | AH11: 85.7% | AL11: 1 | AM11: 1 | AN11: 100.0% | AU11: 191 | AV11: 171 | AW11: 89.5%
A12: 熔化焊接与热切割复训 | B12: 68 | C12: 62 | D12: 91.2% | E12: 9 | F12: 9 | G12: 100.0% | K12: 32 | L12: 32 | M12: 100.0% | N12: 7 | O12: 7 | P12: =O12/N12 -> 100.0% | Q12: 14 | R12: 14 | S12: =R12/Q12 -> 100.0% | Z12: 1 | AA12: 1 | AB12: =AA12/Z12 -> 100.0% | AC12: 5 | AD12: 5 | AE12: =AD12/AC12 -> 100.0% | AF12: 14 | AG12: 14 | AH12: 100.0% | AI12: 14 | AJ12: 14 | AK12: =AJ12/AI12 -> 100.0% | AL12: 7 | AM12: 7 | AN12: 100.0% | AU12: 171 | AV12: 165 | AW12: 96.5%
A13: 钎焊复训
A14: 高处安装维护拆除复训 | B14: 27 | C14: 25 | D14: =C14/B14 -> 92.6% | E14: 237 | F14: 226 | G14: =F14/E14 -> 95.4% | K14: 4 | L14: 3 | M14: =L14/K14 -> 75.0% | Q14: 4 | R14: 2 | S14: =R14/Q14 -> 50.0% | AU14: =B14+E14+H14+K14+N14+Q14+T14+W14+Z14+AC14+AF14+AI14+AL14+AO14+AR14 -> 272 | AV14: =C14+F14+I14+L14+O14+R14+U14+X14+AA14+AD14+AG14+AJ14+AM14+AP14+AS14 -> 256 | AW14: =AV14/AU14 -> 94.1%
A15: 登高架设复训 | B15: 10 | C15: 7 | D15: 70.0% | AU15: 10 | AV15: 7 | AW15: 70.0%
A16: 制冷与空调运行操作复训 | B16: 1 | C16: 1 | D16: 100.0% | AU16: 1 | AV16: 1 | AW16: 100.0%
A17: 制冷与空调安装修理复训 | B17: 1 | C17: 1 | D17: 100.0% | AU17: 1 | AV17: 1 | AW17: 100.0%
A18: 矿山安检复训 | Q18: 3 | R18: 3 | S18: =R18/Q18 -> 100.0% | AU18: 3 | AV18: 3 | AW18: 100.0%
A19: 电力电缆复训 | B19: 5 | C19: 3 | D19: 60.0% | E19: 2 | F19: 2 | G19: 100.0% | AU19: 7 | AV19: 5 | AW19: 71.4%
A20: 电气试验复训 | B20: 5 | C20: 5 | D20: 100.0% | E20: 2 | F20: 1 | G20: 50.0% | K20: 1 | L20: 1 | M20: =L20/K20 -> 100.0% | AU20: 8 | AV20: 7 | AW20: 87.5%
A21: 继电保护复训 | B21: 6 | C21: 6 | D21: 100.0% | E21: 2 | F21: 1 | G21: 50.0% | AU21: 8 | AV21: 7 | AW21: 87.5%
A22: 特种作业复训合计 | B22: =SUM(B10:B21) -> 359 | C22: =SUM(C10:C21) -> 338 | D22: 94.2% | E22: =SUM(E10:E21) -> 464 | F22: =SUM(F10:F21) -> 439 | G22: 94.6% | K22: =SUM(K10:K21) -> 89 | L22: =SUM(L10:L21) -> 84 | M22: 94.4% | N22: =SUM(N10:N21) -> 90 | O22: =SUM(O10:O21) -> 89 | P22: =O22/N22 -> 98.9% | Q22: =SUM(Q10:Q21) -> 63 | R22: =SUM(R10:R21) -> 60 | S22: =R22/Q22 -> 95.2% | T22: =SUM(T10:T21) -> 3 | U22: =SUM(U10:U21) -> 3 | V22: =U22/T22 -> 100.0% | Z22: =SUM(Z10:Z21) -> 16 | AA22: =SUM(AA10:AA21) -> 15 | AB22: =AA22/Z22 -> 93.8% | AC22: =SUM(AC10:AC21) -> 129 | AD22: =SUM(AD10:AD21) -> 128 | AE22: =AD22/AC22 -> 99.2% | AF22: =SUM(AF10:AF21) -> 63 | AG22: =SUM(AG10:AG21) -> 62 | AH22: =AG22/AF22 -> 98.4% | AI22: =SUM(AI10:AI21) -> 99 | AJ22: =SUM(AJ10:AJ21) -> 93 | AK22: =AJ22/AI22 -> 93.9% | AL22: =SUM(AL10:AL21) -> 81 | AM22: =SUM(AM10:AM21) -> 80 | AN22: =AM22/AL22 -> 98.8% | AO22: =SUM(AO10:AO21) -> 3 | AP22: =SUM(AP10:AP21) -> 3 | AQ22: =AP22/AO22 -> 100.0% | AU22: 1459 | AV22: 1394 | AW22: 95.5%
A23: 特种作业人员合计 | B23: =B9+B22 -> 588 | C23: =C9+C22 -> 550 | D23: 93.5% | E23: =E9+E22 -> 505 | F23: =F9+F22 -> 475 | G23: 94.1% | H23: =H9+H22 -> 178 | I23: =I9+I22 -> 132 | J23: =I23/H23 -> 74.2% | K23: =K9+K22 -> 273 | L23: =L9+L22 -> 251 | M23: 91.9% | N23: =N9+N22 -> 218 | O23: =O9+O22 -> 201 | P23: =O23/N23 -> 92.2% | Q23: =Q9+Q22 -> 75 | R23: =R9+R22 -> 72 | S23: =R23/Q23 -> 96.0% | T23: =T9+T22 -> 58 | U23: =U9+U22 -> 52 | V23: =U23/T23 -> 89.7% | W23: =W9+W22 -> 106 | X23: =X9+X22 -> 87 | Y23: =X23/W23 -> 82.1% | Z23: =Z9+Z22 -> 62 | AA23: =AA9+AA22 -> 48 | AB23: =AA23/Z23 -> 77.4% | AC23: =AC9+AC22 -> 159 | AD23: =AD9+AD22 -> 153 | AE23: =AD23/AC23 -> 96.2% | AF23: =AF9+AF22 -> 86 | AG23: =AG9+AG22 -> 83 | AH23: =AG23/AF23 -> 96.5% | AI23: =AI9+AI22 -> 210 | AJ23: =AJ9+AJ22 -> 166 | AK23: =AJ23/AI23 -> 79.0% | AL23: =AL9+AL22 -> 168 | AM23: =AM9+AM22 -> 160 | AN23: =AM23/AL23 -> 95.2% | AO23: =AO9+AO22 -> 3 | AP23: =AP9+AP22 -> 3 | AQ23: =AP23/AO23 -> 100.0% | AU23: 2689 | AV23: 2433 | AW23: 90.5%
A24: 烟花爆竹经营负责人初训 | B24: 1 | C24: 1 | D24: 100.0% | K24: 2 | L24: 2 | M24: 100.0% | AC24: 2 | AD24: 1 | AE24: =AD24/AC24 -> 50.0% | AF24: 2 | AG24: 2 | AH24: =AG24/AF24 -> 100.0% | AU24: 7 | AV24: 6 | AW24: 85.7%
A25: 危化生产负责人初训 | B25: 1 | C25: 1 | D25: 100.0% | K25: 4 | L25: 4 | M25: 100.0% | AF25: 1 | AG25: 1 | AH25: =AG25/AF25 -> 100.0% | AU25: 6 | AV25: 6 | AW25: 100.0%
A26: 危化经营负责人初训 | B26: 21 | C26: 20 | D26: 95.2% | K26: 9 | L26: 8 | M26: =L26/K26 -> 88.9% | AC26: 3 | AD26: 3 | AE26: =AD26/AC26 -> 100.0% | AF26: 3 | AG26: 3 | AH26: =AG26/AF26 -> 100.0% | AO26: 1 | AP26: 1 | AQ26: =AP26/AO26 -> 100.0% | AU26: 37 | AV26: 35 | AW26: 94.6%
A27: 非煤矿山负责人初训
A28: 金属冶炼负责人初训 | Q28: 5 | R28: 5 | S28: =R28/Q28 -> 100.0% | AU28: 5 | AV28: 5 | AW28: 100.0%
A29: 高危行业负责人初训合计 | B29: =SUM(B24:B28) -> 23 | C29: =SUM(C24:C28) -> 22 | D29: =C29/B29 -> 95.7% | K29: =SUM(K24:K28) -> 15 | L29: =SUM(L24:L28) -> 14 | M29: 93.3% | Q29: =SUM(Q24:Q28) -> 5 | R29: =SUM(R24:R28) -> 5 | S29: =R29/Q29 -> 100.0% | AC29: =SUM(AC24:AC28) -> 5 | AD29: =SUM(AD24:AD28) -> 4 | AE29: =AD29/AC29 -> 80.0% | AF29: =SUM(AF24:AF28) -> 6 | AG29: =SUM(AG24:AG28) -> 6 | AH29: =AG29/AF29 -> 100.0% | AO29: =SUM(AO24:AO28) -> 1 | AP29: =SUM(AP24:AP28) -> 1 | AQ29: =AP29/AO29 -> 100.0% | AU29: 55 | AV29: 52 | AW29: 94.5%
A30: 烟花爆竹经营负责人复训
A31: 危化生产负责人复训 | B31: 16 | C31: 16 | D31: =C31/B31 -> 100.0% | K31: 11 | L31: 11 | M31: 100.0% | Q31: 1 | R31: 1 | S31: =R31/Q31 -> 100.0% | AF31: 5 | AG31: 5 | AH31: =AG31/AF31 -> 100.0% | AO31: 1 | AP31: 1 | AQ31: =AP31/AO31 -> 100.0% | AU31: =B31+E31+H31+K31+N31+Q31+T31+W31+Z31+AC31+AF31+AI31+AL31+AO31+AR31 -> 34 | AV31: 34 | AW31: =AV31/AU31 -> 100.0%
A32: 危化经营负责人复训 | B32: 34 | C32: 34 | D32: =C32/B32 -> 100.0% | K32: 21 | L32: 21 | M32: 100.0% | Q32: 1 | R32: 1 | S32: =R32/Q32 -> 100.0% | AF32: 4 | AG32: 4 | AH32: =AG32/AF32 -> 100.0% | AU32: 60 | AV32: 60 | AW32: =AV32/AU32 -> 100.0%
A33: 非煤矿山负责人复训 | B33: 1 | C33: 1 | D33: =C33/B33 -> 100.0% | AC33: 7 | AD33: 6 | AE33: =AD33/AC33 -> 85.7% | AU33: 8 | AV33: 7 | AW33: =AV33/AU33 -> 87.5%
A34: 金属冶炼负责人复训 | Q34: 1 | R34: 1 | S34: =R34/Q34 -> 100.0% | AU34: =B34+E34+H34+K34+N34+Q34+T34+W34+Z34+AC34+AF34+AI34+AL34+AO34+AR34 -> 1 | AV34: =C34+F34+I34+L34+O34+R34+U34+X34+AA34+AD34+AG34+AJ34+AM34+AP34+AS34 -> 1 | AW34: =AV34/AU34 -> 100.0%
A35: 高危行业负责人复训合计 | B35: =SUM(B30:B34) -> 51 | C35: =SUM(C30:C34) -> 51 | D35: =C35/B35 -> 100.0% | K35: =SUM(K30:K34) -> 32 | L35: =SUM(L30:L34) -> 32 | M35: =L35/K35 -> 100.0% | Q35: =SUM(Q30:Q34) -> 3 | R35: =SUM(R30:R34) -> 3 | S35: =R35/Q35 -> 100.0% | AC35: =SUM(AC30:AC34) -> 7 | AD35: =SUM(AD30:AD34) -> 6 | AE35: =AD35/AC35 -> 85.7% | AF35: =SUM(AF30:AF34) -> 9 | AG35: =SUM(AG30:AG34) -> 9 | AH35: =AG35/AF35 -> 100.0% | AO35: =SUM(AO30:AO34) -> 1 | AP35: =SUM(AP30:AP34) -> 1 | AQ35: =AP35/AO35 -> 100.0% | AU35: 103 | AV35: 102 | AW35: 99.0%
A36: 高危行业主要负责人合计 | B36: =B29+B35 -> 74 | C36: =C29+C35 -> 73 | D36: 98.6% | K36: =K29+K35 -> 47 | L36: =L29+L35 -> 46 | M36: =L36/K36 -> 97.9% | Q36: =Q29+Q35 -> 8 | R36: =R29+R35 -> 8 | S36: =R36/Q36 -> 100.0% | AC36: =AC29+AC35 -> 12 | AD36: =AD29+AD35 -> 10 | AE36: =AD36/AC36 -> 83.3% | AF36: =AF29+AF35 -> 15 | AG36: =AG29+AG35 -> 15 | AH36: =AG36/AF36 -> 100.0% | AO36: =AO29+AO35 -> 2 | AP36: =AP29+AP35 -> 2 | AQ36: =AP36/AO36 -> 100.0% | AU36: 158 | AV36: 154 | AW36: 97.5%
A37: 烟花爆竹经营安管初训 | K37: 1 | L37: 1 | M37: =L37/K37 -> 100.0% | AC37: 2 | AD37: 1 | AE37: =AD37/AC37 -> 50.0% | AF37: 5 | AG37: 3 | AH37: =AG37/AF37 -> 60.0% | AU37: 8 | AV37: 5 | AW37: 62.5%
A38: 危化生产安管初训 | B38: 7 | C38: 7 | D38: 100.0% | K38: 16 | L38: 14 | M38: =L38/K38 -> 87.5% | AF38: 1 | AG38: 1 | AH38: =AG38/AF38 -> 100.0% | AU38: 24 | AV38: 22 | AW38: 91.7%
A39: 危化经营安管初训 | B39: 68 | C39: 60 | D39: 88.2% | K39: 17 | L39: 15 | M39: =L39/K39 -> 88.2% | Q39: 1 | R39: 1 | S39: =R39/Q39 -> 100.0% | AC39: 4 | AD39: 4 | AE39: =AD39/AC39 -> 100.0% | AF39: 2 | AG39: 1 | AH39: =AG39/AF39 -> 50.0% | AU39: 92 | AV39: 81 | AW39: 88.0%
A40: 非煤矿山安管初训 | B40: 1 | C40: 1 | D40: 100.0% | AC40: 2 | AD40: 1 | AE40: =AD40/AC40 -> 50.0% | AU40: 3 | AV40: 2 | AW40: 66.7%
A41: 金属冶炼安管初训 | Q41: 6 | R41: 4 | S41: =R41/Q41 -> 66.7% | AU41: 6 | AV41: 4 | AW41: 66.7%
A42: 高危行业安管初训合计 | B42: =SUM(B37:B41) -> 76 | C42: =SUM(C37:C41) -> 68 | D42: =C42/B42 -> 89.5% | K42: =SUM(K37:K41) -> 34 | L42: =SUM(L37:L41) -> 30 | M42: =L42/K42 -> 88.2% | Q42: =SUM(Q37:Q41) -> 7 | R42: =SUM(R37:R41) -> 5 | S42: =R42/Q42 -> 71.4% | AC42: =SUM(AC37:AC41) -> 8 | AD42: =SUM(AD37:AD41) -> 6 | AE42: =AD42/AC42 -> 75.0% | AF42: =SUM(AF37:AF41) -> 8 | AG42: =SUM(AG37:AG41) -> 5 | AH42: =AG42/AF42 -> 62.5% | AU42: =B42+E42+H42+K42+N42+Q42+T42+W42+Z42+AC42+AF42+AI42+AL42+AO42+AR42 -> 133 | AV42: =C42+F42+I42+L42+O42+R42+U42+X42+AA42+AD42+AG42+AJ42+AM42+AP42+AS42 -> 114 | AW42: =AV42/AU42 -> 85.7%
A43: 烟花爆竹经营安管复训 | AF43: 1 | AG43: 1 | AH43: =AG43/AF43 -> 100.0% | AU43: 1 | AV43: 1 | AW43: 100.0%
A44: 危化生产安管复训 | B44: 35 | C44: 35 | D44: =C44/B44 -> 100.0% | K44: 24 | L44: 23 | M44: =L44/K44 -> 95.8% | Q44: 2 | R44: 2 | S44: =R44/Q44 -> 100.0% | AF44: 10 | AG44: 9 | AH44: =AG44/AF44 -> 90.0% | AO44: 7 | AP44: 7 | AQ44: =AP44/AO44 -> 100.0% | AU44: 78 | AV44: 76 | AW44: 97.4%
A45: 危化经营安管复训 | B45: 60 | C45: 60 | D45: =C45/B45 -> 100.0% | K45: 51 | L45: 50 | M45: =L45/K45 -> 98.0% | AF45: 5 | AG45: 5 | AH45: =AG45/AF45 -> 100.0% | AU45: 116 | AV45: 115 | AW45: 99.1%
A46: 非煤矿山安管复训 | B46: 1 | C46: 1 | D46: =C46/B46 -> 100.0% | AC46: 15 | AD46: 14 | AE46: =AD46/AC46 -> 93.3% | AU46: 16 | AV46: 15 | AW46: 93.8%
A47: 金属冶炼安管复训 | Q47: 1 | R47: 1 | S47: =R47/Q47 -> 100.0% | AU47: 1 | AV47: 1 | AW47: 100.0%
A48: 高危行业安管复训合计 | B48: =SUM(B43:B47) -> 96 | C48: =SUM(C43:C47) -> 96 | D48: =C48/B48 -> 100.0% | K48: =SUM(K43:K47) -> 75 | L48: =SUM(L43:L47) -> 73 | M48: =L48/K48 -> 97.3% | Q48: =SUM(Q43:Q47) -> 3 | R48: =SUM(R43:R47) -> 3 | S48: =R48/Q48 -> 100.0% | AC48: =SUM(AC43:AC47) -> 15 | AD48: =SUM(AD43:AD47) -> 14 | AE48: =AD48/AC48 -> 93.3% | AF48: =SUM(AF43:AF47) -> 16 | AG48: =SUM(AG43:AG47) -> 15 | AH48: =AG48/AF48 -> 93.8% | AO48: =SUM(AO43:AO47) -> 7 | AP48: =SUM(AP43:AP47) -> 7 | AQ48: =AP48/AO48 -> 100.0% | AU48: =B48+E48+H48+K48+N48+Q48+T48+W48+Z48+AC48+AF48+AI48+AL48+AO48+AR48 -> 212 | AV48: 208 | AW48: 98.1%
A49: 高危行业安管人员合计 | B49: =B42+B48 -> 172 | C49: =C42+C48 -> 164 | D49: =C49/B49 -> 95.3% | K49: =K42+K48 -> 109 | L49: =L42+L48 -> 103 | M49: =L49/K49 -> 94.5% | Q49: =Q42+Q48 -> 10 | R49: =R42+R48 -> 8 | S49: =R49/Q49 -> 80.0% | AC49: =AC42+AC48 -> 23 | AD49: =AD42+AD48 -> 20 | AE49: =AD49/AC49 -> 87.0% | AF49: =AF42+AF48 -> 24 | AG49: =AG42+AG48 -> 20 | AH49: =AG49/AF49 -> 83.3% | AO49: =AO42+AO48 -> 7 | AP49: =AP42+AP48 -> 7 | AQ49: =AP49/AO49 -> 100.0% | AU49: 345 | AV49: 322 | AW49: 93.3%
A50: 高危行业负责人安管合计 | B50: =B36+B49 -> 246 | C50: =C36+C49 -> 237 | D50: =C50/B50 -> 96.3% | K50: =K36+K49 -> 156 | L50: =L36+L49 -> 149 | M50: =L50/K50 -> 95.5% | Q50: =Q36+Q49 -> 18 | R50: =R36+R49 -> 16 | S50: =R50/Q50 -> 88.9% | AC50: =AC36+AC49 -> 35 | AD50: =AD36+AD49 -> 30 | AE50: =AD50/AC50 -> 85.7% | AF50: =AF36+AF49 -> 39 | AG50: =AG36+AG49 -> 35 | AH50: =AG50/AF50 -> 89.7% | AO50: =AO36+AO49 -> 9 | AP50: =AP36+AP49 -> 9 | AQ50: =AP50/AO50 -> 100.0% | AU50: 503 | AV50: 476 | AW50: 94.6%
A51: 全工种合计 | B51: =B23+B50 -> 834 | C51: =C23+C50 -> 787 | D51: =C51/B51 -> 94.4% | E51: =E23+E50 -> 505 | F51: =F23+F50 -> 475 | G51: =F51/E51 -> 94.1% | H51: =H23+H50 -> 178 | I51: =I23+I50 -> 132 | J51: =I51/H51 -> 74.2% | K51: =K23+K50 -> 429 | L51: =L23+L50 -> 400 | M51: =L51/K51 -> 93.2% | N51: =N23+N50 -> 218 | O51: =O23+O50 -> 201 | P51: =O51/N51 -> 92.2% | Q51: =Q23+Q50 -> 93 | R51: =R23+R50 -> 88 | S51: =R51/Q51 -> 94.6% | T51: =T23+T50 -> 58 | U51: =U23+U50 -> 52 | V51: =U51/T51 -> 89.7% | W51: =W23+W50 -> 106 | X51: =X23+X50 -> 87 | Y51: =X51/W51 -> 82.1% | Z51: =Z23+Z50 -> 62 | AA51: =AA23+AA50 -> 48 | AB51: =AA51/Z51 -> 77.4% | AC51: =AC23+AC50 -> 194 | AD51: =AD23+AD50 -> 183 | AE51: =AD51/AC51 -> 94.3% | AF51: =AF23+AF50 -> 125 | AG51: =AG23+AG50 -> 118 | AH51: =AG51/AF51 -> 94.4% | AI51: =AI23+AI50 -> 210 | AJ51: =AJ23+AJ50 -> 166 | AK51: =AJ51/AI51 -> 79.0% | AL51: =AL23+AL50 -> 168 | AM51: =AM23+AM50 -> 160 | AN51: =AM51/AL51 -> 95.2% | AO51: =AO23+AO50 -> 12 | AP51: =AP23+AP50 -> 12 | AQ51: =AP51/AO51 -> 100.0% | AU51: 3192 | AV51: 2909 | AW51: 91.1%
A52: 备注： 1.培训机构名称以全国安全生产培训考试信息管理系统记录为准，按系统顺序排序； 2.实考人数=报考总人数-正考补考均缺考人数-考试违规被取消成绩人数； 3.仅统计已完成考试者，还有补考机会者不统计。

Sheet 上半年
A1: 2022年上半年各安全培训机构考生通过率统计表
A2: 培训机构 工种 | B2: 江门市安信职业安全培训有限公司 | E2: 广东四维培训有限公司 | H2: 江门市技师学院 | K2: 江门市江海区共升教育培训中心 | N2: 江门市侨都安全咨询服务有限公司 | Q2: 江门市安全生产管理协会 | T2: 江门市新会技师学院 | W2: 江门市新会机电职业技术学校 | Z2: 鹤山市优创职业培训学校有限公司 | AC2: 台山市安全生产管理协会 | AF2: 鹤山市安全生产管理协会 | AI2: 江门市江海区万众职业培训学校 | AL2: 开平市中邑安安全技术咨询有限公司 | AO2: 江门市江海区安全生产管理协会 | AR2: 江门市天晟安全事务有限公司 | AU2: 全市合计
B3: 实考人数 | C3: 合格人数 | D3: 通过率 | E3: 实考人数 | F3: 合格人数 | G3: 通过率 | H3: 实考人数 | I3: 合格人数 | J3: 通过率 | K3: 实考人数 | L3: 合格人数 | M3: 通过率 | N3: 实考人数 | O3: 合格人数 | P3: 通过率 | Q3: 实考人数 | R3: 合格人数 | S3: 通过率 | T3: 实考人数 | U3: 合格人数 | V3: 通过率 | W3: 实考人数 | X3: 合格人数 | Y3: 通过率 | Z3: 实考人数 | AA3: 合格人数 | AB3: 通过率 | AC3: 实考人数 | AD3: 合格人数 | AE3: 通过率 | AF3: 实考人数 | AG3: 合格人数 | AH3: 通过率 | AI3: 实考人数 | AJ3: 合格人数 | AK3: 通过率 | AL3: 实考人数 | AM3: 合格人数 | AN3: 通过率 | AO3: 实考人数 | AP3: 合格人数 | AQ3: 通过率 | AR3: 实考人数 | AS3: 合格人数 | AT3: 通过率 | AU3: 实考人数 | AV3: 合格人数 | AW3: 通过率
A4: 低压电工初训 | B4: ='1月'!B4+'2月'!B4+'3月'!B4+'5月'!B4+'6月'!B4 -> 296 | C4: ='1月'!C4+'2月'!C4+'3月'!C4+'5月'!C4+'6月'!C4 -> 262 | D4: =C4/B4 -> 88.5% | E4: ='1月'!E4+'2月'!E4+'3月'!E4+'5月'!E4+'6月'!E4 -> 155 | F4: ='1月'!F4+'2月'!F4+'3月'!F4+'5月'!F4+'6月'!F4 -> 134 | G4: =F4/E4 -> 86.5% | H4: ='1月'!H4+'2月'!H4+'3月'!H4+'5月'!H4+'6月'!H4 -> 198 | I4: ='1月'!I4+'2月'!I4+'3月'!I4+'5月'!I4+'6月'!I4 -> 150 | J4: =I4/H4 -> 75.8% | K4: ='1月'!K4+'2月'!K4+'3月'!K4+'5月'!K4+'6月'!K4 -> 91 | L4: ='1月'!L4+'2月'!L4+'3月'!L4+'5月'!L4+'6月'!L4 -> 81 | M4: =L4/K4 -> 89.0% | N4: ='1月'!N4+'2月'!N4+'3月'!N4+'5月'!N4+'6月'!N4 -> 85 | O4: ='1月'!O4+'2月'!O4+'3月'!O4+'5月'!O4+'6月'!O4 -> 64 | P4: =O4/N4 -> 75.3% | Q4: ='1月'!Q4+'2月'!Q4+'3月'!Q4+'5月'!Q4+'6月'!Q4 -> 1 | R4: ='1月'!R4+'2月'!R4+'3月'!R4+'5月'!R4+'6月'!R4 -> 0 | S4: =R4/Q4 -> 0.0% | T4: ='1月'!T4+'2月'!T4+'3月'!T4+'5月'!T4+'6月'!T4 -> 80 | U4: ='1月'!U4+'2月'!U4+'3月'!U4+'5月'!U4+'6月'!U4 -> 64 | V4: =U4/T4 -> 80.0% | W4: ='1月'!W4+'2月'!W4+'3月'!W4+'5月'!W4+'6月'!W4 -> 176 | X4: ='1月'!X4+'2月'!X4+'3月'!X4+'5月'!X4+'6月'!X4 -> 153 | Y4: =X4/W4 -> 86.9% | Z4: ='1月'!Z4+'2月'!Z4+'3月'!Z4+'5月'!Z4+'6月'!Z4 -> 89 | AA4: ='1月'!AA4+'2月'!AA4+'3月'!AA4+'5月'!AA4+'6月'!AA4 -> 74 | AB4: =AA4/Z4 -> 83.1% | AC4: ='1月'!AC4+'2月'!AC4+'3月'!AC4+'5月'!AC4+'6月'!AC4 -> 109 | AD4: ='1月'!AD4+'2月'!AD4+'3月'!AD4+'5月'!AD4+'6月'!AD4 -> 85 | AE4: =AD4/AC4 -> 78.0% | AF4: ='1月'!AF4+'2月'!AF4+'3月'!AF4+'5月'!AF4+'6月'!AF4 -> 31 | AG4: ='1月'!AG4+'2月'!AG4+'3月'!AG4+'5月'!AG4+'6月'!AG4 -> 26 | AH4: =AG4/AF4 -> 83.9% | AI4: ='1月'!AI4+'2月'!AI4+'3月'!AI4+'5月'!AI4+'6月'!AI4 -> 300 | AJ4: ='1月'!AJ4+'2月'!AJ4+'3月'!AJ4+'5月'!AJ4+'6月'!AJ4 -> 204 | AK4: =AJ4/AI4 -> 68.0% | AL4: ='1月'!AL4+'2月'!AL4+'3月'!AL4+'5月'!AL4+'6月'!AL4 -> 47 | AM4: ='1月'!AM4+'2月'!AM4+'3月'!AM4+'5月'!AM4+'6月'!AM4 -> 36 | AN4: =AM4/AL4 -> 76.6% | AO4: ='1月'!AO4+'2月'!AO4+'3月'!AO4+'5月'!AO4+'6月'!AO4 -> 16 | AP4: ='1月'!AP4+'2月'!AP4+'3月'!AP4+'5月'!AP4+'6月'!AP4 -> 16 | AQ4: =AP4/AO4 -> 100.0% | AU4: =B4+E4+H4+K4+N4+Q4+T4+W4+Z4+AC4+AF4+AI4+AL4+AO4+AR4 -> 1674 | AV4: =C4+F4+I4+L4+O4+R4+U4+X4+AA4+AD4+AG4+AJ4+AM4+AP4+AS4 -> 1349 | AW4: =AV4/AU4 -> 80.6%
A5: 高压电工初训 | B5: ='1月'!B5+'2月'!B5+'3月'!B5+'5月'!B5+'6月'!B5 -> 36 | C5: ='1月'!C5+'2月'!C5+'3月'!C5+'5月'!C5+'6月'!C5 -> 34 | D5: 94.4% | E5: ='1月'!E5+'2月'!E5+'3月'!E5+'5月'!E5+'6月'!E5 -> 31 | F5: ='1月'!F5+'2月'!F5+'3月'!F5+'5月'!F5+'6月'!F5 -> 22 | G5: 71.0% | K5: ='1月'!K5+'2月'!K5+'3月'!K5+'5月'!K5+'6月'!K5 -> 18 | L5: ='1月'!L5+'2月'!L5+'3月'!L5+'5月'!L5+'6月'!L5 -> 18 | M5: =L5/K5 -> 100.0% | N5: ='1月'!N5+'2月'!N5+'3月'!N5+'5月'!N5+'6月'!N5 -> 67 | O5: ='1月'!O5+'2月'!O5+'3月'!O5+'5月'!O5+'6月'!O5 -> 60 | P5: =O5/N5 -> 89.6% | Q5: ='1月'!Q5+'2月'!Q5+'3月'!Q5+'5月'!Q5+'6月'!Q5 -> 6 | R5: ='1月'!R5+'2月'!R5+'3月'!R5+'5月'!R5+'6月'!R5 -> 6 | S5: 100.0% | T5: ='1月'!T5+'2月'!T5+'3月'!T5+'5月'!T5+'6月'!T5 -> 2 | U5: ='1月'!U5+'2月'!U5+'3月'!U5+'5月'!U5+'6月'!U5 -> 2 | V5: 100.0% | AL5: ='1月'!AL5+'2月'!AL5+'3月'!AL5+'5月'!AL5+'6月'!AL5 -> 13 | AM5: ='1月'!AM5+'2月'!AM5+'3月'!AM5+'5月'!AM5+'6月'!AM5 -> 12 | AN5: =AM5/AL5 -> 92.3% | AU5: 173 | AV5: 154 | AW5: 89.0%
A6: 电力电缆初训
A7: 熔化焊接与热切割初训 | B7: ='1月'!B7+'2月'!B7+'3月'!B7+'5月'!B7+'6月'!B7 -> 105 | C7: ='1月'!C7+'2月'!C7+'3月'!C7+'5月'!C7+'6月'!C7 -> 94 | D7: 89.5% | H7: ='1月'!H7+'2月'!H7+'3月'!H7+'5月'!H7+'6月'!H7 -> 34 | I7: ='1月'!I7+'2月'!I7+'3月'!I7+'5月'!I7+'6月'!I7 -> 32 | J7: 94.1% | K7: ='1月'!K7+'2月'!K7+'3月'!K7+'5月'!K7+'6月'!K7 -> 117 | L7: ='1月'!L7+'2月'!L7+'3月'!L7+'5月'!L7+'6月'!L7 -> 98 | M7: =L7/K7 -> 83.8% | N7: ='1月'!N7+'2月'!N7+'3月'!N7+'5月'!N7+'6月'!N7 -> 101 | O7: ='1月'!O7+'2月'!O7+'3月'!O7+'5月'!O7+'6月'!O7 -> 85 | P7: =O7/N7 -> 84.2% | Q7: ='1月'!Q7+'2月'!Q7+'3月'!Q7+'5月'!Q7+'6月'!Q7 -> 12 | R7: ='1月'!R7+'2月'!R7+'3月'!R7+'5月'!R7+'6月'!R7 -> 10 | S7: 83.3% | T7: ='1月'!T7+'2月'!T7+'3月'!T7+'5月'!T7+'6月'!T7 -> 82 | U7: ='1月'!U7+'2月'!U7+'3月'!U7+'5月'!U7+'6月'!U7 -> 71 | V7: 86.6% | Z7: ='1月'!Z7+'2月'!Z7+'3月'!Z7+'5月'!Z7+'6月'!Z7 -> 167 | AA7: ='1月'!AA7+'2月'!AA7+'3月'!AA7+'5月'!AA7+'6月'!AA7 -> 120 | AB7: =AA7/Z7 -> 71.9% | AC7: ='1月'!AC7+'2月'!AC7+'3月'!AC7+'5月'!AC7+'6月'!AC7 -> 23 | AD7: ='1月'!AD7+'2月'!AD7+'3月'!AD7+'5月'!AD7+'6月'!AD7 -> 12 | AE7: =AD7/AC7 -> 52.2% | AF7: ='1月'!AF7+'2月'!AF7+'3月'!AF7+'5月'!AF7+'6月'!AF7 -> 88 | AG7: ='1月'!AG7+'2月'!AG7+'3月'!AG7+'5月'!AG7+'6月'!AG7 -> 80 | AH7: =AG7/AF7 -> 90.9% | AI7: ='1月'!AI7+'2月'!AI7+'3月'!AI7+'5月'!AI7+'6月'!AI7 -> 155 | AJ7: ='1月'!AJ7+'2月'!AJ7+'3月'!AJ7+'5月'!AJ7+'6月'!AJ7 -> 111 | AK7: =AJ7/AI7 -> 71.6% | AL7: ='1月'!AL7+'2月'!AL7+'3月'!AL7+'5月'!AL7+'6月'!AL7 -> 74 | AM7: ='1月'!AM7+'2月'!AM7+'3月'!AM7+'5月'!AM7+'6月'!AM7 -> 63 | AN7: =AM7/AL7 -> 85.1% | AO7: ='1月'!AO7+'2月'!AO7+'3月'!AO7+'5月'!AO7+'6月'!AO7 -> 14 | AP7: ='1月'!AP7+'2月'!AP7+'3月'!AP7+'5月'!AP7+'6月'!AP7 -> 9 | AQ7: =AP7/AO7 -> 64.3% | AU7: 972 | AV7: 785 | AW7: 80.8%
A8: 高处安装维护拆除初训 | B8: ='1月'!B8+'2月'!B8+'3月'!B8+'5月'!B8+'6月'!B8 -> 131 | C8: ='1月'!C8+'2月'!C8+'3月'!C8+'5月'!C8+'6月'!C8 -> 115 | D8: 87.8% | K8: ='1月'!K8+'2月'!K8+'3月'!K8+'5月'!K8+'6月'!K8 -> 183 | L8: ='1月'!L8+'2月'!L8+'3月'!L8+'5月'!L8+'6月'!L8 -> 169 | M8: =L8/K8 -> 92.3% | Q8: ='1月'!Q8+'2月'!Q8+'3月'!Q8+'5月'!Q8+'6月'!Q8 -> 9 | R8: ='1月'!R8+'2月'!R8+'3月'!R8+'5月'!R8+'6月'!R8 -> 8 | S8: 88.9% | AL8: ='1月'!AL8+'2月'!AL8+'3月'!AL8+'5月'!AL8+'6月'!AL8 -> 193 | AM8: ='1月'!AM8+'2月'!AM8+'3月'!AM8+'5月'!AM8+'6月'!AM8 -> 178 | AN8: =AM8/AL8 -> 92.2% | AU8: 516 | AV8: 470 | AW8: 91.1%
A9: 特种作业初训合计 | B9: =SUM(B4:B8) -> 568 | C9: =SUM(C4:C8) -> 505 | D9: 88.9% | E9: =SUM(E4:E8) -> 186 | F9: =SUM(F4:F8) -> 156 | G9: 83.9% | H9: =SUM(H4:H8) -> 232 | I9: =SUM(I4:I8) -> 182 | J9: 78.4% | K9: =SUM(K4:K8) -> 409 | L9: =SUM(L4:L8) -> 366 | M9: =L9/K9 -> 89.5% | N9: =SUM(N4:N8) -> 253 | O9: =SUM(O4:O8) -> 209 | P9: =O9/N9 -> 82.6% | Q9: =SUM(Q4:Q8) -> 28 | R9: =SUM(R4:R8) -> 24 | S9: 85.7% | T9: =SUM(T4:T8) -> 164 | U9: =SUM(U4:U8) -> 137 | V9: 83.5% | W9: =SUM(W4:W8) -> 176 | X9: =SUM(X4:X8) -> 153 | Y9: =X9/W9 -> 86.9% | Z9: =SUM(Z4:Z8) -> 256 | AA9: =SUM(AA4:AA8) -> 194 | AB9: =AA9/Z9 -> 75.8% | AC9: =SUM(AC4:AC8) -> 132 | AD9: =SUM(AD4:AD8) -> 97 | AE9: =AD9/AC9 -> 73.5% | AF9: =SUM(AF4:AF8) -> 119 | AG9: =SUM(AG4:AG8) -> 106 | AH9: =AG9/AF9 -> 89.1% | AI9: =SUM(AI4:AI8) -> 455 | AJ9: =SUM(AJ4:AJ8) -> 315 | AK9: =AJ9/AI9 -> 69.2% | AL9: =SUM(AL4:AL8) -> 327 | AM9: =SUM(AM4:AM8) -> 289 | AN9: =AM9/AL9 -> 88.4% | AO9: =SUM(AO4:AO8) -> 30 | AP9: =SUM(AP4:AP8) -> 25 | AQ9: =AP9/AO9 -> 83.3% | AU9: 3335 | AV9: 2758 | AW9: 82.7%
A10: 低压电工复训 | B10: ='1月'!B10+'2月'!B10+'3月'!B10+'5月'!B10+'6月'!B10 -> 991 | C10: ='1月'!C10+'2月'!C10+'3月'!C10+'5月'!C10+'6月'!C10 -> 959 | D10: 96.8% | E10: ='1月'!E10+'2月'!E10+'3月'!E10+'5月'!E10+'6月'!E10 -> 265 | F10: ='1月'!F10+'2月'!F10+'3月'!F10+'5月'!F10+'6月'!F10 -> 259 | G10: 97.7% | K10: ='1月'!K10+'2月'!K10+'3月'!K10+'5月'!K10+'6月'!K10 -> 190 | L10: ='1月'!L10+'2月'!L10+'3月'!L10+'5月'!L10+'6月'!L10 -> 185 | M10: 97.4% | N10: ='1月'!N10+'2月'!N10+'3月'!N10+'5月'!N10+'6月'!N10 -> 214 | O10: ='1月'!O10+'2月'!O10+'3月'!O10+'5月'!O10+'6月'!O10 -> 210 | P10: =O10/N10 -> 98.1% | Q10: ='1月'!Q10+'2月'!Q10+'3月'!Q10+'5月'!Q10+'6月'!Q10 -> 31 | R10: ='1月'!R10+'2月'!R10+'3月'!R10+'5月'!R10+'6月'!R10 -> 31 | S10: =R10/Q10 -> 100.0% | T10: ='1月'!T10+'2月'!T10+'3月'!T10+'5月'!T10+'6月'!T10 -> 60 | U10: ='1月'!U10+'2月'!U10+'3月'!U10+'5月'!U10+'6月'!U10 -> 58 | V10: 96.7% | Z10: ='1月'!Z10+'2月'!Z10+'3月'!Z10+'5月'!Z10+'6月'!Z10 -> 24 | AA10: ='1月'!AA10+'2月'!AA10+'3月'!AA10+'5月'!AA10+'6月'!AA10 -> 23 | AB10: =AA10/Z10 -> 95.8% | AC10: ='1月'!AC10+'2月'!AC10+'3月'!AC10+'5月'!AC10+'6月'!AC10 -> 391 | AD10: ='1月'!AD10+'2月'!AD10+'3月'!AD10+'5月'!AD10+'6月'!AD10 -> 380 | AE10: =AD10/AC10 -> 97.2% | AF10: ='1月'!AF10+'2月'!AF10+'3月'!AF10+'5月'!AF10+'6月'!AF10 -> 270 | AG10: ='1月'!AG10+'2月'!AG10+'3月'!AG10+'5月'!AG10+'6月'!AG10 -> 262 | AH10: =AG10/AF10 -> 97.0% | AI10: ='1月'!AI10+'2月'!AI10+'3月'!AI10+'5月'!AI10+'6月'!AI10 -> 155 | AJ10: ='1月'!AJ10+'2月'!AJ10+'3月'!AJ10+'5月'!AJ10+'6月'!AJ10 -> 144 | AK10: =AJ10/AI10 -> 92.9% | AL10: ='1月'!AL10+'2月'!AL10+'3月'!AL10+'5月'!AL10+'6月'!AL10 -> 172 | AM10: ='1月'!AM10+'2月'!AM10+'3月'!AM10+'5月'!AM10+'6月'!AM10 -> 165 | AN10: 95.9% | AO10: ='1月'!AO10+'2月'!AO10+'3月'!AO10+'5月'!AO10+'6月'!AO10 -> 10 | AP10: ='1月'!AP10+'2月'!AP10+'3月'!AP10+'5月'!AP10+'6月'!AP10 -> 10 | AQ10: =AP10/AO10 -> 100.0% | AU10: 2773 | AV10: 2686 | AW10: 96.9%
A11: 高压电工复训 | B11: ='1月'!B11+'2月'!B11+'3月'!B11+'5月'!B11+'6月'!B11 -> 178 | C11: ='1月'!C11+'2月'!C11+'3月'!C11+'5月'!C11+'6月'!C11 -> 157 | D11: 88.2% | E11: ='1月'!E11+'2月'!E11+'3月'!E11+'5月'!E11+'6月'!E11 -> 189 | F11: ='1月'!F11+'2月'!F11+'3月'!F11+'5月'!F11+'6月'!F11 -> 166 | G11: 87.8% | K11: ='1月'!K11+'2月'!K11+'3月'!K11+'5月'!K11+'6月'!K11 -> 77 | L11: ='1月'!L11+'2月'!L11+'3月'!L11+'5月'!L11+'6月'!L11 -> 68 | M11: 88.3% | N11: ='1月'!N11+'2月'!N11+'3月'!N11+'5月'!N11+'6月'!N11 -> 18 | O11: ='1月'!O11+'2月'!O11+'3月'!O11+'5月'!O11+'6月'!O11 -> 18 | P11: =O11/N11 -> 100.0% | Q11: ='1月'!Q11+'2月'!Q11+'3月'!Q11+'5月'!Q11+'6月'!Q11 -> 33 | R11: ='1月'!R11+'2月'!R11+'3月'!R11+'5月'!R11+'6月'!R11 -> 32 | S11: 97.0% | T11: ='1月'!T11+'2月'!T11+'3月'!T11+'5月'!T11+'6月'!T11 -> 3 | U11: ='1月'!U11+'2月'!U11+'3月'!U11+'5月'!U11+'6月'!U11 -> 3 | V11: 100.0% | AC11: ='1月'!AC11+'2月'!AC11+'3月'!AC11+'5月'!AC11+'6月'!AC11 -> 32 | AD11: ='1月'!AD11+'2月'!AD11+'3月'!AD11+'5月'!AD11+'6月'!AD11 -> 32 | AE11: =AD11/AC11 -> 100.0% | AF11: ='1月'!AF11+'2月'!AF11+'3月'!AF11+'5月'!AF11+'6月'!AF11 -> 32 | AG11: ='1月'!AG11+'2月'!AG11+'3月'!AG11+'5月'!AG11+'6月'!AG11 -> 29 | AH11: =AG11/AF11 -> 90.6% | AL11: ='1月'!AL11+'2月'!AL11+'3月'!AL11+'5月'!AL11+'6月'!AL11 -> 12 | AM11: ='1月'!AM11+'2月'!AM11+'3月'!AM11+'5月'!AM11+'6月'!AM11 -> 10 | AN11: 83.3% | AU11: 574 | AV11: 515 | AW11: 89.7%
A12: 熔化焊接与热切割复训 | B12: ='1月'!B12+'2月'!B12+'3月'!B12+'5月'!B12+'6月'!B12 -> 205 | C12: ='1月'!C12+'2月'!C12+'3月'!C12+'5月'!C12+'6月'!C12 -> 190 | D12: 92.7% | E12: ='1月'!E12+'2月'!E12+'3月'!E12+'5月'!E12+'6月'!E12 -> 26 | F12: ='1月'!F12+'2月'!F12+'3月'!F12+'5月'!F12+'6月'!F12 -> 24 | G12: 92.3% | K12: ='1月'!K12+'2月'!K12+'3月'!K12+'5月'!K12+'6月'!K12 -> 113 | L12: ='1月'!L12+'2月'!L12+'3月'!L12+'5月'!L12+'6月'!L12 -> 106 | M12: 93.8% | N12: ='1月'!N12+'2月'!N12+'3月'!N12+'5月'!N12+'6月'!N12 -> 34 | O12: ='1月'!O12+'2月'!O12+'3月'!O12+'5月'!O12+'6月'!O12 -> 31 | P12: =O12/N12 -> 91.2% | Q12: ='1月'!Q12+'2月'!Q12+'3月'!Q12+'5月'!Q12+'6月'!Q12 -> 18 | R12: ='1月'!R12+'2月'!R12+'3月'!R12+'5月'!R12+'6月'!R12 -> 17 | S12: 94.4% | T12: ='1月'!T12+'2月'!T12+'3月'!T12+'5月'!T12+'6月'!T12 -> 23 | U12: ='1月'!U12+'2月'!U12+'3月'!U12+'5月'!U12+'6月'!U12 -> 23 | V12: 100.0% | Z12: ='1月'!Z12+'2月'!Z12+'3月'!Z12+'5月'!Z12+'6月'!Z12 -> 4 | AA12: ='1月'!AA12+'2月'!AA12+'3月'!AA12+'5月'!AA12+'6月'!AA12 -> 2 | AB12: =AA12/Z12 -> 50.0% | AC12: ='1月'!AC12+'2月'!AC12+'3月'!AC12+'5月'!AC12+'6月'!AC12 -> 51 | AD12: ='1月'!AD12+'2月'!AD12+'3月'!AD12+'5月'!AD12+'6月'!AD12 -> 47 | AE12: =AD12/AC12 -> 92.2% | AF12: ='1月'!AF12+'2月'!AF12+'3月'!AF12+'5月'!AF12+'6月'!AF12 -> 65 | AG12: ='1月'!AG12+'2月'!AG12+'3月'!AG12+'5月'!AG12+'6月'!AG12 -> 62 | AH12: =AG12/AF12 -> 95.4% | AI12: ='1月'!AI12+'2月'!AI12+'3月'!AI12+'5月'!AI12+'6月'!AI12 -> 32 | AJ12: ='1月'!AJ12+'2月'!AJ12+'3月'!AJ12+'5月'!AJ12+'6月'!AJ12 -> 29 | AK12: =AJ12/AI12 -> 90.6% | AL12: ='1月'!AL12+'2月'!AL12+'3月'!AL12+'5月'!AL12+'6月'!AL12 -> 14 | AM12: ='1月'!AM12+'2月'!AM12+'3月'!AM12+'5月'!AM12+'6月'!AM12 -> 14 | AN12: 100.0% | AO12: ='1月'!AO12+'2月'!AO12+'3月'!AO12+'5月'!AO12+'6月'!AO12 -> 2 | AP12: ='1月'!AP12+'2月'!AP12+'3月'!AP12+'5月'!AP12+'6月'!AP12 -> 0 | AQ12: =AP12/AO12 -> 0.0% | AU12: 587 | AV12: 545 | AW12: 92.8%
A13: 钎焊复训
A14: 高处安装维护拆除复训 | B14: ='1月'!B14+'2月'!B14+'3月'!B14+'5月'!B14+'6月'!B14 -> 150 | C14: ='1月'!C14+'2月'!C14+'3月'!C14+'5月'!C14+'6月'!C14 -> 145 | D14: =C14/B14 -> 96.7% | E14: ='1月'!E14+'2月'!E14+'3月'!E14+'5月'!E14+'6月'!E14 -> 635 | F14: ='1月'!F14+'2月'!F14+'3月'!F14+'5月'!F14+'6月'!F14 -> 611 | G14: 96.2% | K14: ='1月'!K14+'2月'!K14+'3月'!K14+'5月'!K14+'6月'!K14 -> 20 | L14: ='1月'!L14+'2月'!L14+'3月'!L14+'5月'!L14+'6月'!L14 -> 18 | M14: 90.0% | Q14: ='1月'!Q14+'2月'!Q14+'3月'!Q14+'5月'!Q14+'6月'!Q14 -> 9 | R14: ='1月'!R14+'2月'!R14+'3月'!R14+'5月'!R14+'6月'!R14 -> 6 | S14: 66.7% | AL14: ='1月'!AL14+'2月'!AL14+'3月'!AL14+'5月'!AL14+'6月'!AL14 -> 2 | AM14: ='1月'!AM14+'2月'!AM14+'3月'!AM14+'5月'!AM14+'6月'!AM14 -> 2 | AN14: 100.0% | AU14: =B14+E14+H14+K14+N14+Q14+T14+W14+Z14+AC14+AF14+AI14+AL14+AO14+AR14 -> 816 | AV14: =C14+F14+I14+L14+O14+R14+U14+X14+AA14+AD14+AG14+AJ14+AM14+AP14+AS14 -> 782 | AW14: =AV14/AU14 -> 95.8%
A15: 登高架设复训 | B15: ='1月'!B15+'2月'!B15+'3月'!B15+'5月'!B15+'6月'!B15 -> 12 | C15: ='1月'!C15+'2月'!C15+'3月'!C15+'5月'!C15+'6月'!C15 -> 9 | D15: 75.0% | E15: ='1月'!E15+'2月'!E15+'3月'!E15+'5月'!E15+'6月'!E15 -> 5 | F15: ='1月'!F15+'2月'!F15+'3月'!F15+'5月'!F15+'6月'!F15 -> 4 | G15: 80.0% | Q15: ='1月'!Q15+'2月'!Q15+'3月'!Q15+'5月'!Q15+'6月'!Q15 -> 1 | R15: ='1月'!R15+'2月'!R15+'3月'!R15+'5月'!R15+'6月'!R15 -> 1 | S15: 100.0% | AU15: 18 | AV15: 14 | AW15: 77.8%
A16: 制冷与空调运行操作复训 | B16: ='1月'!B16+'2月'!B16+'3月'!B16+'5月'!B16+'6月'!B16 -> 2 | C16: ='1月'!C16+'2月'!C16+'3月'!C16+'5月'!C16+'6月'!C16 -> 2 | D16: 100.0% | AU16: 2 | AV16: 2 | AW16: 100.0%
A17: 制冷与空调安装修理复训 | B17: ='1月'!B17+'2月'!B17+'3月'!B17+'5月'!B17+'6月'!B17 -> 3 | C17: ='1月'!C17+'2月'!C17+'3月'!C17+'5月'!C17+'6月'!C17 -> 3 | D17: 100.0% | AU17: 3 | AV17: 3 | AW17: 100.0%
A18: 矿山安检复训 | B18: ='1月'!B18+'2月'!B18+'3月'!B18+'5月'!B18+'6月'!B18 -> 4 | C18: ='1月'!C18+'2月'!C18+'3月'!C18+'5月'!C18+'6月'!C18 -> 4 | D18: 100.0% | Q18: ='1月'!Q18+'2月'!Q18+'3月'!Q18+'5月'!Q18+'6月'!Q18 -> 3 | R18: ='1月'!R18+'2月'!R18+'3月'!R18+'5月'!R18+'6月'!R18 -> 3 | S18: 100.0% | AU18: 7 | AV18: 7 | AW18: 100.0%
A19: 电力电缆复训 | B19: ='1月'!B19+'2月'!B19+'3月'!B19+'5月'!B19+'6月'!B19 -> 9 | C19: ='1月'!C19+'2月'!C19+'3月'!C19+'5月'!C19+'6月'!C19 -> 6 | D19: 66.7% | E19: ='1月'!E19+'2月'!E19+'3月'!E19+'5月'!E19+'6月'!E19 -> 29 | F19: ='1月'!F19+'2月'!F19+'3月'!F19+'5月'!F19+'6月'!F19 -> 13 | G19: 44.8% | K19: ='1月'!K19+'2月'!K19+'3月'!K19+'5月'!K19+'6月'!K19 -> 1 | L19: ='1月'!L19+'2月'!L19+'3月'!L19+'5月'!L19+'6月'!L19 -> 1 | M19: 100.0% | AU19: 39 | AV19: 20 | AW19: 51.3%
A20: 电气试验复训 | B20: ='1月'!B20+'2月'!B20+'3月'!B20+'5月'!B20+'6月'!B20 -> 9 | C20: ='1月'!C20+'2月'!C20+'3月'!C20+'5月'!C20+'6月'!C20 -> 8 | D20: 88.9% | E20: ='1月'!E20+'2月'!E20+'3月'!E20+'5月'!E20+'6月'!E20 -> 17 | F20: ='1月'!F20+'2月'!F20+'3月'!F20+'5月'!F20+'6月'!F20 -> 15 | G20: 88.2% | K20: ='1月'!K20+'2月'!K20+'3月'!K20+'5月'!K20+'6月'!K20 -> 3 | L20: ='1月'!L20+'2月'!L20+'3月'!L20+'5月'!L20+'6月'!L20 -> 3 | M20: 100.0% | AU20: 29 | AV20: 26 | AW20: 89.7%
A21: 继电保护复训 | B21: ='1月'!B21+'2月'!B21+'3月'!B21+'5月'!B21+'6月'!B21 -> 10 | C21: ='1月'!C21+'2月'!C21+'3月'!C21+'5月'!C21+'6月'!C21 -> 9 | D21: 90.0% | E21: ='1月'!E21+'2月'!E21+'3月'!E21+'5月'!E21+'6月'!E21 -> 9 | F21: ='1月'!F21+'2月'!F21+'3月'!F21+'5月'!F21+'6月'!F21 -> 7 | G21: 77.8% | AU21: 19 | AV21: 16 | AW21: 84.2%
A22: 特种作业复训合计 | B22: =SUM(B10:B21) -> 1573 | C22: =SUM(C10:C21) -> 1492 | D22: 94.9% | E22: =SUM(E10:E21) -> 1175 | F22: =SUM(F10:F21) -> 1099 | G22: 93.5% | K22: =SUM(K10:K21) -> 404 | L22: =SUM(L10:L21) -> 381 | M22: =L22/K22 -> 94.3% | N22: =SUM(N10:N21) -> 266 | O22: =SUM(O10:O21) -> 259 | P22: =O22/N22 -> 97.4% | Q22: =SUM(Q10:Q21) -> 95 | R22: =SUM(R10:R21) -> 90 | S22: =R22/Q22 -> 94.7% | T22: =SUM(T10:T21) -> 86 | U22: =SUM(U10:U21) -> 84 | V22: =U22/T22 -> 97.7% | Z22: =SUM(Z10:Z21) -> 28 | AA22: =SUM(AA10:AA21) -> 25 | AB22: =AA22/Z22 -> 89.3% | AC22: =SUM(AC10:AC21) -> 474 | AD22: =SUM(AD10:AD21) -> 459 | AE22: =AD22/AC22 -> 96.8% | AF22: =SUM(AF10:AF21) -> 367 | AG22: =SUM(AG10:AG21) -> 353 | AH22: =AG22/AF22 -> 96.2% | AI22: =SUM(AI10:AI21) -> 187 | AJ22: =SUM(AJ10:AJ21) -> 173 | AK22: =AJ22/AI22 -> 92.5% | AL22: =SUM(AL10:AL21) -> 200 | AM22: =SUM(AM10:AM21) -> 191 | AN22: 95.5% | AO22: =SUM(AO10:AO21) -> 12 | AP22: =SUM(AP10:AP21) -> 10 | AQ22: =AP22/AO22 -> 83.3% | AU22: 4867 | AV22: 4616 | AW22: 94.8%
A23: 特种作业人员合计 | B23: =B9+B22 -> 2141 | C23: =C9+C22 -> 1997 | D23: 93.3% | E23: =E9+E22 -> 1361 | F23: =F9+F22 -> 1255 | G23: 92.2% | H23: =H9+H22 -> 232 | I23: =I9+I22 -> 182 | J23: =I23/H23 -> 78.4% | K23: =K9+K22 -> 813 | L23: =L9+L22 -> 747 | M23: =L23/K23 -> 91.9% | N23: =N9+N22 -> 519 | O23: =O9+O22 -> 468 | P23: =O23/N23 -> 90.2% | Q23: =Q9+Q22 -> 123 | R23: =R9+R22 -> 114 | S23: 92.7% | T23: =T9+T22 -> 250 | U23: =U9+U22 -> 221 | V23: =U23/T23 -> 88.4% | W23: =W9+W22 -> 176 | X23: =X9+X22 -> 153 | Y23: =X23/W23 -> 86.9% | Z23: =Z9+Z22 -> 284 | AA23: =AA9+AA22 -> 219 | AB23: =AA23/Z23 -> 77.1% | AC23: =AC9+AC22 -> 606 | AD23: =AD9+AD22 -> 556 | AE23: =AD23/AC23 -> 91.7% | AF23: =AF9+AF22 -> 486 | AG23: =AG9+AG22 -> 459 | AH23: =AG23/AF23 -> 94.4% | AI23: =AI9+AI22 -> 642 | AJ23: =AJ9+AJ22 -> 488 | AK23: =AJ23/AI23 -> 76.0% | AL23: =AL9+AL22 -> 527 | AM23: =AM9+AM22 -> 480 | AN23: 91.1% | AO23: =AO9+AO22 -> 42 | AP23: =AP9+AP22 -> 35 | AQ23: 83.3% | AU23: 8202 | AV23: 7374 | AW23: 89.9%
A24: 烟花爆竹经营负责人初训 | B24: ='1月'!B24+'2月'!B24+'3月'!B24+'5月'!B24+'6月'!B24 -> 5 | C24: ='1月'!C24+'2月'!C24+'3月'!C24+'5月'!C24+'6月'!C24 -> 3 | D24: 60.0% | K24: ='1月'!K24+'2月'!K24+'3月'!K24+'5月'!K24+'6月'!K24 -> 2 | L24: ='1月'!L24+'2月'!L24+'3月'!L24+'5月'!L24+'6月'!L24 -> 2 | M24: =L24/K24 -> 100.0% | AC24: ='1月'!AC24+'2月'!AC24+'3月'!AC24+'5月'!AC24+'6月'!AC24 -> 8 | AD24: ='1月'!AD24+'2月'!AD24+'3月'!AD24+'5月'!AD24+'6月'!AD24 -> 6 | AE24: =AD24/AC24 -> 75.0% | AF24: ='1月'!AF24+'2月'!AF24+'3月'!AF24+'5月'!AF24+'6月'!AF24 -> 14 | AG24: ='1月'!AG24+'2月'!AG24+'3月'!AG24+'5月'!AG24+'6月'!AG24 -> 13 | AH24: =AG24/AF24 -> 92.9% | AU24: 29 | AV24: 24 | AW24: 82.8%
A25: 危化生产负责人初训 | B25: ='1月'!B25+'2月'!B25+'3月'!B25+'5月'!B25+'6月'!B25 -> 7 | C25: ='1月'!C25+'2月'!C25+'3月'!C25+'5月'!C25+'6月'!C25 -> 5 | D25: 71.4% | K25: ='1月'!K25+'2月'!K25+'3月'!K25+'5月'!K25+'6月'!K25 -> 8 | L25: ='1月'!L25+'2月'!L25+'3月'!L25+'5月'!L25+'6月'!L25 -> 8 | M25: =L25/K25 -> 100.0% | AF25: ='1月'!AF25+'2月'!AF25+'3月'!AF25+'5月'!AF25+'6月'!AF25 -> 4 | AG25: ='1月'!AG25+'2月'!AG25+'3月'!AG25+'5月'!AG25+'6月'!AG25 -> 4 | AH25: =AG25/AF25 -> 100.0% | AU25: 19 | AV25: 17 | AW25: 89.5%
A26: 危化经营负责人初训 | B26: ='1月'!B26+'2月'!B26+'3月'!B26+'5月'!B26+'6月'!B26 -> 79 | C26: ='1月'!C26+'2月'!C26+'3月'!C26+'5月'!C26+'6月'!C26 -> 76 | D26: 96.2% | K26: ='1月'!K26+'2月'!K26+'3月'!K26+'5月'!K26+'6月'!K26 -> 20 | L26: ='1月'!L26+'2月'!L26+'3月'!L26+'5月'!L26+'6月'!L26 -> 18 | M26: =L26/K26 -> 90.0% | AC26: ='1月'!AC26+'2月'!AC26+'3月'!AC26+'5月'!AC26+'6月'!AC26 -> 6 | AD26: ='1月'!AD26+'2月'!AD26+'3月'!AD26+'5月'!AD26+'6月'!AD26 -> 5 | AE26: =AD26/AC26 -> 83.3% | AF26: ='1月'!AF26+'2月'!AF26+'3月'!AF26+'5月'!AF26+'6月'!AF26 -> 13 | AG26: ='1月'!AG26+'2月'!AG26+'3月'!AG26+'5月'!AG26+'6月'!AG26 -> 12 | AH26: =AG26/AF26 -> 92.3% | AO26: ='1月'!AO26+'2月'!AO26+'3月'!AO26+'5月'!AO26+'6月'!AO26 -> 2 | AP26: ='1月'!AP26+'2月'!AP26+'3月'!AP26+'5月'!AP26+'6月'!AP26 -> 2 | AQ26: 100.0% | AR26: ='1月'!AR26+'2月'!AR26+'3月'!AR26+'5月'!AR26+'6月'!AR26 -> 6 | AS26: ='1月'!AS26+'2月'!AS26+'3月'!AS26+'5月'!AS26+'6月'!AS26 -> 6 | AT26: =AS26/AR26 -> 100.0% | AU26: 126 | AV26: 119 | AW26: 94.4%
A27: 非煤矿山负责人初训
A28: 金属冶炼负责人初训 | Q28: ='1月'!Q28+'2月'!Q28+'3月'!Q28+'5月'!Q28+'6月'!Q28 -> 6 | R28: ='1月'!R28+'2月'!R28+'3月'!R28+'5月'!R28+'6月'!R28 -> 6 | S28: 100.0% | AU28: 6 | AV28: 6 | AW28: 100.0%
A29: 高危行业负责人初训合计 | B29: =SUM(B24:B28) -> 91 | C29: =SUM(C24:C28) -> 84 | D29: =C29/B29 -> 92.3% | K29: =SUM(K24:K28) -> 30 | L29: =SUM(L24:L28) -> 28 | M29: =L29/K29 -> 93.3% | Q29: =SUM(Q24:Q28) -> 6 | R29: =SUM(R24:R28) -> 6 | S29: 100.0% | AC29: =SUM(AC24:AC28) -> 14 | AD29: =SUM(AD24:AD28) -> 11 | AE29: =AD29/AC29 -> 78.6% | AF29: =SUM(AF24:AF28) -> 31 | AG29: =SUM(AG24:AG28) -> 29 | AH29: =AG29/AF29 -> 93.5% | AO29: =SUM(AO24:AO28) -> 2 | AP29: =SUM(AP24:AP28) -> 2 | AQ29: 100.0% | AR29: =SUM(AR24:AR28) -> 6 | AS29: =SUM(AS24:AS28) -> 6 | AT29: =AS29/AR29 -> 100.0% | AU29: =B29+E29+H29+K29+N29+Q29+T29+W29+Z29+AC29+AF29+AI29+AL29+AO29+AR29 -> 180 | AV29: =C29+F29+I29+L29+O29+R29+U29+X29+AA29+AD29+AG29+AJ29+AM29+AP29+AS29 -> 166 | AW29: =AV29/AU29 -> 92.2%
A30: 烟花爆竹经营负责人复训 | AF30: ='1月'!AF30+'2月'!AF30+'3月'!AF30+'5月'!AF30+'6月'!AF30 -> 6 | AG30: ='1月'!AG30+'2月'!AG30+'3月'!AG30+'5月'!AG30+'6月'!AG30 -> 6 | AH30: =AG30/AF30 -> 100.0% | AU30: 6 | AV30: 6 | AW30: 100.0%
A31: 危化生产负责人复训 | B31: ='1月'!B31+'2月'!B31+'3月'!B31+'5月'!B31+'6月'!B31 -> 25 | C31: ='1月'!C31+'2月'!C31+'3月'!C31+'5月'!C31+'6月'!C31 -> 25 | D31: =C31/B31 -> 100.0% | K31: ='1月'!K31+'2月'!K31+'3月'!K31+'5月'!K31+'6月'!K31 -> 14 | L31: ='1月'!L31+'2月'!L31+'3月'!L31+'5月'!L31+'6月'!L31 -> 14 | M31: =L31/K31 -> 100.0% | Q31: ='1月'!Q31+'2月'!Q31+'3月'!Q31+'5月'!Q31+'6月'!Q31 -> 1 | R31: ='1月'!R31+'2月'!R31+'3月'!R31+'5月'!R31+'6月'!R31 -> 1 | S31: =R31/Q31 -> 100.0% | AF31: ='1月'!AF31+'2月'!AF31+'3月'!AF31+'5月'!AF31+'6月'!AF31 -> 23 | AG31: ='1月'!AG31+'2月'!AG31+'3月'!AG31+'5月'!AG31+'6月'!AG31 -> 23 | AH31: =AG31/AF31 -> 100.0% | AO31: ='1月'!AO31+'2月'!AO31+'3月'!AO31+'5月'!AO31+'6月'!AO31 -> 1 | AP31: ='1月'!AP31+'2月'!AP31+'3月'!AP31+'5月'!AP31+'6月'!AP31 -> 1 | AQ31: =AP31/AO31 -> 100.0% | AU31: 64 | AV31: 64 | AW31: 100.0%
A32: 危化经营负责人复训 | B32: ='1月'!B32+'2月'!B32+'3月'!B32+'5月'!B32+'6月'!B32 -> 212 | C32: ='1月'!C32+'2月'!C32+'3月'!C32+'5月'!C32+'6月'!C32 -> 210 | D32: =C32/B32 -> 99.1% | K32: ='1月'!K32+'2月'!K32+'3月'!K32+'5月'!K32+'6月'!K32 -> 42 | L32: ='1月'!L32+'2月'!L32+'3月'!L32+'5月'!L32+'6月'!L32 -> 41 | M32: =L32/K32 -> 97.6% | Q32: ='1月'!Q32+'2月'!Q32+'3月'!Q32+'5月'!Q32+'6月'!Q32 -> 1 | R32: ='1月'!R32+'2月'!R32+'3月'!R32+'5月'!R32+'6月'!R32 -> 1 | S32: =R32/Q32 -> 100.0% | AC32: ='1月'!AC32+'2月'!AC32+'3月'!AC32+'5月'!AC32+'6月'!AC32 -> 2 | AD32: ='1月'!AD32+'2月'!AD32+'3月'!AD32+'5月'!AD32+'6月'!AD32 -> 1 | AE32: 50.0% | AF32: ='1月'!AF32+'2月'!AF32+'3月'!AF32+'5月'!AF32+'6月'!AF32 -> 46 | AG32: ='1月'!AG32+'2月'!AG32+'3月'!AG32+'5月'!AG32+'6月'!AG32 -> 45 | AH32: =AG32/AF32 -> 97.8% | AO32: ='1月'!AO32+'2月'!AO32+'3月'!AO32+'5月'!AO32+'6月'!AO32 -> 2 | AP32: ='1月'!AP32+'2月'!AP32+'3月'!AP32+'5月'!AP32+'6月'!AP32 -> 2 | AQ32: =AP32/AO32 -> 100.0% | AR32: ='1月'!AR32+'2月'!AR32+'3月'!AR32+'5月'!AR32+'6月'!AR32 -> 1 | AS32: ='1月'!AS32+'2月'!AS32+'3月'!AS32+'5月'!AS32+'6月'!AS32 -> 1 | AT32: 100.0% | AU32: 306 | AV32: 301 | AW32: 98.4%
A33: 非煤矿山负责人复训 | B33: ='1月'!B33+'2月'!B33+'3月'!B33+'5月'!B33+'6月'!B33 -> 1 | C33: ='1月'!C33+'2月'!C33+'3月'!C33+'5月'!C33+'6月'!C33 -> 1 | D33: =C33/B33 -> 100.0% | AC33: ='1月'!AC33+'2月'!AC33+'3月'!AC33+'5月'!AC33+'6月'!AC33 -> 7 | AD33: ='1月'!AD33+'2月'!AD33+'3月'!AD33+'5月'!AD33+'6月'!AD33 -> 6 | AE33: 85.7% | AU33: 8 | AV33: 7 | AW33: 87.5%
A34: 金属冶炼负责人复训 | Q34: ='1月'!Q34+'2月'!Q34+'3月'!Q34+'5月'!Q34+'6月'!Q34 -> 7 | R34: ='1月'!R34+'2月'!R34+'3月'!R34+'5月'!R34+'6月'!R34 -> 6 | S34: =R34/Q34 -> 85.7% | AU34: 7 | AV34: 6 | AW34: 85.7%
A35: 高危行业负责人复训合计 | B35: =SUM(B30:B34) -> 238 | C35: =SUM(C30:C34) -> 236 | D35: =C35/B35 -> 99.2% | K35: =SUM(K30:K34) -> 56 | L35: =SUM(L30:L34) -> 55 | M35: =L35/K35 -> 98.2% | Q35: =SUM(Q30:Q34) -> 9 | R35: =SUM(R30:R34) -> 8 | S35: =R35/Q35 -> 88.9% | AC35: =SUM(AC30:AC34) -> 9 | AD35: =SUM(AD30:AD34) -> 7 | AE35: 77.8% | AF35: =SUM(AF30:AF34) -> 75 | AG35: =SUM(AG30:AG34) -> 74 | AH35: =AG35/AF35 -> 98.7% | AO35: =SUM(AO30:AO34) -> 3 | AP35: =SUM(AP30:AP34) -> 3 | AQ35: =AP35/AO35 -> 100.0% | AR35: =SUM(AR30:AR34) -> 1 | AS35: =SUM(AS30:AS34) -> 1 | AT35: 100.0% | AU35: 391 | AV35: 384 | AW35: 98.2%
A36: 高危行业主要负责人合计 | B36: =B29+B35 -> 329 | C36: =C29+C35 -> 320 | D36: 97.3% | K36: =K29+K35 -> 86 | L36: =L29+L35 -> 83 | M36: =L36/K36 -> 96.5% | Q36: =Q29+Q35 -> 15 | R36: =R29+R35 -> 14 | S36: 93.3% | AC36: =AC29+AC35 -> 23 | AD36: =AD29+AD35 -> 18 | AE36: 78.3% | AF36: =AF29+AF35 -> 106 | AG36: =AG29+AG35 -> 103 | AH36: 97.2% | AO36: =AO29+AO35 -> 5 | AP36: =AP29+AP35 -> 5 | AQ36: =AP36/AO36 -> 100.0% | AR36: =AR29+AR35 -> 7 | AS36: =AS29+AS35 -> 7 | AT36: 100.0% | AU36: 571 | AV36: 550 | AW36: 96.3%
A37: 烟花爆竹经营安管初训 | B37: ='1月'!B37+'2月'!B37+'3月'!B37+'5月'!B37+'6月'!B37 -> 1 | C37: ='1月'!C37+'2月'!C37+'3月'!C37+'5月'!C37+'6月'!C37 -> 1 | D37: 100.0% | K37: ='1月'!K37+'2月'!K37+'3月'!K37+'5月'!K37+'6月'!K37 -> 1 | L37: ='1月'!L37+'2月'!L37+'3月'!L37+'5月'!L37+'6月'!L37 -> 1 | M37: =L37/K37 -> 100.0% | AC37: ='1月'!AC37+'2月'!AC37+'3月'!AC37+'5月'!AC37+'6月'!AC37 -> 4 | AD37: ='1月'!AD37+'2月'!AD37+'3月'!AD37+'5月'!AD37+'6月'!AD37 -> 2 | AE37: 50.0% | AF37: ='1月'!AF37+'2月'!AF37+'3月'!AF37+'5月'!AF37+'6月'!AF37 -> 17 | AG37: ='1月'!AG37+'2月'!AG37+'3月'!AG37+'5月'!AG37+'6月'!AG37 -> 11 | AH37: 64.7% | AU37: 23 | AV37: 15 | AW37: 65.2%
A38: 危化生产安管初训 | B38: ='1月'!B38+'2月'!B38+'3月'!B38+'5月'!B38+'6月'!B38 -> 17 | C38: ='1月'!C38+'2月'!C38+'3月'!C38+'5月'!C38+'6月'!C38 -> 16 | D38: 94.1% | K38: ='1月'!K38+'2月'!K38+'3月'!K38+'5月'!K38+'6月'!K38 -> 31 | L38: ='1月'!L38+'2月'!L38+'3月'!L38+'5月'!L38+'6月'!L38 -> 29 | M38: =L38/K38 -> 93.5% | AF38: ='1月'!AF38+'2月'!AF38+'3月'!AF38+'5月'!AF38+'6月'!AF38 -> 11 | AG38: ='1月'!AG38+'2月'!AG38+'3月'!AG38+'5月'!AG38+'6月'!AG38 -> 11 | AH38: 100.0% | AO38: ='1月'!AO38+'2月'!AO38+'3月'!AO38+'5月'!AO38+'6月'!AO38 -> 1 | AP38: ='1月'!AP38+'2月'!AP38+'3月'!AP38+'5月'!AP38+'6月'!AP38 -> 1 | AQ38: =AP38/AO38 -> 100.0% | AU38: 60 | AV38: 57 | AW38: 95.0%
A39: 危化经营安管初训 | B39: ='1月'!B39+'2月'!B39+'3月'!B39+'5月'!B39+'6月'!B39 -> 119 | C39: ='1月'!C39+'2月'!C39+'3月'!C39+'5月'!C39+'6月'!C39 -> 108 | D39: 90.8% | K39: ='1月'!K39+'2月'!K39+'3月'!K39+'5月'!K39+'6月'!K39 -> 39 | L39: ='1月'!L39+'2月'!L39+'3月'!L39+'5月'!L39+'6月'!L39 -> 34 | M39: =L39/K39 -> 87.2% | Q39: ='1月'!Q39+'2月'!Q39+'3月'!Q39+'5月'!Q39+'6月'!Q39 -> 1 | R39: ='1月'!R39+'2月'!R39+'3月'!R39+'5月'!R39+'6月'!R39 -> 1 | S39: 100.0% | AC39: ='1月'!AC39+'2月'!AC39+'3月'!AC39+'5月'!AC39+'6月'!AC39 -> 20 | AD39: ='1月'!AD39+'2月'!AD39+'3月'!AD39+'5月'!AD39+'6月'!AD39 -> 15 | AE39: =AD39/AC39 -> 75.0% | AF39: ='1月'!AF39+'2月'!AF39+'3月'!AF39+'5月'!AF39+'6月'!AF39 -> 40 | AG39: ='1月'!AG39+'2月'!AG39+'3月'!AG39+'5月'!AG39+'6月'!AG39 -> 34 | AH39: 85.0% | AO39: ='1月'!AO39+'2月'!AO39+'3月'!AO39+'5月'!AO39+'6月'!AO39 -> 4 | AP39: ='1月'!AP39+'2月'!AP39+'3月'!AP39+'5月'!AP39+'6月'!AP39 -> 4 | AQ39: =AP39/AO39 -> 100.0% | AR39: ='1月'!AR39+'2月'!AR39+'3月'!AR39+'5月'!AR39+'6月'!AR39 -> 7 | AS39: ='1月'!AS39+'2月'!AS39+'3月'!AS39+'5月'!AS39+'6月'!AS39 -> 6 | AT39: =AS39/AR39 -> 85.7% | AU39: 230 | AV39: 202 | AW39: 87.8%
A40: 非煤矿山安管初训 | B40: ='1月'!B40+'2月'!B40+'3月'!B40+'5月'!B40+'6月'!B40 -> 1 | C40: ='1月'!C40+'2月'!C40+'3月'!C40+'5月'!C40+'6月'!C40 -> 1 | D40: 100.0% | AC40: ='1月'!AC40+'2月'!AC40+'3月'!AC40+'5月'!AC40+'6月'!AC40 -> 2 | AD40: ='1月'!AD40+'2月'!AD40+'3月'!AD40+'5月'!AD40+'6月'!AD40 -> 1 | AE40: =AD40/AC40 -> 50.0% | AF40: ='1月'!AF40+'2月'!AF40+'3月'!AF40+'5月'!AF40+'6月'!AF40 -> 1 | AG40: ='1月'!AG40+'2月'!AG40+'3月'!AG40+'5月'!AG40+'6月'!AG40 -> 1 | AH40: 100.0% | AU40: 4 | AV40: 3 | AW40: 75.0%
A41: 金属冶炼安管初训 | Q41: ='1月'!Q41+'2月'!Q41+'3月'!Q41+'5月'!Q41+'6月'!Q41 -> 10 | R41: ='1月'!R41+'2月'!R41+'3月'!R41+'5月'!R41+'6月'!R41 -> 8 | S41: 80.0% | AU41: 10 | AV41: 8 | AW41: 80.0%
A42: 高危行业安管初训合计 | B42: =SUM(B37:B41) -> 138 | C42: =SUM(C37:C41) -> 126 | D42: =C42/B42 -> 91.3% | K42: =SUM(K37:K41) -> 71 | L42: =SUM(L37:L41) -> 64 | M42: =L42/K42 -> 90.1% | Q42: =SUM(Q37:Q41) -> 11 | R42: =SUM(R37:R41) -> 9 | S42: 81.8% | AC42: =SUM(AC37:AC41) -> 26 | AD42: =SUM(AD37:AD41) -> 18 | AE42: =AD42/AC42 -> 69.2% | AF42: =SUM(AF37:AF41) -> 69 | AG42: =SUM(AG37:AG41) -> 57 | AH42: =AG42/AF42 -> 82.6% | AO42: =SUM(AO37:AO41) -> 5 | AP42: =SUM(AP37:AP41) -> 5 | AQ42: =AP42/AO42 -> 100.0% | AR42: =SUM(AR37:AR41) -> 7 | AS42: =SUM(AS37:AS41) -> 6 | AT42: =AS42/AR42 -> 85.7% | AU42: =B42+E42+H42+K42+N42+Q42+T42+W42+Z42+AC42+AF42+AI42+AL42+AO42+AR42 -> 327 | AV42: =C42+F42+I42+L42+O42+R42+U42+X42+AA42+AD42+AG42+AJ42+AM42+AP42+AS42 -> 285 | AW42: =AV42/AU42 -> 87.2%
A43: 烟花爆竹经营安管复训 | AF43: ='1月'!AF43+'2月'!AF43+'3月'!AF43+'5月'!AF43+'6月'!AF43 -> 2 | AG43: ='1月'!AG43+'2月'!AG43+'3月'!AG43+'5月'!AG43+'6月'!AG43 -> 2 | AH43: =AG43/AF43 -> 100.0% | AU43: 2 | AV43: 2 | AW43: 100.0%
A44: 危化生产安管复训 | B44: ='1月'!B44+'2月'!B44+'3月'!B44+'5月'!B44+'6月'!B44 -> 62 | C44: ='1月'!C44+'2月'!C44+'3月'!C44+'5月'!C44+'6月'!C44 -> 62 | D44: =C44/B44 -> 100.0% | K44: ='1月'!K44+'2月'!K44+'3月'!K44+'5月'!K44+'6月'!K44 -> 28 | L44: ='1月'!L44+'2月'!L44+'3月'!L44+'5月'!L44+'6月'!L44 -> 27 | M44: =L44/K44 -> 96.4% | Q44: ='1月'!Q44+'2月'!Q44+'3月'!Q44+'5月'!Q44+'6月'!Q44 -> 2 | R44: ='1月'!R44+'2月'!R44+'3月'!R44+'5月'!R44+'6月'!R44 -> 2 | S44: =R44/Q44 -> 100.0% | AF44: ='1月'!AF44+'2月'!AF44+'3月'!AF44+'5月'!AF44+'6月'!AF44 -> 57 | AG44: ='1月'!AG44+'2月'!AG44+'3月'!AG44+'5月'!AG44+'6月'!AG44 -> 50 | AH44: =AG44/AF44 -> 87.7% | AO44: ='1月'!AO44+'2月'!AO44+'3月'!AO44+'5月'!AO44+'6月'!AO44 -> 11 | AP44: ='1月'!AP44+'2月'!AP44+'3月'!AP44+'5月'!AP44+'6月'!AP44 -> 11 | AQ44: =AP44/AO44 -> 100.0% | AU44: 160 | AV44: 152 | AW44: 95.0%
A45: 危化经营安管复训 | B45: ='1月'!B45+'2月'!B45+'3月'!B45+'5月'!B45+'6月'!B45 -> 297 | C45: ='1月'!C45+'2月'!C45+'3月'!C45+'5月'!C45+'6月'!C45 -> 280 | D45: =C45/B45 -> 94.3% | K45: ='1月'!K45+'2月'!K45+'3月'!K45+'5月'!K45+'6月'!K45 -> 99 | L45: ='1月'!L45+'2月'!L45+'3月'!L45+'5月'!L45+'6月'!L45 -> 96 | M45: =L45/K45 -> 97.0% | AC45: ='1月'!AC45+'2月'!AC45+'3月'!AC45+'5月'!AC45+'6月'!AC45 -> 3 | AD45: ='1月'!AD45+'2月'!AD45+'3月'!AD45+'5月'!AD45+'6月'!AD45 -> 3 | AE45: 100.0% | AF45: ='1月'!AF45+'2月'!AF45+'3月'!AF45+'5月'!AF45+'6月'!AF45 -> 51 | AG45: ='1月'!AG45+'2月'!AG45+'3月'!AG45+'5月'!AG45+'6月'!AG45 -> 49 | AH45: =AG45/AF45 -> 96.1% | AR45: ='1月'!AR45+'2月'!AR45+'3月'!AR45+'5月'!AR45+'6月'!AR45 -> 2 | AS45: ='1月'!AS45+'2月'!AS45+'3月'!AS45+'5月'!AS45+'6月'!AS45 -> 2 | AT45: 100.0% | AU45: 452 | AV45: 430 | AW45: 95.1%
A46: 非煤矿山安管复训 | B46: ='1月'!B46+'2月'!B46+'3月'!B46+'5月'!B46+'6月'!B46 -> 1 | C46: ='1月'!C46+'2月'!C46+'3月'!C46+'5月'!C46+'6月'!C46 -> 1 | D46: =C46/B46 -> 100.0% | AC46: ='1月'!AC46+'2月'!AC46+'3月'!AC46+'5月'!AC46+'6月'!AC46 -> 15 | AD46: ='1月'!AD46+'2月'!AD46+'3月'!AD46+'5月'!AD46+'6月'!AD46 -> 14 | AE46: 93.3% | AU46: 16 | AV46: 15 | AW46: 93.8%
A47: 金属冶炼安管复训 | Q47: ='1月'!Q47+'2月'!Q47+'3月'!Q47+'5月'!Q47+'6月'!Q47 -> 12 | R47: ='1月'!R47+'2月'!R47+'3月'!R47+'5月'!R47+'6月'!R47 -> 12 | S47: 100.0% | AU47: 12 | AV47: 12 | AW47: 100.0%
A48: 高危行业安管复训合计 | B48: =SUM(B43:B47) -> 360 | C48: =SUM(C43:C47) -> 343 | D48: =C48/B48 -> 95.3% | K48: =SUM(K43:K47) -> 127 | L48: =SUM(L43:L47) -> 123 | M48: =L48/K48 -> 96.9% | Q48: =SUM(Q43:Q47) -> 14 | R48: =SUM(R43:R47) -> 14 | S48: 100.0% | AC48: =SUM(AC43:AC47) -> 18 | AD48: =SUM(AD43:AD47) -> 17 | AE48: 94.4% | AF48: =SUM(AF43:AF47) -> 110 | AG48: =SUM(AG43:AG47) -> 101 | AH48: =AG48/AF48 -> 91.8% | AO48: =SUM(AO43:AO47) -> 11 | AP48: =SUM(AP43:AP47) -> 11 | AQ48: =AP48/AO48 -> 100.0% | AR48: =SUM(AR43:AR47) -> 2 | AS48: =SUM(AS43:AS47) -> 2 | AT48: 100.0% | AU48: =B48+E48+H48+K48+N48+Q48+T48+W48+Z48+AC48+AF48+AI48+AL48+AO48+AR48 -> 642 | AV48: 611 | AW48: 95.2%
A49: 高危行业安管人员合计 | B49: =B42+B48 -> 498 | C49: =C42+C48 -> 469 | D49: =C49/B49 -> 94.2% | K49: =K42+K48 -> 198 | L49: =L42+L48 -> 187 | M49: =L49/K49 -> 94.4% | Q49: =Q42+Q48 -> 25 | R49: =R42+R48 -> 23 | S49: 92.0% | AC49: =AC42+AC48 -> 44 | AD49: =AD42+AD48 -> 35 | AE49: 79.5% | AF49: =AF42+AF48 -> 179 | AG49: =AG42+AG48 -> 158 | AH49: =AG49/AF49 -> 88.3% | AO49: =AO42+AO48 -> 16 | AP49: =AP42+AP48 -> 16 | AQ49: =AP49/AO49 -> 100.0% | AR49: =AR42+AR48 -> 9 | AS49: =AS42+AS48 -> 8 | AT49: 88.9% | AU49: 969 | AV49: 896 | AW49: 92.5%
A50: 高危行业负责人安管合计 | B50: =B36+B49 -> 827 | C50: =C36+C49 -> 789 | D50: =C50/B50 -> 95.4% | K50: =K36+K49 -> 284 | L50: =L36+L49 -> 270 | M50: =L50/K50 -> 95.1% | Q50: =Q36+Q49 -> 40 | R50: =R36+R49 -> 37 | S50: 92.5% | AC50: =AC36+AC49 -> 67 | AD50: =AD36+AD49 -> 53 | AE50: 79.1% | AF50: =AF36+AF49 -> 285 | AG50: =AG36+AG49 -> 261 | AH50: =AG50/AF50 -> 91.6% | AO50: =AO36+AO49 -> 21 | AP50: =AP36+AP49 -> 21 | AQ50: =AP50/AO50 -> 100.0% | AR50: =AR36+AR49 -> 16 | AS50: =AS36+AS49 -> 15 | AT50: 93.8% | AU50: 1540 | AV50: 1446 | AW50: 93.9%
A51: 全工种合计 | B51: =B23+B50 -> 2968 | C51: =C23+C50 -> 2786 | D51: =C51/B51 -> 93.9% | E51: =E23+E50 -> 1361 | F51: =F23+F50 -> 1255 | G51: =F51/E51 -> 92.2% | H51: =H23+H50 -> 232 | I51: =I23+I50 -> 182 | J51: =I51/H51 -> 78.4% | K51: =K23+K50 -> 1097 | L51: =L23+L50 -> 1017 | M51: =L51/K51 -> 92.7% | N51: =N23+N50 -> 519 | O51: =O23+O50 -> 468 | P51: =O51/N51 -> 90.2% | Q51: =Q23+Q50 -> 163 | R51: =R23+R50 -> 151 | S51: 92.6% | T51: =T23+T50 -> 250 | U51: =U23+U50 -> 221 | V51: =U51/T51 -> 88.4% | W51: =W23+W50 -> 176 | X51: =X23+X50 -> 153 | Y51: =X51/W51 -> 86.9% | Z51: =Z23+Z50 -> 284 | AA51: =AA23+AA50 -> 219 | AB51: =AA51/Z51 -> 77.1% | AC51: =AC23+AC50 -> 673 | AD51: =AD23+AD50 -> 609 | AE51: 90.5% | AF51: =AF23+AF50 -> 771 | AG51: =AG23+AG50 -> 720 | AH51: =AG51/AF51 -> 93.4% | AI51: =AI23+AI50 -> 642 | AJ51: =AJ23+AJ50 -> 488 | AK51: =AJ51/AI51 -> 76.0% | AL51: =AL23+AL50 -> 527 | AM51: =AM23+AM50 -> 480 | AN51: =AM51/AL51 -> 91.1% | AO51: =AO23+AO50 -> 63 | AP51: =AP23+AP50 -> 56 | AQ51: =AP51/AO51 -> 88.9% | AR51: =AR23+AR50 -> 16 | AS51: =AS23+AS50 -> 15 | AT51: 93.8% | AU51: 9742 | AV51: 8820 | AW51: 90.5%
A52: 备注： 1.培训机构名称以全国安全生产培训考试信息管理系统记录为准，按系统顺序排序； 2.实考人数=报考总人数-正考补考均缺考人数-考试违规被取消成绩人数； 3.仅统计已完成考试者，还有补考机会者不统计。

Sheet 7月
A1: 2022年7月各安全培训机构考生通过率统计表
A2: 培训机构 工种 | B2: 江门市安信职业安全培训有限公司 | E2: 广东四维培训有限公司 | H2: 江门市技师学院 | K2: 江门市江海区共升教育培训中心 | N2: 江门市侨都安全咨询服务有限公司 | Q2: 江门市安全生产管理协会 | T2: 江门市新会技师学院 | W2: 江门市新会机电职业技术学校 | Z2: 鹤山市优创职业培训学校有限公司 | AC2: 台山市安全生产管理协会 | AF2: 鹤山市安全生产管理协会 | AI2: 江门市江海区万众职业培训学校 | AL2: 开平市中邑安安全技术咨询有限公司 | AO2: 江门市江海区安全生产管理协会 | AR2: 江门市天晟安全事务有限公司 | AU2: 全市合计
B3: 实考人数 | C3: 合格人数 | D3: 通过率 | E3: 实考人数 | F3: 合格人数 | G3: 通过率 | H3: 实考人数 | I3: 合格人数 | J3: 通过率 | K3: 实考人数 | L3: 合格人数 | M3: 通过率 | N3: 实考人数 | O3: 合格人数 | P3: 通过率 | Q3: 实考人数 | R3: 合格人数 | S3: 通过率 | T3: 实考人数 | U3: 合格人数 | V3: 通过率 | W3: 实考人数 | X3: 合格人数 | Y3: 通过率 | Z3: 实考人数 | AA3: 合格人数 | AB3: 通过率 | AC3: 实考人数 | AD3: 合格人数 | AE3: 通过率 | AF3: 实考人数 | AG3: 合格人数 | AH3: 通过率 | AI3: 实考人数 | AJ3: 合格人数 | AK3: 通过率 | AL3: 实考人数 | AM3: 合格人数 | AN3: 通过率 | AO3: 实考人数 | AP3: 合格人数 | AQ3: 通过率 | AR3: 实考人数 | AS3: 合格人数 | AT3: 通过率 | AU3: 实考人数 | AV3: 合格人数 | AW3: 通过率
A4: 低压电工初训 | B4: 41 | C4: 34 | D4: =C4/B4 -> 82.9% | H4: 25 | I4: 17 | J4: =I4/H4 -> 68.0% | K4: 5 | L4: 4 | M4: =L4/K4 -> 80.0% | N4: 65 | O4: 50 | P4: =O4/N4 -> 76.9% | Q4: 4 | R4: 2 | S4: =R4/Q4 -> 50.0% | T4: 44 | U4: 37 | V4: =U4/T4 -> 84.1% | W4: 96 | X4: 87 | Y4: =X4/W4 -> 90.6% | Z4: 42 | AA4: 19 | AB4: =AA4/Z4 -> 45.2% | AC4: 40 | AD4: 32 | AE4: =AD4/AC4 -> 80.0% | AI4: 58 | AJ4: 35 | AK4: =AJ4/AI4 -> 60.3% | AL4: 58 | AM4: 43 | AN4: =AM4/AL4 -> 74.1% | AU4: =B4+E4+H4+K4+N4+Q4+T4+W4+Z4+AC4+AF4+AI4+AL4+AO4+AR4 -> 478 | AV4: =C4+F4+I4+L4+O4+R4+U4+X4+AA4+AD4+AG4+AJ4+AM4+AP4+AS4 -> 360 | AW4: =AV4/AU4 -> 75.3%
A5: 高压电工初训 | E5: 35 | F5: 32 | G5: =F5/E5 -> 91.4% | K5: 8 | L5: 8 | M5: 100.0% | N5: 36 | O5: 27 | P5: =O5/N5 -> 75.0% | Q5: 12 | R5: 8 | S5: =R5/Q5 -> 66.7% | AU5: 91 | AV5: 75 | AW5: 82.4%
A6: 电力电缆初训
A7: 熔化焊接与热切割初训 | B7: 1 | C7: 0 | D7: 0.0% | T7: 35 | U7: 24 | V7: =U7/T7 -> 68.6% | Z7: 3 | AA7: 2 | AB7: =AA7/Z7 -> 66.7% | AC7: 56 | AD7: 43 | AE7: =AD7/AC7 -> 76.8% | AF7: 54 | AG7: 52 | AH7: =AG7/AF7 -> 96.3% | AI7: 86 | AJ7: 71 | AK7: 82.6% | AO7: 10 | AP7: 9 | AQ7: =AP7/AO7 -> 90.0% | AU7: 245 | AV7: 201 | AW7: 82.0%
A8: 高处安装维护拆除初训 | B8: 54 | C8: 44 | D8: 81.5% | K8: 34 | L8: 31 | M8: 91.2% | T8: 22 | U8: 20 | V8: =U8/T8 -> 90.9% | AL8: 13 | AM8: 13 | AN8: =AM8/AL8 -> 100.0% | AU8: 123 | AV8: 108 | AW8: 87.8%
A9: 特种作业初训合计 | B9: =SUM(B4:B8) -> 96 | C9: =SUM(C4:C8) -> 78 | D9: 81.3% | E9: =SUM(E4:E8) -> 35 | F9: =SUM(F4:F8) -> 32 | G9: =F9/E9 -> 91.4% | H9: =SUM(H4:H8) -> 25 | I9: =SUM(I4:I8) -> 17 | J9: =I9/H9 -> 68.0% | K9: =SUM(K4:K8) -> 47 | L9: =SUM(L4:L8) -> 43 | M9: 91.5% | N9: =SUM(N4:N8) -> 101 | O9: =SUM(O4:O8) -> 77 | P9: =O9/N9 -> 76.2% | Q9: =SUM(Q4:Q8) -> 16 | R9: =SUM(R4:R8) -> 10 | S9: 62.5% | T9: =SUM(T4:T8) -> 101 | U9: =SUM(U4:U8) -> 81 | V9: 80.2% | W9: =SUM(W4:W8) -> 96 | X9: =SUM(X4:X8) -> 87 | Y9: =X9/W9 -> 90.6% | Z9: =SUM(Z4:Z8) -> 45 | AA9: =SUM(AA4:AA8) -> 21 | AB9: =AA9/Z9 -> 46.7% | AC9: =SUM(AC4:AC8) -> 96 | AD9: =SUM(AD4:AD8) -> 75 | AE9: =AD9/AC9 -> 78.1% | AF9: =SUM(AF4:AF8) -> 54 | AG9: =SUM(AG4:AG8) -> 52 | AH9: 96.3% | AI9: =SUM(AI4:AI8) -> 144 | AJ9: =SUM(AJ4:AJ8) -> 106 | AK9: 73.6% | AL9: =SUM(AL4:AL8) -> 71 | AM9: =SUM(AM4:AM8) -> 56 | AN9: =AM9/AL9 -> 78.9% | AO9: =SUM(AO4:AO8) -> 10 | AP9: =SUM(AP4:AP8) -> 9 | AQ9: =AP9/AO9 -> 90.0% | AU9: 937 | AV9: 744 | AW9: 79.4%
A10: 低压电工复训 | B10: 305 | C10: 301 | D10: 98.7% | E10: 69 | F10: 67 | G10: =F10/E10 -> 97.1% | K10: 1 | L10: 1 | M10: 100.0% | N10: 50 | O10: 48 | P10: =O10/N10 -> 96.0% | Q10: 5 | R10: 5 | S10: 100.0% | T10: 24 | U10: 23 | V10: 95.8% | AC10: 68 | AD10: 68 | AE10: =AD10/AC10 -> 100.0% | AL10: 21 | AM10: 21 | AN10: =AM10/AL10 -> 100.0% | AO10: 2 | AP10: 2 | AQ10: =AP10/AO10 -> 100.0% | AU10: 545 | AV10: 536 | AW10: 98.3%
A11: 高压电工复训 | B11: 68 | C11: 56 | D11: 82.4% | E11: 52 | F11: 45 | G11: =F11/E11 -> 86.5% | N11: 3 | O11: 3 | P11: =O11/N11 -> 100.0% | Q11: 15 | R11: 15 | S11: 100.0% | T11: 19 | U11: 19 | V11: 100.0% | AC11: 10 | AD11: 10 | AE11: =AD11/AC11 -> 100.0% | AL11: 6 | AM11: 5 | AN11: =AM11/AL11 -> 83.3% | AU11: 173 | AV11: 153 | AW11: 88.4%
A12: 熔化焊接与热切割复训 | B12: 81 | C12: 77 | D12: 95.1% | E12: 1 | F12: 1 | G12: =F12/E12 -> 100.0% | N12: 11 | O12: 7 | P12: =O12/N12 -> 63.6% | Q12: 1 | R12: 1 | S12: 100.0% | T12: 18 | U12: 18 | V12: 100.0% | Z12: 3 | AA12: 3 | AB12: =AA12/Z12 -> 100.0% | AC12: 13 | AD12: 10 | AE12: =AD12/AC12 -> 76.9% | AF12: 3 | AG12: 3 | AH12: 100.0% | AL12: 8 | AM12: 4 | AN12: =AM12/AL12 -> 50.0% | AO12: 1 | AP12: 1 | AQ12: =AP12/AO12 -> 100.0% | AU12: 140 | AV12: 125 | AW12: 89.3%
A13: 钎焊复训
A14: 高处安装维护拆除复训 | B14: 14 | C14: 14 | D14: =C14/B14 -> 100.0% | E14: 266 | F14: 253 | G14: =F14/E14 -> 95.1% | K14: 7 | L14: 7 | M14: =L14/K14 -> 100.0% | T14: 1 | U14: 1 | V14: =U14/T14 -> 100.0% | AU14: =B14+E14+H14+K14+N14+Q14+T14+W14+Z14+AC14+AF14+AI14+AL14+AO14+AR14 -> 288 | AV14: =C14+F14+I14+L14+O14+R14+U14+X14+AA14+AD14+AG14+AJ14+AM14+AP14+AS14 -> 275 | AW14: =AV14/AU14 -> 95.5%
A15: 登高架设复训
A16: 制冷与空调运行操作复训
A17: 制冷与空调安装修理复训
A18: 矿山安检复训
A19: 电力电缆复训 | B19: 2 | C19: 2 | D19: =C19/B19 -> 100.0% | E19: 3 | F19: 3 | G19: =F19/E19 -> 100.0% | AU19: 5 | AV19: 5 | AW19: 100.0%
A20: 电气试验复训 | B20: 1 | C20: 0 | D20: 0.0% | E20: 11 | F20: 10 | G20: =F20/E20 -> 90.9% | K20: 2 | L20: 2 | M20: =L20/K20 -> 100.0% | AU20: 14 | AV20: 12 | AW20: 85.7%
A21: 继电保护复训 | B21: 2 | C21: 2 | D21: 100.0% | E21: 13 | F21: 13 | G21: =F21/E21 -> 100.0% | AU21: 15 | AV21: 15 | AW21: 100.0%
A22: 特种作业复训合计 | B22: =SUM(B10:B21) -> 473 | C22: =SUM(C10:C21) -> 452 | D22: 95.6% | E22: =SUM(E10:E21) -> 415 | F22: =SUM(F10:F21) -> 392 | G22: =F22/E22 -> 94.5% | K22: =SUM(K10:K21) -> 10 | L22: =SUM(L10:L21) -> 10 | M22: 100.0% | N22: =SUM(N10:N21) -> 64 | O22: =SUM(O10:O21) -> 58 | P22: =O22/N22 -> 90.6% | Q22: =SUM(Q10:Q21) -> 21 | R22: =SUM(R10:R21) -> 21 | S22: =R22/Q22 -> 100.0% | T22: =SUM(T10:T21) -> 62 | U22: =SUM(U10:U21) -> 61 | V22: =U22/T22 -> 98.4% | Z22: =SUM(Z10:Z21) -> 3 | AA22: =SUM(AA10:AA21) -> 3 | AB22: =AA22/Z22 -> 100.0% | AC22: =SUM(AC10:AC21) -> 91 | AD22: =SUM(AD10:AD21) -> 88 | AE22: =AD22/AC22 -> 96.7% | AF22: =SUM(AF10:AF21) -> 3 | AG22: =SUM(AG10:AG21) -> 3 | AH22: =AG22/AF22 -> 100.0% | AL22: =SUM(AL10:AL21) -> 35 | AM22: =SUM(AM10:AM21) -> 30 | AN22: =AM22/AL22 -> 85.7% | AO22: =SUM(AO10:AO21) -> 3 | AP22: =SUM(AP10:AP21) -> 3 | AQ22: =AP22/AO22 -> 100.0% | AU22: 1180 | AV22: 1121 | AW22: 95.0%
A23: 特种作业人员合计 | B23: =B9+B22 -> 569 | C23: =C9+C22 -> 530 | D23: 93.1% | E23: =E9+E22 -> 450 | F23: =F9+F22 -> 424 | G23: =F23/E23 -> 94.2% | H23: =H9+H22 -> 25 | I23: =I9+I22 -> 17 | J23: =I23/H23 -> 68.0% | K23: =K9+K22 -> 57 | L23: =L9+L22 -> 53 | M23: 93.0% | N23: =N9+N22 -> 165 | O23: =O9+O22 -> 135 | P23: =O23/N23 -> 81.8% | Q23: =Q9+Q22 -> 37 | R23: =R9+R22 -> 31 | S23: =R23/Q23 -> 83.8% | T23: =T9+T22 -> 163 | U23: =U9+U22 -> 142 | V23: =U23/T23 -> 87.1% | W23: =W9+W22 -> 96 | X23: =X9+X22 -> 87 | Y23: =X23/W23 -> 90.6% | Z23: =Z9+Z22 -> 48 | AA23: =AA9+AA22 -> 24 | AB23: =AA23/Z23 -> 50.0% | AC23: =AC9+AC22 -> 187 | AD23: =AD9+AD22 -> 163 | AE23: =AD23/AC23 -> 87.2% | AF23: =AF9+AF22 -> 57 | AG23: =AG9+AG22 -> 55 | AH23: =AG23/AF23 -> 96.5% | AI23: =AI9+AI22 -> 144 | AJ23: =AJ9+AJ22 -> 106 | AK23: =AJ23/AI23 -> 73.6% | AL23: =AL9+AL22 -> 106 | AM23: =AM9+AM22 -> 86 | AN23: =AM23/AL23 -> 81.1% | AO23: =AO9+AO22 -> 13 | AP23: =AP9+AP22 -> 12 | AQ23: =AP23/AO23 -> 92.3% | AU23: 2117 | AV23: 1865 | AW23: 88.1%
A24: 烟花爆竹经营负责人初训 | B24: 42 | C24: 32 | D24: 76.2% | K24: 15 | L24: 11 | M24: 73.3% | AC24: 3 | AD24: 2 | AE24: =AD24/AC24 -> 66.7% | AF24: 2 | AG24: 2 | AH24: =AG24/AF24 -> 100.0% | AU24: 62 | AV24: 47 | AW24: 75.8%
A25: 危化生产负责人初训 | B25: 2 | C25: 2 | D25: 100.0% | AU25: 2 | AV25: 2 | AW25: 100.0%
A26: 危化经营负责人初训 | B26: 4 | C26: 4 | D26: 100.0% | K26: 1 | L26: 1 | M26: 100.0% | Q26: 3 | R26: 2 | S26: =R26/Q26 -> 66.7% | AO26: 1 | AP26: 1 | AQ26: =AP26/AO26 -> 100.0% | AU26: 9 | AV26: 8 | AW26: 88.9%
A27: 非煤矿山负责人初训
A28: 金属冶炼负责人初训 | B28: 1 | C28: 1 | D28: =C28/B28 -> 100.0% | AU28: =B28+E28+H28+K28+N28+Q28+T28+W28+Z28+AC28+AF28+AI28+AL28+AO28+AR28 -> 1 | AV28: =C28+F28+I28+L28+O28+R28+U28+X28+AA28+AD28+AG28+AJ28+AM28+AP28+AS28 -> 1 | AW28: =AV28/AU28 -> 100.0%
A29: 高危行业负责人初训合计 | B29: =SUM(B24:B28) -> 49 | C29: =SUM(C24:C28) -> 39 | D29: =C29/B29 -> 79.6% | K29: =SUM(K24:K28) -> 16 | L29: =SUM(L24:L28) -> 12 | M29: =L29/K29 -> 75.0% | Q29: =SUM(Q24:Q28) -> 3 | R29: =SUM(R24:R28) -> 2 | S29: 66.7% | AC29: =SUM(AC24:AC28) -> 3 | AD29: =SUM(AD24:AD28) -> 2 | AE29: =AD29/AC29 -> 66.7% | AF29: =SUM(AF24:AF28) -> 2 | AG29: =SUM(AG24:AG28) -> 2 | AH29: =AG29/AF29 -> 100.0% | AO29: =SUM(AO24:AO28) -> 1 | AP29: =SUM(AP24:AP28) -> 1 | AQ29: =AP29/AO29 -> 100.0% | AU29: 74 | AV29: 58 | AW29: 78.4%
A30: 烟花爆竹经营负责人复训 | B30: 11 | C30: 11 | D30: =C30/B30 -> 100.0% | K30: 20 | L30: 19 | M30: =L30/K30 -> 95.0% | AF30: 1 | AG30: 1 | AH30: =AG30/AF30 -> 100.0%
A31: 危化生产负责人复训 | B31: 6 | C31: 6 | D31: =C31/B31 -> 100.0% | K31: 5 | L31: 5 | M31: =L31/K31 -> 100.0% | AU31: 11 | AV31: 11 | AW31: 100.0%
A32: 危化经营负责人复训 | B32: 4 | C32: 4 | D32: =C32/B32 -> 100.0% | Q32: 1 | R32: 1 | S32: 100.0% | AR32: 2 | AS32: 2 | AT32: =AS32/AR32 -> 100.0% | AU32: 7 | AV32: 7 | AW32: 100.0%
A33: 非煤矿山负责人复训
A34: 金属冶炼负责人复训
A35: 高危行业负责人复训合计 | B35: =SUM(B30:B34) -> 21 | C35: =SUM(C30:C34) -> 21 | D35: =C35/B35 -> 100.0% | K35: =SUM(K30:K34) -> 25 | L35: =SUM(L30:L34) -> 24 | M35: =L35/K35 -> 96.0% | Q35: =SUM(Q30:Q34) -> 1 | R35: =SUM(R30:R34) -> 1 | S35: =R35/Q35 -> 100.0% | AF35: =SUM(AF30:AF34) -> 1 | AG35: =SUM(AG30:AG34) -> 1 | AH35: =AG35/AF35 -> 100.0% | AR35: =SUM(AR30:AR34) -> 2 | AS35: =SUM(AS30:AS34) -> 2 | AT35: =AS35/AR35 -> 100.0% | AU35: 50 | AV35: 49 | AW35: 98.0%
A36: 高危行业主要负责人合计 | B36: =B29+B35 -> 70 | C36: =C29+C35 -> 60 | D36: 85.7% | K36: =K29+K35 -> 41 | L36: =L29+L35 -> 36 | M36: =L36/K36 -> 87.8% | Q36: =Q29+Q35 -> 4 | R36: =R29+R35 -> 3 | S36: =R36/Q36 -> 75.0% | AC36: =AC29+AC35 -> 3 | AD36: =AD29+AD35 -> 2 | AE36: =AD36/AC36 -> 66.7% | AF36: =AF29+AF35 -> 3 | AG36: =AG29+AG35 -> 3 | AH36: =AG36/AF36 -> 100.0% | AO36: =AO29+AO35 -> 1 | AP36: =AP29+AP35 -> 1 | AQ36: =AP36/AO36 -> 100.0% | AR36: =AR29+AR35 -> 2 | AS36: =AS29+AS35 -> 2 | AT36: =AS36/AR36 -> 100.0% | AU36: 124 | AV36: 107 | AW36: 86.3%
A37: 烟花爆竹经营安管初训 | B37: 46 | C37: 38 | D37: 82.6% | K37: 12 | L37: 10 | M37: =L37/K37 -> 83.3% | AC37: 3 | AD37: 2 | AE37: =AD37/AC37 -> 66.7% | AF37: 3 | AG37: 3 | AH37: =AG37/AF37 -> 100.0% | AU37: 64 | AV37: 53 | AW37: 82.8%
A38: 危化生产安管初训
A39: 危化经营安管初训 | B39: 3 | C39: 2 | D39: 66.7% | K39: 4 | L39: 3 | M39: =L39/K39 -> 75.0% | Q39: 3 | R39: 3 | S39: =R39/Q39 -> 100.0% | AO39: 2 | AP39: 2 | AQ39: =AP39/AO39 -> 100.0% | AU39: 12 | AV39: 10 | AW39: 83.3%
A40: 非煤矿山安管初训 | B40: 4 | C40: 4 | D40: 100.0% | AC40: 1 | AD40: 0 | AE40: =AD40/AC40 -> 0.0% | AU40: 5 | AV40: 4 | AW40: 80.0%
A41: 金属冶炼安管初训 | B41: 1 | C41: 1 | D41: 100.0% | AU41: 1 | AV41: 1 | AW41: 100.0%
A42: 高危行业安管初训合计 | B42: =SUM(B37:B41) -> 54 | C42: =SUM(C37:C41) -> 45 | D42: 83.3% | K42: =SUM(K37:K41) -> 16 | L42: =SUM(L37:L41) -> 13 | M42: =L42/K42 -> 81.3% | Q42: =SUM(Q37:Q41) -> 3 | R42: =SUM(R37:R41) -> 3 | S42: =R42/Q42 -> 100.0% | AC42: =SUM(AC37:AC41) -> 4 | AD42: =SUM(AD37:AD41) -> 2 | AE42: =AD42/AC42 -> 50.0% | AF42: =SUM(AF37:AF41) -> 3 | AG42: =SUM(AG37:AG41) -> 3 | AH42: =AG42/AF42 -> 100.0% | AO42: =SUM(AO37:AO41) -> 2 | AP42: =SUM(AP37:AP41) -> 2 | AQ42: =AP42/AO42 -> 100.0% | AU42: 82 | AV42: 68 | AW42: 82.9%
A43: 烟花爆竹经营安管复训 | B43: 15 | C43: 14 | D43: 93.3% | K43: 24 | L43: 21 | M43: =L43/K43 -> 87.5% | AF43: 1 | AG43: 1 | AH43: =AG43/AF43 -> 100.0% | AU43: 40 | AV43: 36 | AW43: 90.0%
A44: 危化生产安管复训 | B44: 22 | C44: 21 | D44: 95.5% | AU44: 22 | AV44: 21 | AW44: 95.5%
A45: 危化经营安管复训 | B45: 6 | C45: 3 | D45: 50.0% | Q45: 1 | R45: 1 | S45: =R45/Q45 -> 100.0% | AF45: 15 | AG45: 15 | AH45: =AG45/AF45 -> 100.0% | AO45: 1 | AP45: 1 | AQ45: =AP45/AO45 -> 100.0% | AR45: 2 | AS45: 2 | AT45: =AS45/AR45 -> 100.0% | AU45: 25 | AV45: 22 | AW45: 88.0%
A46: 非煤矿山安管复训 | K46: 1 | L46: 1 | M46: =L46/K46 -> 100.0% | AC46: 1 | AD46: 1 | AE46: =AD46/AC46 -> 100.0% | AU46: 2 | AV46: 2 | AW46: 100.0%
A47: 金属冶炼安管复训
A48: 高危行业安管复训合计 | B48: =SUM(B43:B47) -> 43 | C48: =SUM(C43:C47) -> 38 | D48: =C48/B48 -> 88.4% | K48: =SUM(K43:K47) -> 25 | L48: =SUM(L43:L47) -> 22 | M48: =L48/K48 -> 88.0% | Q48: =SUM(Q43:Q47) -> 1 | R48: =SUM(R43:R47) -> 1 | S48: 100.0% | AC48: =SUM(AC43:AC47) -> 1 | AD48: =SUM(AD43:AD47) -> 1 | AE48: 100.0% | AF48: =SUM(AF43:AF47) -> 16 | AG48: =SUM(AG43:AG47) -> 16 | AH48: =AG48/AF48 -> 100.0% | AO48: =SUM(AO43:AO47) -> 1 | AP48: =SUM(AP43:AP47) -> 1 | AQ48: 100.0% | AR48: =SUM(AR43:AR47) -> 2 | AS48: =SUM(AS43:AS47) -> 2 | AT48: =AS48/AR48 -> 100.0% | AU48: 89 | AV48: 81 | AW48: 91.0%
A49: 高危行业安管人员合计 | B49: =B42+B48 -> 97 | C49: =C42+C48 -> 83 | D49: =C49/B49 -> 85.6% | K49: =K42+K48 -> 41 | L49: =L42+L48 -> 35 | M49: =L49/K49 -> 85.4% | Q49: =Q42+Q48 -> 4 | R49: =R42+R48 -> 4 | S49: 100.0% | AC49: =AC42+AC48 -> 5 | AD49: =AD42+AD48 -> 3 | AE49: 60.0% | AF49: =AF42+AF48 -> 19 | AG49: =AG42+AG48 -> 19 | AH49: =AG49/AF49 -> 100.0% | AO49: =AO42+AO48 -> 3 | AP49: =AP42+AP48 -> 3 | AQ49: 100.0% | AR49: =AR42+AR48 -> 2 | AS49: =AS42+AS48 -> 2 | AT49: =AS49/AR49 -> 100.0% | AU49: 171 | AV49: 149 | AW49: 87.1%
A50: 高危行业负责人安管合计 | B50: =B36+B49 -> 167 | C50: =C36+C49 -> 143 | D50: =C50/B50 -> 85.6% | K50: =K36+K49 -> 82 | L50: =L36+L49 -> 71 | M50: =L50/K50 -> 86.6% | Q50: =Q36+Q49 -> 8 | R50: =R36+R49 -> 7 | S50: 87.5% | AC50: =AC36+AC49 -> 8 | AD50: =AD36+AD49 -> 5 | AE50: 62.5% | AF50: =AF36+AF49 -> 22 | AG50: =AG36+AG49 -> 22 | AH50: =AG50/AF50 -> 100.0% | AO50: =AO36+AO49 -> 4 | AP50: =AP36+AP49 -> 4 | AQ50: 100.0% | AR50: =AR36+AR49 -> 4 | AS50: =AS36+AS49 -> 4 | AT50: =AS50/AR50 -> 100.0% | AU50: 295 | AV50: 256 | AW50: 86.8%
A51: 全工种合计 | B51: =B23+B50 -> 736 | C51: =C23+C50 -> 673 | D51: =C51/B51 -> 91.4% | E51: =E23+E50 -> 450 | F51: =F23+F50 -> 424 | G51: =F51/E51 -> 94.2% | H51: =H23+H50 -> 25 | I51: =I23+I50 -> 17 | J51: =I51/H51 -> 68.0% | K51: =K23+K50 -> 139 | L51: =L23+L50 -> 124 | M51: =L51/K51 -> 89.2% | N51: =N23+N50 -> 165 | O51: =O23+O50 -> 135 | P51: =O51/N51 -> 81.8% | Q51: =Q23+Q50 -> 45 | R51: =R23+R50 -> 38 | S51: 84.4% | T51: =T23+T50 -> 163 | U51: =U23+U50 -> 142 | V51: =U51/T51 -> 87.1% | W51: =W23+W50 -> 96 | X51: =X23+X50 -> 87 | Y51: =X51/W51 -> 90.6% | Z51: =Z23+Z50 -> 48 | AA51: =AA23+AA50 -> 24 | AB51: =AA51/Z51 -> 50.0% | AC51: =AC23+AC50 -> 195 | AD51: =AD23+AD50 -> 168 | AE51: 86.2% | AF51: =AF23+AF50 -> 79 | AG51: =AG23+AG50 -> 77 | AH51: =AG51/AF51 -> 97.5% | AI51: =AI23+AI50 -> 144 | AJ51: =AJ23+AJ50 -> 106 | AK51: =AJ51/AI51 -> 73.6% | AL51: =AL23+AL50 -> 106 | AM51: =AM23+AM50 -> 86 | AN51: =AM51/AL51 -> 81.1% | AO51: =AO23+AO50 -> 17 | AP51: =AP23+AP50 -> 16 | AQ51: 94.1% | AR51: =AR23+AR50 -> 4 | AS51: =AS23+AS50 -> 4 | AT51: =AS51/AR51 -> 100.0% | AU51: 2412 | AV51: 2121 | AW51: 87.9%
A52: 备注： 1.培训机构名称以全国安全生产培训考试信息管理系统记录为准，按系统顺序排序； 2.实考人数=报考总人数-正考补考均缺考人数-考试违规被取消成绩人数； 3.仅统计已完成考试者，还有补考机会者不统计。

Sheet 8月
A1: 2022年8月各安全培训机构考生通过率统计表
A2: 培训机构 工种 | B2: 江门市安信职业安全培训有限公司 | E2: 广东四维培训有限公司 | H2: 江门市技师学院 | K2: 江门市江海区共升教育培训中心 | N2: 江门市侨都安全咨询服务有限公司 | Q2: 江门市安全生产管理协会 | T2: 江门市新会技师学院 | W2: 江门市新会机电职业技术学校 | Z2: 鹤山市优创职业培训学校有限公司 | AC2: 台山市安全生产管理协会 | AF2: 鹤山市安全生产管理协会 | AI2: 江门市江海区万众职业培训学校 | AL2: 开平市中邑安安全技术咨询有限公司 | AO2: 江门市江海区安全生产管理协会 | AR2: 江门市天晟安全事务有限公司 | AU2: 恩平市科瑞职业技术培训学校 | AX2: 全市合计
B3: 实考人数 | C3: 合格人数 | D3: 通过率 | E3: 实考人数 | F3: 合格人数 | G3: 通过率 | H3: 实考人数 | I3: 合格人数 | J3: 通过率 | K3: 实考人数 | L3: 合格人数 | M3: 通过率 | N3: 实考人数 | O3: 合格人数 | P3: 通过率 | Q3: 实考人数 | R3: 合格人数 | S3: 通过率 | T3: 实考人数 | U3: 合格人数 | V3: 通过率 | W3: 实考人数 | X3: 合格人数 | Y3: 通过率 | Z3: 实考人数 | AA3: 合格人数 | AB3: 通过率 | AC3: 实考人数 | AD3: 合格人数 | AE3: 通过率 | AF3: 实考人数 | AG3: 合格人数 | AH3: 通过率 | AI3: 实考人数 | AJ3: 合格人数 | AK3: 通过率 | AL3: 实考人数 | AM3: 合格人数 | AN3: 通过率 | AO3: 实考人数 | AP3: 合格人数 | AQ3: 通过率 | AR3: 实考人数 | AS3: 合格人数 | AT3: 通过率 | AU3: 实考人数 | AV3: 合格人数 | AW3: 通过率 | AX3: 实考人数 | AY3: 合格人数 | AZ3: 通过率
A4: 低压电工初训 | B4: 23 | C4: 23 | D4: =C4/B4 -> 100.0% | H4: 31 | I4: 18 | J4: =I4/H4 -> 58.1% | K4: 102 | L4: 66 | M4: =L4/K4 -> 64.7% | N4: 102 | O4: 82 | P4: =O4/N4 -> 80.4% | Q4: 9 | R4: 8 | S4: =R4/Q4 -> 88.9% | T4: 45 | U4: 35 | V4: =U4/T4 -> 77.8% | W4: 5 | X4: 1 | Y4: =X4/W4 -> 20.0% | Z4: 47 | AA4: 31 | AB4: =AA4/Z4 -> 66.0% | AF4: 19 | AG4: 12 | AH4: =AG4/AF4 -> 63.2% | AI4: 129 | AJ4: 89 | AK4: =AJ4/AI4 -> 69.0% | AL4: 23 | AM4: 20 | AN4: =AM4/AL4 -> 87.0% | AO4: 1 | AP4: 1 | AQ4: =AP4/AO4 -> 100.0% | AU4: 6 | AV4: 2 | AW4: =AV4/AU4 -> 33.3% | AX4: =B4+E4+H4+K4+N4+Q4+T4+W4+Z4+AC4+AF4+AI4+AL4+AO4+AR4+AU4 -> 542 | AY4: =C4+F4+I4+L4+O4+R4+U4+X4+AA4+AD4+AG4+AJ4+AM4+AP4+AS4+AV4 -> 388 | AZ4: =AY4/AX4 -> 71.6%
A5: 高压电工初训 | K5: 24 | L5: 16 | M5: 66.7% | N5: 20 | O5: 17 | P5: =O5/N5 -> 85.0% | Q5: 5 | R5: 3 | S5: =R5/Q5 -> 60.0% | AX5: 49 | AY5: 36 | AZ5: 73.5%
A6: 电力电缆初训
A7: 熔化焊接与热切割初训 | B7: 24 | C7: 13 | D7: 54.2% | H7: 18 | I7: 17 | J7: =I7/H7 -> 94.4% | K7: 74 | L7: 66 | M7: =L7/K7 -> 89.2% | N7: 24 | O7: 24 | P7: =O7/N7 -> 100.0% | Q7: 6 | R7: 6 | S7: =R7/Q7 -> 100.0% | Z7: 126 | AA7: 101 | AB7: =AA7/Z7 -> 80.2% | AC7: 48 | AD7: 36 | AE7: =AD7/AC7 -> 75.0% | AI7: 67 | AJ7: 53 | AK7: 79.1% | AL7: 16 | AM7: 15 | AN7: =AM7/AL7 -> 93.8% | AO7: 12 | AP7: 7 | AQ7: =AP7/AO7 -> 58.3% | AX7: 415 | AY7: 338 | AZ7: 81.4%
A8: 高处安装维护拆除初训 | B8: 31 | C8: 31 | D8: 100.0% | K8: 134 | L8: 126 | M8: 94.0% | Q8: 1 | R8: 1 | S8: =R8/Q8 -> 100.0% | T8: 12 | U8: 7 | V8: =U8/T8 -> 58.3% | AL8: 1 | AM8: 1 | AN8: 100.0% | AX8: 179 | AY8: 166 | AZ8: 92.7%
A9: 特种作业初训合计 | B9: =SUM(B4:B8) -> 78 | C9: =SUM(C4:C8) -> 67 | D9: 85.9% | H9: =SUM(H4:H8) -> 49 | I9: =SUM(I4:I8) -> 35 | J9: =I9/H9 -> 71.4% | K9: =SUM(K4:K8) -> 334 | L9: =SUM(L4:L8) -> 274 | M9: 82.0% | N9: =SUM(N4:N8) -> 146 | O9: =SUM(O4:O8) -> 123 | P9: =O9/N9 -> 84.2% | Q9: =SUM(Q4:Q8) -> 21 | R9: =SUM(R4:R8) -> 18 | S9: 85.7% | T9: =SUM(T4:T8) -> 57 | U9: =SUM(U4:U8) -> 42 | V9: =U9/T9 -> 73.7% | W9: =SUM(W4:W8) -> 5 | X9: =SUM(X4:X8) -> 1 | Y9: =X9/W9 -> 20.0% | Z9: =SUM(Z4:Z8) -> 173 | AA9: =SUM(AA4:AA8) -> 132 | AB9: =AA9/Z9 -> 76.3% | AC9: =SUM(AC4:AC8) -> 48 | AD9: =SUM(AD4:AD8) -> 36 | AE9: =AD9/AC9 -> 75.0% | AF9: =SUM(AF4:AF8) -> 19 | AG9: =SUM(AG4:AG8) -> 12 | AH9: =AG9/AF9 -> 63.2% | AI9: =SUM(AI4:AI8) -> 196 | AJ9: =SUM(AJ4:AJ8) -> 142 | AK9: 72.4% | AL9: =SUM(AL4:AL8) -> 40 | AM9: =SUM(AM4:AM8) -> 36 | AN9: 90.0% | AO9: =SUM(AO4:AO8) -> 13 | AP9: =SUM(AP4:AP8) -> 8 | AQ9: =AP9/AO9 -> 61.5% | AU9: =SUM(AU4:AU8) -> 6 | AV9: =SUM(AV4:AV8) -> 2 | AW9: =AV9/AU9 -> 33.3% | AX9: 1185 | AY9: 928 | AZ9: 78.3%
A10: 低压电工复训 | B10: 254 | C10: 252 | D10: 99.2% | E10: 52 | F10: 52 | G10: =F10/E10 -> 100.0% | H10: 44 | I10: 43 | J10: =I10/H10 -> 97.7% | K10: 116 | L10: 111 | M10: 95.7% | N10: 94 | O10: 90 | P10: =O10/N10 -> 95.7% | Q10: 9 | R10: 9 | S10: 100.0% | Z10: 21 | AA10: 20 | AB10: =AA10/Z10 -> 95.2% | AC10: 65 | AD10: 61 | AE10: =AD10/AC10 -> 93.8% | AF10: 184 | AG10: 182 | AH10: =AG10/AF10 -> 98.9% | AI10: 49 | AJ10: 48 | AK10: 98.0% | AL10: 10 | AM10: 9 | AN10: 90.0% | AO10: 4 | AP10: 4 | AQ10: =AP10/AO10 -> 100.0% | AU10: 4 | AV10: 4 | AW10: =AV10/AU10 -> 100.0% | AX10: 906 | AY10: 885 | AZ10: 97.7%
A11: 高压电工复训 | B11: 73 | C11: 70 | D11: 95.9% | E11: 40 | F11: 35 | G11: =F11/E11 -> 87.5% | K11: 57 | L11: 57 | M11: 100.0% | N11: 14 | O11: 12 | P11: =O11/N11 -> 85.7% | Q11: 10 | R11: 10 | S11: 100.0% | AC11: 188 | AD11: 187 | AE11: =AD11/AC11 -> 99.5% | AF11: 24 | AG11: 24 | AH11: =AG11/AF11 -> 100.0% | AL11: 1 | AM11: 1 | AN11: 100.0% | AX11: 407 | AY11: 396 | AZ11: 97.3%
A12: 熔化焊接与热切割复训 | B12: 92 | C12: 86 | D12: 93.5% | E12: 1 | F12: 1 | G12: =F12/E12 -> 100.0% | K12: 43 | L12: 42 | M12: 97.7% | N12: 15 | O12: 14 | P12: =O12/N12 -> 93.3% | Q12: 17 | R12: 16 | S12: 94.1% | Z12: 1 | AA12: 1 | AB12: =AA12/Z12 -> 100.0% | AC12: 3 | AD12: 3 | AE12: =AD12/AC12 -> 100.0% | AF12: 46 | AG12: 44 | AH12: =AG12/AF12 -> 95.7% | AI12: 24 | AJ12: 21 | AK12: 87.5% | AL12: 5 | AM12: 5 | AN12: 100.0% | AU12: 4 | AV12: 4 | AW12: =AV12/AU12 -> 100.0% | AX12: 251 | AY12: 237 | AZ12: 94.4%
A13: 钎焊复训
A14: 高处安装维护拆除复训 | B14: 104 | C14: 96 | D14: =C14/B14 -> 92.3% | E14: 156 | F14: 152 | G14: =F14/E14 -> 97.4% | AX14: 260 | AY14: 248 | AZ14: =AY14/AX14 -> 95.4%
A15: 登高架设复训 | B15: 4 | C15: 4 | D15: =C15/B15 -> 100.0% | AX15: 4 | AY15: 4 | AZ15: 100.0%
A16: 制冷与空调运行操作复训
A17: 制冷与空调安装修理复训
A18: 矿山安检复训 | B18: 3 | C18: 3 | D18: =C18/B18 -> 100.0% | AX18: 3 | AY18: 3 | AZ18: =AY18/AX18 -> 100.0%
A19: 电力电缆复训 | B19: 1 | C19: 1 | D19: =C19/B19 -> 100.0% | K19: 1 | L19: 1 | M19: =L19/K19 -> 100.0% | AX19: 2 | AY19: 2 | AZ19: 100.0%
A20: 电气试验复训 | E20: 9 | F20: 8 | G20: =F20/E20 -> 88.9% | K20: 3 | L20: 3 | M20: 100.0% | AX20: 12 | AY20: 11 | AZ20: 91.7%
A21: 继电保护复训 | E21: 5 | F21: 2 | G21: =F21/E21 -> 40.0% | N21: 1 | O21: 1 | P21: =O21/N21 -> 100.0% | AX21: 6 | AY21: 3 | AZ21: 50.0%
A22: 特种作业复训合计 | B22: =SUM(B10:B21) -> 531 | C22: 512 | D22: 96.4% | E22: 263 | F22: 250 | G22: =F22/E22 -> 95.1% | H22: 44 | I22: 43 | J22: =I22/H22 -> 97.7% | K22: =SUM(K10:K21) -> 220 | L22: =SUM(L10:L21) -> 214 | M22: 97.3% | N22: =SUM(N10:N21) -> 124 | O22: =SUM(O10:O21) -> 117 | P22: =O22/N22 -> 94.4% | Q22: =SUM(Q10:Q21) -> 36 | R22: =SUM(R10:R21) -> 35 | S22: =R22/Q22 -> 97.2% | Z22: =SUM(Z10:Z21) -> 22 | AA22: =SUM(AA10:AA21) -> 21 | AB22: =AA22/Z22 -> 95.5% | AC22: =SUM(AC10:AC21) -> 256 | AD22: =SUM(AD10:AD21) -> 251 | AE22: =AD22/AC22 -> 98.0% | AF22: =SUM(AF10:AF21) -> 254 | AG22: =SUM(AG10:AG21) -> 250 | AH22: =AG22/AF22 -> 98.4% | AI22: =SUM(AI10:AI21) -> 73 | AJ22: =SUM(AJ10:AJ21) -> 69 | AK22: =AJ22/AI22 -> 94.5% | AL22: =SUM(AL10:AL21) -> 16 | AM22: =SUM(AM10:AM21) -> 15 | AN22: =AM22/AL22 -> 93.8% | AO22: =SUM(AO10:AO21) -> 4 | AP22: =SUM(AP10:AP21) -> 4 | AQ22: =AP22/AO22 -> 100.0% | AU22: =SUM(AU10:AU21) -> 8 | AV22: =SUM(AV10:AV21) -> 8 | AW22: =AV22/AU22 -> 100.0% | AX22: 1851 | AY22: 1789 | AZ22: 96.7%
A23: 特种作业人员合计 | B23: =B9+B22 -> 609 | C23: =C9+C22 -> 579 | D23: 95.1% | E23: =E9+E22 -> 263 | F23: =F9+F22 -> 250 | G23: =F23/E23 -> 95.1% | H23: =H9+H22 -> 93 | I23: =I9+I22 -> 78 | J23: =I23/H23 -> 83.9% | K23: =K9+K22 -> 554 | L23: =L9+L22 -> 488 | M23: 88.1% | N23: =N9+N22 -> 270 | O23: =O9+O22 -> 240 | P23: =O23/N23 -> 88.9% | Q23: =Q9+Q22 -> 57 | R23: =R9+R22 -> 53 | S23: =R23/Q23 -> 93.0% | T23: =T9+T22 -> 57 | U23: =U9+U22 -> 42 | V23: =U23/T23 -> 73.7% | W23: =W9+W22 -> 5 | X23: =X9+X22 -> 1 | Y23: =X23/W23 -> 20.0% | Z23: =Z9+Z22 -> 195 | AA23: =AA9+AA22 -> 153 | AB23: =AA23/Z23 -> 78.5% | AC23: =AC9+AC22 -> 304 | AD23: =AD9+AD22 -> 287 | AE23: =AD23/AC23 -> 94.4% | AF23: =AF9+AF22 -> 273 | AG23: =AG9+AG22 -> 262 | AH23: =AG23/AF23 -> 96.0% | AI23: =AI9+AI22 -> 269 | AJ23: =AJ9+AJ22 -> 211 | AK23: =AJ23/AI23 -> 78.4% | AL23: =AL9+AL22 -> 56 | AM23: =AM9+AM22 -> 51 | AN23: 91.1% | AO23: =AO9+AO22 -> 17 | AP23: =AP9+AP22 -> 12 | AQ23: =AP23/AO23 -> 70.6% | AU23: =AU9+AU22 -> 14 | AV23: =AV9+AV22 -> 10 | AW23: =AV23/AU23 -> 71.4% | AX23: 3036 | AY23: 2717 | AZ23: 89.5%
A24: 烟花爆竹经营负责人初训 | B24: 9 | C24: 9 | D24: 100.0% | AX24: 9 | AY24: 9 | AZ24: 100.0%
A25: 危化生产负责人初训 | B25: 1 | C25: 1 | D25: 100.0% | K25: 1 | L25: 1 | M25: 100.0% | AF25: 1 | AG25: 1 | AH25: =AG25/AF25 -> 100.0% | AX25: 3 | AY25: 3 | AZ25: 100.0%
A26: 危化经营负责人初训 | B26: 19 | C26: 19 | D26: 100.0% | K26: 12 | L26: 12 | M26: 100.0% | Q26: 1 | R26: 1 | S26: =R26/Q26 -> 100.0% | AC26: 1 | AD26: 1 | AE26: =AD26/AC26 -> 100.0% | AF26: 2 | AG26: 2 | AH26: =AG26/AF26 -> 100.0% | AO26: 1 | AP26: 1 | AQ26: =AP26/AO26 -> 100.0% | AR26: 4 | AS26: 3 | AT26: =AS26/AR26 -> 75.0% | AX26: 40 | AY26: 39 | AZ26: 97.5%
A27: 非煤矿山负责人初训 | AL27: 3 | AM27: 3 | AN27: 100.0% | AX27: 3 | AY27: 3 | AZ27: 100.0%
A28: 金属冶炼负责人初训 | K28: 2 | L28: 2 | M28: 100.0% | Q28: 1 | R28: 1 | S28: =R28/Q28 -> 100.0% | AX28: 3 | AY28: 3 | AZ28: =AY28/AX28 -> 100.0%
A29: 高危行业负责人初训合计 | B29: =SUM(B24:B28) -> 29 | C29: =SUM(C24:C28) -> 29 | D29: =C29/B29 -> 100.0% | K29: =SUM(K24:K28) -> 15 | L29: =SUM(L24:L28) -> 15 | M29: 100.0% | Q29: =SUM(Q24:Q28) -> 2 | R29: =SUM(R24:R28) -> 2 | S29: =R29/Q29 -> 100.0% | AC29: =SUM(AC24:AC28) -> 1 | AD29: =SUM(AD24:AD28) -> 1 | AE29: =AD29/AC29 -> 100.0% | AF29: =SUM(AF24:AF28) -> 3 | AG29: =SUM(AG24:AG28) -> 3 | AH29: =AG29/AF29 -> 100.0% | AL29: =SUM(AL24:AL28) -> 3 | AM29: =SUM(AM24:AM28) -> 3 | AN29: =AM29/AL29 -> 100.0% | AO29: =SUM(AO24:AO28) -> 1 | AP29: =SUM(AP24:AP28) -> 1 | AQ29: =AP29/AO29 -> 100.0% | AR29: =SUM(AR24:AR28) -> 4 | AS29: =SUM(AS24:AS28) -> 3 | AT29: =AS29/AR29 -> 75.0% | AX29: 58 | AY29: 57 | AZ29: 98.3%
A30: 烟花爆竹经营负责人复训 | B30: 2 | C30: 2 | D30: =C30/B30 -> 100.0% | AX30: 2 | AY30: 2 | AZ30: 100.0%
A31: 危化生产负责人复训 | B31: 6 | C31: 6 | D31: =C31/B31 -> 100.0% | K31: 2 | L31: 2 | M31: =L31/K31 -> 100.0% | AC31: 7 | AD31: 6 | AE31: =AD31/AC31 -> 85.7% | AF31: 15 | AG31: 15 | AH31: =AG31/AF31 -> 100.0% | AX31: 30 | AY31: 29 | AZ31: 96.7%
A32: 危化经营负责人复训 | B32: 58 | C32: 56 | D32: =C32/B32 -> 96.6% | K32: 82 | L32: 79 | M32: =L32/K32 -> 96.3% | AC32: 31 | AD32: 29 | AE32: =AD32/AC32 -> 93.5% | AF32: 11 | AG32: 11 | AH32: =AG32/AF32 -> 100.0% | AL32: 4 | AM32: 4 | AN32: =AM32/AL32 -> 100.0% | AO32: 1 | AP32: 1 | AQ32: =AP32/AO32 -> 100.0% | AX32: 187 | AY32: 180 | AZ32: 96.3%
A33: 非煤矿山负责人复训 | B33: 34 | C33: 34 | D33: =C33/B33 -> 100.0% | Q33: 4 | R33: 4 | S33: =R33/Q33 -> 100.0% | AX33: 38 | AY33: 38 | AZ33: 100.0%
A34: 金属冶炼负责人复训
A35: 高危行业负责人复训合计 | B35: =SUM(B30:B34) -> 100 | C35: =SUM(C30:C34) -> 98 | D35: =C35/B35 -> 98.0% | K35: =SUM(K30:K34) -> 84 | L35: =SUM(L30:L34) -> 81 | M35: =L35/K35 -> 96.4% | Q35: =SUM(Q30:Q34) -> 4 | R35: =SUM(R30:R34) -> 4 | S35: =R35/Q35 -> 100.0% | AC35: =SUM(AC30:AC34) -> 38 | AD35: =SUM(AD30:AD34) -> 35 | AE35: =AD35/AC35 -> 92.1% | AF35: =SUM(AF30:AF34) -> 26 | AG35: =SUM(AG30:AG34) -> 26 | AH35: =AG35/AF35 -> 100.0% | AL35: =SUM(AL30:AL34) -> 4 | AM35: =SUM(AM30:AM34) -> 4 | AN35: =AM35/AL35 -> 100.0% | AO35: =SUM(AO30:AO34) -> 1 | AP35: =SUM(AP30:AP34) -> 1 | AQ35: =AP35/AO35 -> 100.0% | AX35: 257 | AY35: 249 | AZ35: 96.9%
A36: 高危行业主要负责人合计 | B36: =B29+B35 -> 129 | C36: =C29+C35 -> 127 | D36: 98.4% | K36: =K29+K35 -> 99 | L36: =L29+L35 -> 96 | M36: =L36/K36 -> 97.0% | Q36: =Q29+Q35 -> 6 | R36: =R29+R35 -> 6 | S36: =R36/Q36 -> 100.0% | AC36: =AC29+AC35 -> 39 | AD36: =AD29+AD35 -> 36 | AE36: =AD36/AC36 -> 92.3% | AF36: =AF29+AF35 -> 29 | AG36: =AG29+AG35 -> 29 | AH36: 100.0% | AL36: =AL29+AL35 -> 7 | AM36: =AM29+AM35 -> 7 | AN36: =AM36/AL36 -> 100.0% | AO36: =AO29+AO35 -> 2 | AP36: =AP29+AP35 -> 2 | AQ36: =AP36/AO36 -> 100.0% | AR36: =AR29+AR35 -> 4 | AS36: =AS29+AS35 -> 3 | AT36: =AS36/AR36 -> 75.0% | AX36: 315 | AY36: 306 | AZ36: 97.1%
A37: 烟花爆竹经营安管初训 | B37: 4 | C37: 2 | D37: 50.0% | AX37: 4 | AY37: 2 | AZ37: 50.0%
A38: 危化生产安管初训 | B38: 2 | C38: 2 | D38: 100.0% | K38: 13 | L38: 11 | M38: =L38/K38 -> 84.6% | AF38: 5 | AG38: 5 | AH38: 100.0% | AL38: 8 | AM38: 5 | AN38: =AM38/AL38 -> 62.5% | AX38: 28 | AY38: 23 | AZ38: 82.1%
A39: 危化经营安管初训 | B39: 80 | C39: 54 | D39: 67.5% | K39: 57 | L39: 51 | M39: =L39/K39 -> 89.5% | Q39: 2 | R39: 2 | S39: =R39/Q39 -> 100.0% | AC39: 1 | AD39: 1 | AE39: =AD39/AC39 -> 100.0% | AF39: 19 | AG39: 12 | AH39: 63.2% | AO39: 3 | AP39: 2 | AQ39: =AP39/AO39 -> 66.7% | AR39: 4 | AS39: 4 | AT39: =AS39/AR39 -> 100.0% | AX39: 166 | AY39: 126 | AZ39: 75.9%
A40: 非煤矿山安管初训 | B40: 1 | C40: 1 | D40: 100.0% | AF40: 1 | AG40: 1 | AH40: 100.0% | AL40: 5 | AM40: 4 | AN40: =AM40/AL40 -> 80.0% | AX40: 7 | AY40: 6 | AZ40: 85.7%
A41: 金属冶炼安管初训 | Q41: 2 | R41: 2 | S41: =R41/Q41 -> 100.0% | AX41: 2 | AY41: 2 | AZ41: 100.0%
A42: 高危行业安管初训合计 | B42: =SUM(B37:B41) -> 87 | C42: =SUM(C37:C41) -> 59 | D42: 67.8% | K42: =SUM(K37:K41) -> 70 | L42: =SUM(L37:L41) -> 62 | M42: =L42/K42 -> 88.6% | Q42: =SUM(Q37:Q41) -> 4 | R42: =SUM(R37:R41) -> 4 | S42: =R42/Q42 -> 100.0% | AC42: =SUM(AC37:AC41) -> 1 | AD42: =SUM(AD37:AD41) -> 1 | AE42: =AD42/AC42 -> 100.0% | AF42: =SUM(AF37:AF41) -> 25 | AG42: =SUM(AG37:AG41) -> 18 | AH42: =AG42/AF42 -> 72.0% | AL42: =SUM(AL37:AL41) -> 13 | AM42: =SUM(AM37:AM41) -> 9 | AN42: 69.2% | AO42: =SUM(AO37:AO41) -> 3 | AP42: =SUM(AP37:AP41) -> 2 | AQ42: =AP42/AO42 -> 66.7% | AR42: =SUM(AR37:AR41) -> 4 | AS42: =SUM(AS37:AS41) -> 4 | AT42: =AS42/AR42 -> 100.0% | AX42: 207 | AY42: 159 | AZ42: 76.8%
A43: 烟花爆竹经营安管复训 | B43: 2 | C43: 2 | D43: 100.0% | AX43: 2 | AY43: 2 | AZ43: 100.0%
A44: 危化生产安管复训 | B44: 15 | C44: 15 | D44: 100.0% | K44: 25 | L44: 22 | M44: =L44/K44 -> 88.0% | AC44: 16 | AD44: 16 | AE44: =AD44/AC44 -> 100.0% | AF44: 35 | AG44: 33 | AH44: =AG44/AF44 -> 94.3% | AX44: 91 | AY44: 86 | AZ44: 94.5%
A45: 危化经营安管复训 | B45: 96 | C45: 88 | D45: 91.7% | K45: 135 | L45: 129 | M45: =L45/K45 -> 95.6% | AC45: 50 | AD45: 49 | AE45: 98.0% | AF45: 2 | AG45: 2 | AH45: =AG45/AF45 -> 100.0% | AL45: 9 | AM45: 9 | AN45: 100.0% | AO45: 1 | AP45: 1 | AQ45: =AP45/AO45 -> 100.0% | AX45: 293 | AY45: 278 | AZ45: 94.9%
A46: 非煤矿山安管复训 | B46: 50 | C46: 50 | D46: 100.0% | K46: 1 | L46: 1 | M46: =L46/K46 -> 100.0% | Q46: 8 | R46: 8 | S46: =R46/Q46 -> 100.0% | AX46: 59 | AY46: 59 | AZ46: 100.0%
A47: 金属冶炼安管复训
A48: 高危行业安管复训合计 | B48: =SUM(B43:B47) -> 163 | C48: =SUM(C43:C47) -> 155 | D48: =C48/B48 -> 95.1% | K48: =SUM(K43:K47) -> 161 | L48: =SUM(L43:L47) -> 152 | M48: =L48/K48 -> 94.4% | Q48: =SUM(Q43:Q47) -> 8 | R48: =SUM(R43:R47) -> 8 | S48: 100.0% | AC48: =SUM(AC43:AC47) -> 66 | AD48: =SUM(AD43:AD47) -> 65 | AE48: 98.5% | AF48: =SUM(AF43:AF47) -> 37 | AG48: =SUM(AG43:AG47) -> 35 | AH48: =AG48/AF48 -> 94.6% | AL48: =SUM(AL43:AL47) -> 9 | AM48: =SUM(AM43:AM47) -> 9 | AN48: =AM48/AL48 -> 100.0% | AO48: =SUM(AO43:AO47) -> 1 | AP48: =SUM(AP43:AP47) -> 1 | AQ48: 100.0% | AX48: 445 | AY48: 425 | AZ48: 95.5%
A49: 高危行业安管人员合计 | B49: =B42+B48 -> 250 | C49: =C42+C48 -> 214 | D49: =C49/B49 -> 85.6% | K49: =K42+K48 -> 231 | L49: =L42+L48 -> 214 | M49: =L49/K49 -> 92.6% | Q49: =Q42+Q48 -> 12 | R49: =R42+R48 -> 12 | S49: 100.0% | AC49: =AC42+AC48 -> 67 | AD49: =AD42+AD48 -> 66 | AE49: 98.5% | AF49: =AF42+AF48 -> 62 | AG49: =AG42+AG48 -> 53 | AH49: =AG49/AF49 -> 85.5% | AL49: =AL42+AL48 -> 22 | AM49: =AM42+AM48 -> 18 | AN49: =AM49/AL49 -> 81.8% | AO49: =AO42+AO48 -> 4 | AP49: =AP42+AP48 -> 3 | AQ49: 75.0% | AR49: =AR42+AR48 -> 4 | AS49: =AS42+AS48 -> 4 | AT49: =AS49/AR49 -> 100.0% | AX49: 652 | AY49: 584 | AZ49: 89.6%
A50: 高危行业负责人安管合计 | B50: =B36+B49 -> 379 | C50: =C36+C49 -> 341 | D50: =C50/B50 -> 90.0% | K50: =K36+K49 -> 330 | L50: =L36+L49 -> 310 | M50: =L50/K50 -> 93.9% | Q50: =Q36+Q49 -> 18 | R50: =R36+R49 -> 18 | S50: 100.0% | AC50: =AC36+AC49 -> 106 | AD50: =AD36+AD49 -> 102 | AE50: 96.2% | AF50: =AF36+AF49 -> 91 | AG50: =AG36+AG49 -> 82 | AH50: =AG50/AF50 -> 90.1% | AL50: =AL36+AL49 -> 29 | AM50: =AM36+AM49 -> 25 | AN50: =AM50/AL50 -> 86.2% | AO50: =AO36+AO49 -> 6 | AP50: =AP36+AP49 -> 5 | AQ50: 83.3% | AR50: =AR36+AR49 -> 8 | AS50: =AS36+AS49 -> 7 | AT50: =AS50/AR50 -> 87.5% | AX50: 967 | AY50: 890 | AZ50: 92.0%
A51: 全工种合计 | B51: =B23+B50 -> 988 | C51: =C23+C50 -> 920 | D51: =C51/B51 -> 93.1% | E51: =E23+E50 -> 263 | F51: =F23+F50 -> 250 | G51: =F51/E51 -> 95.1% | H51: =H23+H50 -> 93 | I51: =I23+I50 -> 78 | J51: =I51/H51 -> 83.9% | K51: =K23+K50 -> 884 | L51: =L23+L50 -> 798 | M51: =L51/K51 -> 90.3% | N51: =N23+N50 -> 270 | O51: =O23+O50 -> 240 | P51: =O51/N51 -> 88.9% | Q51: =Q23+Q50 -> 75 | R51: =R23+R50 -> 71 | S51: 94.7% | T51: =T23+T50 -> 57 | U51: =U23+U50 -> 42 | V51: =U51/T51 -> 73.7% | W51: =W23+W50 -> 5 | X51: =X23+X50 -> 1 | Y51: =X51/W51 -> 20.0% | Z51: =Z23+Z50 -> 195 | AA51: =AA23+AA50 -> 153 | AB51: =AA51/Z51 -> 78.5% | AC51: =AC23+AC50 -> 410 | AD51: =AD23+AD50 -> 389 | AE51: 94.9% | AF51: =AF23+AF50 -> 364 | AG51: =AG23+AG50 -> 344 | AH51: =AG51/AF51 -> 94.5% | AI51: =AI23+AI50 -> 269 | AJ51: =AJ23+AJ50 -> 211 | AK51: =AJ51/AI51 -> 78.4% | AL51: =AL23+AL50 -> 85 | AM51: =AM23+AM50 -> 76 | AN51: =AM51/AL51 -> 89.4% | AO51: =AO23+AO50 -> 23 | AP51: =AP23+AP50 -> 17 | AQ51: 73.9% | AR51: =AR23+AR50 -> 8 | AS51: =AS23+AS50 -> 7 | AT51: =AS51/AR51 -> 87.5% | AU51: =AU23+AU50 -> 14 | AV51: =AV23+AV50 -> 10 | AW51: =AV51/AU51 -> 71.4% | AX51: 4003 | AY51: 3607 | AZ51: 90.1%
A52: 备注： 1.培训机构名称以全国安全生产培训考试信息管理系统记录为准，按系统顺序排序； 2.实考人数=报考总人数-正考补考均缺考人数-考试违规被取消成绩人数； 3.仅统计已完成考试者，还有补考机会者不统计。

Sheet 9月
A1: 2022年9月各安全培训机构考生通过率统计表
A2: 培训机构 工种 | B2: 江门市安信职业安全培训有限公司 | E2: 广东四维培训有限公司 | H2: 江门市技师学院 | K2: 江门市江海区共升教育培训中心 | N2: 江门市侨都安全咨询服务有限公司 | Q2: 江门市安全生产管理协会 | T2: 江门市新会技师学院 | W2: 江门市新会机电职业技术学校 | Z2: 鹤山市优创职业培训学校有限公司 | AC2: 台山市安全生产管理协会 | AF2: 鹤山市安全生产管理协会 | AI2: 江门市江海区万众职业培训学校 | AL2: 开平市中邑安安全技术咨询有限公司 | AO2: 江门市江海区安全生产管理协会 | AR2: 江门市天晟安全事务有限公司 | AU2: 恩平市科瑞职业技术培训学校 | AX2: 江门市金迪安全科技有限公司 | BA2: 全市合计
B3: 实考人数 | C3: 合格人数 | D3: 通过率 | E3: 实考人数 | F3: 合格人数 | G3: 通过率 | H3: 实考人数 | I3: 合格人数 | J3: 通过率 | K3: 实考人数 | L3: 合格人数 | M3: 通过率 | N3: 实考人数 | O3: 合格人数 | P3: 通过率 | Q3: 实考人数 | R3: 合格人数 | S3: 通过率 | T3: 实考人数 | U3: 合格人数 | V3: 通过率 | W3: 实考人数 | X3: 合格人数 | Y3: 通过率 | Z3: 实考人数 | AA3: 合格人数 | AB3: 通过率 | AC3: 实考人数 | AD3: 合格人数 | AE3: 通过率 | AF3: 实考人数 | AG3: 合格人数 | AH3: 通过率 | AI3: 实考人数 | AJ3: 合格人数 | AK3: 通过率 | AL3: 实考人数 | AM3: 合格人数 | AN3: 通过率 | AO3: 实考人数 | AP3: 合格人数 | AQ3: 通过率 | AR3: 实考人数 | AS3: 合格人数 | AT3: 通过率 | AU3: 实考人数 | AV3: 合格人数 | AW3: 通过率 | AX3: 实考人数 | AY3: 合格人数 | AZ3: 通过率 | BA3: 实考人数 | BB3: 合格人数 | BC3: 通过率
A4: 低压电工初训 | B4: 20 | C4: 17 | D4: =C4/B4 -> 85.0% | E4: 34 | F4: 28 | G4: =F4/E4 -> 82.4% | H4: 2 | I4: 1 | J4: =I4/H4 -> 50.0% | K4: 167 | L4: 121 | M4: =L4/K4 -> 72.5% | N4: 6 | O4: 2 | P4: =O4/N4 -> 33.3% | Q4: 11 | R4: 11 | S4: =R4/Q4 -> 100.0% | T4: 6 | U4: 0 | V4: =U4/T4 -> 0.0% | Z4: 41 | AA4: 32 | AB4: =AA4/Z4 -> 78.0% | AF4: 27 | AG4: 23 | AH4: =AG4/AF4 -> 85.2% | AI4: 6 | AJ4: 2 | AK4: =AJ4/AI4 -> 33.3% | AL4: 62 | AM4: 45 | AN4: =AM4/AL4 -> 72.6% | AO4: 2 | AP4: 1 | AQ4: =AP4/AO4 -> 50.0% | AX4: 10 | AY4: 9 | AZ4: =AY4/AX4 -> 90.0% | BA4: =B4+E4+H4+K4+N4+Q4+T4+W4+Z4+AC4+AF4+AI4+AL4+AO4+AR4+AU4+AX4 -> 394 | BB4: =C4+F4+I4+L4+O4+R4+U4+X4+AA4+AD4+AG4+AJ4+AM4+AP4+AS4+AV4+AY4 -> 292 | BC4: =BB4/BA4 -> 74.1%
A5: 高压电工初训 | E5: 23 | F5: 17 | G5: =F5/E5 -> 73.9% | N5: 53 | O5: 52 | P5: =O5/N5 -> 98.1% | Q5: 2 | R5: 2 | S5: 100.0% | BA5: 78 | BB5: 71 | BC5: 91.0%
A6: 电力电缆初训
A7: 熔化焊接与热切割初训 | B7: 35 | C7: 32 | D7: 91.4% | H7: 10 | I7: 4 | J7: 40.0% | K7: 2 | L7: 2 | M7: 100.0% | N7: 16 | O7: 14 | P7: =O7/N7 -> 87.5% | Q7: 23 | R7: 23 | S7: 100.0% | T7: 51 | U7: 43 | V7: 84.3% | Z7: 3 | AA7: 3 | AB7: 100.0% | AC7: 36 | AD7: 30 | AE7: =AD7/AC7 -> 83.3% | AF7: 28 | AG7: 27 | AH7: =AG7/AF7 -> 96.4% | AI7: 43 | AJ7: 31 | AK7: 72.1% | AL7: 26 | AM7: 20 | AN7: 76.9% | AO7: 11 | AP7: 8 | AQ7: 72.7% | BA7: 284 | BB7: 237 | BC7: 83.5%
A8: 高处安装维护拆除初训 | B8: 36 | C8: 28 | D8: 77.8% | E8: 179 | F8: 172 | G8: =F8/E8 -> 96.1% | K8: 100 | L8: 78 | M8: 78.0% | Q8: 4 | R8: 3 | S8: 75.0% | BA8: 319 | BB8: 281 | BC8: 88.1%
A9: 特种作业初训合计 | B9: =SUM(B4:B8) -> 91 | C9: 77 | D9: 84.6% | E9: 236 | F9: 217 | G9: =F9/E9 -> 91.9% | H9: =SUM(H4:H8) -> 12 | I9: =SUM(I4:I8) -> 5 | J9: 41.7% | K9: =SUM(K4:K8) -> 269 | L9: =SUM(L4:L8) -> 201 | M9: 74.7% | N9: =SUM(N4:N8) -> 75 | O9: =SUM(O4:O8) -> 68 | P9: =O9/N9 -> 90.7% | Q9: =SUM(Q4:Q8) -> 40 | R9: =SUM(R4:R8) -> 39 | S9: 97.5% | T9: =SUM(T4:T8) -> 57 | U9: =SUM(U4:U8) -> 43 | V9: 75.4% | Z9: =SUM(Z4:Z8) -> 44 | AA9: =SUM(AA4:AA8) -> 35 | AB9: 79.5% | AC9: =SUM(AC4:AC8) -> 36 | AD9: =SUM(AD4:AD8) -> 30 | AE9: 83.3% | AF9: =SUM(AF4:AF8) -> 55 | AG9: =SUM(AG4:AG8) -> 50 | AH9: =AG9/AF9 -> 90.9% | AI9: =SUM(AI4:AI8) -> 49 | AJ9: =SUM(AJ4:AJ8) -> 33 | AK9: 67.3% | AL9: =SUM(AL4:AL8) -> 88 | AM9: =SUM(AM4:AM8) -> 65 | AN9: 73.9% | AO9: =SUM(AO4:AO8) -> 13 | AP9: =SUM(AP4:AP8) -> 9 | AQ9: 69.2% | AX9: =SUM(AX4:AX8) -> 10 | AY9: =SUM(AY4:AY8) -> 9 | AZ9: =AY9/AX9 -> 90.0% | BA9: 1075 | BB9: 881 | BC9: 82.0%
A10: 低压电工复训 | B10: 278 | C10: 274 | D10: 98.6% | E10: 57 | F10: 56 | G10: =F10/E10 -> 98.2% | K10: 41 | L10: 40 | M10: 97.6% | N10: 39 | O10: 39 | P10: =O10/N10 -> 100.0% | Q10: 5 | R10: 5 | S10: 100.0% | Z10: 14 | AA10: 13 | AB10: 92.9% | AC10: 61 | AD10: 60 | AE10: 98.4% | AF10: 48 | AG10: 47 | AH10: =AG10/AF10 -> 97.9% | AI10: 53 | AJ10: 50 | AK10: 94.3% | AL10: 32 | AM10: 30 | AN10: 93.8% | AO10: 1 | AP10: 1 | AQ10: 100.0% | AU10: 2 | AV10: 2 | AW10: =AV10/AU10 -> 100.0% | AX10: 4 | AY10: 4 | AZ10: =AY10/AX10 -> 100.0% | BA10: 635 | BB10: 621 | BC10: 97.8%
A11: 高压电工复训 | B11: 52 | C11: 48 | D11: 92.3% | E11: 16 | F11: 16 | G11: =F11/E11 -> 100.0% | N11: 8 | O11: 7 | P11: =O11/N11 -> 87.5% | Q11: 2 | R11: 1 | S11: 50.0% | AC11: 8 | AD11: 8 | AE11: 100.0% | AF11: 4 | AG11: 4 | AH11: =AG11/AF11 -> 100.0% | AL11: 3 | AM11: 3 | AN11: 100.0% | BA11: 93 | BB11: 87 | BC11: 93.5%
A12: 熔化焊接与热切割复训 | B12: 49 | C12: 46 | D12: 93.9% | E12: 2 | F12: 2 | G12: =F12/E12 -> 100.0% | K12: 58 | L12: 52 | M12: 89.7% | N12: 7 | O12: 7 | P12: =O12/N12 -> 100.0% | Q12: 2 | R12: 1 | S12: 50.0% | AC12: 15 | AD12: 13 | AE12: 86.7% | AF12: 26 | AG12: 25 | AH12: =AG12/AF12 -> 96.2% | AI12: 23 | AJ12: 18 | AK12: =AJ12/AI12 -> 78.3% | AL12: 6 | AM12: 6 | AN12: 100.0% | BA12: 188 | BB12: 170 | BC12: 90.4%
A13: 钎焊复训
A14: 高处安装维护拆除复训 | B14: 72 | C14: 69 | D14: =C14/B14 -> 95.8% | E14: 5 | F14: 5 | G14: =F14/E14 -> 100.0% | K14: 4 | L14: 4 | M14: 100.0% | AL14: 4 | AM14: 4 | AN14: =AM14/AL14 -> 100.0% | BA14: 85 | BB14: 82 | BC14: =BB14/BA14 -> 96.5%
A15: 登高架设复训
A16: 制冷与空调运行操作复训
A17: 制冷与空调安装修理复训 | B17: 5 | C17: 5 | D17: =C17/B17 -> 100.0% | BA17: 5 | BB17: 5 | BC17: =BB17/BA17 -> 100.0%
A18: 矿山安检复训 | B18: 5 | C18: 4 | D18: 80.0% | BA18: 5 | BB18: 4 | BC18: 80.0%
A19: 电力电缆复训 | E19: 1 | F19: 1 | G19: =F19/E19 -> 100.0% | BA19: 1 | BB19: 1 | BC19: 100.0%
A20: 电气试验复训 | B20: 2 | C20: 2 | D20: 100.0% | BA20: 2 | BB20: 2 | BC20: 100.0%
A21: 继电保护复训 | B21: 1 | C21: 1 | D21: =C21/B21 -> 100.0% | BA21: 1 | BB21: 1 | BC21: 100.0%
A22: 特种作业复训合计 | B22: =SUM(B10:B21) -> 464 | C22: =SUM(C10:C21) -> 449 | D22: 96.8% | E22: =SUM(E10:E21) -> 81 | F22: =SUM(F10:F21) -> 80 | G22: =F22/E22 -> 98.8% | K22: =SUM(K10:K21) -> 103 | L22: =SUM(L10:L21) -> 96 | M22: =L22/K22 -> 93.2% | N22: =SUM(N10:N21) -> 54 | O22: =SUM(O10:O21) -> 53 | P22: =O22/N22 -> 98.1% | Q22: =SUM(Q10:Q21) -> 9 | R22: =SUM(R10:R21) -> 7 | S22: =R22/Q22 -> 77.8% | Z22: =SUM(Z10:Z21) -> 14 | AA22: =SUM(AA10:AA21) -> 13 | AB22: =AA22/Z22 -> 92.9% | AC22: =SUM(AC10:AC21) -> 84 | AD22: =SUM(AD10:AD21) -> 81 | AE22: =AD22/AC22 -> 96.4% | AF22: =SUM(AF10:AF21) -> 78 | AG22: =SUM(AG10:AG21) -> 76 | AH22: =AG22/AF22 -> 97.4% | AI22: =SUM(AI10:AI21) -> 76 | AJ22: =SUM(AJ10:AJ21) -> 68 | AK22: =AJ22/AI22 -> 89.5% | AL22: =SUM(AL10:AL21) -> 45 | AM22: =SUM(AM10:AM21) -> 43 | AN22: =AM22/AL22 -> 95.6% | AO22: =SUM(AO10:AO21) -> 1 | AP22: =SUM(AP10:AP21) -> 1 | AQ22: =AP22/AO22 -> 100.0% | AU22: =SUM(AU10:AU21) -> 2 | AV22: =SUM(AV10:AV21) -> 2 | AW22: =AV22/AU22 -> 100.0% | AX22: =SUM(AX10:AX21) -> 4 | AY22: =SUM(AY10:AY21) -> 4 | AZ22: =AY22/AX22 -> 100.0% | BA22: 1015 | BB22: 973 | BC22: 95.9%
A23: 特种作业人员合计 | B23: =B9+B22 -> 555 | C23: =C9+C22 -> 526 | D23: 94.8% | E23: =E9+E22 -> 317 | F23: =F9+F22 -> 297 | G23: =F23/E23 -> 93.7% | H23: =H9+H22 -> 12 | I23: =I9+I22 -> 5 | J23: =I23/H23 -> 41.7% | K23: =K9+K22 -> 372 | L23: =L9+L22 -> 297 | M23: 79.8% | N23: =N9+N22 -> 129 | O23: =O9+O22 -> 121 | P23: =O23/N23 -> 93.8% | Q23: =Q9+Q22 -> 49 | R23: =R9+R22 -> 46 | S23: =R23/Q23 -> 93.9% | T23: =T9+T22 -> 57 | U23: =U9+U22 -> 43 | V23: =U23/T23 -> 75.4% | Z23: =Z9+Z22 -> 58 | AA23: =AA9+AA22 -> 48 | AB23: =AA23/Z23 -> 82.8% | AC23: =AC9+AC22 -> 120 | AD23: =AD9+AD22 -> 111 | AE23: 92.5% | AF23: =AF9+AF22 -> 133 | AG23: =AG9+AG22 -> 126 | AH23: =AG23/AF23 -> 94.7% | AI23: =AI9+AI22 -> 125 | AJ23: =AJ9+AJ22 -> 101 | AK23: =AJ23/AI23 -> 80.8% | AL23: =AL9+AL22 -> 133 | AM23: =AM9+AM22 -> 108 | AN23: 81.2% | AO23: =AO9+AO22 -> 14 | AP23: =AP9+AP22 -> 10 | AQ23: =AP23/AO23 -> 71.4% | AU23: =AU9+AU22 -> 2 | AV23: =AV9+AV22 -> 2 | AW23: =AV23/AU23 -> 100.0% | AX23: =AX9+AX22 -> 14 | AY23: =AY9+AY22 -> 13 | AZ23: 92.9% | BA23: 2090 | BB23: 1854 | BC23: 88.7%
A24: 烟花爆竹经营负责人初训 | B24: 4 | C24: 4 | D24: 100.0% | K24: 3 | L24: 0 | M24: 0.0% | AC24: 5 | AD24: 3 | AE24: 60.0% | AL24: 1 | AM24: 1 | AN24: 100.0% | AX24: 6 | AY24: 5 | AZ24: 83.3% | BA24: 19 | BB24: 13 | BC24: 68.4%
A25: 危化生产负责人初训 | K25: 1 | L25: 1 | M25: 100.0% | AF25: 1 | AG25: 0 | AH25: =AG25/AF25 -> 0.0% | BA25: 2 | BB25: 1 | BC25: 50.0%
A26: 危化经营负责人初训 | B26: 12 | C26: 11 | D26: 91.7% | K26: 6 | L26: 6 | M26: 100.0% | Q26: 1 | R26: 1 | S26: =R26/Q26 -> 100.0% | AC26: 4 | AD26: 4 | AE26: 100.0% | AF26: 3 | AG26: 3 | AH26: =AG26/AF26 -> 100.0% | AO26: 1 | AP26: 1 | AQ26: =AP26/AO26 -> 100.0% | BA26: 27 | BB26: 26 | BC26: 96.3%
A27: 非煤矿山负责人初训 | AC27: 1 | AD27: 1 | AE27: 100.0% | BA27: 1 | BB27: 1 | BC27: 100.0%
A28: 金属冶炼负责人初训 | K28: 1 | L28: 1 | M28: =L28/K28 -> 100.0% | BA28: 1 | BB28: 1 | BC28: 100.0%
A29: 高危行业负责人初训合计 | B29: =SUM(B24:B28) -> 16 | C29: =SUM(C24:C28) -> 15 | D29: =C29/B29 -> 93.8% | K29: =SUM(K24:K28) -> 11 | L29: =SUM(L24:L28) -> 8 | M29: =L29/K29 -> 72.7% | Q29: =SUM(Q24:Q28) -> 1 | R29: =SUM(R24:R28) -> 1 | S29: =R29/Q29 -> 100.0% | AC29: =SUM(AC24:AC28) -> 10 | AD29: =SUM(AD24:AD28) -> 8 | AE29: =AD29/AC29 -> 80.0% | AF29: =SUM(AF24:AF28) -> 4 | AG29: =SUM(AG24:AG28) -> 3 | AH29: =AG29/AF29 -> 75.0% | AL29: =SUM(AL24:AL28) -> 1 | AM29: =SUM(AM24:AM28) -> 1 | AN29: =AM29/AL29 -> 100.0% | AO29: =SUM(AO24:AO28) -> 1 | AP29: =SUM(AP24:AP28) -> 1 | AQ29: =AP29/AO29 -> 100.0% | AX29: =SUM(AX24:AX28) -> 6 | AY29: =SUM(AY24:AY28) -> 5 | AZ29: =AY29/AX29 -> 83.3% | BA29: 50 | BB29: 42 | BC29: 84.0%
A30: 烟花爆竹经营负责人复训 | B30: 1 | C30: 1 | D30: =C30/B30 -> 100.0% | AC30: 16 | AD30: 14 | AE30: =AD30/AC30 -> 87.5% | BA30: 17 | BB30: 15 | BC30: 88.2%
A31: 危化生产负责人复训 | B31: 4 | C31: 4 | D31: =C31/B31 -> 100.0% | K31: 6 | L31: 5 | M31: =L31/K31 -> 83.3% | AF31: 6 | AG31: 5 | AH31: =AG31/AF31 -> 83.3% | AO31: 2 | AP31: 2 | AQ31: =AP31/AO31 -> 100.0% | BA31: 18 | BB31: 16 | BC31: 88.9%
A32: 危化经营负责人复训 | B32: 116 | C32: 114 | D32: =C32/B32 -> 98.3% | K32: 16 | L32: 16 | M32: 100.0% | AC32: 2 | AD32: 2 | AE32: =AD32/AC32 -> 100.0% | AF32: 4 | AG32: 4 | AH32: =AG32/AF32 -> 100.0% | AO32: 1 | AP32: 1 | AQ32: =AP32/AO32 -> 100.0% | BA32: 139 | BB32: 137 | BC32: 98.6%
A33: 非煤矿山负责人复训 | B33: 5 | C33: 4 | D33: =C33/B33 -> 80.0% | AC33: 2 | AD33: 2 | AE33: =AD33/AC33 -> 100.0% | BA33: 7 | BB33: 6 | BC33: 85.7%
A34: 金属冶炼负责人复训
A35: 高危行业负责人复训合计 | B35: =SUM(B30:B34) -> 126 | C35: =SUM(C30:C34) -> 123 | D35: =C35/B35 -> 97.6% | K35: =SUM(K30:K34) -> 22 | L35: =SUM(L30:L34) -> 21 | M35: 95.5% | AC35: =SUM(AC30:AC34) -> 20 | AD35: =SUM(AD30:AD34) -> 18 | AE35: =AD35/AC35 -> 90.0% | AF35: =SUM(AF30:AF34) -> 10 | AG35: =SUM(AG30:AG34) -> 9 | AH35: =AG35/AF35 -> 90.0% | AO35: =SUM(AO30:AO34) -> 3 | AP35: =SUM(AP30:AP34) -> 3 | AQ35: =AP35/AO35 -> 100.0% | BA35: 181 | BB35: 174 | BC35: =BB35/BA35 -> 96.1%
A36: 高危行业主要负责人合计 | B36: =B29+B35 -> 142 | C36: =C29+C35 -> 138 | D36: 97.2% | K36: =K29+K35 -> 33 | L36: =L29+L35 -> 29 | M36: 87.9% | Q36: =Q29+Q35 -> 1 | R36: =R29+R35 -> 1 | S36: =R36/Q36 -> 100.0% | AC36: =AC29+AC35 -> 30 | AD36: =AD29+AD35 -> 26 | AE36: 86.7% | AF36: =AF29+AF35 -> 14 | AG36: =AG29+AG35 -> 12 | AH36: 85.7% | AL36: =AL29+AL35 -> 1 | AM36: =AM29+AM35 -> 1 | AN36: =AM36/AL36 -> 100.0% | AO36: =AO29+AO35 -> 4 | AP36: =AP29+AP35 -> 4 | AQ36: =AP36/AO36 -> 100.0% | AX36: =AX29+AX35 -> 6 | AY36: =AY29+AY35 -> 5 | AZ36: =AY36/AX36 -> 83.3% | BA36: 231 | BB36: 216 | BC36: 93.5%
A37: 烟花爆竹经营安管初训 | B37: 2 | C37: 2 | D37: 100.0% | K37: 2 | L37: 1 | M37: 50.0% | AC37: 5 | AD37: 5 | AE37: 100.0% | AL37: 1 | AM37: 0 | AN37: =AM37/AL37 -> 0.0% | AX37: 3 | AY37: 3 | AZ37: =AY37/AX37 -> 100.0% | BA37: 13 | BB37: 11 | BC37: 84.6%
A38: 危化生产安管初训 | B38: 9 | C38: 9 | D38: 100.0% | K38: 2 | L38: 1 | M38: =L38/K38 -> 50.0% | AC38: 1 | AD38: 1 | AE38: 100.0% | AF38: 5 | AG38: 4 | AH38: 80.0% | BA38: 17 | BB38: 15 | BC38: 88.2%
A39: 危化经营安管初训 | B39: 17 | C39: 15 | D39: 88.2% | K39: 51 | L39: 31 | M39: 60.8% | Q39: 3 | R39: 3 | S39: =R39/Q39 -> 100.0% | AC39: 7 | AD39: 7 | AE39: 100.0% | AF39: 2 | AG39: 2 | AH39: 100.0% | AX39: 1 | AY39: 1 | AZ39: =AY39/AX39 -> 100.0% | BA39: 81 | BB39: 59 | BC39: 72.8%
A40: 非煤矿山安管初训 | AC40: 2 | AD40: 2 | AE40: 100.0% | BA40: 2 | BB40: 2 | BC40: 100.0%
A41: 金属冶炼安管初训 | Q41: 3 | R41: 3 | S41: =R41/Q41 -> 100.0% | BA41: 3 | BB41: 3 | BC41: 100.0%
A42: 高危行业安管初训合计 | B42: =SUM(B37:B41) -> 28 | C42: =SUM(C37:C41) -> 26 | D42: =C42/B42 -> 92.9% | K42: =SUM(K37:K41) -> 55 | L42: =SUM(L37:L41) -> 33 | M42: 60.0% | Q42: =SUM(Q37:Q41) -> 6 | R42: =SUM(R37:R41) -> 6 | S42: =R42/Q42 -> 100.0% | AC42: =SUM(AC37:AC41) -> 15 | AD42: =SUM(AD37:AD41) -> 15 | AE42: =AD42/AC42 -> 100.0% | AF42: =SUM(AF37:AF41) -> 7 | AG42: =SUM(AG37:AG41) -> 6 | AH42: =AG42/AF42 -> 85.7% | AL42: =SUM(AL37:AL41) -> 1 | AM42: =SUM(AM37:AM41) -> 0 | AN42: =AM42/AL42 -> 0.0% | AX42: =SUM(AX37:AX41) -> 4 | AY42: =SUM(AY37:AY41) -> 4 | AZ42: =AY42/AX42 -> 100.0% | BA42: 116 | BB42: 90 | BC42: 77.6%
A43: 烟花爆竹经营安管复训 | K43: 3 | L43: 1 | M43: 33.3% | AC43: 12 | AD43: 10 | AE43: =AD43/AC43 -> 83.3% | BA43: 15 | BB43: 11 | BC43: 73.3%
A44: 危化生产安管复训 | B44: 4 | C44: 4 | D44: =C44/B44 -> 100.0% | K44: 10 | L44: 10 | M44: 100.0% | AF44: 8 | AG44: 7 | AH44: =AG44/AF44 -> 87.5% | AO44: 5 | AP44: 5 | AQ44: =AP44/AO44 -> 100.0% | BA44: 27 | BB44: 26 | BC44: 96.3%
A45: 危化经营安管复训 | B45: 153 | C45: 128 | D45: =C45/B45 -> 83.7% | K45: 19 | L45: 19 | M45: 100.0% | AC45: 35 | AD45: 34 | AE45: =AD45/AC45 -> 97.1% | AF45: 6 | AG45: 5 | AH45: =AG45/AF45 -> 83.3% | AO45: 1 | AP45: 1 | AQ45: =AP45/AO45 -> 100.0% | BA45: 214 | BB45: 187 | BC45: 87.4%
A46: 非煤矿山安管复训 | B46: 5 | C46: 5 | D46: =C46/B46 -> 100.0% | AC46: 1 | AD46: 1 | AE46: =AD46/AC46 -> 100.0% | BA46: 6 | BB46: 6 | BC46: 100.0%
A47: 金属冶炼安管复训
A48: 高危行业安管复训合计 | B48: =SUM(B43:B47) -> 162 | C48: =SUM(C43:C47) -> 137 | D48: =C48/B48 -> 84.6% | K48: =SUM(K43:K47) -> 32 | L48: =SUM(L43:L47) -> 30 | M48: =L48/K48 -> 93.8% | AC48: =SUM(AC43:AC47) -> 48 | AD48: =SUM(AD43:AD47) -> 45 | AE48: =AD48/AC48 -> 93.8% | AF48: =SUM(AF43:AF47) -> 14 | AG48: =SUM(AG43:AG47) -> 12 | AH48: =AG48/AF48 -> 85.7% | AO48: =SUM(AO43:AO47) -> 6 | AP48: =SUM(AP43:AP47) -> 6 | AQ48: 100.0% | BA48: 262 | BB48: 230 | BC48: =BB48/BA48 -> 87.8%
A49: 高危行业安管人员合计 | B49: =B42+B48 -> 190 | C49: =C42+C48 -> 163 | D49: =C49/B49 -> 85.8% | K49: =K42+K48 -> 87 | L49: =L42+L48 -> 63 | M49: =L49/K49 -> 72.4% | Q49: =Q42+Q48 -> 6 | R49: =R42+R48 -> 6 | S49: =R49/Q49 -> 100.0% | AC49: =AC42+AC48 -> 63 | AD49: =AD42+AD48 -> 60 | AE49: =AD49/AC49 -> 95.2% | AF49: =AF42+AF48 -> 21 | AG49: =AG42+AG48 -> 18 | AH49: =AG49/AF49 -> 85.7% | AL49: =AL42+AL48 -> 1 | AM49: =AM42+AM48 -> 0 | AN49: =AM49/AL49 -> 0.0% | AO49: =AO42+AO48 -> 6 | AP49: =AP42+AP48 -> 6 | AQ49: 100.0% | AX49: =AX42+AX48 -> 4 | AY49: =AY42+AY48 -> 4 | AZ49: =AY49/AX49 -> 100.0% | BA49: 378 | BB49: 320 | BC49: =BB49/BA49 -> 84.7%
A50: 高危行业负责人安管合计 | B50: =B36+B49 -> 332 | C50: =C36+C49 -> 301 | D50: =C50/B50 -> 90.7% | K50: =K36+K49 -> 120 | L50: =L36+L49 -> 92 | M50: =L50/K50 -> 76.7% | Q50: =Q36+Q49 -> 7 | R50: =R36+R49 -> 7 | S50: =R50/Q50 -> 100.0% | AC50: =AC36+AC49 -> 93 | AD50: =AD36+AD49 -> 86 | AE50: =AD50/AC50 -> 92.5% | AF50: =AF36+AF49 -> 35 | AG50: =AG36+AG49 -> 30 | AH50: =AG50/AF50 -> 85.7% | AL50: =AL36+AL49 -> 2 | AM50: =AM36+AM49 -> 1 | AN50: 50.0% | AO50: =AO36+AO49 -> 10 | AP50: =AP36+AP49 -> 10 | AQ50: 100.0% | AX50: =AX36+AX49 -> 10 | AY50: =AY36+AY49 -> 9 | AZ50: =AY50/AX50 -> 90.0% | BA50: 609 | BB50: 536 | BC50: =BB50/BA50 -> 88.0%
A51: 全工种合计 | B51: =B23+B50 -> 887 | C51: =C23+C50 -> 827 | D51: =C51/B51 -> 93.2% | E51: =E23+E50 -> 317 | F51: =F23+F50 -> 297 | G51: =F51/E51 -> 93.7% | H51: =H23+H50 -> 12 | I51: =I23+I50 -> 5 | J51: =I51/H51 -> 41.7% | K51: =K23+K50 -> 492 | L51: =L23+L50 -> 389 | M51: =L51/K51 -> 79.1% | N51: =N23+N50 -> 129 | O51: =O23+O50 -> 121 | P51: =O51/N51 -> 93.8% | Q51: =Q23+Q50 -> 56 | R51: =R23+R50 -> 53 | S51: =R51/Q51 -> 94.6% | T51: =T23+T50 -> 57 | U51: =U23+U50 -> 43 | V51: =U51/T51 -> 75.4% | Z51: =Z23+Z50 -> 58 | AA51: =AA23+AA50 -> 48 | AB51: =AA51/Z51 -> 82.8% | AC51: =AC23+AC50 -> 213 | AD51: =AD23+AD50 -> 197 | AE51: =AD51/AC51 -> 92.5% | AF51: =AF23+AF50 -> 168 | AG51: =AG23+AG50 -> 156 | AH51: =AG51/AF51 -> 92.9% | AI51: =AI23+AI50 -> 125 | AJ51: =AJ23+AJ50 -> 101 | AK51: =AJ51/AI51 -> 80.8% | AL51: =AL23+AL50 -> 135 | AM51: =AM23+AM50 -> 109 | AN51: 80.7% | AO51: =AO23+AO50 -> 24 | AP51: =AP23+AP50 -> 20 | AQ51: 83.3% | AU51: =AU23+AU50 -> 2 | AV51: =AV23+AV50 -> 2 | AW51: =AV51/AU51 -> 100.0% | AX51: =AX23+AX50 -> 24 | AY51: =AY23+AY50 -> 22 | AZ51: =AY51/AX51 -> 91.7% | BA51: 2699 | BB51: 2390 | BC51: =BB51/BA51 -> 88.6%
A52: 备注： 1.培训机构名称以全国安全生产培训考试信息管理系统记录为准，按系统顺序排序； 2.实考人数=报考总人数-正考补考均缺考人数-考试违规被取消成绩人数； 3.仅统计已完成考试者，还有补考机会者不统计。

Sheet 10月
A1: 2022年10月各安全培训机构考生通过率统计表
A2: 培训机构 工种 | B2: 江门市安信职业安全培训有限公司 | E2: 广东四维培训有限公司 | H2: 江门市技师学院 | K2: 江门市江海区共升教育培训中心 | N2: 江门市侨都安全咨询服务有限公司 | Q2: 江门市安全生产管理协会 | T2: 江门市新会技师学院 | W2: 江门市新会机电职业技术学校 | Z2: 鹤山市优创职业培训学校有限公司 | AC2: 台山市安全生产管理协会 | AF2: 鹤山市安全生产管理协会 | AI2: 江门市江海区万众职业培训学校 | AL2: 开平市中邑安安全技术咨询有限公司 | AO2: 江门市江海区安全生产管理协会 | AR2: 江门市天晟安全事务有限公司 | AU2: 恩平市科瑞职业技术培训学校 | AX2: 江门市金迪安全科技有限公司 | BA2: 江门市易考安全技术服务有限公司 | BD2: 全市合计
B3: 实考人数 | C3: 合格人数 | D3: 通过率 | E3: 实考人数 | F3: 合格人数 | G3: 通过率 | H3: 实考人数 | I3: 合格人数 | J3: 通过率 | K3: 实考人数 | L3: 合格人数 | M3: 通过率 | N3: 实考人数 | O3: 合格人数 | P3: 通过率 | Q3: 实考人数 | R3: 合格人数 | S3: 通过率 | T3: 实考人数 | U3: 合格人数 | V3: 通过率 | W3: 实考人数 | X3: 合格人数 | Y3: 通过率 | Z3: 实考人数 | AA3: 合格人数 | AB3: 通过率 | AC3: 实考人数 | AD3: 合格人数 | AE3: 通过率 | AF3: 实考人数 | AG3: 合格人数 | AH3: 通过率 | AI3: 实考人数 | AJ3: 合格人数 | AK3: 通过率 | AL3: 实考人数 | AM3: 合格人数 | AN3: 通过率 | AO3: 实考人数 | AP3: 合格人数 | AQ3: 通过率 | AR3: 实考人数 | AS3: 合格人数 | AT3: 通过率 | AU3: 实考人数 | AV3: 合格人数 | AW3: 通过率 | AX3: 实考人数 | AY3: 合格人数 | AZ3: 通过率 | BA3: 实考人数 | BB3: 合格人数 | BC3: 通过率 | BD3: 实考人数 | BE3: 合格人数 | BF3: 通过率
A4: 低压电工初训 | B4: 45 | C4: 27 | D4: =C4/B4 -> 60.0% | K4: 84 | L4: 26 | M4: =L4/K4 -> 31.0% | N4: 36 | O4: 29 | P4: =O4/N4 -> 80.6% | Q4: 4 | R4: 4 | S4: =R4/Q4 -> 100.0% | W4: 126 | X4: 109 | Y4: =X4/W4 -> 86.5% | Z4: 41 | AA4: 36 | AB4: =AA4/Z4 -> 87.8% | AC4: 15 | AD4: 5 | AE4: =AD4/AC4 -> 33.3% | AF4: 1 | AG4: 0 | AH4: =AG4/AF4 -> 0.0% | AL4: 5 | AM4: 3 | AN4: =AM4/AL4 -> 60.0% | AO4: 2 | AP4: 2 | AQ4: =AP4/AO4 -> 100.0% | BD4: =B4+E4+H4+K4+N4+Q4+T4+W4+Z4+AC4+AF4+AI4+AL4+AO4+AR4+AU4+AX4+BA4 -> 359 | BE4: =C4+F4+I4+L4+O4+R4+U4+X4+AA4+AD4+AG4+AJ4+AM4+AP4+AS4+AV4+AY4+BB4 -> 241 | BF4: =BE4/BD4 -> 67.1%
A5: 高压电工初训 | Q5: 1 | R5: 1 | S5: 100.0% | BD5: 1 | BE5: 1 | BF5: 100.0%
A6: 电力电缆初训
A7: 熔化焊接与热切割初训 | B7: 1 | C7: 0 | D7: 0.0% | H7: 35 | I7: 9 | J7: =I7/H7 -> 25.7% | K7: 28 | L7: 24 | M7: 85.7% | N7: 11 | O7: 6 | P7: 54.5% | Z7: 32 | AA7: 20 | AB7: 62.5% | AI7: 65 | AJ7: 44 | AK7: =AJ7/AI7 -> 67.7% | BD7: 172 | BE7: 103 | BF7: 59.9%
A8: 高处安装维护拆除初训 | B8: 38 | C8: 34 | D8: 89.5% | E8: 147 | F8: 143 | G8: =F8/E8 -> 97.3% | K8: 31 | L8: 27 | M8: 87.1% | Q8: 2 | R8: 2 | S8: 100.0% | AL8: 23 | AM8: 22 | AN8: 95.7% | BD8: 241 | BE8: 228 | BF8: 94.6%
A9: 特种作业初训合计 | B9: =SUM(B4:B8) -> 84 | C9: 61 | D9: 72.6% | E9: 147 | F9: 143 | G9: 97.3% | H9: =SUM(H4:H8) -> 35 | I9: 9 | J9: 25.7% | K9: 143 | L9: 77 | M9: 53.8% | N9: =SUM(N4:N8) -> 47 | O9: 35 | P9: =O9/N9 -> 74.5% | Q9: 7 | R9: 7 | S9: 100.0% | W9: =SUM(W4:W8) -> 126 | X9: 109 | Y9: =X9/W9 -> 86.5% | Z9: =SUM(Z4:Z8) -> 73 | AA9: 56 | AB9: 76.7% | AC9: 15 | AD9: 5 | AE9: =AD9/AC9 -> 33.3% | AF9: =SUM(AF4:AF8) -> 1 | AG9: 0 | AH9: 0.0% | AI9: 65 | AJ9: 44 | AK9: 67.7% | AL9: =SUM(AL4:AL8) -> 28 | AM9: 25 | AN9: 89.3% | AO9: 2 | AP9: 2 | AQ9: 100.0% | BD9: 773 | BE9: 573 | BF9: 74.1%
A10: 低压电工复训 | B10: 150 | C10: 148 | D10: 98.7% | E10: 29 | F10: 25 | G10: 86.2% | K10: 2 | L10: 2 | M10: 100.0% | N10: 120 | O10: 116 | P10: 96.7% | Q10: 10 | R10: 10 | S10: 100.0% | T10: 30 | U10: 29 | V10: =U10/T10 -> 96.7% | Z10: 7 | AA10: 7 | AB10: 100.0% | AC10: 75 | AD10: 69 | AE10: 92.0% | AF10: 48 | AG10: 47 | AH10: 97.9% | AI10: 7 | AJ10: 7 | AK10: 100.0% | AL10: 13 | AM10: 13 | AN10: 100.0% | AO10: 1 | AP10: 1 | AQ10: 100.0% | AU10: 2 | AV10: 2 | AW10: =AV10/AU10 -> 100.0% | AX10: 3 | AY10: 3 | AZ10: =AY10/AX10 -> 100.0% | BA10: 27 | BB10: 26 | BC10: =BB10/BA10 -> 96.3% | BD10: 524 | BE10: 505 | BF10: 96.4%
A11: 高压电工复训 | B11: 35 | C11: 32 | D11: 91.4% | E11: 29 | F11: 25 | G11: 86.2% | K11: 1 | L11: 1 | M11: 100.0% | N11: 13 | O11: 13 | P11: 100.0% | Q11: 17 | R11: 15 | S11: 88.2% | T11: 5 | U11: 4 | V11: 80.0% | AC11: 6 | AD11: 6 | AE11: 100.0% | AF11: 3 | AG11: 3 | AH11: 100.0% | AL11: 8 | AM11: 8 | AN11: 100.0% | BD11: 117 | BE11: 107 | BF11: 91.5%
A12: 熔化焊接与热切割复训 | B12: 77 | C12: 73 | D12: 94.8% | K12: 7 | L12: 7 | M12: 100.0% | N12: 11 | O12: 9 | P12: 81.8% | T12: 6 | U12: 6 | V12: 100.0% | AC12: 9 | AD12: 9 | AE12: 100.0% | AF12: 13 | AG12: 13 | AH12: 100.0% | AI12: 10 | AJ12: 10 | AK12: =AJ12/AI12 -> 100.0% | AL12: 6 | AM12: 6 | AN12: 100.0% | AO12: 4 | AP12: 4 | AQ12: =AP12/AO12 -> 100.0% | AX12: 1 | AY12: 1 | AZ12: 100.0% | BA12: 4 | BB12: 3 | BC12: =BB12/BA12 -> 75.0% | BD12: 148 | BE12: 141 | BF12: 95.3%
A13: 钎焊复训
A14: 高处安装维护拆除复训 | B14: 11 | C14: 11 | D14: =C14/B14 -> 100.0% | E14: 14 | F14: 14 | G14: =F14/E14 -> 100.0% | T14: 9 | U14: 9 | V14: =U14/T14 -> 100.0% | BD14: 34 | BE14: 34 | BF14: 100.0%
A15: 登高架设复训 | B15: 1 | C15: 1 | D15: 100.0% | BD15: 1 | BE15: 1 | BF15: 100.0%
A16: 制冷与空调运行操作复训
A17: 制冷与空调安装修理复训 | B17: 1 | C17: 1 | D17: 100.0% | BD17: 1 | BE17: 1 | BF17: 100.0%
A18: 矿山安检复训 | B18: 2 | C18: 2 | D18: 100.0% | BD18: 2 | BE18: 2 | BF18: 100.0%
A19: 电力电缆复训 | B19: 1 | C19: 1 | D19: 100.0% | BD19: 1 | BE19: 1 | BF19: 100.0%
A20: 电气试验复训 | Q20: 1 | R20: 1 | S20: =R20/Q20 -> 100.0% | BD20: 1 | BE20: 1 | BF20: 100.0%
A21: 继电保护复训
A22: 特种作业复训合计 | B22: =SUM(B10:B21) -> 278 | C22: 269 | D22: =C22/B22 -> 96.8% | E22: 72 | F22: 64 | G22: =F22/E22 -> 88.9% | K22: =SUM(K10:K21) -> 10 | L22: 10 | M22: =L22/K22 -> 100.0% | N22: 144 | O22: 138 | P22: =O22/N22 -> 95.8% | Q22: =SUM(Q10:Q21) -> 28 | R22: 26 | S22: =R22/Q22 -> 92.9% | T22: 50 | U22: 48 | V22: =U22/T22 -> 96.0% | Z22: =SUM(Z10:Z21) -> 7 | AA22: 7 | AB22: =AA22/Z22 -> 100.0% | AC22: 90 | AD22: 84 | AE22: =AD22/AC22 -> 93.3% | AF22: =SUM(AF10:AF21) -> 64 | AG22: 63 | AH22: =AG22/AF22 -> 98.4% | AI22: 17 | AJ22: 17 | AK22: =AJ22/AI22 -> 100.0% | AL22: =SUM(AL10:AL21) -> 27 | AM22: 27 | AN22: =AM22/AL22 -> 100.0% | AO22: 5 | AP22: 5 | AQ22: =AP22/AO22 -> 100.0% | AU22: =SUM(AU10:AU21) -> 2 | AV22: 2 | AW22: =AV22/AU22 -> 100.0% | AX22: 4 | AY22: 4 | AZ22: =AY22/AX22 -> 100.0% | BA22: =SUM(BA10:BA21) -> 31 | BB22: =SUM(BB10:BB21) -> 29 | BC22: =BB22/BA22 -> 93.5% | BD22: 829 | BE22: 793 | BF22: 95.7%
A23: 特种作业人员合计 | B23: =B9+B22 -> 362 | C23: 330 | D23: 91.2% | E23: 219 | F23: 207 | G23: 94.5% | H23: =H9+H22 -> 35 | I23: 9 | J23: =I23/H23 -> 25.7% | K23: 153 | L23: 87 | M23: 56.9% | N23: =N9+N22 -> 191 | O23: 173 | P23: =O23/N23 -> 90.6% | Q23: 35 | R23: 33 | S23: 94.3% | T23: =T9+T22 -> 50 | U23: =U9+U22 -> 48 | V23: =U23/T23 -> 96.0% | W23: =W9+W22 -> 126 | X23: 109 | Y23: =X23/W23 -> 86.5% | Z23: =Z9+Z22 -> 80 | AA23: 63 | AB23: =AA23/Z23 -> 78.8% | AC23: 105 | AD23: 89 | AE23: 84.8% | AF23: =AF9+AF22 -> 65 | AG23: 63 | AH23: 96.9% | AI23: 82 | AJ23: 61 | AK23: =AJ23/AI23 -> 74.4% | AL23: =AL9+AL22 -> 55 | AM23: 52 | AN23: 94.5% | AO23: 7 | AP23: 7 | AQ23: 100.0% | AU23: =AU9+AU22 -> 2 | AV23: 2 | AW23: 100.0% | AX23: 4 | AY23: 4 | AZ23: 100.0% | BA23: =BA9+BA22 -> 31 | BB23: =BB9+BB22 -> 29 | BC23: 93.5% | BD23: 1602 | BE23: 1366 | BF23: 85.3%
A24: 烟花爆竹经营负责人初训 | B24: 4 | C24: 4 | D24: 100.0% | AO24: 1 | AP24: 1 | AQ24: 100.0% | AU24: 1 | AV24: 1 | AW24: 100.0% | BD24: 6 | BE24: 6 | BF24: 100.0%
A25: 危化生产负责人初训 | B25: 1 | C25: 1 | D25: 100.0% | K25: 1 | L25: 1 | M25: 100.0% | AF25: 1 | AG25: 0 | AH25: 0.0% | BD25: 3 | BE25: 2 | BF25: 66.7%
A26: 危化经营负责人初训 | B26: 4 | C26: 4 | D26: =C26/B26 -> 100.0% | K26: 3 | L26: 3 | M26: 100.0% | Q26: 1 | R26: 1 | S26: 100.0% | AC26: 4 | AD26: 2 | AE26: =AD26/AC26 -> 50.0% | AF26: 3 | AG26: 3 | AH26: 100.0% | AO26: 1 | AP26: 1 | AQ26: 100.0% | BD26: 16 | BE26: 14 | BF26: 87.5%
A27: 非煤矿山负责人初训 | AL27: 1 | AM27: 0 | AN27: =AM27/AL27 -> 0.0% | BD27: 1 | BE27: 0 | BF27: 0.0%
A28: 金属冶炼负责人初训 | K28: 1 | L28: 0 | M28: =L28/K28 -> 0.0% | BD28: 1 | BE28: 0 | BF28: 0.0%
A29: 高危行业负责人初训合计 | B29: =SUM(B24:B28) -> 9 | C29: =SUM(C24:C28) -> 9 | D29: 100.0% | K29: =SUM(K24:K28) -> 5 | L29: =SUM(L24:L28) -> 4 | M29: 80.0% | Q29: =SUM(Q24:Q28) -> 1 | R29: =SUM(R24:R28) -> 1 | S29: =R29/Q29 -> 100.0% | AC29: =SUM(AC24:AC28) -> 4 | AD29: 2 | AE29: 50.0% | AF29: 4 | AG29: 3 | AH29: =AG29/AF29 -> 75.0% | AL29: =SUM(AL24:AL28) -> 1 | AM29: 0 | AN29: =AM29/AL29 -> 0.0% | AO29: 2 | AP29: 2 | AQ29: =AP29/AO29 -> 100.0% | AU29: =SUM(AU24:AU28) -> 1 | AV29: =SUM(AV24:AV28) -> 1 | AW29: =AV29/AU29 -> 100.0% | BD29: 27 | BE29: 22 | BF29: 81.5%
A30: 烟花爆竹经营负责人复训
A31: 危化生产负责人复训 | B31: 7 | C31: 7 | D31: 100.0% | K31: 1 | L31: 1 | M31: 100.0% | AC31: 1 | AD31: 1 | AE31: 100.0% | BD31: 9 | BE31: 9 | BF31: 100.0%
A32: 危化经营负责人复训 | B32: 35 | C32: 34 | D32: 97.1% | K32: 14 | L32: 14 | M32: 100.0% | AF32: 1 | AG32: 1 | AH32: 100.0% | BD32: 50 | BE32: 49 | BF32: 98.0%
A33: 非煤矿山负责人复训 | K33: 1 | L33: 1 | M33: 100.0% | BD33: 1 | BE33: 1 | BF33: 100.0%
A34: 金属冶炼负责人复训
A35: 高危行业负责人复训合计 | B35: =SUM(B30:B34) -> 42 | C35: =SUM(C30:C34) -> 41 | D35: =C35/B35 -> 97.6% | K35: =SUM(K30:K34) -> 16 | L35: =SUM(L30:L34) -> 16 | M35: =L35/K35 -> 100.0% | AC35: =SUM(AC30:AC34) -> 1 | AD35: 1 | AE35: =AD35/AC35 -> 100.0% | AF35: 1 | AG35: 1 | AH35: =AG35/AF35 -> 100.0% | BD35: 60 | BE35: 59 | BF35: 98.3%
A36: 高危行业主要负责人合计 | B36: =B29+B35 -> 51 | C36: =C29+C35 -> 50 | D36: 98.0% | K36: =K29+K35 -> 21 | L36: =L29+L35 -> 20 | M36: 95.2% | Q36: =Q29+Q35 -> 1 | R36: =R29+R35 -> 1 | S36: =R36/Q36 -> 100.0% | AC36: =AC29+AC35 -> 5 | AD36: 3 | AE36: 60.0% | AF36: 5 | AG36: 4 | AH36: 80.0% | AL36: =AL29+AL35 -> 1 | AM36: 0 | AN36: =AM36/AL36 -> 0.0% | AO36: 2 | AP36: 2 | AQ36: =AP36/AO36 -> 100.0% | AU36: =AU29+AU35 -> 1 | AV36: =AV29+AV35 -> 1 | AW36: =AV36/AU36 -> 100.0% | BD36: 87 | BE36: 81 | BF36: 93.1%
A37: 烟花爆竹经营安管初训 | B37: 3 | C37: 2 | D37: 66.7% | AF37: 1 | AG37: 1 | AH37: 100.0% | AU37: 1 | AV37: 1 | AW37: =AV37/AU37 -> 100.0% | BD37: 5 | BE37: 4 | BF37: 80.0%
A38: 危化生产安管初训 | B38: 3 | C38: 3 | D38: 100.0% | K38: 1 | L38: 1 | M38: 100.0% | AF38: 2 | AG38: 2 | AH38: 100.0% | AO38: 1 | AP38: 1 | AQ38: 100.0% | BD38: 7 | BE38: 7 | BF38: 100.0%
A39: 危化经营安管初训 | B39: 28 | C39: 19 | D39: 67.9% | K39: 8 | L39: 7 | M39: 87.5% | Q39: 2 | R39: 2 | S39: 100.0% | AC39: 14 | AD39: 12 | AE39: 85.7% | AF39: 1 | AG39: 1 | AH39: 100.0% | AO39: 2 | AP39: 2 | AQ39: 100.0% | BD39: 55 | BE39: 43 | BF39: 78.2%
A40: 非煤矿山安管初训 | B40: 1 | C40: 1 | D40: 100.0% | BD40: 1 | BE40: 1 | BF40: 100.0%
A41: 金属冶炼安管初训 | K41: 1 | L41: 1 | M41: =L41/K41 -> 100.0% | BD41: 1 | BE41: 1 | BF41: 100.0%
A42: 高危行业安管初训合计 | B42: =SUM(B37:B41) -> 35 | C42: =SUM(C37:C41) -> 25 | D42: =C42/B42 -> 71.4% | K42: =SUM(K37:K41) -> 10 | L42: =SUM(L37:L41) -> 9 | M42: =L42/K42 -> 90.0% | Q42: =SUM(Q37:Q41) -> 2 | R42: =SUM(R37:R41) -> 2 | S42: 100.0% | AC42: =SUM(AC37:AC41) -> 14 | AD42: 12 | AE42: =AD42/AC42 -> 85.7% | AF42: 4 | AG42: 4 | AH42: =AG42/AF42 -> 100.0% | AO42: =SUM(AO37:AO41) -> 3 | AP42: 3 | AQ42: =AP42/AO42 -> 100.0% | AU42: =SUM(AU37:AU41) -> 1 | AV42: =SUM(AV37:AV41) -> 1 | AW42: =AV42/AU42 -> 100.0% | BD42: 69 | BE42: 56 | BF42: 81.2%
A43: 烟花爆竹经营安管复训
A44: 危化生产安管复训 | B44: 19 | C44: 19 | D44: 100.0% | AF44: 4 | AG44: 4 | AH44: 100.0% | BD44: 23 | BE44: 23 | BF44: 100.0%
A45: 危化经营安管复训 | B45: 55 | C45: 49 | D45: 89.1% | K45: 29 | L45: 27 | M45: 93.1% | AF45: 1 | AG45: 1 | AH45: 100.0% | AO45: 1 | AP45: 1 | AQ45: =AP45/AO45 -> 100.0% | BD45: 86 | BE45: 78 | BF45: 90.7%
A46: 非煤矿山安管复训 | K46: 1 | L46: 1 | M46: 100.0% | BD46: 1 | BE46: 1 | BF46: 100.0%
A47: 金属冶炼安管复训
A48: 高危行业安管复训合计 | B48: =SUM(B43:B47) -> 74 | C48: =SUM(C43:C47) -> 68 | D48: =C48/B48 -> 91.9% | K48: =SUM(K43:K47) -> 30 | L48: =SUM(L43:L47) -> 28 | M48: =L48/K48 -> 93.3% | AF48: =SUM(AF43:AF47) -> 5 | AG48: 5 | AH48: =AG48/AF48 -> 100.0% | AO48: =SUM(AO43:AO47) -> 1 | AP48: =SUM(AP43:AP47) -> 1 | AQ48: 100.0% | BD48: 110 | BE48: 102 | BF48: 92.7%
A49: 高危行业安管人员合计 | B49: =B42+B48 -> 109 | C49: =C42+C48 -> 93 | D49: 85.3% | K49: =K42+K48 -> 40 | L49: =L42+L48 -> 37 | M49: 92.5% | Q49: =Q42+Q48 -> 2 | R49: =R42+R48 -> 2 | S49: =R49/Q49 -> 100.0% | AC49: =AC42+AC48 -> 14 | AD49: 12 | AE49: =AD49/AC49 -> 85.7% | AF49: 9 | AG49: 9 | AH49: 100.0% | AO49: =AO42+AO48 -> 4 | AP49: 4 | AQ49: 100.0% | AU49: =AU42+AU48 -> 1 | AV49: 1 | AW49: =AV49/AU49 -> 100.0% | BD49: 179 | BE49: 158 | BF49: 88.3%
A50: 高危行业负责人安管合计 | B50: =B36+B49 -> 160 | C50: =C36+C49 -> 143 | D50: 89.4% | K50: =K36+K49 -> 61 | L50: =L36+L49 -> 57 | M50: 93.4% | Q50: =Q36+Q49 -> 3 | R50: =R36+R49 -> 3 | S50: 100.0% | AC50: =AC36+AC49 -> 19 | AD50: 15 | AE50: 78.9% | AF50: 14 | AG50: 13 | AH50: 92.9% | AL50: =AL36+AL49 -> 1 | AM50: 0 | AN50: =AM50/AL50 -> 0.0% | AO50: 6 | AP50: 6 | AQ50: 100.0% | AU50: =AU36+AU49 -> 2 | AV50: 2 | AW50: 100.0% | BD50: 266 | BE50: 239 | BF50: 89.8%
A51: 全工种合计 | B51: =B23+B50 -> 522 | C51: 473 | D51: 90.6% | E51: 219 | F51: 207 | G51: =F51/E51 -> 94.5% | H51: =H23+H50 -> 35 | I51: 9 | J51: =I51/H51 -> 25.7% | K51: 214 | L51: 144 | M51: 67.3% | N51: =N23+N50 -> 191 | O51: 173 | P51: =O51/N51 -> 90.6% | Q51: 38 | R51: 36 | S51: 94.7% | T51: =T23+T50 -> 50 | U51: =U23+U50 -> 48 | V51: =U51/T51 -> 96.0% | W51: =W23+W50 -> 126 | X51: 109 | Y51: =X51/W51 -> 86.5% | Z51: =Z23+Z50 -> 80 | AA51: 63 | AB51: =AA51/Z51 -> 78.8% | AC51: 124 | AD51: 104 | AE51: 83.9% | AF51: =AF23+AF50 -> 79 | AG51: 76 | AH51: 96.2% | AI51: 82 | AJ51: 61 | AK51: =AJ51/AI51 -> 74.4% | AL51: =AL23+AL50 -> 56 | AM51: 52 | AN51: 92.9% | AO51: 13 | AP51: 13 | AQ51: 100.0% | AU51: =AU23+AU50 -> 4 | AV51: 4 | AW51: 100.0% | AX51: 4 | AY51: 4 | AZ51: =AY51/AX51 -> 100.0% | BA51: =BA23+BA50 -> 31 | BB51: =BB23+BB50 -> 29 | BC51: =BB51/BA51 -> 93.5% | BD51: 1868 | BE51: 1605 | BF51: 85.9%
A52: 备注： 1.培训机构名称以全国安全生产培训考试信息管理系统记录为准，按系统顺序排序； 2.实考人数=报考总人数-正考补考均缺考人数-考试违规被取消成绩人数； 3.仅统计已完成考试者，还有补考机会者不统计。

Sheet 11月
A1: 2022年11月各安全培训机构考生通过率统计表
A2: 培训机构 工种 | B2: 江门市安信职业安全培训有限公司 | E2: 广东四维培训有限公司 | H2: 江门市技师学院 | K2: 江门市江海区共升教育培训中心 | N2: 江门市侨都安全咨询服务有限公司 | Q2: 江门市安全生产管理协会 | T2: 江门市新会技师学院 | W2: 江门市新会机电职业技术学校 | Z2: 鹤山市优创职业培训学校有限公司 | AC2: 台山市安全生产管理协会 | AF2: 鹤山市安全生产管理协会 | AI2: 江门市江海区万众职业培训学校 | AL2: 开平市中邑安安全技术咨询有限公司 | AO2: 江门市江海区安全生产管理协会 | AR2: 江门市天晟安全事务有限公司 | AU2: 恩平市科瑞职业技术培训学校 | AX2: 江门市金迪安全科技有限公司 | BA2: 江门市易考安全技术服务有限公司 | BD2: 全市合计
B3: 实考人数 | C3: 合格人数 | D3: 通过率 | E3: 实考人数 | F3: 合格人数 | G3: 通过率 | H3: 实考人数 | I3: 合格人数 | J3: 通过率 | K3: 实考人数 | L3: 合格人数 | M3: 通过率 | N3: 实考人数 | O3: 合格人数 | P3: 通过率 | Q3: 实考人数 | R3: 合格人数 | S3: 通过率 | T3: 实考人数 | U3: 合格人数 | V3: 通过率 | W3: 实考人数 | X3: 合格人数 | Y3: 通过率 | Z3: 实考人数 | AA3: 合格人数 | AB3: 通过率 | AC3: 实考人数 | AD3: 合格人数 | AE3: 通过率 | AF3: 实考人数 | AG3: 合格人数 | AH3: 通过率 | AI3: 实考人数 | AJ3: 合格人数 | AK3: 通过率 | AL3: 实考人数 | AM3: 合格人数 | AN3: 通过率 | AO3: 实考人数 | AP3: 合格人数 | AQ3: 通过率 | AR3: 实考人数 | AS3: 合格人数 | AT3: 通过率 | AU3: 实考人数 | AV3: 合格人数 | AW3: 通过率 | AX3: 实考人数 | AY3: 合格人数 | AZ3: 通过率 | BA3: 实考人数 | BB3: 合格人数 | BC3: 通过率 | BD3: 实考人数 | BE3: 合格人数 | BF3: 通过率
A4: 低压电工初训 | B4: 41 | C4: 26 | D4: =C4/B4 -> 63.4% | E4: 1 | F4: 1 | G4: =F4/E4 -> 100.0% | K4: 72 | L4: 57 | M4: =L4/K4 -> 79.2% | W4: 21 | X4: 19 | Y4: =X4/W4 -> 90.5% | Z4: 35 | AA4: 32 | AB4: =AA4/Z4 -> 91.4% | AC4: 43 | AD4: 25 | AE4: =AD4/AC4 -> 58.1% | AF4: 19 | AG4: 7 | AH4: =AG4/AF4 -> 36.8% | AI4: 51 | AJ4: 27 | AK4: =AJ4/AI4 -> 52.9% | AL4: 48 | AM4: 45 | AN4: =AM4/AL4 -> 93.8% | AO4: 3 | AP4: 3 | AQ4: =AP4/AO4 -> 100.0% | BA4: 82 | BB4: 63 | BC4: =BB4/BA4 -> 76.8% | BD4: =B4+E4+H4+K4+N4+Q4+T4+W4+Z4+AC4+AF4+AI4+AL4+AO4+AR4+AU4+AX4+BA4 -> 416 | BE4: =C4+F4+I4+L4+O4+R4+U4+X4+AA4+AD4+AG4+AJ4+AM4+AP4+AS4+AV4+AY4+BB4 -> 305 | BF4: =BE4/BD4 -> 73.3%
A5: 高压电工初训 | K5: 22 | L5: 20 | M5: 90.9% | N5: 21 | O5: 20 | P5: =O5/N5 -> 95.2% | T5: 37 | U5: 28 | V5: =U5/T5 -> 75.7% | BD5: 80 | BE5: 68 | BF5: 85.0%
A6: 电力电缆初训 | E6: 35 | F6: 30 | G6: =F6/E6 -> 85.7% | BD6: 35 | BE6: 30 | BF6: 85.7%
A7: 熔化焊接与热切割初训 | B7: 49 | C7: 39 | D7: 79.6% | N7: 2 | O7: 2 | P7: 100.0% | T7: 13 | U7: 7 | V7: =U7/T7 -> 53.8% | Z7: 19 | AA7: 15 | AB7: 78.9% | AF7: 28 | AG7: 26 | AH7: =AG7/AF7 -> 92.9% | AI7: 35 | AJ7: 29 | AK7: =AJ7/AI7 -> 82.9% | AL7: 33 | AM7: 29 | AN7: =AM7/AL7 -> 87.9% | AO7: 3 | AP7: 3 | AQ7: =AP7/AO7 -> 100.0% | BA7: 8 | BB7: 7 | BC7: =BB7/BA7 -> 87.5% | BD7: 190 | BE7: 157 | BF7: 82.6%
A8: 高处安装维护拆除初训 | B8: 40 | C8: 33 | D8: 82.5% | E8: 106 | F8: 102 | G8: =F8/E8 -> 96.2% | Q8: 2 | R8: 2 | S8: =R8/Q8 -> 100.0% | BA8: 66 | BB8: 57 | BC8: =BB8/BA8 -> 86.4% | BD8: 214 | BE8: 194 | BF8: 90.7%
A9: 特种作业初训合计 | B9: =SUM(B4:B8) -> 130 | C9: 98 | D9: 75.4% | E9: 142 | F9: 133 | G9: 93.7% | K9: =SUM(K4:K8) -> 94 | L9: 77 | M9: 81.9% | N9: =SUM(N4:N8) -> 23 | O9: 22 | P9: 95.7% | Q9: 2 | R9: 2 | S9: 100.0% | T9: 50 | U9: 35 | V9: =U9/T9 -> 70.0% | W9: =SUM(W4:W8) -> 21 | X9: 19 | Y9: =X9/W9 -> 90.5% | Z9: 54 | AA9: 47 | AB9: 87.0% | AC9: =SUM(AC4:AC8) -> 43 | AD9: 25 | AE9: =AD9/AC9 -> 58.1% | AF9: 47 | AG9: 33 | AH9: =AG9/AF9 -> 70.2% | AI9: =SUM(AI4:AI8) -> 86 | AJ9: 56 | AK9: 65.1% | AL9: 81 | AM9: 74 | AN9: 91.4% | AO9: =SUM(AO4:AO8) -> 6 | AP9: =SUM(AP4:AP8) -> 6 | AQ9: =AP9/AO9 -> 100.0% | BA9: =SUM(BA4:BA8) -> 156 | BB9: =SUM(BB4:BB8) -> 127 | BC9: =BB9/BA9 -> 81.4% | BD9: 935 | BE9: 754 | BF9: 80.6%
A10: 低压电工复训 | B10: 139 | C10: 138 | D10: 99.3% | E10: 27 | F10: 27 | G10: 100.0% | H10: 13 | I10: 12 | J10: =I10/H10 -> 92.3% | K10: 172 | L10: 166 | M10: 96.5% | N10: 46 | O10: 43 | P10: 93.5% | Q10: 25 | R10: 24 | S10: 96.0% | Z10: 10 | AA10: 10 | AB10: 100.0% | AC10: 49 | AD10: 49 | AE10: 100.0% | AF10: 45 | AG10: 45 | AH10: 100.0% | AI10: 18 | AJ10: 16 | AK10: 88.9% | AL10: 10 | AM10: 10 | AN10: 100.0% | AO10: 1 | AP10: 1 | AQ10: 100.0% | AU10: 2 | AV10: 2 | AW10: =AV10/AU10 -> 100.0% | AX10: 2 | AY10: 2 | AZ10: =AY10/AX10 -> 100.0% | BA10: 35 | BB10: 35 | BC10: =BB10/BA10 -> 100.0% | BD10: 594 | BE10: 580 | BF10: 97.6%
A11: 高压电工复训 | B11: 36 | C11: 32 | D11: 88.9% | E11: 32 | F11: 25 | G11: 78.1% | K11: 79 | L11: 78 | M11: 98.7% | N11: 10 | O11: 9 | P11: 90.0% | Q11: 5 | R11: 4 | S11: 80.0% | AC11: 2 | AD11: 2 | AE11: 100.0% | AF11: 7 | AG11: 7 | AH11: 100.0% | AO11: 1 | AP11: 1 | AQ11: 100.0% | BD11: 172 | BE11: 158 | BF11: 91.9%
A12: 熔化焊接与热切割复训 | B12: 83 | C12: 81 | D12: 97.6% | E12: 8 | F12: 8 | G12: 100.0% | K12: 72 | L12: 64 | M12: 88.9% | N12: 9 | O12: 9 | P12: 100.0% | Q12: 3 | R12: 3 | S12: =R12/Q12 -> 100.0% | Z12: 4 | AA12: 4 | AB12: =AA12/Z12 -> 100.0% | AC12: 16 | AD12: 14 | AE12: 87.5% | AF12: 16 | AG12: 16 | AH12: 100.0% | AI12: 6 | AJ12: 6 | AK12: =AJ12/AI12 -> 100.0% | AL12: 3 | AM12: 2 | AN12: 66.7% | AO12: 4 | AP12: 4 | AQ12: 100.0% | BA12: 4 | BB12: 4 | BC12: 100.0% | BD12: 228 | BE12: 215 | BF12: 94.3%
A13: 钎焊复训
A14: 高处安装维护拆除复训 | B14: 81 | C14: 79 | D14: =C14/B14 -> 97.5% | E14: 15 | F14: 15 | G14: =F14/E14 -> 100.0% | K14: 13 | L14: 13 | M14: =L14/K14 -> 100.0% | Q14: 1 | R14: 1 | S14: 100.0% | AL14: 1 | AM14: 1 | AN14: =AM14/AL14 -> 100.0% | BA14: 9 | BB14: 7 | BC14: 77.8% | BD14: =B14+E14+H14+K14+N14+Q14+T14+W14+Z14+AC14+AF14+AI14+AL14+AO14+AR14+AU14+AX14+BA14 -> 120 | BE14: =C14+F14+I14+L14+O14+R14+U14+X14+AA14+AD14+AG14+AJ14+AM14+AP14+AS14+AV14+AY14+BB14 -> 116 | BF14: =BE14/BD14 -> 96.7%
A15: 登高架设复训
A16: 制冷与空调运行操作复训
A17: 制冷与空调安装修理复训 | B17: 3 | C17: 3 | D17: 100.0% | BD17: 3 | BE17: 3 | BF17: 100.0%
A18: 矿山安检复训
A19: 电力电缆复训 | B19: 2 | C19: 1 | D19: 50.0% | E19: 3 | F19: 3 | G19: =F19/E19 -> 100.0% | BD19: 5 | BE19: 4 | BF19: 80.0%
A20: 电气试验复训 | B20: 2 | C20: 1 | D20: 50.0% | E20: 2 | F20: 1 | G20: =F20/E20 -> 50.0% | BD20: 4 | BE20: 2 | BF20: 50.0%
A21: 继电保护复训 | B21: 1 | C21: 0 | D21: 0.0% | BD21: 1 | BE21: 0 | BF21: 0.0%
A22: 特种作业复训合计 | B22: =SUM(B10:B21) -> 347 | C22: 335 | D22: =C22/B22 -> 96.5% | E22: 87 | F22: 79 | G22: =F22/E22 -> 90.8% | H22: =SUM(H10:H21) -> 13 | I22: =SUM(I10:I21) -> 12 | J22: =I22/H22 -> 92.3% | K22: =SUM(K10:K21) -> 336 | L22: 321 | M22: =L22/K22 -> 95.5% | N22: 65 | O22: 61 | P22: =O22/N22 -> 93.8% | Q22: =SUM(Q10:Q21) -> 34 | R22: 32 | S22: =R22/Q22 -> 94.1% | Z22: =SUM(Z10:Z21) -> 14 | AA22: 14 | AB22: =AA22/Z22 -> 100.0% | AC22: 67 | AD22: 65 | AE22: =AD22/AC22 -> 97.0% | AF22: =SUM(AF10:AF21) -> 68 | AG22: 68 | AH22: =AG22/AF22 -> 100.0% | AI22: 24 | AJ22: 22 | AK22: =AJ22/AI22 -> 91.7% | AL22: =SUM(AL10:AL21) -> 14 | AM22: 13 | AN22: =AM22/AL22 -> 92.9% | AO22: 6 | AP22: 6 | AQ22: =AP22/AO22 -> 100.0% | AU22: =SUM(AU10:AU21) -> 2 | AV22: 2 | AW22: =AV22/AU22 -> 100.0% | AX22: 2 | AY22: 2 | AZ22: =AY22/AX22 -> 100.0% | BA22: =SUM(BA10:BA21) -> 48 | BB22: =SUM(BB10:BB21) -> 46 | BC22: =BB22/BA22 -> 95.8% | BD22: =B22+E22+H22+K22+N22+Q22+T22+W22+Z22+AC22+AF22+AI22+AL22+AO22+AR22+AU22+AX22+BA22 -> 1127 | BE22: =C22+F22+I22+L22+O22+R22+U22+X22+AA22+AD22+AG22+AJ22+AM22+AP22+AS22+AV22+AY22+BB22 -> 1078 | BF22: =BE22/BD22 -> 95.7%
A23: 特种作业人员合计 | B23: =B9+B22 -> 477 | C23: 433 | D23: 90.8% | E23: 229 | F23: 212 | G23: =F23/E23 -> 92.6% | H23: =H9+H22 -> 13 | I23: 12 | J23: =I23/H23 -> 92.3% | K23: 430 | L23: 398 | M23: 92.6% | N23: =N9+N22 -> 88 | O23: 83 | P23: =O23/N23 -> 94.3% | Q23: 36 | R23: 34 | S23: 94.4% | T23: =T9+T22 -> 50 | U23: 35 | V23: =U23/T23 -> 70.0% | W23: 21 | X23: 19 | Y23: =X23/W23 -> 90.5% | Z23: =Z9+Z22 -> 68 | AA23: 61 | AB23: =AA23/Z23 -> 89.7% | AC23: 110 | AD23: 90 | AE23: 81.8% | AF23: =AF9+AF22 -> 115 | AG23: 101 | AH23: 87.8% | AI23: 110 | AJ23: 78 | AK23: =AJ23/AI23 -> 70.9% | AL23: =AL9+AL22 -> 95 | AM23: 87 | AN23: 91.6% | AO23: 12 | AP23: 12 | AQ23: 100.0% | AU23: =AU9+AU22 -> 2 | AV23: 2 | AW23: 100.0% | AX23: 2 | AY23: 2 | AZ23: 100.0% | BA23: =BA9+BA22 -> 204 | BB23: =BB9+BB22 -> 173 | BC23: =BB23/BA23 -> 84.8% | BD23: 2062 | BE23: 1832 | BF23: 88.8%
A24: 烟花爆竹经营负责人初训 | B24: 5 | C24: 4 | D24: 80.0% | AC24: 6 | AD24: 3 | AE24: 50.0% | AF24: 1 | AG24: 0 | AH24: 0.0% | AL24: 3 | AM24: 3 | AN24: 100.0% | AU24: 1 | AV24: 1 | AW24: 100.0% | AX24: 2 | AY24: 2 | AZ24: 100.0% | BD24: 18 | BE24: 13 | BF24: 72.2%
A25: 危化生产负责人初训
A26: 危化经营负责人初训 | B26: 5 | C26: 5 | D26: 100.0% | K26: 5 | L26: 5 | M26: 100.0% | AF26: 3 | AG26: 3 | AH26: 100.0% | AO26: 1 | AP26: 1 | AQ26: =AP26/AO26 -> 100.0% | AX26: 1 | AY26: 1 | AZ26: =AY26/AX26 -> 100.0% | BD26: 15 | BE26: 15 | BF26: 100.0%
A27: 非煤矿山负责人初训
A28: 金属冶炼负责人初训 | AF28: 1 | AG28: 1 | AH28: =AG28/AF28 -> 100.0% | BD28: 1 | BE28: 1 | BF28: 100.0%
A29: 高危行业负责人初训合计 | B29: =SUM(B24:B28) -> 10 | C29: =SUM(C24:C28) -> 9 | D29: =C29/B29 -> 90.0% | K29: =SUM(K24:K28) -> 5 | L29: =SUM(L24:L28) -> 5 | M29: =L29/K29 -> 100.0% | AC29: =SUM(AC24:AC28) -> 6 | AD29: 3 | AE29: =AD29/AC29 -> 50.0% | AF29: 5 | AG29: 4 | AH29: 80.0% | AL29: =SUM(AL24:AL28) -> 3 | AM29: 3 | AN29: =AM29/AL29 -> 100.0% | AO29: 1 | AP29: 1 | AQ29: 100.0% | AU29: =SUM(AU24:AU28) -> 1 | AV29: 1 | AW29: =AV29/AU29 -> 100.0% | AX29: 3 | AY29: 3 | AZ29: =AY29/AX29 -> 100.0% | BD29: 34 | BE29: 29 | BF29: 85.3%
A30: 烟花爆竹经营负责人复训 | AC30: 2 | AD30: 2 | AE30: =AD30/AC30 -> 100.0% | BD30: 2 | BE30: 2 | BF30: 100.0%
A31: 危化生产负责人复训 | K31: 3 | L31: 3 | M31: 100.0% | AC31: 2 | AD31: 2 | AE31: =AD31/AC31 -> 100.0% | AF31: 1 | AG31: 1 | AH31: 100.0% | AO31: 1 | AP31: 1 | AQ31: 100.0% | BD31: =B31+E31+H31+K31+N31+Q31+T31+W31+Z31+AC31+AF31+AI31+AL31+AO31+AR31+AU31+AX31+BA31 -> 7 | BE31: =C31+F31+I31+L31+O31+R31+U31+X31+AA31+AD31+AG31+AJ31+AM31+AP31+AS31+AV31+AY31+BB31 -> 7 | BF31: =BE31/BD31 -> 100.0%
A32: 危化经营负责人复训 | B32: 66 | C32: 65 | D32: 98.5% | K32: 33 | L32: 32 | M32: 97.0% | AC32: 1 | AD32: 1 | AE32: 100.0% | AF32: 2 | AG32: 1 | AH32: =AG32/AF32 -> 50.0% | AO32: 2 | AP32: 2 | AQ32: 100.0% | AR32: 1 | AS32: 0 | AT32: =AS32/AR32 -> 0.0% | BD32: 105 | BE32: 101 | BF32: 96.2%
A33: 非煤矿山负责人复训 | B33: 1 | C33: 1 | D33: 100.0% | BD33: 1 | BE33: 1 | BF33: 100.0%
A34: 金属冶炼负责人复训 | K34: 1 | L34: 0 | M34: 0.0% | Q34: 2 | R34: 2 | S34: =R34/Q34 -> 100.0%
A35: 高危行业负责人复训合计 | B35: =SUM(B30:B34) -> 67 | C35: =SUM(C30:C34) -> 66 | D35: =C35/B35 -> 98.5% | K35: =SUM(K30:K34) -> 37 | L35: =SUM(L30:L34) -> 35 | M35: =L35/K35 -> 94.6% | Q35: =SUM(Q30:Q34) -> 2 | R35: =SUM(R30:R34) -> 2 | S35: =R35/Q35 -> 100.0% | AC35: =SUM(AC30:AC34) -> 5 | AD35: 5 | AE35: 100.0% | AF35: 3 | AG35: 2 | AH35: 66.7% | AO35: =SUM(AO30:AO34) -> 3 | AP35: 3 | AQ35: =AP35/AO35 -> 100.0% | AR35: 1 | AS35: 0 | AT35: 0.0% | BD35: =B35+E35+H35+K35+N35+Q35+T35+W35+Z35+AC35+AF35+AI35+AL35+AO35+AR35+AU35+AX35+BA35 -> 118 | BE35: =C35+F35+I35+L35+O35+R35+U35+X35+AA35+AD35+AG35+AJ35+AM35+AP35+AS35+AV35+AY35+BB35 -> 113 | BF35: =BE35/BD35 -> 95.8%
A36: 高危行业主要负责人合计 | B36: =B29+B35 -> 77 | C36: =C29+C35 -> 75 | D36: 97.4% | K36: =K29+K35 -> 42 | L36: =L29+L35 -> 40 | M36: 95.2% | Q36: =Q29+Q35 -> 2 | R36: =R29+R35 -> 2 | S36: 100.0% | AC36: =AC29+AC35 -> 11 | AD36: 8 | AE36: 72.7% | AF36: 8 | AG36: 6 | AH36: 75.0% | AL36: =AL29+AL35 -> 3 | AM36: 3 | AN36: =AM36/AL36 -> 100.0% | AO36: =AO29+AO35 -> 4 | AP36: 4 | AQ36: 100.0% | AR36: 1 | AS36: 0 | AT36: 0.0% | AU36: =AU29+AU35 -> 1 | AV36: 1 | AW36: =AV36/AU36 -> 100.0% | AX36: 3 | AY36: 3 | AZ36: =AY36/AX36 -> 100.0% | BD36: 152 | BE36: 142 | BF36: 93.4%
A37: 烟花爆竹经营安管初训 | B37: 4 | C37: 3 | D37: 75.0% | AC37: 4 | AD37: 2 | AE37: 50.0% | AF37: 2 | AG37: 1 | AH37: 50.0% | AL37: 3 | AM37: 3 | AN37: 100.0% | AO37: 1 | AP37: 1 | AQ37: 100.0% | AU37: 1 | AV37: 1 | AW37: =AV37/AU37 -> 100.0% | AX37: 3 | AY37: 3 | AZ37: 100.0% | BD37: 18 | BE37: 14 | BF37: 77.8%
A38: 危化生产安管初训 | B38: 6 | C38: 6 | D38: 100.0% | K38: 6 | L38: 6 | M38: 100.0% | AF38: 2 | AG38: 2 | AH38: 100.0% | BD38: 14 | BE38: 14 | BF38: 100.0%
A39: 危化经营安管初训 | B39: 13 | C39: 12 | D39: 92.3% | K39: 12 | L39: 7 | M39: 58.3% | Q39: 3 | R39: 3 | S39: =R39/Q39 -> 100.0% | AF39: 4 | AG39: 4 | AH39: 100.0% | AL39: 3 | AM39: 3 | AN39: 100.0% | AO39: 4 | AP39: 4 | AQ39: =AP39/AO39 -> 100.0% | AX39: 1 | AY39: 1 | AZ39: 100.0% | BD39: 40 | BE39: 34 | BF39: 85.0%
A40: 非煤矿山安管初训 | B40: 1 | C40: 1 | D40: 100.0% | K40: 1 | L40: 1 | M40: 100.0% | BD40: 2 | BE40: 2 | BF40: 100.0%
A41: 金属冶炼安管初训 | AF41: 1 | AG41: 1 | AH41: =AG41/AF41 -> 100.0% | BD41: 1 | BE41: 1 | BF41: 100.0%
A42: 高危行业安管初训合计 | B42: =SUM(B37:B41) -> 24 | C42: =SUM(C37:C41) -> 22 | D42: =C42/B42 -> 91.7% | K42: =SUM(K37:K41) -> 19 | L42: =SUM(L37:L41) -> 14 | M42: =L42/K42 -> 73.7% | Q42: =SUM(Q37:Q41) -> 3 | R42: =SUM(R37:R41) -> 3 | S42: =R42/Q42 -> 100.0% | AC42: =SUM(AC37:AC41) -> 4 | AD42: 2 | AE42: =AD42/AC42 -> 50.0% | AF42: 9 | AG42: 8 | AH42: =AG42/AF42 -> 88.9% | AL42: =SUM(AL37:AL41) -> 6 | AM42: =SUM(AM37:AM41) -> 6 | AN42: =AM42/AL42 -> 100.0% | AO42: =SUM(AO37:AO41) -> 5 | AP42: =SUM(AP37:AP41) -> 5 | AQ42: =AP42/AO42 -> 100.0% | AU42: =SUM(AU37:AU41) -> 1 | AV42: 1 | AW42: =AV42/AU42 -> 100.0% | AX42: 4 | AY42: 4 | AZ42: =AY42/AX42 -> 100.0% | BD42: 75 | BE42: 65 | BF42: 86.7%
A43: 烟花爆竹经营安管复训 | AC43: 2 | AD43: 0 | AE43: 0.0% | BD43: 2 | BE43: 0 | BF43: 0.0%
A44: 危化生产安管复训 | B44: 6 | C44: 5 | D44: 83.3% | K44: 13 | L44: 13 | M44: =L44/K44 -> 100.0% | AC44: 1 | AD44: 1 | AE44: 100.0% | AF44: 4 | AG44: 3 | AH44: 75.0% | AO44: 10 | AP44: 10 | AQ44: =AP44/AO44 -> 100.0% | BD44: =B44+E44+H44+K44+N44+Q44+T44+W44+Z44+AC44+AF44+AI44+AL44+AO44+AR44+AU44+AX44+BA44 -> 34 | BE44: =C44+F44+I44+L44+O44+R44+U44+X44+AA44+AD44+AG44+AJ44+AM44+AP44+AS44+AV44+AY44+BB44 -> 32 | BF44: =BE44/BD44 -> 94.1%
A45: 危化经营安管复训 | B45: 71 | C45: 66 | D45: 93.0% | K45: 67 | L45: 60 | M45: 89.6% | AC45: 1 | AD45: 1 | AE45: 100.0% | AF45: 2 | AG45: 2 | AH45: 100.0% | AL45: 1 | AM45: 1 | AN45: =AM45/AL45 -> 100.0% | AO45: 3 | AP45: 3 | AQ45: =AP45/AO45 -> 100.0% | BD45: 145 | BE45: 133 | BF45: 91.7%
A46: 非煤矿山安管复训
A47: 金属冶炼安管复训
A48: 高危行业安管复训合计 | B48: =SUM(B43:B47) -> 77 | C48: =SUM(C43:C47) -> 71 | D48: =C48/B48 -> 92.2% | K48: =SUM(K43:K47) -> 80 | L48: =SUM(L43:L47) -> 73 | M48: =L48/K48 -> 91.3% | AC48: =SUM(AC43:AC47) -> 4 | AD48: =SUM(AD43:AD47) -> 2 | AE48: =AD48/AC48 -> 50.0% | AF48: =SUM(AF43:AF47) -> 6 | AG48: =SUM(AG43:AG47) -> 5 | AH48: =AG48/AF48 -> 83.3% | AL48: =SUM(AL43:AL47) -> 1 | AM48: =SUM(AM43:AM47) -> 1 | AN48: 100.0% | AO48: 13 | AP48: 13 | AQ48: 100.0% | BD48: =B48+E48+H48+K48+N48+Q48+T48+W48+Z48+AC48+AF48+AI48+AL48+AO48+AR48+AU48+AX48+BA48 -> 181 | BE48: =C48+F48+I48+L48+O48+R48+U48+X48+AA48+AD48+AG48+AJ48+AM48+AP48+AS48+AV48+AY48+BB48 -> 165 | BF48: =BE48/BD48 -> 91.2%
A49: 高危行业安管人员合计 | B49: =B42+B48 -> 101 | C49: =C42+C48 -> 93 | D49: 92.1% | K49: =K42+K48 -> 99 | L49: =L42+L48 -> 87 | M49: 87.9% | Q49: =Q42+Q48 -> 3 | R49: =R42+R48 -> 3 | S49: =R49/Q49 -> 100.0% | AC49: =AC42+AC48 -> 8 | AD49: 4 | AE49: =AD49/AC49 -> 50.0% | AF49: 15 | AG49: 13 | AH49: 86.7% | AL49: =AL42+AL48 -> 7 | AM49: =AM42+AM48 -> 7 | AN49: 100.0% | AO49: 18 | AP49: 18 | AQ49: 100.0% | AU49: =AU42+AU48 -> 1 | AV49: 1 | AW49: =AV49/AU49 -> 100.0% | AX49: 4 | AY49: 4 | AZ49: =AY49/AX49 -> 100.0% | BD49: 256 | BE49: 230 | BF49: 89.8%
A50: 高危行业负责人安管合计 | B50: =B36+B49 -> 178 | C50: =C36+C49 -> 168 | D50: 94.4% | K50: =K36+K49 -> 141 | L50: =L36+L49 -> 127 | M50: 90.1% | Q50: =Q36+Q49 -> 5 | R50: =R36+R49 -> 5 | S50: 100.0% | AC50: =AC36+AC49 -> 19 | AD50: 12 | AE50: 63.2% | AF50: 23 | AG50: 19 | AH50: 82.6% | AL50: =AL36+AL49 -> 10 | AM50: 10 | AN50: 100.0% | AO50: 22 | AP50: 22 | AQ50: 100.0% | AR50: =AR36+AR49 -> 1 | AS50: =AS36+AS49 -> 0 | AT50: =AS50/AR50 -> 0.0% | AU50: =AU36+AU49 -> 2 | AV50: 2 | AW50: 100.0% | AX50: 7 | AY50: 7 | AZ50: 100.0% | BD50: 408 | BE50: 372 | BF50: 91.2%
A51: 全工种合计 | B51: =B23+B50 -> 655 | C51: 601 | D51: 91.8% | E51: 229 | F51: 212 | G51: =F51/E51 -> 92.6% | H51: =H23+H50 -> 13 | I51: 12 | J51: =I51/H51 -> 92.3% | K51: 571 | L51: 525 | M51: 91.9% | N51: =N23+N50 -> 88 | O51: 83 | P51: =O51/N51 -> 94.3% | Q51: 41 | R51: 39 | S51: 95.1% | T51: =T23+T50 -> 50 | U51: 35 | V51: =U51/T51 -> 70.0% | W51: 21 | X51: 19 | Y51: =X51/W51 -> 90.5% | Z51: =Z23+Z50 -> 68 | AA51: 61 | AB51: =AA51/Z51 -> 89.7% | AC51: 129 | AD51: 102 | AE51: 79.1% | AF51: =AF23+AF50 -> 138 | AG51: 120 | AH51: 87.0% | AI51: 110 | AJ51: 78 | AK51: =AJ51/AI51 -> 70.9% | AL51: =AL23+AL50 -> 105 | AM51: 97 | AN51: 92.4% | AO51: 34 | AP51: 34 | AQ51: 100.0% | AR51: =AR23+AR50 -> 1 | AS51: =AS23+AS50 -> 0 | AT51: 0.0% | AU51: =AU23+AU50 -> 4 | AV51: 4 | AW51: 100.0% | AX51: =AX23+AX50 -> 9 | AY51: =AY23+AY50 -> 9 | AZ51: 100.0% | BA51: =BA23+BA50 -> 204 | BB51: =BB23+BB50 -> 173 | BC51: =BB51/BA51 -> 84.8% | BD51: 2470 | BE51: 2204 | BF51: 89.2%
A52: 备注： 1.培训机构名称以全国安全生产培训考试信息管理系统记录为准，按系统顺序排序； 2.实考人数=报考总人数-正考补考均缺考人数-考试违规被取消成绩人数； 3.仅统计已完成考试者，还有补考机会者不统计。

Sheet 12月
A1: 2022年12月各安全培训机构考生通过率统计表
A2: 培训机构 工种 | B2: 江门市安信职业安全培训有限公司 | E2: 广东四维培训有限公司 | H2: 江门市技师学院 | K2: 江门市江海区共升教育培训中心 | N2: 江门市侨都安全咨询服务有限公司 | Q2: 江门市安全生产管理协会 | T2: 江门市新会技师学院 | W2: 江门市新会机电职业技术学校 | Z2: 鹤山市优创职业培训学校有限公司 | AC2: 台山市安全生产管理协会 | AF2: 鹤山市安全生产管理协会 | AI2: 江门市江海区万众职业培训学校 | AL2: 开平市中邑安安全技术咨询有限公司 | AO2: 江门市江海区安全生产管理协会 | AR2: 江门市天晟安全事务有限公司 | AU2: 恩平市科瑞职业技术培训学校 | AX2: 江门市金迪安全科技有限公司 | BA2: 江门市易考安全技术服务有限公司 | BD2: 鹤山市新供销协力教育咨询有限公司 | BG2: 全市合计
B3: 实考人数 | C3: 合格人数 | D3: 通过率 | E3: 实考人数 | F3: 合格人数 | G3: 通过率 | H3: 实考人数 | I3: 合格人数 | J3: 通过率 | K3: 实考人数 | L3: 合格人数 | M3: 通过率 | N3: 实考人数 | O3: 合格人数 | P3: 通过率 | Q3: 实考人数 | R3: 合格人数 | S3: 通过率 | T3: 实考人数 | U3: 合格人数 | V3: 通过率 | W3: 实考人数 | X3: 合格人数 | Y3: 通过率 | Z3: 实考人数 | AA3: 合格人数 | AB3: 通过率 | AC3: 实考人数 | AD3: 合格人数 | AE3: 通过率 | AF3: 实考人数 | AG3: 合格人数 | AH3: 通过率 | AI3: 实考人数 | AJ3: 合格人数 | AK3: 通过率 | AL3: 实考人数 | AM3: 合格人数 | AN3: 通过率 | AO3: 实考人数 | AP3: 合格人数 | AQ3: 通过率 | AR3: 实考人数 | AS3: 合格人数 | AT3: 通过率 | AU3: 实考人数 | AV3: 合格人数 | AW3: 通过率 | AX3: 实考人数 | AY3: 合格人数 | AZ3: 通过率 | BA3: 实考人数 | BB3: 合格人数 | BC3: 通过率 | BD3: 实考人数 | BE3: 合格人数 | BF3: 通过率 | BG3: 实考人数 | BH3: 合格人数 | BI3: 通过率
A4: 低压电工初训 | B4: 41 | C4: 26 | D4: =C4/B4 -> 63.4% | H4: 70 | I4: 50 | J4: =I4/H4 -> 71.4% | K4: 3 | L4: 3 | M4: =L4/K4 -> 100.0% | N4: 72 | O4: 62 | P4: =O4/N4 -> 86.1% | Q4: 14 | R4: 13 | S4: =R4/Q4 -> 92.9% | T4: 16 | U4: 15 | V4: =U4/T4 -> 93.8% | W4: 46 | X4: 44 | Y4: =X4/W4 -> 95.7% | Z4: 63 | AA4: 46 | AB4: =AA4/Z4 -> 73.0% | AC4: 4 | AD4: 1 | AE4: =AD4/AC4 -> 25.0% | AI4: 34 | AJ4: 24 | AK4: =AJ4/AI4 -> 70.6% | AO4: 1 | AP4: 0 | AQ4: =AP4/AO4 -> 0.0% | AX4: 6 | AY4: 6 | AZ4: =AY4/AX4 -> 100.0% | BA4: 2 | BB4: 1 | BC4: =BB4/BA4 -> 50.0% | BD4: 45 | BE4: 22 | BF4: =BE4/BD4 -> 48.9% | BG4: =B4+E4+H4+K4+N4+Q4+T4+W4+Z4+AC4+AF4+AI4+AL4+AO4+AR4+AU4+AX4+BA4+BD4 -> 417 | BH4: =C4+F4+I4+L4+O4+R4+U4+X4+AA4+AD4+AG4+AJ4+AM4+AP4+AS4+AV4+AY4+BB4+BE4 -> 313 | BI4: =BH4/BG4 -> 75.1%
A5: 高压电工初训
A6: 电力电缆初训
A7: 熔化焊接与热切割初训 | B7: 19 | C7: 15 | D7: 78.9% | K7: 28 | L7: 24 | M7: =L7/K7 -> 85.7% | N7: 8 | O7: 8 | P7: =O7/N7 -> 100.0% | Q7: 22 | R7: 18 | S7: =R7/Q7 -> 81.8% | Z7: 48 | AA7: 39 | AB7: 81.3% | AI7: 12 | AJ7: 12 | AK7: =AJ7/AI7 -> 100.0% | AL7: 24 | AM7: 19 | AN7: =AM7/AL7 -> 79.2% | AO7: 4 | AP7: 2 | AQ7: =AP7/AO7 -> 50.0% | AU7: 12 | AV7: 12 | AW7: =AV7/AU7 -> 100.0% | BA7: 11 | BB7: 10 | BC7: =BB7/BA7 -> 90.9% | BD7: 16 | BE7: 13 | BF7: =BE7/BD7 -> 81.3% | BG7: =B7+E7+H7+K7+N7+Q7+T7+W7+Z7+AC7+AF7+AI7+AL7+AO7+AR7+AU7+AX7+BA7+BD7 -> 204 | BH7: 172 | BI7: 84.3%
A8: 高处安装维护拆除初训 | K8: 39 | L8: 32 | M8: =L8/K8 -> 82.1% | BA8: 4 | BB8: 4 | BC8: =BB8/BA8 -> 100.0% | BD8: 45 | BE8: 41 | BF8: =BE8/BD8 -> 91.1% | BG8: 88 | BH8: 77 | BI8: 87.5%
A9: 特种作业初训合计 | B9: =SUM(B4:B8) -> 60 | C9: 41 | D9: 68.3% | H9: =SUM(H4:H8) -> 70 | I9: =SUM(I4:I8) -> 50 | J9: =I9/H9 -> 71.4% | K9: =SUM(K4:K8) -> 70 | L9: 59 | M9: 84.3% | N9: =SUM(N4:N8) -> 80 | O9: 70 | P9: 87.5% | Q9: 36 | R9: 31 | S9: =R9/Q9 -> 86.1% | T9: 16 | U9: 15 | V9: =U9/T9 -> 93.8% | W9: =SUM(W4:W8) -> 46 | X9: 44 | Y9: =X9/W9 -> 95.7% | Z9: 111 | AA9: 85 | AB9: 76.6% | AC9: =SUM(AC4:AC8) -> 4 | AD9: 1 | AE9: =AD9/AC9 -> 25.0% | AI9: =SUM(AI4:AI8) -> 46 | AJ9: 36 | AK9: 78.3% | AL9: 24 | AM9: 19 | AN9: =AM9/AL9 -> 79.2% | AO9: =SUM(AO4:AO8) -> 5 | AP9: =SUM(AP4:AP8) -> 2 | AQ9: =AP9/AO9 -> 40.0% | AU9: =SUM(AU4:AU8) -> 12 | AV9: =SUM(AV4:AV8) -> 12 | AW9: =AV9/AU9 -> 100.0% | AX9: =SUM(AX4:AX8) -> 6 | AY9: =SUM(AY4:AY8) -> 6 | AZ9: =AY9/AX9 -> 100.0% | BA9: =SUM(BA4:BA8) -> 17 | BB9: =SUM(BB4:BB8) -> 15 | BC9: =BB9/BA9 -> 88.2% | BD9: =SUM(BD4:BD8) -> 106 | BE9: =SUM(BE4:BE8) -> 76 | BF9: =BE9/BD9 -> 71.7% | BG9: 709 | BH9: 562 | BI9: 79.3%
A10: 低压电工复训 | B10: 252 | C10: 236 | D10: 93.7% | H10: 57 | I10: 54 | J10: =I10/H10 -> 94.7% | K10: 158 | L10: 152 | M10: 96.2% | N10: 18 | O10: 14 | P10: 77.8% | Q10: 12 | R10: 12 | S10: 100.0% | Z10: 1 | AA10: 1 | AB10: 100.0% | AC10: 84 | AD10: 80 | AE10: 95.2% | AF10: 133 | AG10: 130 | AH10: =AG10/AF10 -> 97.7% | AI10: 11 | AJ10: 9 | AK10: 81.8% | AL10: 17 | AM10: 16 | AN10: 94.1% | AO10: 1 | AP10: 1 | AQ10: 100.0% | AU10: 13 | AV10: 10 | AW10: =AV10/AU10 -> 76.9% | AX10: 7 | AY10: 6 | AZ10: =AY10/AX10 -> 85.7% | BD10: 28 | BE10: 28 | BF10: =BE10/BD10 -> 100.0% | BG10: 792 | BH10: 749 | BI10: 94.6%
A11: 高压电工复训 | B11: 60 | C11: 54 | D11: 90.0% | K11: 29 | L11: 29 | M11: 100.0% | N11: 6 | O11: 6 | P11: 100.0% | AC11: 4 | AD11: 4 | AE11: 100.0% | AF11: 11 | AG11: 10 | AH11: 90.9% | AL11: 3 | AM11: 3 | AN11: 100.0% | BG11: 113 | BH11: 106 | BI11: 93.8%
A12: 熔化焊接与热切割复训 | B12: 49 | C12: 42 | D12: 85.7% | H12: 3 | I12: 3 | J12: =I12/H12 -> 100.0% | K12: 24 | L12: 22 | M12: 91.7% | N12: 4 | O12: 3 | P12: 75.0% | Q12: 23 | R12: 23 | S12: 100.0% | Z12: 1 | AA12: 1 | AB12: =AA12/Z12 -> 100.0% | AC12: 16 | AD12: 14 | AE12: 87.5% | AF12: 16 | AG12: 16 | AH12: 100.0% | AI12: 7 | AJ12: 6 | AK12: =AJ12/AI12 -> 85.7% | AL12: 1 | AM12: 1 | AN12: 100.0% | AU12: 2 | AV12: 2 | AW12: =AV12/AU12 -> 100.0% | AX12: 2 | AY12: 2 | AZ12: =AY12/AX12 -> 100.0% | BD12: 8 | BE12: 7 | BF12: =BE12/BD12 -> 87.5% | BG12: 156 | BH12: 142 | BI12: 91.0%
A13: 钎焊复训
A14: 高处安装维护拆除复训 | B14: 53 | C14: 44 | D14: =C14/B14 -> 83.0% | K14: 8 | L14: 8 | M14: =L14/K14 -> 100.0% | BD14: 2 | BE14: 2 | BF14: =BE14/BD14 -> 100.0% | BG14: 63 | BH14: 54 | BI14: =BH14/BG14 -> 85.7%
A15: 登高架设复训 | Q15: 3 | R15: 3 | S15: 100.0% | BG15: 3 | BH15: 3 | BI15: 100.0%
A16: 制冷与空调运行操作复训 | B16: 1 | C16: 1 | D16: =C16/B16 -> 100.0% | BG16: 1 | BH16: 1 | BI16: 100.0%
A17: 制冷与空调安装修理复训
A18: 矿山安检复训
A19: 电力电缆复训
A20: 电气试验复训 | B20: 2 | C20: 1 | D20: 50.0% | N20: 1 | O20: 1 | P20: =O20/N20 -> 100.0% | BG20: 3 | BH20: 2 | BI20: 66.7%
A21: 继电保护复训 | B21: 2 | C21: 1 | D21: 50.0% | BG21: 2 | BH21: 1 | BI21: 50.0%
A22: 特种作业复训合计 | B22: =SUM(B10:B21) -> 419 | C22: 379 | D22: 90.5% | H22: =SUM(H10:H21) -> 60 | I22: =SUM(I10:I21) -> 57 | J22: =I22/H22 -> 95.0% | K22: =SUM(K10:K21) -> 219 | L22: 211 | M22: =L22/K22 -> 96.3% | N22: 29 | O22: 24 | P22: =O22/N22 -> 82.8% | Q22: =SUM(Q10:Q21) -> 38 | R22: 38 | S22: =R22/Q22 -> 100.0% | Z22: =SUM(Z10:Z21) -> 2 | AA22: 2 | AB22: =AA22/Z22 -> 100.0% | AC22: 104 | AD22: 98 | AE22: =AD22/AC22 -> 94.2% | AF22: =SUM(AF10:AF21) -> 160 | AG22: 156 | AH22: =AG22/AF22 -> 97.5% | AI22: 18 | AJ22: 15 | AK22: =AJ22/AI22 -> 83.3% | AL22: =SUM(AL10:AL21) -> 21 | AM22: 20 | AN22: =AM22/AL22 -> 95.2% | AO22: 1 | AP22: 1 | AQ22: =AP22/AO22 -> 100.0% | AU22: =SUM(AU10:AU21) -> 15 | AV22: 12 | AW22: =AV22/AU22 -> 80.0% | AX22: 9 | AY22: 8 | AZ22: =AY22/AX22 -> 88.9% | BD22: =SUM(BD10:BD21) -> 38 | BE22: =SUM(BE10:BE21) -> 37 | BF22: =BE22/BD22 -> 97.4% | BG22: 1133 | BH22: 1058 | BI22: 93.4%
A23: 特种作业人员合计 | B23: =B9+B22 -> 479 | C23: 420 | D23: 87.7% | H23: =H9+H22 -> 130 | I23: 107 | J23: =I23/H23 -> 82.3% | K23: 289 | L23: 270 | M23: 93.4% | N23: =N9+N22 -> 109 | O23: 94 | P23: =O23/N23 -> 86.2% | Q23: 74 | R23: 69 | S23: 93.2% | T23: =T9+T22 -> 16 | U23: 15 | V23: =U23/T23 -> 93.8% | W23: 46 | X23: 44 | Y23: =X23/W23 -> 95.7% | Z23: =Z9+Z22 -> 113 | AA23: 87 | AB23: =AA23/Z23 -> 77.0% | AC23: 108 | AD23: 99 | AE23: 91.7% | AF23: =AF9+AF22 -> 160 | AG23: 156 | AH23: 97.5% | AI23: 64 | AJ23: 51 | AK23: =AJ23/AI23 -> 79.7% | AL23: =AL9+AL22 -> 45 | AM23: 39 | AN23: 86.7% | AO23: 6 | AP23: 3 | AQ23: 50.0% | AU23: =AU9+AU22 -> 27 | AV23: 24 | AW23: 88.9% | AX23: 15 | AY23: 14 | AZ23: 93.3% | BA23: =BA9+BA22 -> 17 | BB23: =BB9+BB22 -> 15 | BC23: =BB23/BA23 -> 88.2% | BD23: =BD9+BD22 -> 144 | BE23: =BE9+BE22 -> 113 | BF23: =BE23/BD23 -> 78.5% | BG23: 1842 | BH23: 1620 | BI23: 87.9%
A24: 烟花爆竹经营负责人初训 | B24: 5 | C24: 3 | D24: 60.0% | AC24: 4 | AD24: 2 | AE24: 50.0% | AF24: 2 | AG24: 2 | AH24: 100.0% | AL24: 1 | AM24: 1 | AN24: 100.0% | AX24: 1 | AY24: 1 | AZ24: 100.0% | BG24: 13 | BH24: 9 | BI24: 69.2%
A25: 危化生产负责人初训 | B25: 1 | C25: 0 | D25: 0.0% | K25: 2 | L25: 2 | M25: =L25/K25 -> 100.0% | AC25: 1 | AD25: 1 | AE25: 100.0% | AF25: 2 | AG25: 2 | AH25: 100.0% | BG25: 6 | BH25: 5 | BI25: 83.3%
A26: 危化经营负责人初训 | B26: 13 | C26: 11 | D26: 84.6% | K26: 6 | L26: 6 | M26: 100.0% | AC26: 1 | AD26: 1 | AE26: 100.0% | AF26: 2 | AG26: 1 | AH26: 50.0% | AL26: 4 | AM26: 4 | AN26: =AM26/AL26 -> 100.0% | AO26: 5 | AP26: 5 | AQ26: =AP26/AO26 -> 100.0% | AR26: 2 | AS26: 2 | AT26: =AS26/AR26 -> 100.0% | AX26: 1 | AY26: 1 | AZ26: =AY26/AX26 -> 100.0% | BG26: 34 | BH26: 31 | BI26: 91.2%
A27: 非煤矿山负责人初训
A28: 金属冶炼负责人初训 | AO28: 1 | AP28: 1 | AQ28: =AP28/AO28 -> 100.0% | BG28: 1 | BH28: 1 | BI28: 100.0%
A29: 高危行业负责人初训合计 | B29: =SUM(B24:B28) -> 19 | C29: =SUM(C24:C28) -> 14 | D29: =C29/B29 -> 73.7% | K29: =SUM(K24:K28) -> 8 | L29: =SUM(L24:L28) -> 8 | M29: =L29/K29 -> 100.0% | AC29: =SUM(AC24:AC28) -> 6 | AD29: 4 | AE29: =AD29/AC29 -> 66.7% | AF29: 6 | AG29: 5 | AH29: =AG29/AF29 -> 83.3% | AL29: =SUM(AL24:AL28) -> 5 | AM29: 5 | AN29: =AM29/AL29 -> 100.0% | AO29: 6 | AP29: 6 | AQ29: 100.0% | AR29: =SUM(AR24:AR28) -> 2 | AS29: =SUM(AS24:AS28) -> 2 | AT29: 100.0% | AX29: =SUM(AX24:AX28) -> 2 | AY29: 2 | AZ29: =AY29/AX29 -> 100.0% | BG29: 54 | BH29: 46 | BI29: 85.2%
A30: 烟花爆竹经营负责人复训
A31: 危化生产负责人复训 | B31: 2 | C31: 2 | D31: =C31/B31 -> 100.0% | K31: 3 | L31: 3 | M31: 100.0% | AO31: 1 | AP31: 1 | AQ31: 100.0% | AR31: 1 | AS31: 1 | AT31: 100.0% | BG31: 7 | BH31: 7 | BI31: 100.0%
A32: 危化经营负责人复训 | B32: 81 | C32: 78 | D32: 96.3% | K32: 29 | L32: 26 | M32: 89.7% | AO32: 8 | AP32: 7 | AQ32: 87.5% | AR32: 4 | AS32: 4 | AT32: =AS32/AR32 -> 100.0% | AX32: 1 | AY32: 1 | AZ32: =AY32/AX32 -> 100.0% | BG32: 123 | BH32: 116 | BI32: 94.3%
A33: 非煤矿山负责人复训 | AF33: 1 | AG33: 1 | AH33: 100.0% | BG33: 1 | BH33: 1 | BI33: 100.0%
A34: 金属冶炼负责人复训 | B34: 1 | C34: 1 | D34: 100.0% | BG34: 1 | BH34: 1 | BI34: 100.0%
A35: 高危行业负责人复训合计 | B35: =SUM(B30:B34) -> 84 | C35: =SUM(C30:C34) -> 81 | D35: =C35/B35 -> 96.4% | K35: =SUM(K30:K34) -> 32 | L35: =SUM(L30:L34) -> 29 | M35: 90.6% | AF35: =SUM(AF30:AF34) -> 1 | AG35: 1 | AH35: 100.0% | AO35: =SUM(AO30:AO34) -> 9 | AP35: 8 | AQ35: =AP35/AO35 -> 88.9% | AR35: 5 | AS35: 5 | AT35: 100.0% | AX35: =SUM(AX30:AX34) -> 1 | AY35: =SUM(AY30:AY34) -> 1 | AZ35: =AY35/AX35 -> 100.0% | BG35: 132 | BH35: 125 | BI35: =BH35/BG35 -> 94.7%
A36: 高危行业主要负责人合计 | B36: =B29+B35 -> 103 | C36: =C29+C35 -> 95 | D36: 92.2% | K36: =K29+K35 -> 40 | L36: =L29+L35 -> 37 | M36: 92.5% | AC36: =AC29+AC35 -> 6 | AD36: 4 | AE36: =AD36/AC36 -> 66.7% | AF36: 7 | AG36: 6 | AH36: 85.7% | AL36: =AL29+AL35 -> 5 | AM36: 5 | AN36: =AM36/AL36 -> 100.0% | AO36: =AO29+AO35 -> 15 | AP36: 14 | AQ36: 93.3% | AR36: 7 | AS36: 7 | AT36: 100.0% | AX36: =AX29+AX35 -> 3 | AY36: 3 | AZ36: =AY36/AX36 -> 100.0% | BG36: 186 | BH36: 171 | BI36: 91.9%
A37: 烟花爆竹经营安管初训 | B37: 1 | C37: 1 | D37: 100.0% | AC37: 3 | AD37: 3 | AE37: =AD37/AC37 -> 100.0% | AF37: 4 | AG37: 4 | AH37: 100.0% | AL37: 1 | AM37: 1 | AN37: 100.0% | AX37: 1 | AY37: 1 | AZ37: 100.0% | BG37: 10 | BH37: 10 | BI37: 100.0%
A38: 危化生产安管初训 | B38: 3 | C38: 2 | D38: 66.7% | K38: 6 | L38: 6 | M38: 100.0% | AF38: 1 | AG38: 0 | AH38: 0.0% | AO38: 2 | AP38: 2 | AQ38: 100.0% | BG38: 12 | BH38: 10 | BI38: 83.3%
A39: 危化经营安管初训 | B39: 14 | C39: 13 | D39: 92.9% | K39: 15 | L39: 13 | M39: 86.7% | AF39: 6 | AG39: 4 | AH39: 66.7% | AL39: 6 | AM39: 4 | AN39: 66.7% | AO39: 7 | AP39: 6 | AQ39: =AP39/AO39 -> 85.7% | AR39: 2 | AS39: 2 | AT39: =AS39/AR39 -> 100.0% | AX39: 1 | AY39: 0 | AZ39: 0.0% | BG39: 51 | BH39: 42 | BI39: 82.4%
A40: 非煤矿山安管初训 | AL40: 1 | AM40: 0 | AN40: 0.0% | BG40: 1 | BH40: 0 | BI40: 0.0%
A41: 金属冶炼安管初训 | AO41: 1 | AP41: 1 | AQ41: =AP41/AO41 -> 100.0% | BG41: 1 | BH41: 1 | BI41: 100.0%
A42: 高危行业安管初训合计 | B42: =SUM(B37:B41) -> 18 | C42: =SUM(C37:C41) -> 16 | D42: =C42/B42 -> 88.9% | K42: =SUM(K37:K41) -> 21 | L42: =SUM(L37:L41) -> 19 | M42: =L42/K42 -> 90.5% | AC42: =SUM(AC37:AC41) -> 3 | AD42: 3 | AE42: =AD42/AC42 -> 100.0% | AF42: 11 | AG42: 8 | AH42: =AG42/AF42 -> 72.7% | AL42: =SUM(AL37:AL41) -> 8 | AM42: =SUM(AM37:AM41) -> 5 | AN42: =AM42/AL42 -> 62.5% | AO42: 10 | AP42: 9 | AQ42: =AP42/AO42 -> 90.0% | AR42: 2 | AS42: 2 | AT42: 100.0% | AX42: =SUM(AX37:AX41) -> 2 | AY42: 1 | AZ42: =AY42/AX42 -> 50.0% | BG42: 75 | BH42: 63 | BI42: 84.0%
A43: 烟花爆竹经营安管复训 | AC43: 2 | AD43: 2 | AE43: 100.0% | BG43: 2 | BH43: 2 | BI43: 100.0%
A44: 危化生产安管复训 | B44: 15 | C44: 14 | D44: 93.3% | K44: 11 | L44: 9 | M44: =L44/K44 -> 81.8% | AF44: 2 | AG44: 2 | AH44: 100.0% | AR44: 1 | AS44: 1 | AT44: 100.0% | BG44: 29 | BH44: 26 | BI44: 89.7%
A45: 危化经营安管复训 | B45: 103 | C45: 93 | D45: 90.3% | K45: 60 | L45: 52 | M45: 86.7% | AF45: 1 | AG45: 0 | AH45: 0.0% | AO45: 6 | AP45: 6 | AQ45: =AP45/AO45 -> 100.0% | AR45: 5 | AS45: 4 | AT45: 80.0% | AX45: 1 | AY45: 1 | AZ45: =AY45/AX45 -> 100.0% | BG45: 176 | BH45: 156 | BI45: 88.6%
A46: 非煤矿山安管复训 | K46: 3 | L46: 3 | M46: 100.0% | AF46: 1 | AG46: 1 | AH46: 100.0% | BG46: 4 | BH46: 4 | BI46: 100.0%
A47: 金属冶炼安管复训
A48: 高危行业安管复训合计 | B48: =SUM(B43:B47) -> 118 | C48: =SUM(C43:C47) -> 107 | D48: =C48/B48 -> 90.7% | K48: =SUM(K43:K47) -> 74 | L48: =SUM(L43:L47) -> 64 | M48: =L48/K48 -> 86.5% | AC48: =SUM(AC43:AC47) -> 2 | AD48: =SUM(AD43:AD47) -> 2 | AE48: =AD48/AC48 -> 100.0% | AF48: =SUM(AF43:AF47) -> 4 | AG48: =SUM(AG43:AG47) -> 3 | AH48: =AG48/AF48 -> 75.0% | AO48: =SUM(AO43:AO47) -> 6 | AP48: 6 | AQ48: 100.0% | AR48: =SUM(AR43:AR47) -> 6 | AS48: =SUM(AS43:AS47) -> 5 | AT48: =AS48/AR48 -> 83.3% | AX48: =SUM(AX43:AX47) -> 1 | AY48: 1 | AZ48: 100.0% | BG48: 211 | BH48: 188 | BI48: =BH48/BG48 -> 89.1%
A49: 高危行业安管人员合计 | B49: =B42+B48 -> 136 | C49: =C42+C48 -> 123 | D49: 90.4% | K49: =K42+K48 -> 95 | L49: =L42+L48 -> 83 | M49: 87.4% | AC49: =AC42+AC48 -> 5 | AD49: 5 | AE49: =AD49/AC49 -> 100.0% | AF49: 15 | AG49: 11 | AH49: 73.3% | AL49: =AL42+AL48 -> 8 | AM49: =AM42+AM48 -> 5 | AN49: =AM49/AL49 -> 62.5% | AO49: 16 | AP49: 15 | AQ49: 93.8% | AR49: =AR42+AR48 -> 8 | AS49: =AS42+AS48 -> 7 | AT49: 87.5% | AX49: =AX42+AX48 -> 3 | AY49: 2 | AZ49: 66.7% | BG49: 286 | BH49: 251 | BI49: 87.8%
A50: 高危行业负责人安管合计 | B50: =B36+B49 -> 239 | C50: =C36+C49 -> 218 | D50: 91.2% | K50: =K36+K49 -> 135 | L50: =L36+L49 -> 120 | M50: 88.9% | AC50: =AC36+AC49 -> 11 | AD50: 9 | AE50: 81.8% | AF50: 22 | AG50: 17 | AH50: 77.3% | AL50: =AL36+AL49 -> 13 | AM50: 10 | AN50: 76.9% | AO50: 31 | AP50: 29 | AQ50: 93.5% | AR50: =AR36+AR49 -> 15 | AS50: =AS36+AS49 -> 14 | AT50: 93.3% | AX50: =AX36+AX49 -> 6 | AY50: =AY36+AY49 -> 5 | AZ50: 83.3% | BG50: 472 | BH50: 422 | BI50: 89.4%
A51: 全工种合计 | B51: =B23+B50 -> 718 | C51: 638 | D51: 88.9% | H51: =H23+H50 -> 130 | I51: 107 | J51: =I51/H51 -> 82.3% | K51: 424 | L51: 390 | M51: 92.0% | N51: =N23+N50 -> 109 | O51: 94 | P51: =O51/N51 -> 86.2% | Q51: =Q23+Q50 -> 74 | R51: =R23+R50 -> 69 | S51: =R51/Q51 -> 93.2% | T51: =T23+T50 -> 16 | U51: 15 | V51: =U51/T51 -> 93.8% | W51: 46 | X51: 44 | Y51: =X51/W51 -> 95.7% | Z51: =Z23+Z50 -> 113 | AA51: 87 | AB51: =AA51/Z51 -> 77.0% | AC51: 119 | AD51: 108 | AE51: 90.8% | AF51: =AF23+AF50 -> 182 | AG51: 173 | AH51: 95.1% | AI51: 64 | AJ51: 51 | AK51: =AJ51/AI51 -> 79.7% | AL51: =AL23+AL50 -> 58 | AM51: 49 | AN51: 84.5% | AO51: 37 | AP51: 32 | AQ51: 86.5% | AR51: =AR23+AR50 -> 15 | AS51: =AS23+AS50 -> 14 | AT51: 93.3% | AU51: =AU23+AU50 -> 27 | AV51: 24 | AW51: =AV51/AU51 -> 88.9% | AX51: =AX23+AX50 -> 21 | AY51: =AY23+AY50 -> 19 | AZ51: 90.5% | BA51: =BA23+BA50 -> 17 | BB51: =BB23+BB50 -> 15 | BC51: =BB51/BA51 -> 88.2% | BD51: =BD23+BD50 -> 144 | BE51: =BE23+BE50 -> 113 | BF51: =BE51/BD51 -> 78.5% | BG51: 2314 | BH51: 2042 | BI51: 88.2%
A52: 备注： 1.培训机构名称以全国安全生产培训考试信息管理系统记录为准，按系统顺序排序； 2.实考人数=报考总人数-正考补考均缺考人数-考试违规被取消成绩人数； 3.仅统计已完成考试者，还有补考机会者不统计。

Sheet 全年
A1: 2022年各安全培训机构考生通过率统计表
A2: 培训机构 工种 | B2: 江门市安信职业安全培训有限公司 | E2: 广东四维培训有限公司 | H2: 江门市技师学院 | K2: 江门市江海区共升教育培训中心 | N2: 江门市侨都安全咨询服务有限公司 | Q2: 江门市安全生产管理协会 | T2: 江门市新会技师学院 | W2: 江门市新会机电职业技术学校 | Z2: 鹤山市优创职业培训学校有限公司 | AC2: 台山市安全生产管理协会 | AF2: 鹤山市安全生产管理协会 | AI2: 江门市江海区万众职业培训学校 | AL2: 开平市中邑安安全技术咨询有限公司 | AO2: 江门市江海区安全生产管理协会 | AR2: 江门市天晟安全事务有限公司 | AU2: 恩平市科瑞职业技术培训学校 | AX2: 江门市金迪安全科技有限公司 | BA2: 江门市易考安全技术服务有限公司 | BD2: 鹤山市新供销协力教育咨询有限公司 | BG2: 全市合计
B3: 实考人数 | C3: 合格人数 | D3: 通过率 | E3: 实考人数 | F3: 合格人数 | G3: 通过率 | H3: 实考人数 | I3: 合格人数 | J3: 通过率 | K3: 实考人数 | L3: 合格人数 | M3: 通过率 | N3: 实考人数 | O3: 合格人数 | P3: 通过率 | Q3: 实考人数 | R3: 合格人数 | S3: 通过率 | T3: 实考人数 | U3: 合格人数 | V3: 通过率 | W3: 实考人数 | X3: 合格人数 | Y3: 通过率 | Z3: 实考人数 | AA3: 合格人数 | AB3: 通过率 | AC3: 实考人数 | AD3: 合格人数 | AE3: 通过率 | AF3: 实考人数 | AG3: 合格人数 | AH3: 通过率 | AI3: 实考人数 | AJ3: 合格人数 | AK3: 通过率 | AL3: 实考人数 | AM3: 合格人数 | AN3: 通过率 | AO3: 实考人数 | AP3: 合格人数 | AQ3: 通过率 | AR3: 实考人数 | AS3: 合格人数 | AT3: 通过率 | AU3: 实考人数 | AV3: 合格人数 | AW3: 通过率 | AX3: 实考人数 | AY3: 合格人数 | AZ3: 通过率 | BA3: 实考人数 | BB3: 合格人数 | BC3: 通过率 | BD3: 实考人数 | BE3: 合格人数 | BF3: 通过率 | BG3: 实考人数 | BH3: 合格人数 | BI3: 通过率
A4: 低压电工初训 | B4: ='1月'!B4+'2月'!B4+'3月'!B4+'5月'!B4+'6月'!B4+'7月'!B4+'8月'!B4+'9月'!B4+'10月'!B4+'11月'!B4+'12月'!B4 -> 507 | C4: ='1月'!C4+'2月'!C4+'3月'!C4+'5月'!C4+'6月'!C4+'7月'!C4+'8月'!C4+'9月'!C4+'10月'!C4+'11月'!C4+'12月'!C4 -> 415 | D4: =C4/B4 -> 81.9% | E4: ='1月'!E4+'2月'!E4+'3月'!E4+'5月'!E4+'6月'!E4+'7月'!E4+'8月'!E4+'9月'!E4+'10月'!E4+'11月'!E4+'12月'!E4 -> 190 | F4: ='1月'!F4+'2月'!F4+'3月'!F4+'5月'!F4+'6月'!F4+'7月'!F4+'8月'!F4+'9月'!F4+'10月'!F4+'11月'!F4+'12月'!F4 -> 163 | G4: =F4/E4 -> 85.8% | H4: ='1月'!H4+'2月'!H4+'3月'!H4+'5月'!H4+'6月'!H4+'7月'!H4+'8月'!H4+'9月'!H4+'10月'!H4+'11月'!H4+'12月'!H4 -> 326 | I4: ='1月'!I4+'2月'!I4+'3月'!I4+'5月'!I4+'6月'!I4+'7月'!I4+'8月'!I4+'9月'!I4+'10月'!I4+'11月'!I4+'12月'!I4 -> 236 | J4: =I4/H4 -> 72.4% | K4: ='1月'!K4+'2月'!K4+'3月'!K4+'5月'!K4+'6月'!K4+'7月'!K4+'8月'!K4+'9月'!K4+'10月'!K4+'11月'!K4+'12月'!K4 -> 524 | L4: ='1月'!L4+'2月'!L4+'3月'!L4+'5月'!L4+'6月'!L4+'7月'!L4+'8月'!L4+'9月'!L4+'10月'!L4+'11月'!L4+'12月'!L4 -> 358 | M4: =L4/K4 -> 68.3% | N4: ='1月'!N4+'2月'!N4+'3月'!N4+'5月'!N4+'6月'!N4+'7月'!N4+'8月'!N4+'9月'!N4+'10月'!N4+'11月'!N4+'12月'!N4 -> 366 | O4: ='1月'!O4+'2月'!O4+'3月'!O4+'5月'!O4+'6月'!O4+'7月'!O4+'8月'!O4+'9月'!O4+'10月'!O4+'11月'!O4+'12月'!O4 -> 289 | P4: =O4/N4 -> 79.0% | Q4: ='1月'!Q4+'2月'!Q4+'3月'!Q4+'5月'!Q4+'6月'!Q4+'7月'!Q4+'8月'!Q4+'9月'!Q4+'10月'!Q4+'11月'!Q4+'12月'!Q4 -> 43 | R4: ='1月'!R4+'2月'!R4+'3月'!R4+'5月'!R4+'6月'!R4+'7月'!R4+'8月'!R4+'9月'!R4+'10月'!R4+'11月'!R4+'12月'!R4 -> 38 | S4: =R4/Q4 -> 88.4% | T4: ='1月'!T4+'2月'!T4+'3月'!T4+'5月'!T4+'6月'!T4+'7月'!T4+'8月'!T4+'9月'!T4+'10月'!T4+'11月'!T4+'12月'!T4 -> 191 | U4: ='1月'!U4+'2月'!U4+'3月'!U4+'5月'!U4+'6月'!U4+'7月'!U4+'8月'!U4+'9月'!U4+'10月'!U4+'11月'!U4+'12月'!U4 -> 151 | V4: =U4/T4 -> 79.1% | W4: ='1月'!W4+'2月'!W4+'3月'!W4+'5月'!W4+'6月'!W4+'7月'!W4+'8月'!W4+'9月'!W4+'10月'!W4+'11月'!W4+'12月'!W4 -> 470 | X4: ='1月'!X4+'2月'!X4+'3月'!X4+'5月'!X4+'6月'!X4+'7月'!X4+'8月'!X4+'9月'!X4+'10月'!X4+'11月'!X4+'12月'!X4 -> 413 | Y4: =X4/W4 -> 87.9% | Z4: ='1月'!Z4+'2月'!Z4+'3月'!Z4+'5月'!Z4+'6月'!Z4+'7月'!Z4+'8月'!Z4+'9月'!Z4+'10月'!Z4+'11月'!Z4+'12月'!Z4 -> 358 | AA4: ='1月'!AA4+'2月'!AA4+'3月'!AA4+'5月'!AA4+'6月'!AA4+'7月'!AA4+'8月'!AA4+'9月'!AA4+'10月'!AA4+'11月'!AA4+'12月'!AA4 -> 270 | AB4: =AA4/Z4 -> 75.4% | AC4: ='1月'!AC4+'2月'!AC4+'3月'!AC4+'5月'!AC4+'6月'!AC4+'7月'!AC4+'8月'!AC4+'9月'!AC4+'10月'!AC4+'11月'!AC4+'12月'!AC4 -> 211 | AD4: ='1月'!AD4+'2月'!AD4+'3月'!AD4+'5月'!AD4+'6月'!AD4+'7月'!AD4+'8月'!AD4+'9月'!AD4+'10月'!AD4+'11月'!AD4+'12月'!AD4 -> 148 | AE4: =AD4/AC4 -> 70.1% | AF4: ='1月'!AF4+'2月'!AF4+'3月'!AF4+'5月'!AF4+'6月'!AF4+'7月'!AF4+'8月'!AF4+'9月'!AF4+'10月'!AF4+'11月'!AF4+'12月'!AF4 -> 97 | AG4: ='1月'!AG4+'2月'!AG4+'3月'!AG4+'5月'!AG4+'6月'!AG4+'7月'!AG4+'8月'!AG4+'9月'!AG4+'10月'!AG4+'11月'!AG4+'12月'!AG4 -> 68 | AH4: =AG4/AF4 -> 70.1% | AI4: ='1月'!AI4+'2月'!AI4+'3月'!AI4+'5月'!AI4+'6月'!AI4+'7月'!AI4+'8月'!AI4+'9月'!AI4+'10月'!AI4+'11月'!AI4+'12月'!AI4 -> 578 | AJ4: ='1月'!AJ4+'2月'!AJ4+'3月'!AJ4+'5月'!AJ4+'6月'!AJ4+'7月'!AJ4+'8月'!AJ4+'9月'!AJ4+'10月'!AJ4+'11月'!AJ4+'12月'!AJ4 -> 381 | AK4: =AJ4/AI4 -> 65.9% | AL4: ='1月'!AL4+'2月'!AL4+'3月'!AL4+'5月'!AL4+'6月'!AL4+'7月'!AL4+'8月'!AL4+'9月'!AL4+'10月'!AL4+'11月'!AL4+'12月'!AL4 -> 243 | AM4: ='1月'!AM4+'2月'!AM4+'3月'!AM4+'5月'!AM4+'6月'!AM4+'7月'!AM4+'8月'!AM4+'9月'!AM4+'10月'!AM4+'11月'!AM4+'12月'!AM4 -> 192 | AN4: =AM4/AL4 -> 79.0% | AO4: ='1月'!AO4+'2月'!AO4+'3月'!AO4+'5月'!AO4+'6月'!AO4+'7月'!AO4+'8月'!AO4+'9月'!AO4+'10月'!AO4+'11月'!AO4+'12月'!AO4 -> 25 | AP4: ='1月'!AP4+'2月'!AP4+'3月'!AP4+'5月'!AP4+'6月'!AP4+'7月'!AP4+'8月'!AP4+'9月'!AP4+'10月'!AP4+'11月'!AP4+'12月'!AP4 -> 23 | AQ4: =AP4/AO4 -> 92.0% | AU4: ='8月'!AU4+'9月'!AU4+'10月'!AU4+'11月'!AU4+'12月'!AU4 -> 6 | AV4: ='8月'!AV4+'9月'!AV4+'10月'!AV4+'11月'!AV4+'12月'!AV4 -> 2 | AW4: =AV4/AU4 -> 33.3% | AX4: ='9月'!AX4+'10月'!AX4+'11月'!AX4+'12月'!AX4 -> 16 | AY4: ='9月'!AY4+'10月'!AY4+'11月'!AY4+'12月'!AY4 -> 15 | AZ4: =AY4/AX4 -> 93.8% | BA4: ='10月'!BA4+'11月'!BA4+'12月'!BA4 -> 84 | BB4: ='10月'!BB4+'11月'!BB4+'12月'!BB4 -> 64 | BC4: =BB4/BA4 -> 76.2% | BD4: ='12月'!BD4 -> 45 | BE4: ='12月'!BE4 -> 22 | BF4: =BE4/BD4 -> 48.9% | BG4: =B4+E4+H4+K4+N4+Q4+T4+W4+Z4+AC4+AF4+AI4+AL4+AO4+AR4+AU4+AX4+BA4+BD4 -> 4280 | BH4: =C4+F4+I4+L4+O4+R4+U4+X4+AA4+AD4+AG4+AJ4+AM4+AP4+AS4+AV4+AY4+BB4+BE4 -> 3248 | BI4: =BH4/BG4 -> 75.9%
A5: 高压电工初训 | B5: ='1月'!B5+'2月'!B5+'3月'!B5+'5月'!B5+'6月'!B5+'7月'!B5+'8月'!B5+'9月'!B5+'10月'!B5+'11月'!B5+'12月'!B5 -> 36 | C5: ='1月'!C5+'2月'!C5+'3月'!C5+'5月'!C5+'6月'!C5+'7月'!C5+'8月'!C5+'9月'!C5+'10月'!C5+'11月'!C5+'12月'!C5 -> 34 | D5: =C5/B5 -> 94.4% | E5: ='1月'!E5+'2月'!E5+'3月'!E5+'5月'!E5+'6月'!E5+'7月'!E5+'8月'!E5+'9月'!E5+'10月'!E5+'11月'!E5+'12月'!E5 -> 89 | F5: ='1月'!F5+'2月'!F5+'3月'!F5+'5月'!F5+'6月'!F5+'7月'!F5+'8月'!F5+'9月'!F5+'10月'!F5+'11月'!F5+'12月'!F5 -> 71 | G5: =F5/E5 -> 79.8% | K5: ='1月'!K5+'2月'!K5+'3月'!K5+'5月'!K5+'6月'!K5+'7月'!K5+'8月'!K5+'9月'!K5+'10月'!K5+'11月'!K5+'12月'!K5 -> 72 | L5: ='1月'!L5+'2月'!L5+'3月'!L5+'5月'!L5+'6月'!L5+'7月'!L5+'8月'!L5+'9月'!L5+'10月'!L5+'11月'!L5+'12月'!L5 -> 62 | M5: =L5/K5 -> 86.1% | N5: ='1月'!N5+'2月'!N5+'3月'!N5+'5月'!N5+'6月'!N5+'7月'!N5+'8月'!N5+'9月'!N5+'10月'!N5+'11月'!N5+'12月'!N5 -> 197 | O5: ='1月'!O5+'2月'!O5+'3月'!O5+'5月'!O5+'6月'!O5+'7月'!O5+'8月'!O5+'9月'!O5+'10月'!O5+'11月'!O5+'12月'!O5 -> 176 | P5: =O5/N5 -> 89.3% | Q5: ='1月'!Q5+'2月'!Q5+'3月'!Q5+'5月'!Q5+'6月'!Q5+'7月'!Q5+'8月'!Q5+'9月'!Q5+'10月'!Q5+'11月'!Q5+'12月'!Q5 -> 26 | R5: ='1月'!R5+'2月'!R5+'3月'!R5+'5月'!R5+'6月'!R5+'7月'!R5+'8月'!R5+'9月'!R5+'10月'!R5+'11月'!R5+'12月'!R5 -> 20 | S5: 76.9% | T5: ='1月'!T5+'2月'!T5+'3月'!T5+'5月'!T5+'6月'!T5+'7月'!T5+'8月'!T5+'9月'!T5+'10月'!T5+'11月'!T5+'12月'!T5 -> 39 | U5: ='1月'!U5+'2月'!U5+'3月'!U5+'5月'!U5+'6月'!U5+'7月'!U5+'8月'!U5+'9月'!U5+'10月'!U5+'11月'!U5+'12月'!U5 -> 30 | V5: 76.9% | AL5: ='1月'!AL5+'2月'!AL5+'3月'!AL5+'5月'!AL5+'6月'!AL5+'7月'!AL5+'8月'!AL5+'9月'!AL5+'10月'!AL5+'11月'!AL5+'12月'!AL5 -> 13 | AM5: ='1月'!AM5+'2月'!AM5+'3月'!AM5+'5月'!AM5+'6月'!AM5+'7月'!AM5+'8月'!AM5+'9月'!AM5+'10月'!AM5+'11月'!AM5+'12月'!AM5 -> 12 | AN5: 92.3% | BG5: =B5+E5+H5+K5+N5+Q5+T5+W5+Z5+AC5+AF5+AI5+AL5+AO5+AR5+AU5+AX5+BA5+BD5 -> 472 | BH5: 405 | BI5: 85.8%
A6: 电力电缆初训 | E6: ='1月'!E6+'2月'!E6+'3月'!E6+'5月'!E6+'6月'!E6+'7月'!E6+'8月'!E6+'9月'!E6+'10月'!E6+'11月'!E6+'12月'!E6 -> 35 | F6: ='1月'!F6+'2月'!F6+'3月'!F6+'5月'!F6+'6月'!F6+'7月'!F6+'8月'!F6+'9月'!F6+'10月'!F6+'11月'!F6+'12月'!F6 -> 30 | G6: =F6/E6 -> 85.7% | BG6: 35 | BH6: 30 | BI6: 85.7%
A7: 熔化焊接与热切割初训 | B7: ='1月'!B7+'2月'!B7+'3月'!B7+'5月'!B7+'6月'!B7+'7月'!B7+'8月'!B7+'9月'!B7+'10月'!B7+'11月'!B7+'12月'!B7 -> 234 | C7: ='1月'!C7+'2月'!C7+'3月'!C7+'5月'!C7+'6月'!C7+'7月'!C7+'8月'!C7+'9月'!C7+'10月'!C7+'11月'!C7+'12月'!C7 -> 193 | D7: =C7/B7 -> 82.5% | H7: ='1月'!H7+'2月'!H7+'3月'!H7+'5月'!H7+'6月'!H7+'7月'!H7+'8月'!H7+'9月'!H7+'10月'!H7+'11月'!H7+'12月'!H7 -> 97 | I7: ='1月'!I7+'2月'!I7+'3月'!I7+'5月'!I7+'6月'!I7+'7月'!I7+'8月'!I7+'9月'!I7+'10月'!I7+'11月'!I7+'12月'!I7 -> 62 | J7: =I7/H7 -> 63.9% | K7: ='1月'!K7+'2月'!K7+'3月'!K7+'5月'!K7+'6月'!K7+'7月'!K7+'8月'!K7+'9月'!K7+'10月'!K7+'11月'!K7+'12月'!K7 -> 249 | L7: ='1月'!L7+'2月'!L7+'3月'!L7+'5月'!L7+'6月'!L7+'7月'!L7+'8月'!L7+'9月'!L7+'10月'!L7+'11月'!L7+'12月'!L7 -> 214 | M7: =L7/K7 -> 85.9% | N7: ='1月'!N7+'2月'!N7+'3月'!N7+'5月'!N7+'6月'!N7+'7月'!N7+'8月'!N7+'9月'!N7+'10月'!N7+'11月'!N7+'12月'!N7 -> 162 | O7: ='1月'!O7+'2月'!O7+'3月'!O7+'5月'!O7+'6月'!O7+'7月'!O7+'8月'!O7+'9月'!O7+'10月'!O7+'11月'!O7+'12月'!O7 -> 139 | P7: =O7/N7 -> 85.8% | Q7: ='1月'!Q7+'2月'!Q7+'3月'!Q7+'5月'!Q7+'6月'!Q7+'7月'!Q7+'8月'!Q7+'9月'!Q7+'10月'!Q7+'11月'!Q7+'12月'!Q7 -> 63 | R7: ='1月'!R7+'2月'!R7+'3月'!R7+'5月'!R7+'6月'!R7+'7月'!R7+'8月'!R7+'9月'!R7+'10月'!R7+'11月'!R7+'12月'!R7 -> 57 | S7: 90.5% | T7: ='1月'!T7+'2月'!T7+'3月'!T7+'5月'!T7+'6月'!T7+'7月'!T7+'8月'!T7+'9月'!T7+'10月'!T7+'11月'!T7+'12月'!T7 -> 181 | U7: ='1月'!U7+'2月'!U7+'3月'!U7+'5月'!U7+'6月'!U7+'7月'!U7+'8月'!U7+'9月'!U7+'10月'!U7+'11月'!U7+'12月'!U7 -> 145 | V7: 80.1% | Z7: ='1月'!Z7+'2月'!Z7+'3月'!Z7+'5月'!Z7+'6月'!Z7+'7月'!Z7+'8月'!Z7+'9月'!Z7+'10月'!Z7+'11月'!Z7+'12月'!Z7 -> 398 | AA7: ='1月'!AA7+'2月'!AA7+'3月'!AA7+'5月'!AA7+'6月'!AA7+'7月'!AA7+'8月'!AA7+'9月'!AA7+'10月'!AA7+'11月'!AA7+'12月'!AA7 -> 300 | AB7: =AA7/Z7 -> 75.4% | AC7: ='1月'!AC7+'2月'!AC7+'3月'!AC7+'5月'!AC7+'6月'!AC7+'7月'!AC7+'8月'!AC7+'9月'!AC7+'10月'!AC7+'11月'!AC7+'12月'!AC7 -> 163 | AD7: ='1月'!AD7+'2月'!AD7+'3月'!AD7+'5月'!AD7+'6月'!AD7+'7月'!AD7+'8月'!AD7+'9月'!AD7+'10月'!AD7+'11月'!AD7+'12月'!AD7 -> 121 | AE7: =AD7/AC7 -> 74.2% | AF7: ='1月'!AF7+'2月'!AF7+'3月'!AF7+'5月'!AF7+'6月'!AF7+'7月'!AF7+'8月'!AF7+'9月'!AF7+'10月'!AF7+'11月'!AF7+'12月'!AF7 -> 198 | AG7: ='1月'!AG7+'2月'!AG7+'3月'!AG7+'5月'!AG7+'6月'!AG7+'7月'!AG7+'8月'!AG7+'9月'!AG7+'10月'!AG7+'11月'!AG7+'12月'!AG7 -> 185 | AH7: 93.4% | AI7: ='1月'!AI7+'2月'!AI7+'3月'!AI7+'5月'!AI7+'6月'!AI7+'7月'!AI7+'8月'!AI7+'9月'!AI7+'10月'!AI7+'11月'!AI7+'12月'!AI7 -> 463 | AJ7: ='1月'!AJ7+'2月'!AJ7+'3月'!AJ7+'5月'!AJ7+'6月'!AJ7+'7月'!AJ7+'8月'!AJ7+'9月'!AJ7+'10月'!AJ7+'11月'!AJ7+'12月'!AJ7 -> 351 | AK7: 75.8% | AL7: ='1月'!AL7+'2月'!AL7+'3月'!AL7+'5月'!AL7+'6月'!AL7+'7月'!AL7+'8月'!AL7+'9月'!AL7+'10月'!AL7+'11月'!AL7+'12月'!AL7 -> 173 | AM7: ='1月'!AM7+'2月'!AM7+'3月'!AM7+'5月'!AM7+'6月'!AM7+'7月'!AM7+'8月'!AM7+'9月'!AM7+'10月'!AM7+'11月'!AM7+'12月'!AM7 -> 146 | AN7: 84.4% | AO7: ='1月'!AO7+'2月'!AO7+'3月'!AO7+'5月'!AO7+'6月'!AO7+'7月'!AO7+'8月'!AO7+'9月'!AO7+'10月'!AO7+'11月'!AO7+'12月'!AO7 -> 54 | AP7: ='1月'!AP7+'2月'!AP7+'3月'!AP7+'5月'!AP7+'6月'!AP7+'7月'!AP7+'8月'!AP7+'9月'!AP7+'10月'!AP7+'11月'!AP7+'12月'!AP7 -> 38 | AQ7: 70.4% | AU7: ='8月'!AU7+'9月'!AU7+'10月'!AU7+'11月'!AU7+'12月'!AU7 -> 12 | AV7: ='8月'!AV7+'9月'!AV7+'10月'!AV7+'11月'!AV7+'12月'!AV7 -> 12 | AW7: 100.0% | BA7: ='10月'!BA7+'11月'!BA7+'12月'!BA7 -> 19 | BB7: ='10月'!BB7+'11月'!BB7+'12月'!BB7 -> 17 | BC7: =BB7/BA7 -> 89.5% | BD7: ='12月'!BD7 -> 16 | BE7: ='12月'!BE7 -> 13 | BF7: =BE7/BD7 -> 81.3% | BG7: 2482 | BH7: 1993 | BI7: 80.3%
A8: 高处安装维护拆除初训 | B8: ='1月'!B8+'2月'!B8+'3月'!B8+'5月'!B8+'6月'!B8+'7月'!B8+'8月'!B8+'9月'!B8+'10月'!B8+'11月'!B8+'12月'!B8 -> 330 | C8: ='1月'!C8+'2月'!C8+'3月'!C8+'5月'!C8+'6月'!C8+'7月'!C8+'8月'!C8+'9月'!C8+'10月'!C8+'11月'!C8+'12月'!C8 -> 285 | D8: =C8/B8 -> 86.4% | E8: ='1月'!E8+'2月'!E8+'3月'!E8+'5月'!E8+'6月'!E8+'7月'!E8+'8月'!E8+'9月'!E8+'10月'!E8+'11月'!E8+'12月'!E8 -> 432 | F8: ='1月'!F8+'2月'!F8+'3月'!F8+'5月'!F8+'6月'!F8+'7月'!F8+'8月'!F8+'9月'!F8+'10月'!F8+'11月'!F8+'12月'!F8 -> 417 | G8: =F8/E8 -> 96.5% | H8: ='1月'!H8+'2月'!H8+'3月'!H8+'5月'!H8+'6月'!H8+'7月'!H8+'8月'!H8+'9月'!H8+'10月'!H8+'11月'!H8+'12月'!H8 -> 0 | I8: ='1月'!I8+'2月'!I8+'3月'!I8+'5月'!I8+'6月'!I8+'7月'!I8+'8月'!I8+'9月'!I8+'10月'!I8+'11月'!I8+'12月'!I8 -> 0 | J8: =I8/H8 ->  | K8: ='1月'!K8+'2月'!K8+'3月'!K8+'5月'!K8+'6月'!K8+'7月'!K8+'8月'!K8+'9月'!K8+'10月'!K8+'11月'!K8+'12月'!K8 -> 521 | L8: ='1月'!L8+'2月'!L8+'3月'!L8+'5月'!L8+'6月'!L8+'7月'!L8+'8月'!L8+'9月'!L8+'10月'!L8+'11月'!L8+'12月'!L8 -> 463 | M8: =L8/K8 -> 88.9% | Q8: ='1月'!Q8+'2月'!Q8+'3月'!Q8+'5月'!Q8+'6月'!Q8+'7月'!Q8+'8月'!Q8+'9月'!Q8+'10月'!Q8+'11月'!Q8+'12月'!Q8 -> 18 | R8: ='1月'!R8+'2月'!R8+'3月'!R8+'5月'!R8+'6月'!R8+'7月'!R8+'8月'!R8+'9月'!R8+'10月'!R8+'11月'!R8+'12月'!R8 -> 16 | S8: 88.9% | T8: ='1月'!T8+'2月'!T8+'3月'!T8+'5月'!T8+'6月'!T8+'7月'!T8+'8月'!T8+'9月'!T8+'10月'!T8+'11月'!T8+'12月'!T8 -> 34 | U8: ='1月'!U8+'2月'!U8+'3月'!U8+'5月'!U8+'6月'!U8+'7月'!U8+'8月'!U8+'9月'!U8+'10月'!U8+'11月'!U8+'12月'!U8 -> 27 | V8: 79.4% | AL8: ='1月'!AL8+'2月'!AL8+'3月'!AL8+'5月'!AL8+'6月'!AL8+'7月'!AL8+'8月'!AL8+'9月'!AL8+'10月'!AL8+'11月'!AL8+'12月'!AL8 -> 230 | AM8: ='1月'!AM8+'2月'!AM8+'3月'!AM8+'5月'!AM8+'6月'!AM8+'7月'!AM8+'8月'!AM8+'9月'!AM8+'10月'!AM8+'11月'!AM8+'12月'!AM8 -> 214 | AN8: 93.0% | BA8: ='10月'!BA8+'11月'!BA8+'12月'!BA8 -> 70 | BB8: ='10月'!BB8+'11月'!BB8+'12月'!BB8 -> 61 | BC8: 87.1% | BD8: ='12月'!BD8 -> 45 | BE8: ='12月'!BE8 -> 41 | BF8: 91.1% | BG8: 1680 | BH8: 1524 | BI8: 90.7%
A9: 特种作业初训合计 | B9: =SUM(B4:B8) -> 1107 | C9: 927 | D9: 83.7% | E9: 746 | F9: 681 | G9: =F9/E9 -> 91.3% | H9: 423 | I9: 298 | J9: =I9/H9 -> 70.4% | K9: =SUM(K4:K8) -> 1366 | L9: 1097 | M9: =L9/K9 -> 80.3% | N9: =SUM(N4:N8) -> 725 | O9: 604 | P9: =O9/N9 -> 83.3% | Q9: 150 | R9: 131 | S9: =R9/Q9 -> 87.3% | T9: 445 | U9: 353 | V9: =U9/T9 -> 79.3% | W9: =SUM(W4:W8) -> 470 | X9: 413 | Y9: =X9/W9 -> 87.9% | Z9: 756 | AA9: 570 | AB9: 75.4% | AC9: =SUM(AC4:AC8) -> 374 | AD9: 269 | AE9: =AD9/AC9 -> 71.9% | AF9: 295 | AG9: 253 | AH9: =AG9/AF9 -> 85.8% | AI9: =SUM(AI4:AI8) -> 1041 | AJ9: 732 | AK9: =AJ9/AI9 -> 70.3% | AL9: 659 | AM9: 564 | AN9: =AM9/AL9 -> 85.6% | AO9: =SUM(AO4:AO8) -> 79 | AP9: =SUM(AP4:AP8) -> 61 | AQ9: =AP9/AO9 -> 77.2% | AU9: =SUM(AU4:AU8) -> 18 | AV9: =SUM(AV4:AV8) -> 14 | AW9: 77.8% | AX9: =SUM(AX4:AX8) -> 16 | AY9: =SUM(AY4:AY8) -> 15 | AZ9: 93.8% | BA9: =SUM(BA4:BA8) -> 173 | BB9: =SUM(BB4:BB8) -> 142 | BC9: 82.1% | BD9: =SUM(BD4:BD8) -> 106 | BE9: =SUM(BE4:BE8) -> 76 | BF9: 71.7% | BG9: 8949 | BH9: 7200 | BI9: 80.5%
A10: 低压电工复训 | B10: ='1月'!B10+'2月'!B10+'3月'!B10+'5月'!B10+'6月'!B10+'7月'!B10+'8月'!B10+'9月'!B10+'10月'!B10+'11月'!B10+'12月'!B10 -> 2369 | C10: ='1月'!C10+'2月'!C10+'3月'!C10+'5月'!C10+'6月'!C10+'7月'!C10+'8月'!C10+'9月'!C10+'10月'!C10+'11月'!C10+'12月'!C10 -> 2308 | D10: =C10/B10 -> 97.4% | E10: ='1月'!E10+'2月'!E10+'3月'!E10+'5月'!E10+'6月'!E10+'7月'!E10+'8月'!E10+'9月'!E10+'10月'!E10+'11月'!E10+'12月'!E10 -> 499 | F10: ='1月'!F10+'2月'!F10+'3月'!F10+'5月'!F10+'6月'!F10+'7月'!F10+'8月'!F10+'9月'!F10+'10月'!F10+'11月'!F10+'12月'!F10 -> 486 | G10: 97.4% | H10: ='1月'!H10+'2月'!H10+'3月'!H10+'5月'!H10+'6月'!H10+'7月'!H10+'8月'!H10+'9月'!H10+'10月'!H10+'11月'!H10+'12月'!H10 -> 114 | I10: ='1月'!I10+'2月'!I10+'3月'!I10+'5月'!I10+'6月'!I10+'7月'!I10+'8月'!I10+'9月'!I10+'10月'!I10+'11月'!I10+'12月'!I10 -> 109 | J10: =I10/H10 -> 95.6% | K10: ='1月'!K10+'2月'!K10+'3月'!K10+'5月'!K10+'6月'!K10+'7月'!K10+'8月'!K10+'9月'!K10+'10月'!K10+'11月'!K10+'12月'!K10 -> 680 | L10: ='1月'!L10+'2月'!L10+'3月'!L10+'5月'!L10+'6月'!L10+'7月'!L10+'8月'!L10+'9月'!L10+'10月'!L10+'11月'!L10+'12月'!L10 -> 657 | M10: =L10/K10 -> 96.6% | N10: ='1月'!N10+'2月'!N10+'3月'!N10+'5月'!N10+'6月'!N10+'7月'!N10+'8月'!N10+'9月'!N10+'10月'!N10+'11月'!N10+'12月'!N10 -> 581 | O10: ='1月'!O10+'2月'!O10+'3月'!O10+'5月'!O10+'6月'!O10+'7月'!O10+'8月'!O10+'9月'!O10+'10月'!O10+'11月'!O10+'12月'!O10 -> 560 | P10: =O10/N10 -> 96.4% | Q10: ='1月'!Q10+'2月'!Q10+'3月'!Q10+'5月'!Q10+'6月'!Q10+'7月'!Q10+'8月'!Q10+'9月'!Q10+'10月'!Q10+'11月'!Q10+'12月'!Q10 -> 97 | R10: ='1月'!R10+'2月'!R10+'3月'!R10+'5月'!R10+'6月'!R10+'7月'!R10+'8月'!R10+'9月'!R10+'10月'!R10+'11月'!R10+'12月'!R10 -> 96 | S10: 99.0% | T10: ='1月'!T10+'2月'!T10+'3月'!T10+'5月'!T10+'6月'!T10+'7月'!T10+'8月'!T10+'9月'!T10+'10月'!T10+'11月'!T10+'12月'!T10 -> 114 | U10: ='1月'!U10+'2月'!U10+'3月'!U10+'5月'!U10+'6月'!U10+'7月'!U10+'8月'!U10+'9月'!U10+'10月'!U10+'11月'!U10+'12月'!U10 -> 110 | V10: 96.5% | Z10: ='1月'!Z10+'2月'!Z10+'3月'!Z10+'5月'!Z10+'6月'!Z10+'7月'!Z10+'8月'!Z10+'9月'!Z10+'10月'!Z10+'11月'!Z10+'12月'!Z10 -> 77 | AA10: ='1月'!AA10+'2月'!AA10+'3月'!AA10+'5月'!AA10+'6月'!AA10+'7月'!AA10+'8月'!AA10+'9月'!AA10+'10月'!AA10+'11月'!AA10+'12月'!AA10 -> 74 | AB10: =AA10/Z10 -> 96.1% | AC10: ='1月'!AC10+'2月'!AC10+'3月'!AC10+'5月'!AC10+'6月'!AC10+'7月'!AC10+'8月'!AC10+'9月'!AC10+'10月'!AC10+'11月'!AC10+'12月'!AC10 -> 793 | AD10: ='1月'!AD10+'2月'!AD10+'3月'!AD10+'5月'!AD10+'6月'!AD10+'7月'!AD10+'8月'!AD10+'9月'!AD10+'10月'!AD10+'11月'!AD10+'12月'!AD10 -> 767 | AE10: =AD10/AC10 -> 96.7% | AF10: ='1月'!AF10+'2月'!AF10+'3月'!AF10+'5月'!AF10+'6月'!AF10+'7月'!AF10+'8月'!AF10+'9月'!AF10+'10月'!AF10+'11月'!AF10+'12月'!AF10 -> 728 | AG10: ='1月'!AG10+'2月'!AG10+'3月'!AG10+'5月'!AG10+'6月'!AG10+'7月'!AG10+'8月'!AG10+'9月'!AG10+'10月'!AG10+'11月'!AG10+'12月'!AG10 -> 713 | AH10: =AG10/AF10 -> 97.9% | AI10: ='1月'!AI10+'2月'!AI10+'3月'!AI10+'5月'!AI10+'6月'!AI10+'7月'!AI10+'8月'!AI10+'9月'!AI10+'10月'!AI10+'11月'!AI10+'12月'!AI10 -> 293 | AJ10: ='1月'!AJ10+'2月'!AJ10+'3月'!AJ10+'5月'!AJ10+'6月'!AJ10+'7月'!AJ10+'8月'!AJ10+'9月'!AJ10+'10月'!AJ10+'11月'!AJ10+'12月'!AJ10 -> 274 | AK10: =AJ10/AI10 -> 93.5% | AL10: ='1月'!AL10+'2月'!AL10+'3月'!AL10+'5月'!AL10+'6月'!AL10+'7月'!AL10+'8月'!AL10+'9月'!AL10+'10月'!AL10+'11月'!AL10+'12月'!AL10 -> 275 | AM10: ='1月'!AM10+'2月'!AM10+'3月'!AM10+'5月'!AM10+'6月'!AM10+'7月'!AM10+'8月'!AM10+'9月'!AM10+'10月'!AM10+'11月'!AM10+'12月'!AM10 -> 264 | AN10: =AM10/AL10 -> 96.0% | AO10: ='1月'!AO10+'2月'!AO10+'3月'!AO10+'5月'!AO10+'6月'!AO10+'7月'!AO10+'8月'!AO10+'9月'!AO10+'10月'!AO10+'11月'!AO10+'12月'!AO10 -> 20 | AP10: ='1月'!AP10+'2月'!AP10+'3月'!AP10+'5月'!AP10+'6月'!AP10+'7月'!AP10+'8月'!AP10+'9月'!AP10+'10月'!AP10+'11月'!AP10+'12月'!AP10 -> 20 | AQ10: =AP10/AO10 -> 100.0% | AU10: ='8月'!AU10+'9月'!AU10+'10月'!AU10+'11月'!AU10+'12月'!AU10 -> 23 | AV10: ='8月'!AV10+'9月'!AV10+'10月'!AV10+'11月'!AV10+'12月'!AV10 -> 20 | AW10: 87.0% | AX10: ='9月'!AX10+'10月'!AX10+'11月'!AX10+'12月'!AX10 -> 16 | AY10: ='9月'!AY10+'10月'!AY10+'11月'!AY10+'12月'!AY10 -> 15 | AZ10: 93.8% | BA10: ='10月'!BA10+'11月'!BA10+'12月'!BA10 -> 62 | BB10: ='10月'!BB10+'11月'!BB10+'12月'!BB10 -> 61 | BC10: =BB10/BA10 -> 98.4% | BD10: ='12月'!BD10 -> 28 | BE10: ='12月'!BE10 -> 28 | BF10: =BE10/BD10 -> 100.0% | BG10: 6769 | BH10: 6562 | BI10: 96.9%
A11: 高压电工复训 | B11: ='1月'!B11+'2月'!B11+'3月'!B11+'5月'!B11+'6月'!B11+'7月'!B11+'8月'!B11+'9月'!B11+'10月'!B11+'11月'!B11+'12月'!B11 -> 502 | C11: ='1月'!C11+'2月'!C11+'3月'!C11+'5月'!C11+'6月'!C11+'7月'!C11+'8月'!C11+'9月'!C11+'10月'!C11+'11月'!C11+'12月'!C11 -> 449 | D11: =C11/B11 -> 89.4% | E11: ='1月'!E11+'2月'!E11+'3月'!E11+'5月'!E11+'6月'!E11+'7月'!E11+'8月'!E11+'9月'!E11+'10月'!E11+'11月'!E11+'12月'!E11 -> 358 | F11: ='1月'!F11+'2月'!F11+'3月'!F11+'5月'!F11+'6月'!F11+'7月'!F11+'8月'!F11+'9月'!F11+'10月'!F11+'11月'!F11+'12月'!F11 -> 312 | G11: 87.2% | K11: ='1月'!K11+'2月'!K11+'3月'!K11+'5月'!K11+'6月'!K11+'7月'!K11+'8月'!K11+'9月'!K11+'10月'!K11+'11月'!K11+'12月'!K11 -> 243 | L11: ='1月'!L11+'2月'!L11+'3月'!L11+'5月'!L11+'6月'!L11+'7月'!L11+'8月'!L11+'9月'!L11+'10月'!L11+'11月'!L11+'12月'!L11 -> 233 | M11: =L11/K11 -> 95.9% | N11: ='1月'!N11+'2月'!N11+'3月'!N11+'5月'!N11+'6月'!N11+'7月'!N11+'8月'!N11+'9月'!N11+'10月'!N11+'11月'!N11+'12月'!N11 -> 72 | O11: ='1月'!O11+'2月'!O11+'3月'!O11+'5月'!O11+'6月'!O11+'7月'!O11+'8月'!O11+'9月'!O11+'10月'!O11+'11月'!O11+'12月'!O11 -> 68 | P11: =O11/N11 -> 94.4% | Q11: ='1月'!Q11+'2月'!Q11+'3月'!Q11+'5月'!Q11+'6月'!Q11+'7月'!Q11+'8月'!Q11+'9月'!Q11+'10月'!Q11+'11月'!Q11+'12月'!Q11 -> 82 | R11: ='1月'!R11+'2月'!R11+'3月'!R11+'5月'!R11+'6月'!R11+'7月'!R11+'8月'!R11+'9月'!R11+'10月'!R11+'11月'!R11+'12月'!R11 -> 77 | S11: 93.9% | T11: ='1月'!T11+'2月'!T11+'3月'!T11+'5月'!T11+'6月'!T11+'7月'!T11+'8月'!T11+'9月'!T11+'10月'!T11+'11月'!T11+'12月'!T11 -> 27 | U11: ='1月'!U11+'2月'!U11+'3月'!U11+'5月'!U11+'6月'!U11+'7月'!U11+'8月'!U11+'9月'!U11+'10月'!U11+'11月'!U11+'12月'!U11 -> 26 | V11: 96.3% | AC11: ='1月'!AC11+'2月'!AC11+'3月'!AC11+'5月'!AC11+'6月'!AC11+'7月'!AC11+'8月'!AC11+'9月'!AC11+'10月'!AC11+'11月'!AC11+'12月'!AC11 -> 250 | AD11: ='1月'!AD11+'2月'!AD11+'3月'!AD11+'5月'!AD11+'6月'!AD11+'7月'!AD11+'8月'!AD11+'9月'!AD11+'10月'!AD11+'11月'!AD11+'12月'!AD11 -> 249 | AE11: =AD11/AC11 -> 99.6% | AF11: ='1月'!AF11+'2月'!AF11+'3月'!AF11+'5月'!AF11+'6月'!AF11+'7月'!AF11+'8月'!AF11+'9月'!AF11+'10月'!AF11+'11月'!AF11+'12月'!AF11 -> 81 | AG11: ='1月'!AG11+'2月'!AG11+'3月'!AG11+'5月'!AG11+'6月'!AG11+'7月'!AG11+'8月'!AG11+'9月'!AG11+'10月'!AG11+'11月'!AG11+'12月'!AG11 -> 77 | AH11: =AG11/AF11 -> 95.1% | AL11: ='1月'!AL11+'2月'!AL11+'3月'!AL11+'5月'!AL11+'6月'!AL11+'7月'!AL11+'8月'!AL11+'9月'!AL11+'10月'!AL11+'11月'!AL11+'12月'!AL11 -> 33 | AM11: ='1月'!AM11+'2月'!AM11+'3月'!AM11+'5月'!AM11+'6月'!AM11+'7月'!AM11+'8月'!AM11+'9月'!AM11+'10月'!AM11+'11月'!AM11+'12月'!AM11 -> 30 | AN11: =AM11/AL11 -> 90.9% | AO11: ='1月'!AO11+'2月'!AO11+'3月'!AO11+'5月'!AO11+'6月'!AO11+'7月'!AO11+'8月'!AO11+'9月'!AO11+'10月'!AO11+'11月'!AO11+'12月'!AO11 -> 1 | AP11: ='1月'!AP11+'2月'!AP11+'3月'!AP11+'5月'!AP11+'6月'!AP11+'7月'!AP11+'8月'!AP11+'9月'!AP11+'10月'!AP11+'11月'!AP11+'12月'!AP11 -> 1 | AQ11: =AP11/AO11 -> 100.0% | BG11: 1649 | BH11: 1522 | BI11: 92.3%
A12: 熔化焊接与热切割复训 | B12: ='1月'!B12+'2月'!B12+'3月'!B12+'5月'!B12+'6月'!B12+'7月'!B12+'8月'!B12+'9月'!B12+'10月'!B12+'11月'!B12+'12月'!B12 -> 636 | C12: ='1月'!C12+'2月'!C12+'3月'!C12+'5月'!C12+'6月'!C12+'7月'!C12+'8月'!C12+'9月'!C12+'10月'!C12+'11月'!C12+'12月'!C12 -> 595 | D12: =C12/B12 -> 93.6% | E12: ='1月'!E12+'2月'!E12+'3月'!E12+'5月'!E12+'6月'!E12+'7月'!E12+'8月'!E12+'9月'!E12+'10月'!E12+'11月'!E12+'12月'!E12 -> 38 | F12: ='1月'!F12+'2月'!F12+'3月'!F12+'5月'!F12+'6月'!F12+'7月'!F12+'8月'!F12+'9月'!F12+'10月'!F12+'11月'!F12+'12月'!F12 -> 36 | G12: 94.7% | H12: ='1月'!H12+'2月'!H12+'3月'!H12+'5月'!H12+'6月'!H12+'7月'!H12+'8月'!H12+'9月'!H12+'10月'!H12+'11月'!H12+'12月'!H12 -> 3 | I12: ='1月'!I12+'2月'!I12+'3月'!I12+'5月'!I12+'6月'!I12+'7月'!I12+'8月'!I12+'9月'!I12+'10月'!I12+'11月'!I12+'12月'!I12 -> 3 | J12: =I12/H12 -> 100.0% | K12: ='1月'!K12+'2月'!K12+'3月'!K12+'5月'!K12+'6月'!K12+'7月'!K12+'8月'!K12+'9月'!K12+'10月'!K12+'11月'!K12+'12月'!K12 -> 317 | L12: ='1月'!L12+'2月'!L12+'3月'!L12+'5月'!L12+'6月'!L12+'7月'!L12+'8月'!L12+'9月'!L12+'10月'!L12+'11月'!L12+'12月'!L12 -> 293 | M12: =L12/K12 -> 92.4% | N12: ='1月'!N12+'2月'!N12+'3月'!N12+'5月'!N12+'6月'!N12+'7月'!N12+'8月'!N12+'9月'!N12+'10月'!N12+'11月'!N12+'12月'!N12 -> 91 | O12: ='1月'!O12+'2月'!O12+'3月'!O12+'5月'!O12+'6月'!O12+'7月'!O12+'8月'!O12+'9月'!O12+'10月'!O12+'11月'!O12+'12月'!O12 -> 80 | P12: =O12/N12 -> 87.9% | Q12: ='1月'!Q12+'2月'!Q12+'3月'!Q12+'5月'!Q12+'6月'!Q12+'7月'!Q12+'8月'!Q12+'9月'!Q12+'10月'!Q12+'11月'!Q12+'12月'!Q12 -> 64 | R12: ='1月'!R12+'2月'!R12+'3月'!R12+'5月'!R12+'6月'!R12+'7月'!R12+'8月'!R12+'9月'!R12+'10月'!R12+'11月'!R12+'12月'!R12 -> 61 | S12: 95.3% | T12: ='1月'!T12+'2月'!T12+'3月'!T12+'5月'!T12+'6月'!T12+'7月'!T12+'8月'!T12+'9月'!T12+'10月'!T12+'11月'!T12+'12月'!T12 -> 47 | U12: ='1月'!U12+'2月'!U12+'3月'!U12+'5月'!U12+'6月'!U12+'7月'!U12+'8月'!U12+'9月'!U12+'10月'!U12+'11月'!U12+'12月'!U12 -> 47 | V12: 100.0% | Z12: ='1月'!Z12+'2月'!Z12+'3月'!Z12+'5月'!Z12+'6月'!Z12+'7月'!Z12+'8月'!Z12+'9月'!Z12+'10月'!Z12+'11月'!Z12+'12月'!Z12 -> 13 | AA12: ='1月'!AA12+'2月'!AA12+'3月'!AA12+'5月'!AA12+'6月'!AA12+'7月'!AA12+'8月'!AA12+'9月'!AA12+'10月'!AA12+'11月'!AA12+'12月'!AA12 -> 11 | AB12: =AA12/Z12 -> 84.6% | AC12: ='1月'!AC12+'2月'!AC12+'3月'!AC12+'5月'!AC12+'6月'!AC12+'7月'!AC12+'8月'!AC12+'9月'!AC12+'10月'!AC12+'11月'!AC12+'12月'!AC12 -> 123 | AD12: ='1月'!AD12+'2月'!AD12+'3月'!AD12+'5月'!AD12+'6月'!AD12+'7月'!AD12+'8月'!AD12+'9月'!AD12+'10月'!AD12+'11月'!AD12+'12月'!AD12 -> 110 | AE12: =AD12/AC12 -> 89.4% | AF12: ='1月'!AF12+'2月'!AF12+'3月'!AF12+'5月'!AF12+'6月'!AF12+'7月'!AF12+'8月'!AF12+'9月'!AF12+'10月'!AF12+'11月'!AF12+'12月'!AF12 -> 185 | AG12: ='1月'!AG12+'2月'!AG12+'3月'!AG12+'5月'!AG12+'6月'!AG12+'7月'!AG12+'8月'!AG12+'9月'!AG12+'10月'!AG12+'11月'!AG12+'12月'!AG12 -> 179 | AH12: =AG12/AF12 -> 96.8% | AI12: ='1月'!AI12+'2月'!AI12+'3月'!AI12+'5月'!AI12+'6月'!AI12+'7月'!AI12+'8月'!AI12+'9月'!AI12+'10月'!AI12+'11月'!AI12+'12月'!AI12 -> 102 | AJ12: ='1月'!AJ12+'2月'!AJ12+'3月'!AJ12+'5月'!AJ12+'6月'!AJ12+'7月'!AJ12+'8月'!AJ12+'9月'!AJ12+'10月'!AJ12+'11月'!AJ12+'12月'!AJ12 -> 90 | AK12: =AJ12/AI12 -> 88.2% | AL12: ='1月'!AL12+'2月'!AL12+'3月'!AL12+'5月'!AL12+'6月'!AL12+'7月'!AL12+'8月'!AL12+'9月'!AL12+'10月'!AL12+'11月'!AL12+'12月'!AL12 -> 43 | AM12: ='1月'!AM12+'2月'!AM12+'3月'!AM12+'5月'!AM12+'6月'!AM12+'7月'!AM12+'8月'!AM12+'9月'!AM12+'10月'!AM12+'11月'!AM12+'12月'!AM12 -> 38 | AN12: =AM12/AL12 -> 88.4% | AO12: ='1月'!AO12+'2月'!AO12+'3月'!AO12+'5月'!AO12+'6月'!AO12+'7月'!AO12+'8月'!AO12+'9月'!AO12+'10月'!AO12+'11月'!AO12+'12月'!AO12 -> 11 | AP12: ='1月'!AP12+'2月'!AP12+'3月'!AP12+'5月'!AP12+'6月'!AP12+'7月'!AP12+'8月'!AP12+'9月'!AP12+'10月'!AP12+'11月'!AP12+'12月'!AP12 -> 9 | AQ12: =AP12/AO12 -> 81.8% | AU12: ='8月'!AU12+'9月'!AU12+'10月'!AU12+'11月'!AU12+'12月'!AU12 -> 6 | AV12: ='8月'!AV12+'9月'!AV12+'10月'!AV12+'11月'!AV12+'12月'!AV12 -> 6 | AW12: =AV12/AU12 -> 100.0% | AX12: ='9月'!AX12+'10月'!AX12+'11月'!AX12+'12月'!AX12 -> 3 | AY12: ='9月'!AY12+'10月'!AY12+'11月'!AY12+'12月'!AY12 -> 3 | AZ12: =AY12/AX12 -> 100.0% | BA12: ='10月'!BA12+'11月'!BA12+'12月'!BA12 -> 8 | BB12: ='10月'!BB12+'11月'!BB12+'12月'!BB12 -> 7 | BC12: =BB12/BA12 -> 87.5% | BD12: ='12月'!BD12 -> 8 | BE12: ='12月'!BE12 -> 7 | BF12: =BE12/BD12 -> 87.5% | BG12: 1698 | BH12: 1575 | BI12: 92.8%
A13: 钎焊复训
A14: 高处安装维护拆除复训 | B14: ='1月'!B14+'2月'!B14+'3月'!B14+'5月'!B14+'6月'!B14+'7月'!B14+'8月'!B14+'9月'!B14+'10月'!B14+'11月'!B14+'12月'!B14 -> 485 | C14: ='1月'!C14+'2月'!C14+'3月'!C14+'5月'!C14+'6月'!C14+'7月'!C14+'8月'!C14+'9月'!C14+'10月'!C14+'11月'!C14+'12月'!C14 -> 458 | D14: =C14/B14 -> 94.4% | E14: ='1月'!E14+'2月'!E14+'3月'!E14+'5月'!E14+'6月'!E14+'7月'!E14+'8月'!E14+'9月'!E14+'10月'!E14+'11月'!E14+'12月'!E14 -> 1091 | F14: ='1月'!F14+'2月'!F14+'3月'!F14+'5月'!F14+'6月'!F14+'7月'!F14+'8月'!F14+'9月'!F14+'10月'!F14+'11月'!F14+'12月'!F14 -> 1050 | G14: 96.2% | K14: ='1月'!K14+'2月'!K14+'3月'!K14+'5月'!K14+'6月'!K14+'7月'!K14+'8月'!K14+'9月'!K14+'10月'!K14+'11月'!K14+'12月'!K14 -> 52 | L14: ='1月'!L14+'2月'!L14+'3月'!L14+'5月'!L14+'6月'!L14+'7月'!L14+'8月'!L14+'9月'!L14+'10月'!L14+'11月'!L14+'12月'!L14 -> 50 | M14: =L14/K14 -> 96.2% | Q14: ='1月'!Q14+'2月'!Q14+'3月'!Q14+'5月'!Q14+'6月'!Q14+'7月'!Q14+'8月'!Q14+'9月'!Q14+'10月'!Q14+'11月'!Q14+'12月'!Q14 -> 10 | R14: ='1月'!R14+'2月'!R14+'3月'!R14+'5月'!R14+'6月'!R14+'7月'!R14+'8月'!R14+'9月'!R14+'10月'!R14+'11月'!R14+'12月'!R14 -> 7 | S14: 70.0% | T14: ='1月'!T14+'2月'!T14+'3月'!T14+'5月'!T14+'6月'!T14+'7月'!T14+'8月'!T14+'9月'!T14+'10月'!T14+'11月'!T14+'12月'!T14 -> 10 | U14: ='1月'!U14+'2月'!U14+'3月'!U14+'5月'!U14+'6月'!U14+'7月'!U14+'8月'!U14+'9月'!U14+'10月'!U14+'11月'!U14+'12月'!U14 -> 10 | V14: 100.0% | AL14: ='1月'!AL14+'2月'!AL14+'3月'!AL14+'5月'!AL14+'6月'!AL14+'7月'!AL14+'8月'!AL14+'9月'!AL14+'10月'!AL14+'11月'!AL14+'12月'!AL14 -> 7 | AM14: ='1月'!AM14+'2月'!AM14+'3月'!AM14+'5月'!AM14+'6月'!AM14+'7月'!AM14+'8月'!AM14+'9月'!AM14+'10月'!AM14+'11月'!AM14+'12月'!AM14 -> 7 | AN14: =AM14/AL14 -> 100.0% | BA14: ='10月'!BA14+'11月'!BA14+'12月'!BA14 -> 9 | BB14: ='10月'!BB14+'11月'!BB14+'12月'!BB14 -> 7 | BC14: =BB14/BA14 -> 77.8% | BD14: ='12月'!BD14 -> 2 | BE14: ='12月'!BE14 -> 2 | BF14: =BE14/BD14 -> 100.0% | BG14: 1666 | BH14: 1591 | BI14: =BH14/BG14 -> 95.5%
A15: 登高架设复训 | B15: ='1月'!B15+'2月'!B15+'3月'!B15+'5月'!B15+'6月'!B15+'7月'!B15+'8月'!B15+'9月'!B15+'10月'!B15+'11月'!B15+'12月'!B15 -> 17 | C15: ='1月'!C15+'2月'!C15+'3月'!C15+'5月'!C15+'6月'!C15+'7月'!C15+'8月'!C15+'9月'!C15+'10月'!C15+'11月'!C15+'12月'!C15 -> 14 | D15: =C15/B15 -> 82.4% | E15: ='1月'!E15+'2月'!E15+'3月'!E15+'5月'!E15+'6月'!E15+'7月'!E15+'8月'!E15+'9月'!E15+'10月'!E15+'11月'!E15+'12月'!E15 -> 5 | F15: ='1月'!F15+'2月'!F15+'3月'!F15+'5月'!F15+'6月'!F15+'7月'!F15+'8月'!F15+'9月'!F15+'10月'!F15+'11月'!F15+'12月'!F15 -> 4 | G15: 80.0% | Q15: ='1月'!Q15+'2月'!Q15+'3月'!Q15+'5月'!Q15+'6月'!Q15+'7月'!Q15+'8月'!Q15+'9月'!Q15+'10月'!Q15+'11月'!Q15+'12月'!Q15 -> 4 | R15: ='1月'!R15+'2月'!R15+'3月'!R15+'5月'!R15+'6月'!R15+'7月'!R15+'8月'!R15+'9月'!R15+'10月'!R15+'11月'!R15+'12月'!R15 -> 4 | S15: 100.0% | BG15: 26 | BH15: 22 | BI15: 84.6%
A16: 制冷与空调运行操作复训 | B16: ='1月'!B16+'2月'!B16+'3月'!B16+'5月'!B16+'6月'!B16+'7月'!B16+'8月'!B16+'9月'!B16+'10月'!B16+'11月'!B16+'12月'!B16 -> 3 | C16: ='1月'!C16+'2月'!C16+'3月'!C16+'5月'!C16+'6月'!C16+'7月'!C16+'8月'!C16+'9月'!C16+'10月'!C16+'11月'!C16+'12月'!C16 -> 3 | D16: =C16/B16 -> 100.0% | BG16: 3 | BH16: 3 | BI16: 100.0%
A17: 制冷与空调安装修理复训 | B17: ='1月'!B17+'2月'!B17+'3月'!B17+'5月'!B17+'6月'!B17+'7月'!B17+'8月'!B17+'9月'!B17+'10月'!B17+'11月'!B17+'12月'!B17 -> 12 | C17: ='1月'!C17+'2月'!C17+'3月'!C17+'5月'!C17+'6月'!C17+'7月'!C17+'8月'!C17+'9月'!C17+'10月'!C17+'11月'!C17+'12月'!C17 -> 12 | D17: =C17/B17 -> 100.0% | BG17: 12 | BH17: 12 | BI17: 100.0%
A18: 矿山安检复训 | B18: ='1月'!B18+'2月'!B18+'3月'!B18+'5月'!B18+'6月'!B18+'7月'!B18+'8月'!B18+'9月'!B18+'10月'!B18+'11月'!B18+'12月'!B18 -> 14 | C18: ='1月'!C18+'2月'!C18+'3月'!C18+'5月'!C18+'6月'!C18+'7月'!C18+'8月'!C18+'9月'!C18+'10月'!C18+'11月'!C18+'12月'!C18 -> 13 | D18: =C18/B18 -> 92.9% | Q18: ='1月'!Q18+'2月'!Q18+'3月'!Q18+'5月'!Q18+'6月'!Q18+'7月'!Q18+'8月'!Q18+'9月'!Q18+'10月'!Q18+'11月'!Q18+'12月'!Q18 -> 3 | R18: ='1月'!R18+'2月'!R18+'3月'!R18+'5月'!R18+'6月'!R18+'7月'!R18+'8月'!R18+'9月'!R18+'10月'!R18+'11月'!R18+'12月'!R18 -> 3 | S18: 100.0% | BG18: 17 | BH18: 16 | BI18: 94.1%
A19: 电力电缆复训 | B19: ='1月'!B19+'2月'!B19+'3月'!B19+'5月'!B19+'6月'!B19+'7月'!B19+'8月'!B19+'9月'!B19+'10月'!B19+'11月'!B19+'12月'!B19 -> 15 | C19: ='1月'!C19+'2月'!C19+'3月'!C19+'5月'!C19+'6月'!C19+'7月'!C19+'8月'!C19+'9月'!C19+'10月'!C19+'11月'!C19+'12月'!C19 -> 11 | D19: =C19/B19 -> 73.3% | E19: ='1月'!E19+'2月'!E19+'3月'!E19+'5月'!E19+'6月'!E19+'7月'!E19+'8月'!E19+'9月'!E19+'10月'!E19+'11月'!E19+'12月'!E19 -> 36 | F19: ='1月'!F19+'2月'!F19+'3月'!F19+'5月'!F19+'6月'!F19+'7月'!F19+'8月'!F19+'9月'!F19+'10月'!F19+'11月'!F19+'12月'!F19 -> 20 | G19: 55.6% | K19: ='1月'!K19+'2月'!K19+'3月'!K19+'5月'!K19+'6月'!K19+'7月'!K19+'8月'!K19+'9月'!K19+'10月'!K19+'11月'!K19+'12月'!K19 -> 2 | L19: ='1月'!L19+'2月'!L19+'3月'!L19+'5月'!L19+'6月'!L19+'7月'!L19+'8月'!L19+'9月'!L19+'10月'!L19+'11月'!L19+'12月'!L19 -> 2 | M19: =L19/K19 -> 100.0% | BG19: 53 | BH19: 33 | BI19: 62.3%
A20: 电气试验复训 | B20: ='1月'!B20+'2月'!B20+'3月'!B20+'5月'!B20+'6月'!B20+'7月'!B20+'8月'!B20+'9月'!B20+'10月'!B20+'11月'!B20+'12月'!B20 -> 16 | C20: ='1月'!C20+'2月'!C20+'3月'!C20+'5月'!C20+'6月'!C20+'7月'!C20+'8月'!C20+'9月'!C20+'10月'!C20+'11月'!C20+'12月'!C20 -> 12 | D20: =C20/B20 -> 75.0% | E20: ='1月'!E20+'2月'!E20+'3月'!E20+'5月'!E20+'6月'!E20+'7月'!E20+'8月'!E20+'9月'!E20+'10月'!E20+'11月'!E20+'12月'!E20 -> 39 | F20: ='1月'!F20+'2月'!F20+'3月'!F20+'5月'!F20+'6月'!F20+'7月'!F20+'8月'!F20+'9月'!F20+'10月'!F20+'11月'!F20+'12月'!F20 -> 34 | G20: 87.2% | K20: ='1月'!K20+'2月'!K20+'3月'!K20+'5月'!K20+'6月'!K20+'7月'!K20+'8月'!K20+'9月'!K20+'10月'!K20+'11月'!K20+'12月'!K20 -> 8 | L20: ='1月'!L20+'2月'!L20+'3月'!L20+'5月'!L20+'6月'!L20+'7月'!L20+'8月'!L20+'9月'!L20+'10月'!L20+'11月'!L20+'12月'!L20 -> 8 | M20: =L20/K20 -> 100.0% | N20: ='1月'!N20+'2月'!N20+'3月'!N20+'5月'!N20+'6月'!N20+'7月'!N20+'8月'!N20+'9月'!N20+'10月'!N20+'11月'!N20+'12月'!N20 -> 1 | O20: ='1月'!O20+'2月'!O20+'3月'!O20+'5月'!O20+'6月'!O20+'7月'!O20+'8月'!O20+'9月'!O20+'10月'!O20+'11月'!O20+'12月'!O20 -> 1 | P20: =O20/N20 -> 100.0% | Q20: ='1月'!Q20+'2月'!Q20+'3月'!Q20+'5月'!Q20+'6月'!Q20+'7月'!Q20+'8月'!Q20+'9月'!Q20+'10月'!Q20+'11月'!Q20+'12月'!Q20 -> 1 | R20: ='1月'!R20+'2月'!R20+'3月'!R20+'5月'!R20+'6月'!R20+'7月'!R20+'8月'!R20+'9月'!R20+'10月'!R20+'11月'!R20+'12月'!R20 -> 1 | S20: 100.0% | BG20: 65 | BH20: 56 | BI20: 86.2%
A21: 继电保护复训 | B21: ='1月'!B21+'2月'!B21+'3月'!B21+'5月'!B21+'6月'!B21+'7月'!B21+'8月'!B21+'9月'!B21+'10月'!B21+'11月'!B21+'12月'!B21 -> 16 | C21: ='1月'!C21+'2月'!C21+'3月'!C21+'5月'!C21+'6月'!C21+'7月'!C21+'8月'!C21+'9月'!C21+'10月'!C21+'11月'!C21+'12月'!C21 -> 13 | D21: =C21/B21 -> 81.3% | E21: ='1月'!E21+'2月'!E21+'3月'!E21+'5月'!E21+'6月'!E21+'7月'!E21+'8月'!E21+'9月'!E21+'10月'!E21+'11月'!E21+'12月'!E21 -> 27 | F21: ='1月'!F21+'2月'!F21+'3月'!F21+'5月'!F21+'6月'!F21+'7月'!F21+'8月'!F21+'9月'!F21+'10月'!F21+'11月'!F21+'12月'!F21 -> 22 | G21: 81.5% | N21: ='1月'!N21+'2月'!N21+'3月'!N21+'5月'!N21+'6月'!N21+'7月'!N21+'8月'!N21+'9月'!N21+'10月'!N21+'11月'!N21+'12月'!N21 -> 1 | O21: ='1月'!O21+'2月'!O21+'3月'!O21+'5月'!O21+'6月'!O21+'7月'!O21+'8月'!O21+'9月'!O21+'10月'!O21+'11月'!O21+'12月'!O21 -> 1 | P21: =O21/N21 -> 100.0% | BG21: 44 | BH21: 36 | BI21: 81.8%
A22: 特种作业复训合计 | B22: =SUM(B10:B21) -> 4085 | C22: 3888 | D22: =C22/B22 -> 95.2% | E22: 2093 | F22: 1964 | G22: 93.8% | H22: =SUM(H10:H21) -> 117 | I22: =SUM(I10:I21) -> 112 | J22: =I22/H22 -> 95.7% | K22: =SUM(K10:K21) -> 1302 | L22: 1243 | M22: =L22/K22 -> 95.5% | N22: 746 | O22: 710 | P22: =O22/N22 -> 95.2% | Q22: =SUM(Q10:Q21) -> 261 | R22: 249 | S22: =R22/Q22 -> 95.4% | T22: =SUM(T10:T21) -> 198 | U22: 193 | V22: 97.5% | Z22: =SUM(Z10:Z21) -> 90 | AA22: 85 | AB22: =AA22/Z22 -> 94.4% | AC22: 1166 | AD22: 1126 | AE22: =AD22/AC22 -> 96.6% | AF22: =SUM(AF10:AF21) -> 994 | AG22: 969 | AH22: =AG22/AF22 -> 97.5% | AI22: 395 | AJ22: 364 | AK22: =AJ22/AI22 -> 92.2% | AL22: =SUM(AL10:AL21) -> 358 | AM22: 339 | AN22: =AM22/AL22 -> 94.7% | AO22: 32 | AP22: 30 | AQ22: =AP22/AO22 -> 93.8% | AU22: =SUM(AU10:AU21) -> 29 | AV22: 26 | AW22: =AV22/AU22 -> 89.7% | AX22: 19 | AY22: 18 | AZ22: =AY22/AX22 -> 94.7% | BA22: =SUM(BA10:BA21) -> 79 | BB22: =SUM(BB10:BB21) -> 75 | BC22: =BB22/BA22 -> 94.9% | BD22: =SUM(BD10:BD21) -> 38 | BE22: =SUM(BE10:BE21) -> 37 | BF22: =BE22/BD22 -> 97.4% | BG22: 12002 | BH22: 11428 | BI22: 95.2%
A23: 特种作业人员合计 | B23: =B9+B22 -> 5192 | C23: 4815 | D23: =C23/B23 -> 92.7% | E23: 2839 | F23: 2645 | G23: 93.2% | H23: =H9+H22 -> 540 | I23: 410 | J23: =I23/H23 -> 75.9% | K23: 2668 | L23: 2340 | M23: 87.7% | N23: =N9+N22 -> 1471 | O23: 1314 | P23: =O23/N23 -> 89.3% | Q23: 411 | R23: 380 | S23: 92.5% | T23: =T9+T22 -> 643 | U23: 546 | V23: 84.9% | W23: 470 | X23: 413 | Y23: =X23/W23 -> 87.9% | Z23: =Z9+Z22 -> 846 | AA23: 655 | AB23: =AA23/Z23 -> 77.4% | AC23: 1540 | AD23: 1395 | AE23: 90.6% | AF23: =AF9+AF22 -> 1289 | AG23: 1222 | AH23: 94.8% | AI23: 1436 | AJ23: 1096 | AK23: =AJ23/AI23 -> 76.3% | AL23: =AL9+AL22 -> 1017 | AM23: 903 | AN23: 88.8% | AO23: 111 | AP23: 91 | AQ23: 82.0% | AU23: =AU9+AU22 -> 47 | AV23: 40 | AW23: 85.1% | AX23: 35 | AY23: 33 | AZ23: 94.3% | BA23: =BA9+BA22 -> 252 | BB23: =BB9+BB22 -> 217 | BC23: =BB23/BA23 -> 86.1% | BD23: =BD9+BD22 -> 144 | BE23: =BE9+BE22 -> 113 | BF23: =BE23/BD23 -> 78.5% | BG23: 20951 | BH23: 18628 | BI23: 88.9%
A24: 烟花爆竹经营负责人初训 | B24: ='1月'!B24+'2月'!B24+'3月'!B24+'5月'!B24+'6月'!B24+'7月'!B24+'8月'!B24+'9月'!B24+'10月'!B24+'11月'!B24+'12月'!B24 -> 74 | C24: ='1月'!C24+'2月'!C24+'3月'!C24+'5月'!C24+'6月'!C24+'7月'!C24+'8月'!C24+'9月'!C24+'10月'!C24+'11月'!C24+'12月'!C24 -> 59 | D24: =C24/B24 -> 79.7% | K24: ='1月'!K24+'2月'!K24+'3月'!K24+'5月'!K24+'6月'!K24+'7月'!K24+'8月'!K24+'9月'!K24+'10月'!K24+'11月'!K24+'12月'!K24 -> 20 | L24: ='1月'!L24+'2月'!L24+'3月'!L24+'5月'!L24+'6月'!L24+'7月'!L24+'8月'!L24+'9月'!L24+'10月'!L24+'11月'!L24+'12月'!L24 -> 13 | M24: 65.0% | AC24: ='1月'!AC24+'2月'!AC24+'3月'!AC24+'5月'!AC24+'6月'!AC24+'7月'!AC24+'8月'!AC24+'9月'!AC24+'10月'!AC24+'11月'!AC24+'12月'!AC24 -> 26 | AD24: ='1月'!AD24+'2月'!AD24+'3月'!AD24+'5月'!AD24+'6月'!AD24+'7月'!AD24+'8月'!AD24+'9月'!AD24+'10月'!AD24+'11月'!AD24+'12月'!AD24 -> 16 | AE24: 61.5% | AF24: ='1月'!AF24+'2月'!AF24+'3月'!AF24+'5月'!AF24+'6月'!AF24+'7月'!AF24+'8月'!AF24+'9月'!AF24+'10月'!AF24+'11月'!AF24+'12月'!AF24 -> 19 | AG24: ='1月'!AG24+'2月'!AG24+'3月'!AG24+'5月'!AG24+'6月'!AG24+'7月'!AG24+'8月'!AG24+'9月'!AG24+'10月'!AG24+'11月'!AG24+'12月'!AG24 -> 17 | AH24: 89.5% | AL24: ='1月'!AL24+'2月'!AL24+'3月'!AL24+'5月'!AL24+'6月'!AL24+'7月'!AL24+'8月'!AL24+'9月'!AL24+'10月'!AL24+'11月'!AL24+'12月'!AL24 -> 5 | AM24: ='1月'!AM24+'2月'!AM24+'3月'!AM24+'5月'!AM24+'6月'!AM24+'7月'!AM24+'8月'!AM24+'9月'!AM24+'10月'!AM24+'11月'!AM24+'12月'!AM24 -> 5 | AN24: 100.0% | AO24: ='1月'!AO24+'2月'!AO24+'3月'!AO24+'5月'!AO24+'6月'!AO24+'7月'!AO24+'8月'!AO24+'9月'!AO24+'10月'!AO24+'11月'!AO24+'12月'!AO24 -> 1 | AP24: ='1月'!AP24+'2月'!AP24+'3月'!AP24+'5月'!AP24+'6月'!AP24+'7月'!AP24+'8月'!AP24+'9月'!AP24+'10月'!AP24+'11月'!AP24+'12月'!AP24 -> 1 | AQ24: 100.0% | AU24: ='8月'!AU24+'9月'!AU24+'10月'!AU24+'11月'!AU24+'12月'!AU24 -> 2 | AV24: ='8月'!AV24+'9月'!AV24+'10月'!AV24+'11月'!AV24+'12月'!AV24 -> 2 | AW24: 100.0% | AX24: ='9月'!AX24+'10月'!AX24+'11月'!AX24+'12月'!AX24 -> 9 | AY24: ='9月'!AY24+'10月'!AY24+'11月'!AY24+'12月'!AY24 -> 8 | AZ24: 88.9% | BG24: 156 | BH24: 121 | BI24: 77.6%
A25: 危化生产负责人初训 | B25: ='1月'!B25+'2月'!B25+'3月'!B25+'5月'!B25+'6月'!B25+'7月'!B25+'8月'!B25+'9月'!B25+'10月'!B25+'11月'!B25+'12月'!B25 -> 12 | C25: ='1月'!C25+'2月'!C25+'3月'!C25+'5月'!C25+'6月'!C25+'7月'!C25+'8月'!C25+'9月'!C25+'10月'!C25+'11月'!C25+'12月'!C25 -> 9 | D25: =C25/B25 -> 75.0% | K25: ='1月'!K25+'2月'!K25+'3月'!K25+'5月'!K25+'6月'!K25+'7月'!K25+'8月'!K25+'9月'!K25+'10月'!K25+'11月'!K25+'12月'!K25 -> 13 | L25: ='1月'!L25+'2月'!L25+'3月'!L25+'5月'!L25+'6月'!L25+'7月'!L25+'8月'!L25+'9月'!L25+'10月'!L25+'11月'!L25+'12月'!L25 -> 13 | M25: 100.0% | AC25: ='1月'!AC25+'2月'!AC25+'3月'!AC25+'5月'!AC25+'6月'!AC25+'7月'!AC25+'8月'!AC25+'9月'!AC25+'10月'!AC25+'11月'!AC25+'12月'!AC25 -> 1 | AD25: ='1月'!AD25+'2月'!AD25+'3月'!AD25+'5月'!AD25+'6月'!AD25+'7月'!AD25+'8月'!AD25+'9月'!AD25+'10月'!AD25+'11月'!AD25+'12月'!AD25 -> 1 | AE25: 100.0% | AF25: ='1月'!AF25+'2月'!AF25+'3月'!AF25+'5月'!AF25+'6月'!AF25+'7月'!AF25+'8月'!AF25+'9月'!AF25+'10月'!AF25+'11月'!AF25+'12月'!AF25 -> 9 | AG25: ='1月'!AG25+'2月'!AG25+'3月'!AG25+'5月'!AG25+'6月'!AG25+'7月'!AG25+'8月'!AG25+'9月'!AG25+'10月'!AG25+'11月'!AG25+'12月'!AG25 -> 7 | AH25: 77.8% | BG25: 35 | BH25: 30 | BI25: 85.7%
A26: 危化经营负责人初训 | B26: ='1月'!B26+'2月'!B26+'3月'!B26+'5月'!B26+'6月'!B26+'7月'!B26+'8月'!B26+'9月'!B26+'10月'!B26+'11月'!B26+'12月'!B26 -> 136 | C26: ='1月'!C26+'2月'!C26+'3月'!C26+'5月'!C26+'6月'!C26+'7月'!C26+'8月'!C26+'9月'!C26+'10月'!C26+'11月'!C26+'12月'!C26 -> 130 | D26: =C26/B26 -> 95.6% | K26: ='1月'!K26+'2月'!K26+'3月'!K26+'5月'!K26+'6月'!K26+'7月'!K26+'8月'!K26+'9月'!K26+'10月'!K26+'11月'!K26+'12月'!K26 -> 53 | L26: ='1月'!L26+'2月'!L26+'3月'!L26+'5月'!L26+'6月'!L26+'7月'!L26+'8月'!L26+'9月'!L26+'10月'!L26+'11月'!L26+'12月'!L26 -> 51 | M26: 96.2% | Q26: ='1月'!Q26+'2月'!Q26+'3月'!Q26+'5月'!Q26+'6月'!Q26+'7月'!Q26+'8月'!Q26+'9月'!Q26+'10月'!Q26+'11月'!Q26+'12月'!Q26 -> 6 | R26: ='1月'!R26+'2月'!R26+'3月'!R26+'5月'!R26+'6月'!R26+'7月'!R26+'8月'!R26+'9月'!R26+'10月'!R26+'11月'!R26+'12月'!R26 -> 5 | S26: 83.3% | AC26: ='1月'!AC26+'2月'!AC26+'3月'!AC26+'5月'!AC26+'6月'!AC26+'7月'!AC26+'8月'!AC26+'9月'!AC26+'10月'!AC26+'11月'!AC26+'12月'!AC26 -> 16 | AD26: ='1月'!AD26+'2月'!AD26+'3月'!AD26+'5月'!AD26+'6月'!AD26+'7月'!AD26+'8月'!AD26+'9月'!AD26+'10月'!AD26+'11月'!AD26+'12月'!AD26 -> 13 | AE26: 81.3% | AF26: ='1月'!AF26+'2月'!AF26+'3月'!AF26+'5月'!AF26+'6月'!AF26+'7月'!AF26+'8月'!AF26+'9月'!AF26+'10月'!AF26+'11月'!AF26+'12月'!AF26 -> 26 | AG26: ='1月'!AG26+'2月'!AG26+'3月'!AG26+'5月'!AG26+'6月'!AG26+'7月'!AG26+'8月'!AG26+'9月'!AG26+'10月'!AG26+'11月'!AG26+'12月'!AG26 -> 24 | AH26: 92.3% | AL26: ='1月'!AL26+'2月'!AL26+'3月'!AL26+'5月'!AL26+'6月'!AL26+'7月'!AL26+'8月'!AL26+'9月'!AL26+'10月'!AL26+'11月'!AL26+'12月'!AL26 -> 4 | AM26: ='1月'!AM26+'2月'!AM26+'3月'!AM26+'5月'!AM26+'6月'!AM26+'7月'!AM26+'8月'!AM26+'9月'!AM26+'10月'!AM26+'11月'!AM26+'12月'!AM26 -> 4 | AN26: 100.0% | AO26: ='1月'!AO26+'2月'!AO26+'3月'!AO26+'5月'!AO26+'6月'!AO26+'7月'!AO26+'8月'!AO26+'9月'!AO26+'10月'!AO26+'11月'!AO26+'12月'!AO26 -> 12 | AP26: ='1月'!AP26+'2月'!AP26+'3月'!AP26+'5月'!AP26+'6月'!AP26+'7月'!AP26+'8月'!AP26+'9月'!AP26+'10月'!AP26+'11月'!AP26+'12月'!AP26 -> 12 | AQ26: 100.0% | AR26: ='1月'!AR26+'2月'!AR26+'3月'!AR26+'5月'!AR26+'6月'!AR26+'7月'!AR26+'8月'!AR26+'9月'!AR26+'10月'!AR26+'11月'!AR26+'12月'!AR26 -> 12 | AS26: ='1月'!AS26+'2月'!AS26+'3月'!AS26+'5月'!AS26+'6月'!AS26+'7月'!AS26+'8月'!AS26+'9月'!AS26+'10月'!AS26+'11月'!AS26+'12月'!AS26 -> 11 | AT26: =AS26/AR26 -> 91.7% | AX26: ='9月'!AX26+'10月'!AX26+'11月'!AX26+'12月'!AX26 -> 2 | AY26: ='9月'!AY26+'10月'!AY26+'11月'!AY26+'12月'!AY26 -> 2 | AZ26: =AY26/AX26 -> 100.0% | BG26: 267 | BH26: 252 | BI26: 94.4%
A27: 非煤矿山负责人初训 | AC27: ='1月'!AC27+'2月'!AC27+'3月'!AC27+'5月'!AC27+'6月'!AC27+'7月'!AC27+'8月'!AC27+'9月'!AC27+'10月'!AC27+'11月'!AC27+'12月'!AC27 -> 1 | AD27: ='1月'!AD27+'2月'!AD27+'3月'!AD27+'5月'!AD27+'6月'!AD27+'7月'!AD27+'8月'!AD27+'9月'!AD27+'10月'!AD27+'11月'!AD27+'12月'!AD27 -> 1 | AE27: 100.0% | AL27: ='1月'!AL27+'2月'!AL27+'3月'!AL27+'5月'!AL27+'6月'!AL27+'7月'!AL27+'8月'!AL27+'9月'!AL27+'10月'!AL27+'11月'!AL27+'12月'!AL27 -> 4 | AM27: ='1月'!AM27+'2月'!AM27+'3月'!AM27+'5月'!AM27+'6月'!AM27+'7月'!AM27+'8月'!AM27+'9月'!AM27+'10月'!AM27+'11月'!AM27+'12月'!AM27 -> 3 | AN27: 75.0% | BG27: 5 | BH27: 4 | BI27: 80.0%
A28: 金属冶炼负责人初训 | B28: ='1月'!B28+'2月'!B28+'3月'!B28+'5月'!B28+'6月'!B28+'7月'!B28+'8月'!B28+'9月'!B28+'10月'!B28+'11月'!B28+'12月'!B28 -> 1 | C28: ='1月'!C28+'2月'!C28+'3月'!C28+'5月'!C28+'6月'!C28+'7月'!C28+'8月'!C28+'9月'!C28+'10月'!C28+'11月'!C28+'12月'!C28 -> 1 | D28: =C28/B28 -> 100.0% | K28: ='1月'!K28+'2月'!K28+'3月'!K28+'5月'!K28+'6月'!K28+'7月'!K28+'8月'!K28+'9月'!K28+'10月'!K28+'11月'!K28+'12月'!K28 -> 4 | L28: ='1月'!L28+'2月'!L28+'3月'!L28+'5月'!L28+'6月'!L28+'7月'!L28+'8月'!L28+'9月'!L28+'10月'!L28+'11月'!L28+'12月'!L28 -> 3 | M28: 75.0% | Q28: ='1月'!Q28+'2月'!Q28+'3月'!Q28+'5月'!Q28+'6月'!Q28+'7月'!Q28+'8月'!Q28+'9月'!Q28+'10月'!Q28+'11月'!Q28+'12月'!Q28 -> 7 | R28: ='1月'!R28+'2月'!R28+'3月'!R28+'5月'!R28+'6月'!R28+'7月'!R28+'8月'!R28+'9月'!R28+'10月'!R28+'11月'!R28+'12月'!R28 -> 7 | S28: 100.0% | AF28: ='1月'!AF28+'2月'!AF28+'3月'!AF28+'5月'!AF28+'6月'!AF28+'7月'!AF28+'8月'!AF28+'9月'!AF28+'10月'!AF28+'11月'!AF28+'12月'!AF28 -> 1 | AG28: ='1月'!AG28+'2月'!AG28+'3月'!AG28+'5月'!AG28+'6月'!AG28+'7月'!AG28+'8月'!AG28+'9月'!AG28+'10月'!AG28+'11月'!AG28+'12月'!AG28 -> 1 | AH28: 100.0% | AO28: ='1月'!AO28+'2月'!AO28+'3月'!AO28+'5月'!AO28+'6月'!AO28+'7月'!AO28+'8月'!AO28+'9月'!AO28+'10月'!AO28+'11月'!AO28+'12月'!AO28 -> 1 | AP28: ='1月'!AP28+'2月'!AP28+'3月'!AP28+'5月'!AP28+'6月'!AP28+'7月'!AP28+'8月'!AP28+'9月'!AP28+'10月'!AP28+'11月'!AP28+'12月'!AP28 -> 1 | AQ28: 100.0% | BG28: 14 | BH28: 13 | BI28: 92.9%
A29: 高危行业负责人初训合计 | B29: =SUM(B24:B28) -> 223 | C29: =SUM(C24:C28) -> 199 | D29: =C29/B29 -> 89.2% | K29: =SUM(K24:K28) -> 90 | L29: =SUM(L24:L28) -> 80 | M29: =L29/K29 -> 88.9% | Q29: =SUM(Q24:Q28) -> 13 | R29: =SUM(R24:R28) -> 12 | S29: 92.3% | AC29: =SUM(AC24:AC28) -> 44 | AD29: 31 | AE29: 70.5% | AF29: 55 | AG29: 49 | AH29: =AG29/AF29 -> 89.1% | AL29: =SUM(AL24:AL28) -> 13 | AM29: 12 | AN29: 92.3% | AO29: 14 | AP29: 14 | AQ29: =AP29/AO29 -> 100.0% | AR29: 12 | AS29: 11 | AT29: =AS29/AR29 -> 91.7% | AU29: =SUM(AU24:AU28) -> 2 | AV29: 2 | AW29: =AV29/AU29 -> 100.0% | AX29: 11 | AY29: 10 | AZ29: 90.9% | BG29: 477 | BH29: 420 | BI29: 88.1%
A30: 烟花爆竹经营负责人复训 | B30: ='1月'!B30+'2月'!B30+'3月'!B30+'5月'!B30+'6月'!B30+'7月'!B30+'8月'!B30+'9月'!B30+'10月'!B30+'11月'!B30+'12月'!B30 -> 14 | C30: ='1月'!C30+'2月'!C30+'3月'!C30+'5月'!C30+'6月'!C30+'7月'!C30+'8月'!C30+'9月'!C30+'10月'!C30+'11月'!C30+'12月'!C30 -> 14 | D30: 100.0% | K30: ='1月'!K30+'2月'!K30+'3月'!K30+'5月'!K30+'6月'!K30+'7月'!K30+'8月'!K30+'9月'!K30+'10月'!K30+'11月'!K30+'12月'!K30 -> 20 | L30: ='1月'!L30+'2月'!L30+'3月'!L30+'5月'!L30+'6月'!L30+'7月'!L30+'8月'!L30+'9月'!L30+'10月'!L30+'11月'!L30+'12月'!L30 -> 19 | M30: 95.0% | AC30: ='1月'!AC30+'2月'!AC30+'3月'!AC30+'5月'!AC30+'6月'!AC30+'7月'!AC30+'8月'!AC30+'9月'!AC30+'10月'!AC30+'11月'!AC30+'12月'!AC30 -> 18 | AD30: ='1月'!AD30+'2月'!AD30+'3月'!AD30+'5月'!AD30+'6月'!AD30+'7月'!AD30+'8月'!AD30+'9月'!AD30+'10月'!AD30+'11月'!AD30+'12月'!AD30 -> 16 | AE30: =AD30/AC30 -> 88.9% | AF30: ='1月'!AF30+'2月'!AF30+'3月'!AF30+'5月'!AF30+'6月'!AF30+'7月'!AF30+'8月'!AF30+'9月'!AF30+'10月'!AF30+'11月'!AF30+'12月'!AF30 -> 7 | AG30: ='1月'!AG30+'2月'!AG30+'3月'!AG30+'5月'!AG30+'6月'!AG30+'7月'!AG30+'8月'!AG30+'9月'!AG30+'10月'!AG30+'11月'!AG30+'12月'!AG30 -> 7 | AH30: 100.0% | BG30: 59 | BH30: 56 | BI30: 94.9%
A31: 危化生产负责人复训 | B31: ='1月'!B31+'2月'!B31+'3月'!B31+'5月'!B31+'6月'!B31+'7月'!B31+'8月'!B31+'9月'!B31+'10月'!B31+'11月'!B31+'12月'!B31 -> 50 | C31: ='1月'!C31+'2月'!C31+'3月'!C31+'5月'!C31+'6月'!C31+'7月'!C31+'8月'!C31+'9月'!C31+'10月'!C31+'11月'!C31+'12月'!C31 -> 50 | D31: 100.0% | K31: ='1月'!K31+'2月'!K31+'3月'!K31+'5月'!K31+'6月'!K31+'7月'!K31+'8月'!K31+'9月'!K31+'10月'!K31+'11月'!K31+'12月'!K31 -> 34 | L31: ='1月'!L31+'2月'!L31+'3月'!L31+'5月'!L31+'6月'!L31+'7月'!L31+'8月'!L31+'9月'!L31+'10月'!L31+'11月'!L31+'12月'!L31 -> 33 | M31: 97.1% | Q31: ='1月'!Q31+'2月'!Q31+'3月'!Q31+'5月'!Q31+'6月'!Q31+'7月'!Q31+'8月'!Q31+'9月'!Q31+'10月'!Q31+'11月'!Q31+'12月'!Q31 -> 1 | R31: ='1月'!R31+'2月'!R31+'3月'!R31+'5月'!R31+'6月'!R31+'7月'!R31+'8月'!R31+'9月'!R31+'10月'!R31+'11月'!R31+'12月'!R31 -> 1 | S31: =R31/Q31 -> 100.0% | AC31: ='1月'!AC31+'2月'!AC31+'3月'!AC31+'5月'!AC31+'6月'!AC31+'7月'!AC31+'8月'!AC31+'9月'!AC31+'10月'!AC31+'11月'!AC31+'12月'!AC31 -> 10 | AD31: ='1月'!AD31+'2月'!AD31+'3月'!AD31+'5月'!AD31+'6月'!AD31+'7月'!AD31+'8月'!AD31+'9月'!AD31+'10月'!AD31+'11月'!AD31+'12月'!AD31 -> 9 | AE31: 90.0% | AF31: ='1月'!AF31+'2月'!AF31+'3月'!AF31+'5月'!AF31+'6月'!AF31+'7月'!AF31+'8月'!AF31+'9月'!AF31+'10月'!AF31+'11月'!AF31+'12月'!AF31 -> 45 | AG31: ='1月'!AG31+'2月'!AG31+'3月'!AG31+'5月'!AG31+'6月'!AG31+'7月'!AG31+'8月'!AG31+'9月'!AG31+'10月'!AG31+'11月'!AG31+'12月'!AG31 -> 44 | AH31: 97.8% | AO31: ='1月'!AO31+'2月'!AO31+'3月'!AO31+'5月'!AO31+'6月'!AO31+'7月'!AO31+'8月'!AO31+'9月'!AO31+'10月'!AO31+'11月'!AO31+'12月'!AO31 -> 5 | AP31: ='1月'!AP31+'2月'!AP31+'3月'!AP31+'5月'!AP31+'6月'!AP31+'7月'!AP31+'8月'!AP31+'9月'!AP31+'10月'!AP31+'11月'!AP31+'12月'!AP31 -> 5 | AQ31: =AP31/AO31 -> 100.0% | AR31: ='1月'!AR31+'2月'!AR31+'3月'!AR31+'5月'!AR31+'6月'!AR31+'7月'!AR31+'8月'!AR31+'9月'!AR31+'10月'!AR31+'11月'!AR31+'12月'!AR31 -> 1 | AS31: ='1月'!AS31+'2月'!AS31+'3月'!AS31+'5月'!AS31+'6月'!AS31+'7月'!AS31+'8月'!AS31+'9月'!AS31+'10月'!AS31+'11月'!AS31+'12月'!AS31 -> 1 | AT31: =AS31/AR31 -> 100.0% | BG31: 146 | BH31: 143 | BI31: 97.9%
A32: 危化经营负责人复训 | B32: ='1月'!B32+'2月'!B32+'3月'!B32+'5月'!B32+'6月'!B32+'7月'!B32+'8月'!B32+'9月'!B32+'10月'!B32+'11月'!B32+'12月'!B32 -> 572 | C32: ='1月'!C32+'2月'!C32+'3月'!C32+'5月'!C32+'6月'!C32+'7月'!C32+'8月'!C32+'9月'!C32+'10月'!C32+'11月'!C32+'12月'!C32 -> 561 | D32: 98.1% | K32: ='1月'!K32+'2月'!K32+'3月'!K32+'5月'!K32+'6月'!K32+'7月'!K32+'8月'!K32+'9月'!K32+'10月'!K32+'11月'!K32+'12月'!K32 -> 216 | L32: ='1月'!L32+'2月'!L32+'3月'!L32+'5月'!L32+'6月'!L32+'7月'!L32+'8月'!L32+'9月'!L32+'10月'!L32+'11月'!L32+'12月'!L32 -> 208 | M32: 96.3% | Q32: ='1月'!Q32+'2月'!Q32+'3月'!Q32+'5月'!Q32+'6月'!Q32+'7月'!Q32+'8月'!Q32+'9月'!Q32+'10月'!Q32+'11月'!Q32+'12月'!Q32 -> 2 | R32: ='1月'!R32+'2月'!R32+'3月'!R32+'5月'!R32+'6月'!R32+'7月'!R32+'8月'!R32+'9月'!R32+'10月'!R32+'11月'!R32+'12月'!R32 -> 2 | S32: 100.0% | AC32: ='1月'!AC32+'2月'!AC32+'3月'!AC32+'5月'!AC32+'6月'!AC32+'7月'!AC32+'8月'!AC32+'9月'!AC32+'10月'!AC32+'11月'!AC32+'12月'!AC32 -> 36 | AD32: ='1月'!AD32+'2月'!AD32+'3月'!AD32+'5月'!AD32+'6月'!AD32+'7月'!AD32+'8月'!AD32+'9月'!AD32+'10月'!AD32+'11月'!AD32+'12月'!AD32 -> 33 | AE32: 91.7% | AF32: ='1月'!AF32+'2月'!AF32+'3月'!AF32+'5月'!AF32+'6月'!AF32+'7月'!AF32+'8月'!AF32+'9月'!AF32+'10月'!AF32+'11月'!AF32+'12月'!AF32 -> 64 | AG32: ='1月'!AG32+'2月'!AG32+'3月'!AG32+'5月'!AG32+'6月'!AG32+'7月'!AG32+'8月'!AG32+'9月'!AG32+'10月'!AG32+'11月'!AG32+'12月'!AG32 -> 62 | AH32: 96.9% | AL32: ='1月'!AL32+'2月'!AL32+'3月'!AL32+'5月'!AL32+'6月'!AL32+'7月'!AL32+'8月'!AL32+'9月'!AL32+'10月'!AL32+'11月'!AL32+'12月'!AL32 -> 4 | AM32: ='1月'!AM32+'2月'!AM32+'3月'!AM32+'5月'!AM32+'6月'!AM32+'7月'!AM32+'8月'!AM32+'9月'!AM32+'10月'!AM32+'11月'!AM32+'12月'!AM32 -> 4 | AN32: =AM32/AL32 -> 100.0% | AO32: ='1月'!AO32+'2月'!AO32+'3月'!AO32+'5月'!AO32+'6月'!AO32+'7月'!AO32+'8月'!AO32+'9月'!AO32+'10月'!AO32+'11月'!AO32+'12月'!AO32 -> 14 | AP32: ='1月'!AP32+'2月'!AP32+'3月'!AP32+'5月'!AP32+'6月'!AP32+'7月'!AP32+'8月'!AP32+'9月'!AP32+'10月'!AP32+'11月'!AP32+'12月'!AP32 -> 13 | AQ32: =AP32/AO32 -> 92.9% | AR32: ='1月'!AR32+'2月'!AR32+'3月'!AR32+'5月'!AR32+'6月'!AR32+'7月'!AR32+'8月'!AR32+'9月'!AR32+'10月'!AR32+'11月'!AR32+'12月'!AR32 -> 8 | AS32: ='1月'!AS32+'2月'!AS32+'3月'!AS32+'5月'!AS32+'6月'!AS32+'7月'!AS32+'8月'!AS32+'9月'!AS32+'10月'!AS32+'11月'!AS32+'12月'!AS32 -> 7 | AT32: 87.5% | AX32: ='9月'!AX32+'10月'!AX32+'11月'!AX32+'12月'!AX32 -> 1 | AY32: ='9月'!AY32+'10月'!AY32+'11月'!AY32+'12月'!AY32 -> 1 | AZ32: =AY32/AX32 -> 100.0% | BG32: 917 | BH32: 891 | BI32: 97.2%
A33: 非煤矿山负责人复训 | B33: ='1月'!B33+'2月'!B33+'3月'!B33+'5月'!B33+'6月'!B33+'7月'!B33+'8月'!B33+'9月'!B33+'10月'!B33+'11月'!B33+'12月'!B33 -> 41 | C33: ='1月'!C33+'2月'!C33+'3月'!C33+'5月'!C33+'6月'!C33+'7月'!C33+'8月'!C33+'9月'!C33+'10月'!C33+'11月'!C33+'12月'!C33 -> 40 | D33: 97.6% | K33: ='1月'!K33+'2月'!K33+'3月'!K33+'5月'!K33+'6月'!K33+'7月'!K33+'8月'!K33+'9月'!K33+'10月'!K33+'11月'!K33+'12月'!K33 -> 1 | L33: ='1月'!L33+'2月'!L33+'3月'!L33+'5月'!L33+'6月'!L33+'7月'!L33+'8月'!L33+'9月'!L33+'10月'!L33+'11月'!L33+'12月'!L33 -> 1 | M33: 100.0% | Q33: ='1月'!Q33+'2月'!Q33+'3月'!Q33+'5月'!Q33+'6月'!Q33+'7月'!Q33+'8月'!Q33+'9月'!Q33+'10月'!Q33+'11月'!Q33+'12月'!Q33 -> 4 | R33: ='1月'!R33+'2月'!R33+'3月'!R33+'5月'!R33+'6月'!R33+'7月'!R33+'8月'!R33+'9月'!R33+'10月'!R33+'11月'!R33+'12月'!R33 -> 4 | S33: 100.0% | AC33: ='1月'!AC33+'2月'!AC33+'3月'!AC33+'5月'!AC33+'6月'!AC33+'7月'!AC33+'8月'!AC33+'9月'!AC33+'10月'!AC33+'11月'!AC33+'12月'!AC33 -> 9 | AD33: ='1月'!AD33+'2月'!AD33+'3月'!AD33+'5月'!AD33+'6月'!AD33+'7月'!AD33+'8月'!AD33+'9月'!AD33+'10月'!AD33+'11月'!AD33+'12月'!AD33 -> 8 | AE33: 88.9% | AF33: ='1月'!AF33+'2月'!AF33+'3月'!AF33+'5月'!AF33+'6月'!AF33+'7月'!AF33+'8月'!AF33+'9月'!AF33+'10月'!AF33+'11月'!AF33+'12月'!AF33 -> 1 | AG33: ='1月'!AG33+'2月'!AG33+'3月'!AG33+'5月'!AG33+'6月'!AG33+'7月'!AG33+'8月'!AG33+'9月'!AG33+'10月'!AG33+'11月'!AG33+'12月'!AG33 -> 1 | AH33: 100.0% | BG33: 56 | BH33: 54 | BI33: 96.4%
A34: 金属冶炼负责人复训 | B34: ='1月'!B34+'2月'!B34+'3月'!B34+'5月'!B34+'6月'!B34+'7月'!B34+'8月'!B34+'9月'!B34+'10月'!B34+'11月'!B34+'12月'!B34 -> 1 | C34: ='1月'!C34+'2月'!C34+'3月'!C34+'5月'!C34+'6月'!C34+'7月'!C34+'8月'!C34+'9月'!C34+'10月'!C34+'11月'!C34+'12月'!C34 -> 1 | D34: 100.0% | K34: ='1月'!K34+'2月'!K34+'3月'!K34+'5月'!K34+'6月'!K34+'7月'!K34+'8月'!K34+'9月'!K34+'10月'!K34+'11月'!K34+'12月'!K34 -> 1 | L34: ='1月'!L34+'2月'!L34+'3月'!L34+'5月'!L34+'6月'!L34+'7月'!L34+'8月'!L34+'9月'!L34+'10月'!L34+'11月'!L34+'12月'!L34 -> 0 | M34: 0.0% | Q34: ='1月'!Q34+'2月'!Q34+'3月'!Q34+'5月'!Q34+'6月'!Q34+'7月'!Q34+'8月'!Q34+'9月'!Q34+'10月'!Q34+'11月'!Q34+'12月'!Q34 -> 9 | R34: ='1月'!R34+'2月'!R34+'3月'!R34+'5月'!R34+'6月'!R34+'7月'!R34+'8月'!R34+'9月'!R34+'10月'!R34+'11月'!R34+'12月'!R34 -> 8 | S34: 88.9% | BG34: 11 | BH34: 9 | BI34: 81.8%
A35: 高危行业负责人复训合计 | B35: =SUM(B30:B34) -> 678 | C35: =SUM(C30:C34) -> 666 | D35: =C35/B35 -> 98.2% | K35: =SUM(K30:K34) -> 272 | L35: =SUM(L30:L34) -> 261 | M35: 96.0% | Q35: =SUM(Q30:Q34) -> 16 | R35: =SUM(R30:R34) -> 15 | S35: =R35/Q35 -> 93.8% | AC35: =SUM(AC30:AC34) -> 73 | AD35: 66 | AE35: =AD35/AC35 -> 90.4% | AF35: 117 | AG35: 114 | AH35: 97.4% | AL35: =SUM(AL30:AL34) -> 4 | AM35: 4 | AN35: =AM35/AL35 -> 100.0% | AO35: =SUM(AO30:AO34) -> 19 | AP35: 18 | AQ35: =AP35/AO35 -> 94.7% | AR35: 9 | AS35: 8 | AT35: =AS35/AR35 -> 88.9% | AX35: 1 | AY35: 1 | AZ35: =AY35/AX35 -> 100.0% | BG35: 1189 | BH35: 1153 | BI35: =BH35/BG35 -> 97.0%
A36: 高危行业主要负责人合计 | B36: =B29+B35 -> 901 | C36: =C29+C35 -> 865 | D36: 96.0% | K36: =K29+K35 -> 362 | L36: =L29+L35 -> 341 | M36: 94.2% | Q36: =Q29+Q35 -> 29 | R36: =R29+R35 -> 27 | S36: 93.1% | AC36: =AC29+AC35 -> 117 | AD36: 97 | AE36: 82.9% | AF36: 172 | AG36: 163 | AH36: 94.8% | AL36: =AL29+AL35 -> 17 | AM36: 16 | AN36: =AM36/AL36 -> 94.1% | AO36: =AO29+AO35 -> 33 | AP36: 32 | AQ36: 97.0% | AR36: 21 | AS36: 19 | AT36: =AS36/AR36 -> 90.5% | AU36: =AU29+AU35 -> 2 | AV36: 2 | AW36: =AV36/AU36 -> 100.0% | AX36: 12 | AY36: 11 | AZ36: =AY36/AX36 -> 91.7% | BG36: 1666 | BH36: 1573 | BI36: 94.4%
A37: 烟花爆竹经营安管初训 | B37: ='1月'!B37+'2月'!B37+'3月'!B37+'5月'!B37+'6月'!B37+'7月'!B37+'8月'!B37+'9月'!B37+'10月'!B37+'11月'!B37+'12月'!B37 -> 61 | C37: ='1月'!C37+'2月'!C37+'3月'!C37+'5月'!C37+'6月'!C37+'7月'!C37+'8月'!C37+'9月'!C37+'10月'!C37+'11月'!C37+'12月'!C37 -> 49 | D37: 80.3% | K37: ='1月'!K37+'2月'!K37+'3月'!K37+'5月'!K37+'6月'!K37+'7月'!K37+'8月'!K37+'9月'!K37+'10月'!K37+'11月'!K37+'12月'!K37 -> 15 | L37: ='1月'!L37+'2月'!L37+'3月'!L37+'5月'!L37+'6月'!L37+'7月'!L37+'8月'!L37+'9月'!L37+'10月'!L37+'11月'!L37+'12月'!L37 -> 12 | M37: 80.0% | AC37: ='1月'!AC37+'2月'!AC37+'3月'!AC37+'5月'!AC37+'6月'!AC37+'7月'!AC37+'8月'!AC37+'9月'!AC37+'10月'!AC37+'11月'!AC37+'12月'!AC37 -> 19 | AD37: ='1月'!AD37+'2月'!AD37+'3月'!AD37+'5月'!AD37+'6月'!AD37+'7月'!AD37+'8月'!AD37+'9月'!AD37+'10月'!AD37+'11月'!AD37+'12月'!AD37 -> 14 | AE37: 73.7% | AF37: ='1月'!AF37+'2月'!AF37+'3月'!AF37+'5月'!AF37+'6月'!AF37+'7月'!AF37+'8月'!AF37+'9月'!AF37+'10月'!AF37+'11月'!AF37+'12月'!AF37 -> 27 | AG37: ='1月'!AG37+'2月'!AG37+'3月'!AG37+'5月'!AG37+'6月'!AG37+'7月'!AG37+'8月'!AG37+'9月'!AG37+'10月'!AG37+'11月'!AG37+'12月'!AG37 -> 20 | AH37: 74.1% | AL37: ='1月'!AL37+'2月'!AL37+'3月'!AL37+'5月'!AL37+'6月'!AL37+'7月'!AL37+'8月'!AL37+'9月'!AL37+'10月'!AL37+'11月'!AL37+'12月'!AL37 -> 5 | AM37: ='1月'!AM37+'2月'!AM37+'3月'!AM37+'5月'!AM37+'6月'!AM37+'7月'!AM37+'8月'!AM37+'9月'!AM37+'10月'!AM37+'11月'!AM37+'12月'!AM37 -> 4 | AN37: 80.0% | AO37: ='1月'!AO37+'2月'!AO37+'3月'!AO37+'5月'!AO37+'6月'!AO37+'7月'!AO37+'8月'!AO37+'9月'!AO37+'10月'!AO37+'11月'!AO37+'12月'!AO37 -> 1 | AP37: ='1月'!AP37+'2月'!AP37+'3月'!AP37+'5月'!AP37+'6月'!AP37+'7月'!AP37+'8月'!AP37+'9月'!AP37+'10月'!AP37+'11月'!AP37+'12月'!AP37 -> 1 | AQ37: 100.0% | AU37: ='8月'!AU37+'9月'!AU37+'10月'!AU37+'11月'!AU37+'12月'!AU37 -> 2 | AV37: ='8月'!AV37+'9月'!AV37+'10月'!AV37+'11月'!AV37+'12月'!AV37 -> 2 | AW37: =AV37/AU37 -> 100.0% | AX37: ='9月'!AX37+'10月'!AX37+'11月'!AX37+'12月'!AX37 -> 7 | AY37: ='9月'!AY37+'10月'!AY37+'11月'!AY37+'12月'!AY37 -> 7 | AZ37: 100.0% | BG37: 137 | BH37: 109 | BI37: 79.6%
A38: 危化生产安管初训 | B38: ='1月'!B38+'2月'!B38+'3月'!B38+'5月'!B38+'6月'!B38+'7月'!B38+'8月'!B38+'9月'!B38+'10月'!B38+'11月'!B38+'12月'!B38 -> 40 | C38: ='1月'!C38+'2月'!C38+'3月'!C38+'5月'!C38+'6月'!C38+'7月'!C38+'8月'!C38+'9月'!C38+'10月'!C38+'11月'!C38+'12月'!C38 -> 38 | D38: 95.0% | K38: ='1月'!K38+'2月'!K38+'3月'!K38+'5月'!K38+'6月'!K38+'7月'!K38+'8月'!K38+'9月'!K38+'10月'!K38+'11月'!K38+'12月'!K38 -> 59 | L38: ='1月'!L38+'2月'!L38+'3月'!L38+'5月'!L38+'6月'!L38+'7月'!L38+'8月'!L38+'9月'!L38+'10月'!L38+'11月'!L38+'12月'!L38 -> 54 | M38: 91.5% | AC38: ='1月'!AC38+'2月'!AC38+'3月'!AC38+'5月'!AC38+'6月'!AC38+'7月'!AC38+'8月'!AC38+'9月'!AC38+'10月'!AC38+'11月'!AC38+'12月'!AC38 -> 1 | AD38: ='1月'!AD38+'2月'!AD38+'3月'!AD38+'5月'!AD38+'6月'!AD38+'7月'!AD38+'8月'!AD38+'9月'!AD38+'10月'!AD38+'11月'!AD38+'12月'!AD38 -> 1 | AE38: 100.0% | AF38: ='1月'!AF38+'2月'!AF38+'3月'!AF38+'5月'!AF38+'6月'!AF38+'7月'!AF38+'8月'!AF38+'9月'!AF38+'10月'!AF38+'11月'!AF38+'12月'!AF38 -> 26 | AG38: ='1月'!AG38+'2月'!AG38+'3月'!AG38+'5月'!AG38+'6月'!AG38+'7月'!AG38+'8月'!AG38+'9月'!AG38+'10月'!AG38+'11月'!AG38+'12月'!AG38 -> 24 | AH38: 92.3% | AL38: ='1月'!AL38+'2月'!AL38+'3月'!AL38+'5月'!AL38+'6月'!AL38+'7月'!AL38+'8月'!AL38+'9月'!AL38+'10月'!AL38+'11月'!AL38+'12月'!AL38 -> 8 | AM38: ='1月'!AM38+'2月'!AM38+'3月'!AM38+'5月'!AM38+'6月'!AM38+'7月'!AM38+'8月'!AM38+'9月'!AM38+'10月'!AM38+'11月'!AM38+'12月'!AM38 -> 5 | AN38: 62.5% | AO38: ='1月'!AO38+'2月'!AO38+'3月'!AO38+'5月'!AO38+'6月'!AO38+'7月'!AO38+'8月'!AO38+'9月'!AO38+'10月'!AO38+'11月'!AO38+'12月'!AO38 -> 4 | AP38: ='1月'!AP38+'2月'!AP38+'3月'!AP38+'5月'!AP38+'6月'!AP38+'7月'!AP38+'8月'!AP38+'9月'!AP38+'10月'!AP38+'11月'!AP38+'12月'!AP38 -> 4 | AQ38: 100.0% | BG38: 138 | BH38: 126 | BI38: 91.3%
A39: 危化经营安管初训 | B39: ='1月'!B39+'2月'!B39+'3月'!B39+'5月'!B39+'6月'!B39+'7月'!B39+'8月'!B39+'9月'!B39+'10月'!B39+'11月'!B39+'12月'!B39 -> 274 | C39: ='1月'!C39+'2月'!C39+'3月'!C39+'5月'!C39+'6月'!C39+'7月'!C39+'8月'!C39+'9月'!C39+'10月'!C39+'11月'!C39+'12月'!C39 -> 223 | D39: 81.4% | K39: ='1月'!K39+'2月'!K39+'3月'!K39+'5月'!K39+'6月'!K39+'7月'!K39+'8月'!K39+'9月'!K39+'10月'!K39+'11月'!K39+'12月'!K39 -> 186 | L39: ='1月'!L39+'2月'!L39+'3月'!L39+'5月'!L39+'6月'!L39+'7月'!L39+'8月'!L39+'9月'!L39+'10月'!L39+'11月'!L39+'12月'!L39 -> 146 | M39: 78.5% | Q39: ='1月'!Q39+'2月'!Q39+'3月'!Q39+'5月'!Q39+'6月'!Q39+'7月'!Q39+'8月'!Q39+'9月'!Q39+'10月'!Q39+'11月'!Q39+'12月'!Q39 -> 14 | R39: ='1月'!R39+'2月'!R39+'3月'!R39+'5月'!R39+'6月'!R39+'7月'!R39+'8月'!R39+'9月'!R39+'10月'!R39+'11月'!R39+'12月'!R39 -> 14 | S39: 100.0% | AC39: ='1月'!AC39+'2月'!AC39+'3月'!AC39+'5月'!AC39+'6月'!AC39+'7月'!AC39+'8月'!AC39+'9月'!AC39+'10月'!AC39+'11月'!AC39+'12月'!AC39 -> 42 | AD39: ='1月'!AD39+'2月'!AD39+'3月'!AD39+'5月'!AD39+'6月'!AD39+'7月'!AD39+'8月'!AD39+'9月'!AD39+'10月'!AD39+'11月'!AD39+'12月'!AD39 -> 35 | AE39: 83.3% | AF39: ='1月'!AF39+'2月'!AF39+'3月'!AF39+'5月'!AF39+'6月'!AF39+'7月'!AF39+'8月'!AF39+'9月'!AF39+'10月'!AF39+'11月'!AF39+'12月'!AF39 -> 72 | AG39: ='1月'!AG39+'2月'!AG39+'3月'!AG39+'5月'!AG39+'6月'!AG39+'7月'!AG39+'8月'!AG39+'9月'!AG39+'10月'!AG39+'11月'!AG39+'12月'!AG39 -> 57 | AH39: 79.2% | AL39: ='1月'!AL39+'2月'!AL39+'3月'!AL39+'5月'!AL39+'6月'!AL39+'7月'!AL39+'8月'!AL39+'9月'!AL39+'10月'!AL39+'11月'!AL39+'12月'!AL39 -> 9 | AM39: ='1月'!AM39+'2月'!AM39+'3月'!AM39+'5月'!AM39+'6月'!AM39+'7月'!AM39+'8月'!AM39+'9月'!AM39+'10月'!AM39+'11月'!AM39+'12月'!AM39 -> 7 | AN39: 77.8% | AO39: ='1月'!AO39+'2月'!AO39+'3月'!AO39+'5月'!AO39+'6月'!AO39+'7月'!AO39+'8月'!AO39+'9月'!AO39+'10月'!AO39+'11月'!AO39+'12月'!AO39 -> 22 | AP39: ='1月'!AP39+'2月'!AP39+'3月'!AP39+'5月'!AP39+'6月'!AP39+'7月'!AP39+'8月'!AP39+'9月'!AP39+'10月'!AP39+'11月'!AP39+'12月'!AP39 -> 20 | AQ39: 90.9% | AR39: ='1月'!AR39+'2月'!AR39+'3月'!AR39+'5月'!AR39+'6月'!AR39+'7月'!AR39+'8月'!AR39+'9月'!AR39+'10月'!AR39+'11月'!AR39+'12月'!AR39 -> 13 | AS39: ='1月'!AS39+'2月'!AS39+'3月'!AS39+'5月'!AS39+'6月'!AS39+'7月'!AS39+'8月'!AS39+'9月'!AS39+'10月'!AS39+'11月'!AS39+'12月'!AS39 -> 12 | AT39: =AS39/AR39 -> 92.3% | AX39: ='9月'!AX39+'10月'!AX39+'11月'!AX39+'12月'!AX39 -> 3 | AY39: ='9月'!AY39+'10月'!AY39+'11月'!AY39+'12月'!AY39 -> 2 | AZ39: 66.7% | BG39: 635 | BH39: 516 | BI39: 81.3%
A40: 非煤矿山安管初训 | B40: ='1月'!B40+'2月'!B40+'3月'!B40+'5月'!B40+'6月'!B40+'7月'!B40+'8月'!B40+'9月'!B40+'10月'!B40+'11月'!B40+'12月'!B40 -> 8 | C40: ='1月'!C40+'2月'!C40+'3月'!C40+'5月'!C40+'6月'!C40+'7月'!C40+'8月'!C40+'9月'!C40+'10月'!C40+'11月'!C40+'12月'!C40 -> 8 | D40: 100.0% | K40: ='1月'!K40+'2月'!K40+'3月'!K40+'5月'!K40+'6月'!K40+'7月'!K40+'8月'!K40+'9月'!K40+'10月'!K40+'11月'!K40+'12月'!K40 -> 1 | L40: ='1月'!L40+'2月'!L40+'3月'!L40+'5月'!L40+'6月'!L40+'7月'!L40+'8月'!L40+'9月'!L40+'10月'!L40+'11月'!L40+'12月'!L40 -> 1 | M40: 100.0% | AC40: ='1月'!AC40+'2月'!AC40+'3月'!AC40+'5月'!AC40+'6月'!AC40+'7月'!AC40+'8月'!AC40+'9月'!AC40+'10月'!AC40+'11月'!AC40+'12月'!AC40 -> 5 | AD40: ='1月'!AD40+'2月'!AD40+'3月'!AD40+'5月'!AD40+'6月'!AD40+'7月'!AD40+'8月'!AD40+'9月'!AD40+'10月'!AD40+'11月'!AD40+'12月'!AD40 -> 3 | AE40: 60.0% | AF40: ='1月'!AF40+'2月'!AF40+'3月'!AF40+'5月'!AF40+'6月'!AF40+'7月'!AF40+'8月'!AF40+'9月'!AF40+'10月'!AF40+'11月'!AF40+'12月'!AF40 -> 2 | AG40: ='1月'!AG40+'2月'!AG40+'3月'!AG40+'5月'!AG40+'6月'!AG40+'7月'!AG40+'8月'!AG40+'9月'!AG40+'10月'!AG40+'11月'!AG40+'12月'!AG40 -> 2 | AH40: 100.0% | AL40: ='1月'!AL40+'2月'!AL40+'3月'!AL40+'5月'!AL40+'6月'!AL40+'7月'!AL40+'8月'!AL40+'9月'!AL40+'10月'!AL40+'11月'!AL40+'12月'!AL40 -> 6 | AM40: ='1月'!AM40+'2月'!AM40+'3月'!AM40+'5月'!AM40+'6月'!AM40+'7月'!AM40+'8月'!AM40+'9月'!AM40+'10月'!AM40+'11月'!AM40+'12月'!AM40 -> 4 | AN40: 66.7% | BG40: 22 | BH40: 18 | BI40: 81.8%
A41: 金属冶炼安管初训 | B41: ='1月'!B41+'2月'!B41+'3月'!B41+'5月'!B41+'6月'!B41+'7月'!B41+'8月'!B41+'9月'!B41+'10月'!B41+'11月'!B41+'12月'!B41 -> 1 | C41: ='1月'!C41+'2月'!C41+'3月'!C41+'5月'!C41+'6月'!C41+'7月'!C41+'8月'!C41+'9月'!C41+'10月'!C41+'11月'!C41+'12月'!C41 -> 1 | D41: 100.0% | K41: ='1月'!K41+'2月'!K41+'3月'!K41+'5月'!K41+'6月'!K41+'7月'!K41+'8月'!K41+'9月'!K41+'10月'!K41+'11月'!K41+'12月'!K41 -> 1 | L41: ='1月'!L41+'2月'!L41+'3月'!L41+'5月'!L41+'6月'!L41+'7月'!L41+'8月'!L41+'9月'!L41+'10月'!L41+'11月'!L41+'12月'!L41 -> 1 | M41: 100.0% | Q41: ='1月'!Q41+'2月'!Q41+'3月'!Q41+'5月'!Q41+'6月'!Q41+'7月'!Q41+'8月'!Q41+'9月'!Q41+'10月'!Q41+'11月'!Q41+'12月'!Q41 -> 15 | R41: ='1月'!R41+'2月'!R41+'3月'!R41+'5月'!R41+'6月'!R41+'7月'!R41+'8月'!R41+'9月'!R41+'10月'!R41+'11月'!R41+'12月'!R41 -> 13 | S41: 86.7% | AF41: ='1月'!AF41+'2月'!AF41+'3月'!AF41+'5月'!AF41+'6月'!AF41+'7月'!AF41+'8月'!AF41+'9月'!AF41+'10月'!AF41+'11月'!AF41+'12月'!AF41 -> 1 | AG41: ='1月'!AG41+'2月'!AG41+'3月'!AG41+'5月'!AG41+'6月'!AG41+'7月'!AG41+'8月'!AG41+'9月'!AG41+'10月'!AG41+'11月'!AG41+'12月'!AG41 -> 1 | AH41: 100.0% | AO41: ='1月'!AO41+'2月'!AO41+'3月'!AO41+'5月'!AO41+'6月'!AO41+'7月'!AO41+'8月'!AO41+'9月'!AO41+'10月'!AO41+'11月'!AO41+'12月'!AO41 -> 1 | AP41: ='1月'!AP41+'2月'!AP41+'3月'!AP41+'5月'!AP41+'6月'!AP41+'7月'!AP41+'8月'!AP41+'9月'!AP41+'10月'!AP41+'11月'!AP41+'12月'!AP41 -> 1 | AQ41: 100.0% | BG41: 19 | BH41: 17 | BI41: 89.5%
A42: 高危行业安管初训合计 | B42: =SUM(B37:B41) -> 384 | C42: =SUM(C37:C41) -> 319 | D42: =C42/B42 -> 83.1% | K42: =SUM(K37:K41) -> 262 | L42: =SUM(L37:L41) -> 214 | M42: =L42/K42 -> 81.7% | Q42: =SUM(Q37:Q41) -> 29 | R42: =SUM(R37:R41) -> 27 | S42: 93.1% | AC42: =SUM(AC37:AC41) -> 67 | AD42: 53 | AE42: =AD42/AC42 -> 79.1% | AF42: 128 | AG42: 104 | AH42: =AG42/AF42 -> 81.3% | AL42: =SUM(AL37:AL41) -> 28 | AM42: =SUM(AM37:AM41) -> 20 | AN42: 71.4% | AO42: =SUM(AO37:AO41) -> 28 | AP42: =SUM(AP37:AP41) -> 26 | AQ42: 92.9% | AR42: =SUM(AR37:AR41) -> 13 | AS42: =SUM(AS37:AS41) -> 12 | AT42: =AS42/AR42 -> 92.3% | AU42: =SUM(AU37:AU41) -> 2 | AV42: 2 | AW42: =AV42/AU42 -> 100.0% | AX42: 10 | AY42: 9 | AZ42: 90.0% | BG42: 951 | BH42: 786 | BI42: 82.6%
A43: 烟花爆竹经营安管复训 | B43: ='1月'!B43+'2月'!B43+'3月'!B43+'5月'!B43+'6月'!B43+'7月'!B43+'8月'!B43+'9月'!B43+'10月'!B43+'11月'!B43+'12月'!B43 -> 17 | C43: ='1月'!C43+'2月'!C43+'3月'!C43+'5月'!C43+'6月'!C43+'7月'!C43+'8月'!C43+'9月'!C43+'10月'!C43+'11月'!C43+'12月'!C43 -> 16 | D43: 94.1% | K43: ='1月'!K43+'2月'!K43+'3月'!K43+'5月'!K43+'6月'!K43+'7月'!K43+'8月'!K43+'9月'!K43+'10月'!K43+'11月'!K43+'12月'!K43 -> 27 | L43: ='1月'!L43+'2月'!L43+'3月'!L43+'5月'!L43+'6月'!L43+'7月'!L43+'8月'!L43+'9月'!L43+'10月'!L43+'11月'!L43+'12月'!L43 -> 22 | M43: 81.5% | AC43: ='1月'!AC43+'2月'!AC43+'3月'!AC43+'5月'!AC43+'6月'!AC43+'7月'!AC43+'8月'!AC43+'9月'!AC43+'10月'!AC43+'11月'!AC43+'12月'!AC43 -> 16 | AD43: ='1月'!AD43+'2月'!AD43+'3月'!AD43+'5月'!AD43+'6月'!AD43+'7月'!AD43+'8月'!AD43+'9月'!AD43+'10月'!AD43+'11月'!AD43+'12月'!AD43 -> 12 | AE43: 75.0% | AF43: ='1月'!AF43+'2月'!AF43+'3月'!AF43+'5月'!AF43+'6月'!AF43+'7月'!AF43+'8月'!AF43+'9月'!AF43+'10月'!AF43+'11月'!AF43+'12月'!AF43 -> 3 | AG43: ='1月'!AG43+'2月'!AG43+'3月'!AG43+'5月'!AG43+'6月'!AG43+'7月'!AG43+'8月'!AG43+'9月'!AG43+'10月'!AG43+'11月'!AG43+'12月'!AG43 -> 3 | AH43: 100.0% | BG43: 63 | BH43: 53 | BI43: 84.1%
A44: 危化生产安管复训 | B44: ='1月'!B44+'2月'!B44+'3月'!B44+'5月'!B44+'6月'!B44+'7月'!B44+'8月'!B44+'9月'!B44+'10月'!B44+'11月'!B44+'12月'!B44 -> 143 | C44: ='1月'!C44+'2月'!C44+'3月'!C44+'5月'!C44+'6月'!C44+'7月'!C44+'8月'!C44+'9月'!C44+'10月'!C44+'11月'!C44+'12月'!C44 -> 140 | D44: 97.9% | K44: ='1月'!K44+'2月'!K44+'3月'!K44+'5月'!K44+'6月'!K44+'7月'!K44+'8月'!K44+'9月'!K44+'10月'!K44+'11月'!K44+'12月'!K44 -> 87 | L44: ='1月'!L44+'2月'!L44+'3月'!L44+'5月'!L44+'6月'!L44+'7月'!L44+'8月'!L44+'9月'!L44+'10月'!L44+'11月'!L44+'12月'!L44 -> 81 | M44: 93.1% | Q44: ='1月'!Q44+'2月'!Q44+'3月'!Q44+'5月'!Q44+'6月'!Q44+'7月'!Q44+'8月'!Q44+'9月'!Q44+'10月'!Q44+'11月'!Q44+'12月'!Q44 -> 2 | R44: ='1月'!R44+'2月'!R44+'3月'!R44+'5月'!R44+'6月'!R44+'7月'!R44+'8月'!R44+'9月'!R44+'10月'!R44+'11月'!R44+'12月'!R44 -> 2 | S44: =R44/Q44 -> 100.0% | AC44: ='1月'!AC44+'2月'!AC44+'3月'!AC44+'5月'!AC44+'6月'!AC44+'7月'!AC44+'8月'!AC44+'9月'!AC44+'10月'!AC44+'11月'!AC44+'12月'!AC44 -> 17 | AD44: ='1月'!AD44+'2月'!AD44+'3月'!AD44+'5月'!AD44+'6月'!AD44+'7月'!AD44+'8月'!AD44+'9月'!AD44+'10月'!AD44+'11月'!AD44+'12月'!AD44 -> 17 | AE44: 100.0% | AF44: ='1月'!AF44+'2月'!AF44+'3月'!AF44+'5月'!AF44+'6月'!AF44+'7月'!AF44+'8月'!AF44+'9月'!AF44+'10月'!AF44+'11月'!AF44+'12月'!AF44 -> 110 | AG44: ='1月'!AG44+'2月'!AG44+'3月'!AG44+'5月'!AG44+'6月'!AG44+'7月'!AG44+'8月'!AG44+'9月'!AG44+'10月'!AG44+'11月'!AG44+'12月'!AG44 -> 99 | AH44: 90.0% | AO44: ='1月'!AO44+'2月'!AO44+'3月'!AO44+'5月'!AO44+'6月'!AO44+'7月'!AO44+'8月'!AO44+'9月'!AO44+'10月'!AO44+'11月'!AO44+'12月'!AO44 -> 26 | AP44: ='1月'!AP44+'2月'!AP44+'3月'!AP44+'5月'!AP44+'6月'!AP44+'7月'!AP44+'8月'!AP44+'9月'!AP44+'10月'!AP44+'11月'!AP44+'12月'!AP44 -> 26 | AQ44: =AP44/AO44 -> 100.0% | AR44: ='1月'!AR44+'2月'!AR44+'3月'!AR44+'5月'!AR44+'6月'!AR44+'7月'!AR44+'8月'!AR44+'9月'!AR44+'10月'!AR44+'11月'!AR44+'12月'!AR44 -> 1 | AS44: ='1月'!AS44+'2月'!AS44+'3月'!AS44+'5月'!AS44+'6月'!AS44+'7月'!AS44+'8月'!AS44+'9月'!AS44+'10月'!AS44+'11月'!AS44+'12月'!AS44 -> 1 | AT44: =AS44/AR44 -> 100.0% | BG44: 386 | BH44: 366 | BI44: 94.8%
A45: 危化经营安管复训 | B45: ='1月'!B45+'2月'!B45+'3月'!B45+'5月'!B45+'6月'!B45+'7月'!B45+'8月'!B45+'9月'!B45+'10月'!B45+'11月'!B45+'12月'!B45 -> 781 | C45: ='1月'!C45+'2月'!C45+'3月'!C45+'5月'!C45+'6月'!C45+'7月'!C45+'8月'!C45+'9月'!C45+'10月'!C45+'11月'!C45+'12月'!C45 -> 707 | D45: 90.5% | K45: ='1月'!K45+'2月'!K45+'3月'!K45+'5月'!K45+'6月'!K45+'7月'!K45+'8月'!K45+'9月'!K45+'10月'!K45+'11月'!K45+'12月'!K45 -> 409 | L45: ='1月'!L45+'2月'!L45+'3月'!L45+'5月'!L45+'6月'!L45+'7月'!L45+'8月'!L45+'9月'!L45+'10月'!L45+'11月'!L45+'12月'!L45 -> 383 | M45: 93.6% | Q45: ='1月'!Q45+'2月'!Q45+'3月'!Q45+'5月'!Q45+'6月'!Q45+'7月'!Q45+'8月'!Q45+'9月'!Q45+'10月'!Q45+'11月'!Q45+'12月'!Q45 -> 1 | R45: ='1月'!R45+'2月'!R45+'3月'!R45+'5月'!R45+'6月'!R45+'7月'!R45+'8月'!R45+'9月'!R45+'10月'!R45+'11月'!R45+'12月'!R45 -> 1 | S45: 100.0% | AC45: ='1月'!AC45+'2月'!AC45+'3月'!AC45+'5月'!AC45+'6月'!AC45+'7月'!AC45+'8月'!AC45+'9月'!AC45+'10月'!AC45+'11月'!AC45+'12月'!AC45 -> 89 | AD45: ='1月'!AD45+'2月'!AD45+'3月'!AD45+'5月'!AD45+'6月'!AD45+'7月'!AD45+'8月'!AD45+'9月'!AD45+'10月'!AD45+'11月'!AD45+'12月'!AD45 -> 87 | AE45: 97.8% | AF45: ='1月'!AF45+'2月'!AF45+'3月'!AF45+'5月'!AF45+'6月'!AF45+'7月'!AF45+'8月'!AF45+'9月'!AF45+'10月'!AF45+'11月'!AF45+'12月'!AF45 -> 78 | AG45: ='1月'!AG45+'2月'!AG45+'3月'!AG45+'5月'!AG45+'6月'!AG45+'7月'!AG45+'8月'!AG45+'9月'!AG45+'10月'!AG45+'11月'!AG45+'12月'!AG45 -> 74 | AH45: 94.9% | AL45: ='1月'!AL45+'2月'!AL45+'3月'!AL45+'5月'!AL45+'6月'!AL45+'7月'!AL45+'8月'!AL45+'9月'!AL45+'10月'!AL45+'11月'!AL45+'12月'!AL45 -> 10 | AM45: ='1月'!AM45+'2月'!AM45+'3月'!AM45+'5月'!AM45+'6月'!AM45+'7月'!AM45+'8月'!AM45+'9月'!AM45+'10月'!AM45+'11月'!AM45+'12月'!AM45 -> 10 | AN45: =AM45/AL45 -> 100.0% | AO45: ='1月'!AO45+'2月'!AO45+'3月'!AO45+'5月'!AO45+'6月'!AO45+'7月'!AO45+'8月'!AO45+'9月'!AO45+'10月'!AO45+'11月'!AO45+'12月'!AO45 -> 13 | AP45: ='1月'!AP45+'2月'!AP45+'3月'!AP45+'5月'!AP45+'6月'!AP45+'7月'!AP45+'8月'!AP45+'9月'!AP45+'10月'!AP45+'11月'!AP45+'12月'!AP45 -> 13 | AQ45: 100.0% | AR45: ='1月'!AR45+'2月'!AR45+'3月'!AR45+'5月'!AR45+'6月'!AR45+'7月'!AR45+'8月'!AR45+'9月'!AR45+'10月'!AR45+'11月'!AR45+'12月'!AR45 -> 9 | AS45: ='1月'!AS45+'2月'!AS45+'3月'!AS45+'5月'!AS45+'6月'!AS45+'7月'!AS45+'8月'!AS45+'9月'!AS45+'10月'!AS45+'11月'!AS45+'12月'!AS45 -> 8 | AT45: 88.9% | AX45: ='9月'!AX45+'10月'!AX45+'11月'!AX45+'12月'!AX45 -> 1 | AY45: ='9月'!AY45+'10月'!AY45+'11月'!AY45+'12月'!AY45 -> 1 | AZ45: =AY45/AX45 -> 100.0% | BG45: 1391 | BH45: 1284 | BI45: 92.3%
A46: 非煤矿山安管复训 | B46: ='1月'!B46+'2月'!B46+'3月'!B46+'5月'!B46+'6月'!B46+'7月'!B46+'8月'!B46+'9月'!B46+'10月'!B46+'11月'!B46+'12月'!B46 -> 56 | C46: ='1月'!C46+'2月'!C46+'3月'!C46+'5月'!C46+'6月'!C46+'7月'!C46+'8月'!C46+'9月'!C46+'10月'!C46+'11月'!C46+'12月'!C46 -> 56 | D46: 100.0% | K46: ='1月'!K46+'2月'!K46+'3月'!K46+'5月'!K46+'6月'!K46+'7月'!K46+'8月'!K46+'9月'!K46+'10月'!K46+'11月'!K46+'12月'!K46 -> 6 | L46: ='1月'!L46+'2月'!L46+'3月'!L46+'5月'!L46+'6月'!L46+'7月'!L46+'8月'!L46+'9月'!L46+'10月'!L46+'11月'!L46+'12月'!L46 -> 6 | M46: 100.0% | Q46: ='1月'!Q46+'2月'!Q46+'3月'!Q46+'5月'!Q46+'6月'!Q46+'7月'!Q46+'8月'!Q46+'9月'!Q46+'10月'!Q46+'11月'!Q46+'12月'!Q46 -> 8 | R46: ='1月'!R46+'2月'!R46+'3月'!R46+'5月'!R46+'6月'!R46+'7月'!R46+'8月'!R46+'9月'!R46+'10月'!R46+'11月'!R46+'12月'!R46 -> 8 | S46: 100.0% | AC46: ='1月'!AC46+'2月'!AC46+'3月'!AC46+'5月'!AC46+'6月'!AC46+'7月'!AC46+'8月'!AC46+'9月'!AC46+'10月'!AC46+'11月'!AC46+'12月'!AC46 -> 17 | AD46: ='1月'!AD46+'2月'!AD46+'3月'!AD46+'5月'!AD46+'6月'!AD46+'7月'!AD46+'8月'!AD46+'9月'!AD46+'10月'!AD46+'11月'!AD46+'12月'!AD46 -> 16 | AE46: 94.1% | AF46: ='1月'!AF46+'2月'!AF46+'3月'!AF46+'5月'!AF46+'6月'!AF46+'7月'!AF46+'8月'!AF46+'9月'!AF46+'10月'!AF46+'11月'!AF46+'12月'!AF46 -> 1 | AG46: ='1月'!AG46+'2月'!AG46+'3月'!AG46+'5月'!AG46+'6月'!AG46+'7月'!AG46+'8月'!AG46+'9月'!AG46+'10月'!AG46+'11月'!AG46+'12月'!AG46 -> 1 | AH46: 100.0% | BG46: 88 | BH46: 87 | BI46: 98.9%
A47: 金属冶炼安管复训 | Q47: ='1月'!Q47+'2月'!Q47+'3月'!Q47+'5月'!Q47+'6月'!Q47+'7月'!Q47+'8月'!Q47+'9月'!Q47+'10月'!Q47+'11月'!Q47+'12月'!Q47 -> 12 | R47: ='1月'!R47+'2月'!R47+'3月'!R47+'5月'!R47+'6月'!R47+'7月'!R47+'8月'!R47+'9月'!R47+'10月'!R47+'11月'!R47+'12月'!R47 -> 12 | S47: 100.0% | BG47: 12 | BH47: 12 | BI47: 100.0%
A48: 高危行业安管复训合计 | B48: =SUM(B43:B47) -> 997 | C48: =SUM(C43:C47) -> 919 | D48: =C48/B48 -> 92.2% | K48: =SUM(K43:K47) -> 529 | L48: =SUM(L43:L47) -> 492 | M48: =L48/K48 -> 93.0% | Q48: =SUM(Q43:Q47) -> 23 | R48: =SUM(R43:R47) -> 23 | S48: 100.0% | AC48: =SUM(AC43:AC47) -> 139 | AD48: =SUM(AD43:AD47) -> 132 | AE48: 95.0% | AF48: =SUM(AF43:AF47) -> 192 | AG48: =SUM(AG43:AG47) -> 177 | AH48: =AG48/AF48 -> 92.2% | AL48: =SUM(AL43:AL47) -> 10 | AM48: =SUM(AM43:AM47) -> 10 | AN48: =AM48/AL48 -> 100.0% | AO48: 39 | AP48: 39 | AQ48: =AP48/AO48 -> 100.0% | AR48: =SUM(AR43:AR47) -> 10 | AS48: 9 | AT48: 90.0% | AX48: 1 | AY48: 1 | AZ48: =AY48/AX48 -> 100.0% | BG48: 1940 | BH48: 1802 | BI48: =BH48/BG48 -> 92.9%
A49: 高危行业安管人员合计 | B49: =B42+B48 -> 1381 | C49: =C42+C48 -> 1238 | D49: 89.6% | K49: =K42+K48 -> 791 | L49: =L42+L48 -> 706 | M49: 89.3% | Q49: =Q42+Q48 -> 52 | R49: =R42+R48 -> 50 | S49: =R49/Q49 -> 96.2% | AC49: =AC42+AC48 -> 206 | AD49: 185 | AE49: =AD49/AC49 -> 89.8% | AF49: 320 | AG49: 281 | AH49: 87.8% | AL49: =AL42+AL48 -> 38 | AM49: =AM42+AM48 -> 30 | AN49: 78.9% | AO49: 67 | AP49: 65 | AQ49: 97.0% | AR49: =AR42+AR48 -> 23 | AS49: 21 | AT49: 91.3% | AU49: =AU42+AU48 -> 2 | AV49: 2 | AW49: =AV49/AU49 -> 100.0% | AX49: 11 | AY49: 10 | AZ49: =AY49/AX49 -> 90.9% | BG49: 2891 | BH49: 2588 | BI49: 89.5%
A50: 高危行业负责人安管合计 | B50: =B36+B49 -> 2282 | C50: =C36+C49 -> 2103 | D50: 92.2% | K50: =K36+K49 -> 1153 | L50: =L36+L49 -> 1047 | M50: 90.8% | Q50: =Q36+Q49 -> 81 | R50: =R36+R49 -> 77 | S50: 95.1% | AC50: =AC36+AC49 -> 323 | AD50: 282 | AE50: 87.3% | AF50: 492 | AG50: 444 | AH50: 90.2% | AL50: =AL36+AL49 -> 55 | AM50: 46 | AN50: 83.6% | AO50: 100 | AP50: 97 | AQ50: 97.0% | AR50: =AR36+AR49 -> 44 | AS50: =AS36+AS49 -> 40 | AT50: =AS50/AR50 -> 90.9% | AU50: =AU36+AU49 -> 4 | AV50: 4 | AW50: 100.0% | AX50: 23 | AY50: 21 | AZ50: 91.3% | BG50: 4557 | BH50: 4161 | BI50: 91.3%
A51: 全工种合计 | B51: =B23+B50 -> 7474 | C51: 6918 | D51: 92.6% | E51: 2839 | F51: 2645 | G51: =F51/E51 -> 93.2% | H51: =H23+H50 -> 540 | I51: 410 | J51: =I51/H51 -> 75.9% | K51: 3821 | L51: 3387 | M51: 88.6% | N51: =N23+N50 -> 1471 | O51: 1314 | P51: =O51/N51 -> 89.3% | Q51: 492 | R51: 457 | S51: 92.9% | T51: =T23+T50 -> 643 | U51: 546 | V51: =U51/T51 -> 84.9% | W51: 470 | X51: 413 | Y51: =X51/W51 -> 87.9% | Z51: =Z23+Z50 -> 846 | AA51: 655 | AB51: =AA51/Z51 -> 77.4% | AC51: 1863 | AD51: 1677 | AE51: 90.0% | AF51: =AF23+AF50 -> 1781 | AG51: 1666 | AH51: 93.5% | AI51: 1436 | AJ51: 1096 | AK51: =AJ51/AI51 -> 76.3% | AL51: =AL23+AL50 -> 1072 | AM51: 949 | AN51: 88.5% | AO51: 211 | AP51: 188 | AQ51: 89.1% | AR51: =AR23+AR50 -> 44 | AS51: =AS23+AS50 -> 40 | AT51: 90.9% | AU51: =AU23+AU50 -> 51 | AV51: 44 | AW51: 86.3% | AX51: =AX23+AX50 -> 58 | AY51: =AY23+AY50 -> 54 | AZ51: 93.1% | BA51: =BA23+BA50 -> 252 | BB51: =BB23+BB50 -> 217 | BC51: =BB51/BA51 -> 86.1% | BD51: =BD23+BD50 -> 144 | BE51: =BE23+BE50 -> 113 | BF51: =BE51/BD51 -> 78.5% | BG51: 25508 | BH51: 22789 | BI51: 89.3%
A52: 备注： 1.培训机构名称以全国安全生产培训考试信息管理系统记录为准，按系统顺序排序； 2.实考人数=报考总人数-正考补考均缺考人数-考试违规被取消成绩人数； 3.仅统计已完成考试者，还有补考机会者不统计。
